Workbook

Sheet "actual" curve
A1: LogPearson typeIII frequency curve | Q1: exp prob | R1: Zp | S1: Kp,g | T1: flow | U1: logflow
V2: flow | W2: logflow
B3: mean | C3: 3.6 | Q3: 0.9995 | R3: =NORMSINV(1-Q3) -> -3.290526731 | S3: =2/skew*(((R3-skew/6)*skew/6+1)^3-1) -> -2.813635235 | T3: =10^(mean+stdev*S3) -> 156.0207576 | U3: =LOG(T3) -> 2.193182383 | V3: =-(Q4-Q3)/(T4-T3) -> 1.823150097e-05 | W3: =-(Q4-Q3)/(U4-U3) -> 0.007109803543
B4: standard deviation | C4: 0.5 | Q4: 0.999 | R4: -3.090232306 | S4: -2.672984373 | T4: 183.4458172 | U4: 2.263507814 | V4: =-(Q5-Q4)/(T5-T4) -> 2.838058589e-05 | W4: =-(Q5-Q4)/(U5-U4) -> 0.0131055453
B5: skew | C5: 0.3 | Q5: 0.998 | R5: -2.878161739 | S5: -2.520377216 | T5: 218.6811715 | U5: 2.339811392 | V5: =-(Q6-Q5)/(T6-T5) -> 4.658145309e-05 | W5: =-(Q6-Q5)/(U6-U5) -> 0.026760703
Q6: 0.995 | R6: -2.575829304 | S6: -2.29616786 | T6: 283.0844866 | U6: 2.45191607 | V6: =-(Q7-Q6)/(T7-T6) -> 7.1818919e-05 | W6: =-(Q7-Q6)/(U7-U6) -> 0.0523591209
A7: exc prob | B7: Zp | C7: Kp,g | D7: flow | Q7: 0.99 | R7: -2.326347874 | S7: -2.105179168 | T7: 352.7040252 | U7: 2.547410416 | V7: =-(Q8-Q7)/(T8-T7) -> 9.366867822e-05 | W7: =-(Q8-Q7)/(U8-U7) -> 0.08169253798
A8: 0.99 | B8: =NORMSINV(1-A8) -> -2.326347874 | C8: =2/skew*(((B8-skew/6)*skew/6+1)^3-1) -> -2.105179168 | D8: =10^(mean+stdev*C8) -> 352.7040252 | Q8: 0.985 | R8: -2.170090378 | S8: -1.982768967 | T8: 406.0836617 | U8: 2.608615517 | V8: 0.0001095099991 | W8: 0.1080507248
A9: 0.9 | B9: =NORMSINV(1-A9) -> -1.281551566 | C9: -1.244867487 | D9: 949.6558686 | Q9: 0.98 | R9: -2.053748911 | S9: -1.890219842 | T9: 451.7415929 | U9: 2.654890079 | V9: 0.0001219031034 | W9: 0.1324734659
A10: 0.75 | B10: -0.6744897502 | C10: -0.6985623754 | D10: 1781.225125 | Q10: 0.975 | R10: -1.959963985 | S10: -1.814733027 | T10: 492.7577759 | U10: 2.692633486 | V10: 0.000131974518 | W10: 0.1554258957
A11: 0.5 | B11: 0 | C11: -0.04987510417 | D11: 3758.914505 | Q11: 0.97 | R11: -1.880793608 | S11: -1.750393684 | T11: 530.6438775 | U11: 2.724803158 | V11: 0.0001403493722 | W11: 0.1771803829
A12: 0.25 | B12: 0.6744897502 | C12: 0.6441920752 | D12: 8357.878196 | Q12: 0.965 | R12: -1.811910673 | S12: -1.693954028 | T12: 566.2692595 | U12: 2.753022986 | V12: 0.0001474193335 | W12: 0.1979182427
A13: 0.1 | B13: 1.281551566 | C13: 1.308944127 | D13: 17966.85502 | Q13: 0.96 | R13: -1.750686071 | S13: -1.643428114 | T13: 600.1861135 | U13: 2.778285943 | V13: 0.0001534494478 | W13: 0.2177697497
A14: 0.05 | B14: 1.644853627 | C14: 1.725412034 | D14: 29020.57526 | Q14: 0.955 | R14: -1.69539771 | S14: -1.597508054 | T14: 632.7701343 | U14: 2.801245973 | V14: 0.0001586290097 | W14: 0.2368334157
A15: 0.02 | B15: 2.053748911 | C15: 2.211203622 | D15: 50769.37427 | Q15: 0.95 | R15: -1.644853627 | S15: -1.555284283 | T15: 664.2902201 | U15: 2.822357859 | V15: 0.0001630987435 | W15: 0.2551865319
A16: 0.01 | B16: 2.326347874 | C16: 2.545265429 | D16: 74581.77491 | E16: =LOG(Q100cfs) -> 4.872632715 | Q16: 0.945 | R16: -1.59819314 | S16: -1.516097262 | T16: 694.9464955 | U16: 2.841951369 | V16: 0.0001669665706 | W16: 0.2728914596
A17: 0.005 | B17: 2.575829304 | C17: 2.858248587 | D17: 106936.0883 | Q17: 0.94 | R17: -1.554773595 | S17: -1.479452656 | T17: 724.8926097 | U17: 2.860273672 | V17: 0.0001703173407 | W17: 0.2899996331
A18: 0.002 | B18: 2.878161739 | C18: 3.246937554 | D18: 167289.5361 | Q18: 0.935 | R18: -1.514101888 | S18: -1.444969853 | T18: 754.2495735 | U18: 2.877515073 | V18: 0.0001732191381 | W18: 0.306554236
Q19: 0.93 | R19: -1.475791028 | S19: -1.412349198 | T19: 783.1147443 | U19: 2.893825401 | V19: 0.0001757275327 | W19: 0.3225920606
Q20: 0.925 | R20: -1.439531471 | S20: -1.381350295 | T20: 811.5678838 | U20: 2.909324852 | V20: 0.0001778885402 | W20: 0.3381448445
A21: This is the frequency curve from which statistical | Q21: 0.92 | R21: -1.40507156 | S21: -1.35177717 | T21: 839.6753717 | U21: 2.924111415 | V21: 0.0001797407407 | W21: 0.3532402546
A22: experiments will be conducted | Q22: 0.915 | R22: -1.372203809 | S22: -1.323467825 | T22: 867.4932163 | U22: 2.938266087 | V22: 0.0001813168309 | W22: 0.3679026301
Q23: 0.91 | R23: -1.340755034 | S23: -1.29628672 | T23: 895.0692553 | U23: 2.95185664 | V23: 0.0001826447852 | W23: 0.3821535531
Q24: 0.905 | R24: -1.310579112 | S24: -1.270119228 | T24: 922.4447974 | U24: 2.964940386 | V24: 0.0001837487384 | W24: 0.3960122952
Q25: 0.9 | R25: -1.281551566 | S25: -1.244867487 | T25: 949.6558686 | U25: 2.977566256 | V25: 0.0001846496695 | W25: 0.4094961721
Q26: 0.895 | R26: -1.253565438 | S26: -1.220447235 | T26: 976.7341732 | U26: 2.989776383 | V26: 0.0001853659358 | W26: 0.4226208279
Q27: 0.89 | R27: -1.22652812 | S27: -1.196785362 | T27: 1003.707845 | U27: 3.001607319 | V27: 0.0001859136985 | W27: 0.4354004673
Q28: 0.885 | R28: -1.200358858 | S28: -1.173818001 | T28: 1030.602044 | U28: 3.013091 | V28: 0.0001863072631 | W28: 0.4478480459
Q29: 0.88 | R29: -1.174986792 | S29: -1.151488999 | T29: 1057.439431 | U29: 3.024255501 | V29: 0.0001865593559 | W29: 0.4599754282
Q30: 0.875 | R30: -1.15034938 | S30: -1.129748707 | T30: 1084.240552 | U30: 3.035125647 | V30: 0.0001866813498 | W30: 0.4717935198
Q31: 0.87 | R31: -1.126391129 | S31: -1.108552994 | T31: 1111.02416 | U31: 3.045723503 | V31: 0.0001866834512 | W31: 0.4833123792
Q32: 0.865 | R32: -1.103062556 | S32: -1.087862442 | T32: 1137.807466 | U32: 3.056068779 | V32: 0.000186574855 | W32: 0.4945413124
Q33: 0.86 | R33: -1.080319341 | S33: -1.067641684 | T33: 1164.606361 | U33: 3.066179158 | V33: 0.0001863638739 | W33: 0.5054889537
Q34: 0.855 | R34: -1.058121618 | S34: -1.047858858 | T34: 1191.435595 | U34: 3.076070571 | V34: 0.0001860580487 | W34: 0.5161633357
Q35: 0.85 | R35: -1.036433389 | S35: -1.028485146 | T35: 1218.308929 | U35: 3.085757427 | V35: 0.0001856642405 | W35: 0.5265719497
Q36: 0.845 | R36: -1.015222033 | S36: -1.009494389 | T36: 1245.239263 | U36: 3.095252806 | V36: 0.0001851887099 | W36: 0.5367217975
Q37: 0.84 | R37: -0.9944578832 | S37: -0.9908627622 | T37: 1272.238749 | U37: 3.104568619 | V37: 0.0001846371852 | W37: 0.5466194381
Q38: 0.835 | R38: -0.9741138771 | S38: -0.9725684988 | T38: 1299.318884 | U38: 3.113715751 | V38: 0.0001840149203 | W38: 0.5562710269
Q39: 0.83 | R39: -0.9541652531 | S39: -0.9545916503 | T39: 1326.490594 | U39: 3.122704175 | V39: 0.0001833267458 | W39: 0.565682352
Q40: 0.825 | R40: -0.9345892911 | S40: -0.9369138847 | T40: 1353.764301 | U40: 3.131543058 | V40: 0.0001825771128 | W40: 0.574858865
A41: 0.99 | B41: =B8 -> -2.326347874 | C41: =B8 -> -2.326347874 | D41: 100 | E41: 1000000 | Q41: 0.82 | R41: -0.9153650878 | S41: -0.9195183106 | T41: 1381.14999 | U41: 3.140240845 | V41: 0.000181770131 | W41: 0.583805709
A42: 0.9 | B42: -1.281551566 | C42: -1.281551566 | D42: 100 | E42: 1000000 | Q42: 0.815 | R42: -0.896473364 | S42: -0.9023893243 | T42: 1408.65726 | U42: 3.148805338 | V42: 0.0001809096027 | W42: 0.5925277435
A43: 0.75 | B43: -0.6744897502 | C43: -0.6744897502 | D43: 100 | E43: 1000000 | Q43: 0.81 | R43: -0.8778962951 | S43: -0.8855124774 | T43: 1436.295373 | U43: 3.157243761 | V43: 0.000179999052 | W43: 0.6010295665
A44: 0.5 | B44: 0 | C44: 0 | D44: 100 | E44: 1000000 | Q44: 0.805 | R44: -0.8596173642 | S44: -0.8688743608 | T44: 1464.073297 | U44: 3.16556282 | V44: 0.0001790417513 | W44: 0.6093155342
A45: 0.25 | B45: 0.6744897502 | C45: 0.6744897502 | D45: 100 | E45: 1000000 | Q45: 0.8 | R45: -0.8416212336 | S45: -0.8524625028 | T45: 1491.999744 | U45: 3.173768749 | V45: 0.0001780407439 | W45: 0.6173897794
A46: 0.1 | B46: 1.281551566 | C46: 1.281551566 | D46: 100 | E46: 1000000 | Q46: 0.795 | R46: -0.8238936303 | S46: -0.8362652797 | T46: 1520.083203 | U46: 3.18186736 | V46: 0.0001769988647 | W46: 0.6252562271
A47: 0.05 | B47: 1.644853627 | C47: 1.644853627 | D47: 100 | E47: 1000000 | Q47: 0.79 | R47: -0.806421247 | S47: -0.8202718365 | T47: 1548.331972 | U47: 3.189864082 | V47: 0.0001759187588 | W47: 0.6329186093
A48: 0.02 | B48: 2.053748911 | C48: 2.053748911 | D48: 100 | E48: 1000000 | Q48: 0.785 | R48: -0.7891916527 | S48: -0.8044720166 | T48: 1576.754183 | U48: 3.197763992 | V48: 0.000174802897 | W48: 0.6403804783
A49: 0.01 | B49: 2.326347874 | C49: 2.326347874 | D49: 100 | E49: 1000000 | Q49: 0.78 | R49: -0.7721932142 | S49: -0.7888563001 | T49: 1605.357828 | U49: 3.20557185 | V49: 0.000173653591 | W49: 0.6476452187
A50: 0.005 | B50: 2.575829304 | C50: 2.575829304 | D50: 100 | E50: 1000000 | Q50: 0.775 | R50: -0.7554150264 | S50: -0.7734157476 | T50: 1634.150782 | U50: 3.213292126 | V50: 0.0001724730063 | W50: 0.6547160583
A51: 0.002 | B51: 2.878161739 | C51: 2.878161739 | D51: 100 | E51: 1000000 | Q51: 0.77 | R51: -0.7388468492 | S51: -0.7581419509 | T51: 1663.140826 | U51: 3.220929025 | V51: 0.000171263174 | W51: 0.661596078
Q52: 0.765 | R52: -0.7224790519 | S52: -0.7430269882 | T52: 1692.33566 | U52: 3.228486506 | V52: 0.0001700260011 | W52: 0.6682882212
Q53: 0.76 | R53: -0.7063025628 | S53: -0.7280633847 | T53: 1721.742927 | U53: 3.235968308 | V53: 0.0001687632807 | W53: 0.674795302
Q54: 0.755 | R54: -0.6903088239 | S54: -0.7132440758 | T54: 1751.370225 | U54: 3.243377962 | V54: 0.0001674767001 | W54: 0.6811200128
Q55: 0.75 | R55: -0.6744897502 | S55: -0.6985623754 | T55: 1781.225125 | U55: 3.250718812 | V55: 0.0001661678489 | W55: 0.6872649316
Q56: 0.745 | R56: -0.6588376927 | S56: -0.6840119458 | T56: 1811.315181 | U56: 3.257994027 | V56: 0.0001648382261 | W56: 0.6932325281
Q57: 0.74 | R57: -0.6433454054 | S57: -0.6695867715 | T57: 1841.647951 | U57: 3.265206614 | V57: 0.0001634892469 | W57: 0.6990251704
Q58: 0.735 | R58: -0.6280060144 | S58: -0.655281135 | T58: 1872.231002 | U58: 3.272359432 | V58: 0.0001621222482 | W58: 0.7046451299
Q59: 0.73 | R59: -0.612812991 | S59: -0.6410895944 | T59: 1903.071927 | U59: 3.279455203 | V59: 0.0001607384943 | W59: 0.7100945867
Q60: 0.725 | R60: -0.597760126 | S60: -0.6270069634 | T60: 1934.178352 | U60: 3.286496518 | V60: 0.0001593391818 | W60: 0.7153756343
Q61: 0.72 | R61: -0.5828415073 | S61: -0.6130282933 | T61: 1965.557954 | U61: 3.293485853 | V61: 0.0001579254441 | W61: 0.7204902842
Q62: 0.715 | R62: -0.5680514983 | S62: -0.5991488556 | T62: 1997.218463 | U62: 3.300425572 | V62: 0.0001564983557 | W62: 0.7254404697
Q63: 0.71 | R63: -0.5533847196 | S63: -0.585364127 | T63: 2029.16768 | U63: 3.307317936 | V63: 0.0001550589362 | W63: 0.7302280499
Q64: 0.705 | R64: -0.5388360303 | S64: -0.571669775 | T64: 2061.413484 | U64: 3.314165113 | V64: 0.0001536081532 | W64: 0.7348548133
Q65: 0.7 | R65: -0.5244005127 | S65: -0.5580616447 | T65: 2093.96384 | U65: 3.320969178 | V65: 0.0001521469265 | W65: 0.7393224811
Q66: 0.695 | R66: -0.510073457 | S66: -0.5445357474 | T66: 2126.82681 | U66: 3.327732126 | V66: 0.0001506761302 | W66: 0.7436327099
Q67: 0.69 | R67: -0.4958503473 | S67: =2/skew*(((R67-skew/6)*skew/6+1)^3-1) -> -0.5310882485 | T67: =10^(mean+stdev*S67) -> 2160.010567 | U67: 3.334455876 | V67: 0.0001491965961 | W67: 0.7477870953
Q68: 0.685 | R68: -0.4817268496 | S68: -0.5177154583 | T68: 2193.523396 | U68: 3.341142271 | V68: 0.0001477091162 | W68: 0.7517871741
Q69: 0.68 | R69: =NORMSINV(1-Q69) -> -0.4676987991 | S69: -0.5044138214 | T69: 2227.37371 | U69: =LOG(T69) -> 3.347793089 | V69: =-(Q70-Q69)/(T70-T69) -> 0.0001462144448 | W69: =-(Q70-Q69)/(U70-U69) -> 0.7556344268
Q70: 0.675 | R70: -0.4537621902 | S70: -0.4911799087 | T70: 2261.570058 | U70: 3.354410046 | V70: 0.0001447133009 | W70: 0.7593302804
Q71: 0.67 | R71: -0.4399131657 | S71: -0.4780104089 | T71: 2296.121132 | U71: 3.360994796 | V71: 0.0001432063703 | W71: 0.7628761101
Q72: 0.665 | R72: -0.4261480078 | S72: -0.4649021206 | T72: 2331.03578 | U72: 3.36754894 | V72: 0.0001416943076 | W72: 0.7662732417
Q73: 0.66 | R73: -0.4124631294 | S73: -0.4518519455 | T73: 2366.323013 | U73: 3.374074027 | V73: 0.0001401777375 | W73: 0.7695229535
Q74: 0.655 | R74: -0.3988550656 | S74: -0.4388568815 | T74: 2401.992015 | U74: 3.380571559 | V74: 0.0001386572573 | W74: 0.7726264783
Q75: 0.65 | R75: -0.3853204664 | S75: -0.4259140168 | T75: 2438.052154 | U75: 3.387042992 | V75: 0.0001371334376 | W75: 0.7755850045
Q76: 0.645 | R76: -0.3718560894 | S76: -0.4130205235 | T76: 2474.512991 | U76: 3.393489738 | V76: 0.0001356068241 | W76: 0.7783996787
Q77: 0.64 | R77: -0.3584587933 | S77: -0.4001736529 | T77: 2511.384292 | U77: 3.399913174 | V77: 0.0001340779391 | W77: 0.7810716064
Q78: 0.635 | R78: -0.3451255315 | S78: -0.3873707294 | T78: 2548.676035 | U78: 3.406314635 | V78: 0.0001325472827 | W78: 0.7836018537
Q79: 0.63 | R79: -0.3318533464 | S79: -0.3746091465 | T79: 2586.398423 | U79: 3.412695427 | V79: 0.0001310153336 | W79: 0.785991449
Q80: 0.625 | R80: -0.318639364 | S80: -0.3618863618 | T80: 2624.561894 | U80: 3.419056819 | V80: 0.0001294825509 | W80: 0.7882413837
Q81: 0.62 | R81: -0.3054807881 | S81: -0.3491998926 | T81: 2663.177136 | U81: 3.425400054 | V81: 0.0001279493744 | W81: 0.7903526138
Q82: 0.615 | R82: -0.2923748962 | S82: -0.3365473122 | T82: 2702.255092 | U82: 3.431726344 | V82: 0.0001264162261 | W82: 0.7923260611
Q83: 0.61 | R83: -0.2793190344 | S83: -0.3239262456 | T83: 2741.806977 | U83: 3.438036877 | V83: 0.0001248835108 | W83: 0.7941626138
Q84: 0.605 | R84: -0.2663106132 | S84: -0.311334366 | T84: 2781.844288 | U84: 3.444332817 | V84: 0.0001233516174 | W84: 0.795863128
Q85: 0.6 | R85: -0.2533471031 | S85: -0.2987693914 | T85: 2822.378819 | U85: 3.450615304 | V85: 0.0001218209191 | W85: 0.7974284284
Q86: 0.595 | R86: -0.2404260311 | S86: -0.286229081 | T86: 2863.422673 | U86: 3.456885459 | V86: 0.0001202917746 | W86: 0.7988593093
Q87: 0.59 | R87: -0.2275449766 | S87: -0.2737112323 | T87: 2904.988275 | U87: 3.463144384 | V87: 0.0001187645286 | W87: 0.8001565355
Q88: 0.585 | R88: -0.214701568 | S88: -0.2612136777 | T88: 2947.088387 | U88: 3.469393161 | V88: 0.0001172395128 | W88: 0.801320843
Q89: 0.58 | R89: -0.2018934791 | S89: -0.2487342818 | T89: 2989.736125 | U89: 3.475632859 | V89: 0.0001157170461 | W89: 0.8023529396
Q90: 0.575 | R90: -0.1891184263 | S90: -0.2362709387 | T90: 3032.944971 | U90: 3.481864531 | V90: 0.0001141974353 | W90: 0.8032535059
Q91: 0.57 | R91: -0.1763741648 | S91: -0.2238215688 | T91: 3076.728791 | U91: 3.488089216 | V91: 0.0001126809762 | W91: 0.8040231961
Q92: 0.565 | R92: -0.1636584862 | S92: -0.2113841167 | T92: 3121.101854 | U92: 3.494307942 | V92: 0.0001111679533 | W92: 0.8046626379
Q93: 0.56 | R93: -0.1509692155 | S93: -0.1989565483 | T93: 3166.078845 | U93: 3.500521726 | V93: 0.0001096586408 | W93: 0.805172434
Q94: 0.555 | R94: -0.138304208 | S94: -0.1865368484 | T94: 3211.674887 | U94: 3.506731576 | V94: 0.0001081533033 | W94: 0.8055531621
Q95: 0.55 | R95: -0.1256613469 | S95: -0.1741230184 | T95: 3257.90556 | U95: 3.512938491 | V95: 0.0001066521957 | W95: 0.8058053756
Q96: 0.545 | R96: -0.1130385406 | S96: -0.1617130739 | T96: 3304.78692 | U96: 3.519143463 | V96: 0.0001051555639 | W96: 0.8059296039
Q97: 0.54 | R97: -0.1004337205 | S97: -0.1493050423 | T97: 3352.335521 | U97: 3.525347479 | V97: 0.0001036636453 | W97: 0.8059263533
Q98: 0.535 | R98: -0.0878448379 | S98: -0.1368969606 | T98: 3400.568438 | U98: 3.53155152 | V98: 0.0001021766691 | W98: 0.8057961069
Q99: 0.53 | R99: -0.0752698621 | S99: -0.1244868734 | T99: 3449.503289 | U99: 3.537756563 | V99: 0.0001006948566 | W99: 0.8055393254
Q100: 0.525 | R100: -0.06270677794 | S100: -0.1120728301 | T100: 3499.158258 | U100: 3.543963585 | V100: 9.92184218e-05 | W100: 0.8051564472
Q101: 0.52 | R101: -0.05015358346 | S101: -0.09965288363 | T101: 3549.552125 | U101: 3.550173558 | V101: 9.774757138e-05 | W101: 0.804647889
Q102: 0.515 | R102: -0.03760828766 | S102: -0.0872250874 | T102: 3600.704291 | U102: 3.556387456 | V102: 9.628250526e-05 | W102: 0.8040140459
Q103: 0.51 | R103: -0.02506890826 | S103: -0.07478749374 | T103: 3652.634805 | U103: 3.562606253 | V103: 9.482341687e-05 | W103: 0.8032552919
Q104: 0.505 | R104: -0.01253346951 | S104: -0.06233815155 | T104: 3705.364397 | U104: 3.568830924 | V104: 9.337049338e-05 | W104: 0.8023719798
Q105: 0.5 | R105: 0 | S105: -0.04987510417 | T105: 3758.914505 | U105: 3.575062448 | V105: 9.192391603e-05 | W105: 0.8013644421
Q106: 0.495 | R106: 0.01253346951 | S106: -0.03739638727 | T106: 3813.307313 | U106: 3.581301806 | V106: 9.048386036e-05 | W106: 0.8002329903
Q107: 0.49 | R107: 0.02506890826 | S107: -0.02490002669 | T107: 3868.565787 | U107: 3.587549987 | V107: 8.905049651e-05 | W107: 0.7989779161
Q108: 0.485 | R108: 0.03760828766 | S108: -0.0123840362 | T108: 3924.713705 | U108: 3.593807982 | V108: 8.762398937e-05 | W108: 0.7975994909
Q109: 0.48 | R109: 0.05015358346 | S109: 0.0001535846441 | T109: 3981.775704 | U109: 3.600076792 | V109: 8.620449891e-05 | W109: 0.796097966
Q110: 0.475 | R110: 0.06270677794 | S110: 0.01271485276 | T110: 4039.777317 | U110: 3.606357426 | V110: 8.479218034e-05 | W110: 0.7944735732
Q111: 0.47 | R111: 0.0752698621 | S111: 0.02530180384 | T111: 4098.745019 | U111: 3.612650902 | V111: 8.338718434e-05 | W111: 0.7927265243
Q112: 0.465 | R112: 0.0878448379 | S112: 0.03791649465 | T112: 4158.706272 | U112: 3.618958247 | V112: 8.198965724e-05 | W112: 0.7908570117
Q113: 0.46 | R113: 0.1004337205 | S113: 0.05056100542 | T113: 4219.689573 | U113: 3.625280503 | V113: 8.059974125e-05 | W113: 0.788865208
Q114: 0.455 | R114: 0.1130385406 | S114: 0.06323744228 | T114: 4281.724512 | U114: 3.631618721 | V114: 7.921757462e-05 | W114: 0.7867512666
Q115: 0.45 | R115: 0.1256613469 | S115: 0.07594793977 | T115: 4344.841819 | U115: 3.63797397 | V115: 7.784329182e-05 | W115: 0.7845153212
Q116: 0.445 | R116: 0.138304208 | S116: 0.08869466342 | T116: 4409.07343 | U116: 3.644347332 | V116: 7.647702372e-05 | W116: 0.7821574861
Q117: 0.44 | R117: 0.1509692155 | S117: 0.1014798124 | T117: 4474.452543 | U117: 3.650739906 | V117: 7.511889777e-05 | W117: 0.779677856
Q118: 0.435 | R118: 0.1636584862 | S118: 0.1143056224 | T118: 4541.01369 | U118: 3.657152811 | V118: 7.376903809e-05 | W118: 0.7770765062
Q119: 0.43 | R119: 0.1763741648 | S119: 0.1271743681 | T119: 4608.792803 | U119: 3.663587184 | V119: 7.242756572e-05 | W119: 0.7743534923
Q120: 0.425 | R120: 0.1891184263 | S120: 0.1400883668 | T120: 4677.827292 | U120: 3.670044183 | V120: 7.10945987e-05 | W120: 0.7715088503
Q121: 0.42 | R121: 0.2018934791 | S121: 0.153049981 | T121: 4748.156123 | U121: 3.67652499 | V121: 6.977025223e-05 | W121: 0.7685425962
Q122: 0.415 | R122: 0.214701568 | S122: 0.1660616215 | T122: 4819.819903 | U122: 3.683030811 | V122: 6.845463882e-05 | W122: 0.7654547262
Q123: 0.41 | R123: 0.2275449766 | S123: 0.1791257514 | T123: 4892.860972 | U123: 3.689562876 | V123: 6.71478684e-05 | W123: 0.7622452165
Q124: 0.405 | R124: 0.2404260311 | S124: 0.1922448892 | T124: 4967.3235 | U124: 3.696122445 | V124: 6.585004848e-05 | W124: 0.7589140228
Q125: 0.4 | R125: 0.2533471031 | S125: 0.2054216124 | T125: 5043.253588 | U125: 3.702710806 | V125: 6.456128424e-05 | W125: 0.7554610805
Q126: 0.395 | R126: 0.2663106132 | S126: 0.2186585616 | T126: 5120.699383 | U126: 3.709329281 | V126: 6.328167867e-05 | W126: 0.7518863042
Q127: 0.39 | R127: 0.2793190344 | S127: 0.2319584448 | T127: 5199.711194 | U127: 3.715979222 | V127: 6.201133271e-05 | W127: 0.7481895876
Q128: 0.385 | R128: 0.2923748962 | S128: 0.2453240411 | T128: 5280.341617 | U128: 3.722662021 | V128: 6.075034531e-05 | W128: 0.7443708029
Q129: 0.38 | R129: 0.3054807881 | S129: 0.2587582059 | T129: 5362.645676 | U129: 3.729379103 | V129: 5.94988136e-05 | W129: 0.7404298009
Q130: 0.375 | R130: 0.318639364 | S130: 0.2722638751 | T130: 5446.680965 | U130: 3.736131938 | V130: 5.825683297e-05 | W130: 0.7363664106
Q131: 0.37 | R131: 0.3318533464 | S131: =2/skew*(((R131-skew/6)*skew/6+1)^3-1) -> 0.2858440709 | T131: =10^(mean+stdev*S131) -> 5532.507807 | U131: 3.742922035 | V131: 5.702449717e-05 | W131: 0.7321804383
Q132: 0.365 | R132: 0.3451255315 | S132: 0.2995019064 | T132: 5620.189422 | U132: 3.749750953 | V132: 5.580189844e-05 | W132: 0.7278716678
Q133: 0.36 | R133: =NORMSINV(1-Q133) -> 0.3584587933 | S133: 0.313240592 | T133: 5709.792108 | U133: =LOG(T133) -> 3.756620296 | V133: =-(Q134-Q133)/(T134-T133) -> 5.458912759e-05 | W133: =-(Q134-Q133)/(U134-U133) -> 0.7234398597
Q134: 0.355 | R134: 0.3718560894 | S134: 0.3270634411 | T134: 5801.385439 | U134: 3.763531721 | V134: 5.338627412e-05 | W134: 0.7188847509
Q135: 0.35 | R135: 0.3853204664 | S135: 0.3409738766 | T135: 5895.042471 | U135: 3.770486938 | V135: 5.21934263e-05 | W135: 0.714206054
Q136: 0.345 | R136: 0.3988550656 | S136: 0.3549754382 | T136: 5990.839976 | U136: 3.777487719 | V136: 5.10106713e-05 | W136: 0.7094034569
Q137: 0.34 | R137: 0.4124631294 | S137: 0.369071789 | T137: 6088.858682 | U137: 3.784535894 | V137: 4.983809525e-05 | W137: 0.7044766221
Q138: 0.335 | R138: 0.4261480078 | S138: 0.3832667242 | T138: 6189.183543 | U138: 3.791633362 | V138: 4.867578337e-05 | W138: 0.6994251861
Q139: 0.33 | R139: 0.4399131657 | S139: 0.397564179 | T139: 6291.904027 | U139: 3.79878209 | V139: 4.752382002e-05 | W139: 0.6942487585
Q140: 0.325 | R140: 0.4537621902 | S140: 0.4119682379 | T140: 6397.114424 | U140: 3.805984119 | V140: 4.638228887e-05 | W140: 0.6889469214
Q141: 0.32 | R141: 0.4676987991 | S141: 0.4264831442 | T141: 6504.914193 | U141: 3.813241572 | V141: 4.525127291e-05 | W141: 0.6835192287
Q142: 0.315 | R142: 0.4817268496 | S142: 0.4411133105 | T142: 6615.408322 | U142: 3.820556655 | V142: 4.413085463e-05 | W142: 0.6779652048
Q143: 0.31 | R143: 0.4958503473 | S143: 0.45586333 | T143: 6728.707737 | U143: 3.827931665 | V143: 4.302111605e-05 | W143: 0.6722843442
Q144: 0.305 | R144: 0.510073457 | S144: 0.4707379885 | T144: 6844.929733 | U144: 3.835368994 | V144: 4.192213883e-05 | W144: 0.6664761101
Q145: 0.3 | R145: 0.5244005127 | S145: 0.4857422772 | T145: 6964.198457 | U145: 3.842871139 | V145: 4.08340044e-05 | W145: 0.6605399334
Q146: 0.295 | R146: 0.5388360303 | S146: 0.5008814073 | T146: 7086.645424 | U146: 3.850440704 | V146: 3.975679404e-05 | W146: 0.6544752116
Q147: 0.29 | R147: 0.5533847196 | S147: 0.5161608248 | T147: 7212.410092 | U147: 3.858080412 | V147: 3.869058895e-05 | W147: 0.6482813076
Q148: 0.285 | R148: 0.5680514983 | S148: 0.5315862272 | T148: 7341.640485 | U148: 3.865793114 | V148: 3.76354704e-05 | W148: 0.6419575479
Q149: 0.28 | R149: 0.5828415073 | S149: 0.5471635812 | T149: 7474.493879 | U149: 3.873581791 | V149: 3.659151982e-05 | W149: 0.635503222
Q150: 0.275 | R150: 0.597760126 | S150: 0.5628991426 | T150: 7611.137561 | U150: 3.881449571 | V150: 3.555881889e-05 | W150: 0.6289175801
Q151: 0.27 | R151: 0.612812991 | S151: 0.5787994773 | T151: 7751.749656 | U151: 3.889399739 | V151: 3.453744964e-05 | W151: 0.6221998318
Q152: 0.265 | R152: 0.6280060144 | S152: 0.5948714842 | T152: 7896.520044 | U152: 3.897435742 | V152: 3.352749462e-05 | W152: 0.6153491441
Q153: 0.26 | R153: 0.6433454054 | S153: 0.6111224209 | T153: 8045.651378 | U153: 3.90556121 | V153: 3.252903696e-05 | W153: 0.6083646395
Q154: 0.255 | R154: 0.6588376927 | S154: 0.6275599312 | T154: 8199.360202 | U154: 3.913779966 | V154: 3.154216049e-05 | W154: 0.6012453942
Q155: 0.25 | R155: 0.6744897502 | S155: 0.6441920752 | T155: 8357.878196 | U155: 3.922096038 | V155: 3.056694993e-05 | W155: 0.5939904354
Q156: 0.245 | R156: 0.6903088239 | S156: 0.6610273632 | T156: 8521.453561 | U156: 3.930513682 | V156: 2.960349093e-05 | W156: 0.5865987392
Q157: 0.24 | R157: 0.7063025628 | S157: 0.6780747915 | T157: 8690.35256 | U157: 3.939037396 | V157: 2.865187028e-05 | W157: 0.5790692277
Q158: 0.235 | R158: 0.7224790519 | S158: 0.6953438839 | T158: 8864.861238 | U158: 3.947671942 | V158: 2.771217601e-05 | W158: 0.5714007663
Q159: 0.23 | R159: 0.7388468492 | S159: 0.7128447355 | T159: 9045.287344 | U159: 3.956422368 | V159: 2.678449758e-05 | W159: 0.5635921607
Q160: 0.225 | R160: 0.7554150264 | S160: 0.7305880625 | T160: 9231.96249 | U160: 3.965294031 | V160: 2.586892598e-05 | W160: 0.5556421532
Q161: 0.22 | R161: 0.7721932142 | S161: 0.7485852572 | T161: 9425.244577 | U161: 3.974292629 | V161: 2.496555398e-05 | W161: 0.5475494193
Q162: 0.215 | R162: 0.7891916527 | S162: 0.7668484489 | T162: 9625.520525 | U162: 3.983424224 | V162: 2.407447623e-05 | W162: 0.5393125637
Q163: 0.21 | R163: 0.806421247 | S163: 0.7853905721 | T163: 9833.209364 | U163: 3.992695286 | V163: 2.319578951e-05 | W163: 0.5309301157
Q164: 0.205 | R164: 0.8238936303 | S164: 0.8042254426 | T164: 10048.76573 | U164: 4.002112721 | V164: 2.23295929e-05 | W164: 0.5224005246
Q165: 0.2 | R165: 0.8416212336 | S165: 0.823367843 | T165: 10272.68382 | U165: 4.011683922 | V165: 2.147598802e-05 | W165: 0.5137221547
Q166: 0.195 | R166: 0.8596173642 | S166: 0.8428336182 | T166: 10505.50198 | U166: 4.021416809 | V166: 2.063507925e-05 | W166: 0.504893279
Q167: 0.19 | R167: 0.8778962951 | S167: 0.8626397841 | T167: 10747.80781 | U167: 4.031319892 | V167: 1.980697401e-05 | W167: 0.4959120732
Q168: 0.185 | R168: 0.896473364 | S168: 0.882804649 | T168: 11000.24415 | U168: 4.041402325 | V168: 1.899178299e-05 | W168: 0.4867766089
Q169: 0.18 | R169: 0.9153650878 | S169: 0.9033479533 | T169: 11263.51591 | U169: 4.051673977 | V169: 1.818962052e-05 | W169: 0.4774848455
Q170: 0.175 | R170: 0.9345892911 | S170: 0.9242910264 | T170: 11538.39795 | U170: 4.062145513 | V170: 1.740060482e-05 | W170: 0.468034622
Q171: 0.17 | R171: 0.9541652531 | S171: 0.9456569671 | T171: 11825.74428 | U171: 4.072828484 | V171: 1.662485843e-05 | W171: 0.4584236471
Q172: 0.165 | R172: 0.9741138771 | S172: 0.9674708506 | T172: 12126.49872 | U172: 4.083735425 | V172: 1.586250854e-05 | W172: 0.448649489
Q173: 0.16 | R173: 0.9944578832 | S173: 0.9897599654 | T173: 12441.70738 | U173: 4.094879983 | V173: 1.511368746e-05 | W173: 0.4387095633
Q174: 0.155 | R174: 1.015222033 | S174: 1.012554089 | T174: 12772.53333 | U174: 4.106277045 | V174: 1.437853312e-05 | W174: 0.4286011197
Q175: 0.15 | R175: 1.036433389 | S175: 1.035885806 | T175: 13120.27394 | U175: 4.117942903 | V175: 1.365718952e-05 | W175: 0.4183212271
Q176: 0.145 | R176: 1.058121618 | S176: 1.05979088 | T176: 13486.38148 | U176: 4.12989544 | V176: 1.294980742e-05 | W176: 0.4078667566
Q177: 0.14 | R177: 1.080319341 | S177: 1.084308691 | T177: 13872.48761 | U177: 4.142154346 | V177: 1.225654492e-05 | W177: 0.3972343623
Q178: 0.135 | R178: 1.103062556 | S178: 1.109482747 | T178: 14280.43292 | U178: 4.154741373 | V178: 1.157756827e-05 | W178: 0.3864204593
Q179: 0.13 | R179: 1.126391129 | S179: 1.135361294 | T179: 14712.30254 | U179: 4.167680647 | V179: 1.091305267e-05 | W179: 0.3754211986
Q180: 0.125 | R180: 1.15034938 | S180: 1.161998042 | T180: 15170.46948 | U180: 4.180999021 | V180: 1.026318324e-05 | W180: 0.3642324382
Q181: 0.12 | R181: 1.174986792 | S181: 1.189453038 | T181: 15657.64776 | U181: 4.194726519 | V181: 9.628156095e-06 | W181: 0.3528497096
Q182: 0.115 | R182: 1.200358858 | S182: 1.217793716 | T182: 16176.958 | U182: 4.208896858 | V182: 9.008179611e-06 | W182: 0.3412681789
Q183: 0.11 | R183: 1.22652812 | S183: 1.247096184 | T183: 16732.0091 | U183: 4.223548092 | V183: 8.403475855e-06 | W183: 0.3294826008
Q184: 0.105 | R184: 1.253565438 | S184: 1.2774468 | T184: 17327.00099 | U184: 4.2387234 | V184: 7.814282261e-06 | W184: 0.3174872653
Q185: 0.1 | R185: 1.281551566 | S185: 1.308944127 | T185: 17966.85502 | U185: 4.254472063 | V185: 7.240853582e-06 | W185: 0.3052759328
Q186: 0.095 | R186: 1.310579112 | S186: 1.341701377 | T186: 18657.38134 | U186: 4.270850688 | V186: 6.683464196e-06 | W186: 0.292841758
Q187: 0.09 | R187: 1.340755034 | S187: 1.375849512 | T187: 19405.49637 | U187: 4.287924756 | V187: 6.142410842e-06 | W187: 0.2801771963
Q188: 0.085 | R188: 1.372203809 | S188: 1.41154121 | T188: 20219.509 | U188: 4.305770605 | V188: 5.618015898e-06 | W188: 0.2672738898
Q189: 0.08 | R189: 1.40507156 | S189: 1.448956014 | T189: 21109.50292 | U189: 4.324478007 | V189: 5.110631355e-06 | W189: 0.2541225271
Q190: 0.075 | R190: 1.439531471 | S190: 1.48830711 | T190: 22087.85563 | U190: 4.344153555 | V190: 4.620643673e-06 | W190: 0.240712666
Q191: 0.07 | R191: 1.475791028 | S191: 1.529850416 | T191: 23169.95595 | U191: 4.364925208 | V191: 4.148479804e-06 | W191: 0.2270325089
Q192: 0.065 | R192: 1.514101888 | S192: 1.573896972 | T192: 24375.21673 | U192: 4.386948486 | V192: 3.69461476e-06 | W192: 0.213068612
Q193: 0.06 | R193: 1.554773595 | S193: 1.62083021 | T193: 25728.5378 | U193: 4.410415105 | V193: 3.259581274e-06 | W193: 0.1988055008
Q194: 0.055 | R194: 1.59819314 | S194: 1.671130629 | T194: 27262.47715 | U194: 4.435565315 | V194: 2.843982359e-06 | W194: 0.1842251515
Q195: 0.05 | R195: 1.644853627 | S195: =2/skew*(((R195-skew/6)*skew/6+1)^3-1) -> 1.725412034 | T195: =10^(mean+stdev*S195) -> 29020.57526 | U195: 4.462706017 | V195: 2.448507979e-06 | W195: 0.1693062697
Q196: 0.045 | R196: 1.69539771 | S196: 1.784476592 | T196: 31062.63517 | U196: 4.492238296 | V196: 2.073957725e-06 | W196: 0.1540232558
Q197: 0.04 | R197: =NORMSINV(1-Q197) -> 1.750686071 | S197: 1.849401852 | T197: 33473.4847 | U197: =LOG(T197) -> 4.524700926 | V197: =-(Q198-Q197)/(T198-T197) -> 1.721272572e-06 | W197: =-(Q198-Q197)/(U198-U197) -> 0.1383446555
Q198: 0.035 | R198: 1.811910673 | S198: 1.921685093 | T198: 36378.31226 | U198: 4.560842546 | V198: 1.391580922e-06 | W198: 0.1222307154
Q199: 0.03 | R199: 1.880793608 | S199: 2.00349759 | T199: 39971.34801 | U199: 4.601748795 | V199: 1.086268233e-06 | W199: 0.1056292502
Q200: 0.025 | R200: 1.959963985 | S200: 2.098168336 | T200: 44574.26269 | U200: 4.649084168 | V200: 8.070879654e-07 | W200: 0.08846795035
... 6 more rows

Sheet samples
A1: Population Statistics | D1: Sample of size N=10 | F1: mean = | G1: =AVERAGE(G6:G15) -> 3.453983854 | J1: Sample of size N=50 | L1: mean = | M1: =AVERAGE(M6:M55) -> 3.565242517 | P1: Sample of size N=10
F2: stdev = | G2: =STDEV(G6:G15) -> 0.6537174518 | L2: stdev = | M2: =STDEV(M6:M55) -> 0.5370323287 | P2: Fitted LP3 distribution
A3: mean | B3: 3.6 | F3: skew = | G3: =SKEW(G6:G15) -> 0.4067417754 | L3: skew = | M3: =SKEW(M6:M55) -> 0.3509673299 | Q3: Zp | R3: Kpg | S3: log flow | T3: flow | AF3: Plotting positions for N=10 sample | AK3: Plotting positions for N=50 sample
A4: st.dev. | B4: 0.5 | P4: 0.99 | Q4: =NORMSINV(1-P4) -> -2.326347874 | R4: =2/$G$3*(((Q4-$G$3/6)*$G$3/6+1)^3-1) -> -2.026592527 | S4: =$G$1+$G$2*R4 -> 2.129164951 | T4: =10^S4 -> 134.6371628
A5: skew | B5: 0.3 | E5: U[0,1] | F5: Kg | G5: log flow | H5: flow | K5: U[0,1] | L5: Kg | M5: log flow | N5: flow | P5: 0.95 | Q5: =NORMSINV(1-P5) -> -1.644853627 | R5: =2/$G$3*(((Q5-$G$3/6)*$G$3/6+1)^3-1) -> -1.521499984 | S5: =$G$1+$G$2*R5 -> 2.459352762 | T5: =10^S5 -> 287.9736571
D6: 1 | E6: =RAND() -> 0.1597461603 | F6: =2/skew*(((NORMSINV(E6)-skew/6)*skew/6+1)^3-1) -> -0.9918003468 | G6: =mean+stdev*F6 -> 3.104099827 | H6: =10^G6 -> 1270.866192 | I6: 0.1 | J6: 1 | K6: =E6 -> 0.1597461603 | L6: =2/skew*(((NORMSINV(K6)-skew/6)*skew/6+1)^3-1) -> -0.9918003468 | M6: =mean+stdev*L6 -> 3.104099827 | N6: =10^M6 -> 1270.866192 | O6: 0.2 | P6: 0.9 | Q6: -1.281551566 | R6: -1.229677874 | S6: 2.650121968 | T6: 446.8090567 | AF6: 1 | AG6: =AF6/11 -> 0.09090909091 | AH6: =NORMSINV(1-AG6) -> 1.335177736 | AI6: =LARGE($H$6:$H$15,AF6) -> 55952.25722 | AK6: 1 | AL6: =AK6/51 -> 0.01960784314 | AM6: =NORMSINV(1-AL6) -> 2.061916501 | AN6: =LARGE($N$6:$N$55,AK6) -> 73866.95394
D7: 2 | E7: =RAND() -> 0.9831349425 | F7: =2/skew*(((NORMSINV(E7)-skew/6)*skew/6+1)^3-1) -> 2.295635223 | G7: 4.747817611 | H7: =10^G7 -> 55952.25722 | I7: 0.1 | J7: 2 | K7: =E7 -> 0.9831349425 | L7: 2.295635223 | M7: 4.747817611 | N7: =10^M7 -> 55952.25722 | O7: 0.2 | P7: 0.8 | Q7: -0.8416212336 | R7: -0.8544990797 | S7: 2.895382893 | T7: 785.928238 | AF7: 2 | AG7: =AF7/11 -> 0.1818181818 | AH7: =NORMSINV(1-AG7) -> 0.9084578685 | AI7: =LARGE($H$6:$H$15,AF7) -> 7487.012853 | AK7: 2 | AL7: =AK7/51 -> 0.03921568627 | AM7: =NORMSINV(1-AL7) -> 1.759861028 | AN7: =LARGE($N$6:$N$55,AK7) -> 60229.83895
D8: 3 | E8: 0.349232123 | F8: -0.4278984438 | G8: 3.386050778 | H8: 2432.488401 | I8: 0.1 | J8: 3 | K8: 0.349232123 | L8: -0.4278984438 | M8: 3.386050778 | N8: 2432.488401 | O8: 0.2 | P8: 0.7 | Q8: -0.5244005127 | R8: -0.5687355586 | S8: 3.082191494 | T8: 1208.346515 | AF8: 3 | AG8: 0.2727272727 | AH8: 0.6045853466 | AI8: 7141.830706 | AK8: 3 | AL8: 0.05882352941 | AM8: 1.564726471 | AN8: 55952.25722
D9: 4 | E9: 0.2418070971 | F9: -0.7226911052 | G9: 3.238654447 | H9: 1732.42502 | I9: 0.1 | J9: 4 | K9: 0.2418070971 | L9: -0.7226911052 | M9: 3.238654447 | N9: 1732.42502 | O9: 0.2 | P9: 0.6 | Q9: -0.2533471031 | R9: -0.3141969706 | S9: 3.248587811 | T9: 1772.506396 | V9: 0 | W9: =G1 -> 3.453983854 | X9: =M1 -> 3.565242517 | Y9: 3.6 | AF9: 4 | AG9: 0.3636363636 | AH9: 0.3487556955 | AI9: 6780.124318 | AK9: 4 | AL9: 0.07843137255 | AM9: 1.415702094 | AN9: 19951.69035
D10: 5 | E10: 0.7204640236 | F10: 0.5486171574 | G10: 3.874308579 | H10: 7487.012853 | I10: 0.1 | J10: 5 | K10: 0.7204640236 | L10: 0.5486171574 | M10: 3.874308579 | N10: 7487.012853 | O10: 0.2 | P10: 0.5 | Q10: 0 | R10: -0.06747924117 | S10: 3.409871496 | T10: 2569.63534 | V10: 0.9 | W10: =W9 -> 3.453983854 | X10: =X9 -> 3.565242517 | Y10: =Y9 -> 3.6 | AF10: 5 | AG10: 0.4545454545 | AH10: 0.1141852943 | AI10: 2432.488401 | AK10: 5 | AL10: 0.09803921569 | AM10: 1.292805229 | AN10: 18517.7408
D11: 6 | E11: 0.7072105973 | F11: 0.5076191025 | G11: 3.853809551 | H11: 7141.830706 | I11: 0.1 | J11: 6 | K11: 0.7072105973 | L11: 0.5076191025 | M11: 3.853809551 | N11: 7141.830706 | O11: 0.2 | P11: 0.4 | Q11: 0.2533471031 | R11: 0.1879007041 | S11: 3.576817823 | T11: 3774.138413 | AF11: 6 | AG11: 0.5454545455 | AH11: -0.1141852943 | AI11: 1732.42502 | AK11: 6 | AL11: 0.1176470588 | AM11: 1.186831433 | AN11: 16320.79986
D12: 7 | E12: 0.1691412823 | F12: -0.9576572959 | G12: 3.121171352 | H12: 1321.817058 | I12: 0.1 | J12: 7 | K12: 0.1691412823 | L12: -0.9576572959 | M12: 3.121171352 | N12: 1321.817058 | O12: 0.2 | P12: 0.3 | Q12: 0.5244005127 | R12: 0.4708898428 | S12: 3.761812762 | T12: 5778.468658 | AF12: 7 | AG12: 0.6363636364 | AH12: -0.3487556955 | AI12: 1321.817058 | AK12: 7 | AL12: 0.137254902 | AM12: 1.092735829 | AN12: 12300.96688
D13: 8 | E13: 0.1282080921 | F13: -1.116089108 | G13: 3.041955446 | H13: 1101.426309 | I13: 0.1 | J13: 8 | K13: 0.1282080921 | L13: -1.116089108 | M13: 3.041955446 | N13: 1101.426309 | O13: 0.2 | P13: 0.2 | Q13: 0.8416212336 | R13: 0.8151345639 | S13: 3.986851544 | T13: 9701.782719 | AF13: 8 | AG13: 0.7272727273 | AH13: -0.6045853466 | AI13: 1270.866192 | AK13: 8 | AL13: 0.1568627451 | AM13: 1.007435601 | AN13: 10174.27925
D14: 9 | E14: 0.6922278398 | F14: 0.462475314 | G14: 3.831237657 | H14: 6780.124318 | I14: 0.1 | J14: 9 | K14: 0.6922278398 | L14: 0.462475314 | M14: 3.831237657 | N14: 6780.124318 | O14: 0.2 | P14: 0.1 | Q14: 1.281551566 | R14: 1.316370183 | S14: 4.314518016 | T14: 20630.89247 | AF14: 9 | AG14: 0.8181818182 | AH14: -0.9084578685 | AI14: 1101.426309 | AK14: 9 | AL14: 0.1764705882 | AM14: 0.9288994916 | AN14: 9708.8663
D15: 10 | E15: 0.002016100261 | F15: -2.518533417 | G15: 2.340733291 | H15: 219.1458705 | I15: 0.1 | J15: 10 | K15: 0.002016100261 | L15: -2.518533417 | M15: 2.340733291 | N15: 219.1458705 | O15: 0.2 | P15: 0.05 | Q15: 1.644853627 | R15: 1.751674958 | S15: 4.599084344 | T15: 39726.86949 | AF15: 10 | AG15: 0.9090909091 | AH15: -1.335177736 | AI15: 219.1458705 | AK15: 10 | AL15: 0.1960784314 | AM15: 0.8557124306 | AN15: 9088.871851
J16: 11 | K16: =RAND() -> 0.4625631086 | L16: -0.1429445198 | M16: 3.52852774 | N16: 3376.97418 | O16: 0.2 | P16: 0.02 | Q16: 2.053748911 | R16: 2.265324114 | S16: 4.934865761 | T16: 86072.76637 | AK16: 11 | AL16: 0.2156862745 | AM16: 0.7868450995 | AN16: 8949.509611
J17: 12 | K17: 0.7673667769 | L17: 0.7035984776 | M17: 3.951799239 | N17: 8949.509611 | O17: 0.2 | P17: 0.01 | Q17: 2.326347874 | R17: 2.622009939 | S17: 5.16803751 | T17: 147243.9671 | AK17: 12 | AL17: 0.2352941176 | AM17: 0.721522284 | AN17: 8928.498153
J18: 13 | K18: 0.9134024734 | L18: 1.399959392 | M18: 4.299979696 | N18: 19951.69035 | O18: 0.2 | P18: 0.005 | Q18: 2.575829304 | R18: 2.958624233 | S18: 5.388088149 | T18: 244392.6545 | AK18: 13 | AL18: 0.2549019608 | AM18: 0.6591430371 | AN18: 7487.012853
J19: 14 | K19: 0.2183698125 | L19: -0.7939279415 | M19: 3.203036029 | N19: 1596.011547 | O19: 0.2 | P19: 0.002 | Q19: 2.878161739 | R19: 3.379793961 | S19: 5.66341415 | T19: 460695.6905 | AK19: 14 | AL19: 0.2745098039 | AM19: 0.5992298681 | AN19: 7145.203988
J20: 15 | K20: 0.4667654362 | L20: -0.1325154469 | M20: 3.533742277 | N20: 3417.765618 | O20: 0.2 | AK20: 15 | AL20: 0.2941176471 | AM20: 0.5413950851 | AN20: 7141.830706
J21: 16 | K21: 0.3123816405 | L21: -0.5247093164 | M21: 3.337645342 | N21: 2175.932114 | O21: 0.2 | P21: Sample of size N=50 | AK21: 16 | AL21: 0.3137254902 | AM21: 0.4853177303 | AN21: 6920.841044
J22: 17 | K22: 0.7667827904 | L22: 0.7015568262 | M22: 3.950778413 | N22: 8928.498153 | O22: 0.2 | P22: Fitted LP3 distribution | AK22: 17 | AL22: 0.3333333333 | AM22: 0.4307272993 | AN22: 6851.481743
J23: 18 | K23: 0.3821312764 | L23: -0.3438026587 | M23: 3.428098671 | N23: 2679.777094 | O23: 0.2 | Q23: Zp | R23: Kpg | S23: log flow | T23: flow | AK23: 18 | AL23: 0.3529411765 | AM23: 0.3773919438 | AN23: 6780.124318
J24: 19 | K24: 0.8377968945 | L24: 0.9798784983 | M24: 4.089939249 | N24: 12300.96688 | O24: 0.2 | P24: 0.99 | Q24: =NORMSINV(1-P24) -> -2.326347874 | R24: =2/$M$3*(((Q24-$M$3/6)*$M$3/6+1)^3-1) -> -2.067626145 | S24: =$M$1+$M$2*R24 -> 2.454860433 | T24: =10^S24 -> 285.0102198 | AK24: 19 | AL24: 0.3725490196 | AM24: 0.3251097114 | AN24: 6772.377205
J25: 20 | K25: 0.2778165297 | L25: -0.6191202166 | M25: 3.290439892 | N25: 1951.820575 | O25: 0.2 | P25: 0.95 | Q25: -1.644853627 | R25: =2/$M$3*(((Q25-$M$3/6)*$M$3/6+1)^3-1) -> -1.539269006 | S25: =$M$1+$M$2*R25 -> 2.738605298 | T25: =10^S25 -> 547.778898 | AK25: 20 | AL25: 0.3921568627 | AM25: 0.2737018896 | AN25: 6605.675411
J26: 21 | K26: 0.08295887485 | L26: -1.334880969 | M26: 2.932559515 | N26: 856.1690326 | O26: 0.2 | P26: 0.9 | Q26: -1.281551566 | R26: -1.237750603 | S26: 2.900530428 | T26: 795.2989849 | AK26: 21 | AL26: 0.4117647059 | AM26: 0.2230078309 | AN26: 4429.562372
J27: 22 | K27: 0.267599022 | L27: -0.6478904038 | M27: 3.276054798 | N27: 1888.229586 | O27: 0.2 | P27: 0.8 | Q27: -0.8416212336 | R27: -0.8535547797 | S27: 3.106856006 | T27: 1278.957184 | AK27: 22 | AL27: 0.431372549 | AM27: 0.1728808328 | AN27: 4010.662476
J28: 23 | K28: 0.05173901086 | L28: -1.541338581 | M28: 2.829330709 | N28: 675.0418674 | O28: 0.2 | P28: 0.7 | Q28: -0.5244005127 | R28: -0.5632464497 | S28: 3.262760964 | T28: 1831.306194 | AK28: 23 | AL28: 0.4509803922 | AM28: 0.1231847715 | AN28: 3478.502576
J29: 24 | K29: 0.1350706667 | L29: -1.087573461 | M29: 3.05621327 | N29: 1138.186079 | O29: 0.2 | P29: 0.6 | Q29: -0.2533471031 | R29: -0.3061879292 | S29: 3.4008097 | T29: 2516.57397 | AK29: 24 | AL29: 0.4705882353 | AM29: 0.07379127381 | AN29: 3417.765618
J30: 25 | K30: 0.6918937838 | L30: 0.4614822786 | M30: 3.830741139 | N30: 6772.377205 | O30: 0.2 | P30: 0.5 | Q30: 0 | R30: -0.05829463752 | S30: 3.533936412 | T30: 3419.293746 | AK30: 25 | AL30: 0.4901960784 | AM30: 0.02457726106 | AN30: 3385.387062
J31: 26 | K31: 0.7073448755 | L31: 0.508029264 | M31: 3.854014632 | N31: 7145.203988 | O31: 0.2 | P31: 0.4 | Q31: 0.2533471031 | R31: 0.1970818789 | S31: 3.671081857 | T31: 4689.017539 | AK31: 26 | AL31: 0.5098039216 | AM31: -0.02457726106 | AN31: 3376.97418
J32: 27 | K32: 0.7711828484 | L32: 0.7170199602 | M32: 3.95850998 | N32: 9088.871851 | O32: 0.2 | P32: 0.3 | Q32: 0.5244005127 | R32: 0.4787186214 | S32: 3.822329893 | T32: 6642.474455 | AK32: 27 | AL32: 0.5294117647 | AM32: -0.07379127381 | AN32: 3284.836558
J33: 28 | K33: 0.8863286166 | L33: 1.225482878 | M33: 4.212741439 | N33: 16320.79986 | O33: 0.2 | P33: 0.2 | Q33: 0.8416212336 | R33: 0.8195484312 | S33: 4.005366519 | T33: 10124.33529 | AK33: 28 | AL33: 0.5490196078 | AM33: -0.1231847715 | AN33: 2791.848356
J34: 29 | K34: 0.2545910827 | L34: -0.6851971478 | M34: 3.257401426 | N34: 1808.845301 | O34: 0.2 | P34: 0.1 | Q34: 1.281551566 | R34: 1.312643821 | S34: 4.270174685 | T34: 18628.36267 | AK34: 29 | AL34: 0.568627451 | AM34: -0.1728808328 | AN34: 2679.777094
J35: 30 | K35: 0.5225004352 | L35: 0.006432229395 | M35: 3.603216115 | N35: 4010.662476 | O35: 0.2 | P35: 0.05 | Q35: 1.644853627 | R35: 1.738115846 | S35: 4.498666917 | T35: 31525.85814 | AK35: 30 | AL35: 0.5882352941 | AM35: -0.2230078309 | AN35: 2432.488401
J36: 31 | K36: 0.07410758228 | L36: -1.386773413 | M36: 2.906613294 | N36: 806.5165686 | O36: 0.2 | P36: 0.02 | Q36: 2.053748911 | R36: 2.23718302 | S36: 4.766682124 | T36: 58436.22111 | AK36: 31 | AL36: 0.6078431373 | AM36: -0.2737018896 | AN36: 2425.289289
J37: 32 | K37: 0.7870286185 | L37: 0.774337041 | M37: 3.98716852 | N37: 9708.8663 | O37: 0.2 | P37: 0.01 | Q37: 2.326347874 | R37: 2.582003248 | S37: 4.951861734 | T37: 89507.97539 | AK37: 32 | AL37: 0.6274509804 | AM37: -0.3251097114 | AN37: 2175.932114
J38: 33 | K38: 0.1753989563 | L38: =2/skew*(((NORMSINV(K38)-skew/6)*skew/6+1)^3-1) -> -0.9355157242 | M38: =mean+stdev*L38 -> 3.132242138 | N38: 1355.9452 | O38: 0.2 | P38: 0.005 | Q38: 2.575829304 | R38: 2.906207419 | S38: 5.125969855 | T38: 133650.2744 | AK38: 33 | AL38: 0.6470588235 | AM38: -0.3773919438 | AN38: 2095.853276
J39: 34 | K39: 0.6981974281 | L39: 0.4803177492 | M39: 3.840158875 | N39: 6920.841044 | O39: 0.2 | P39: 0.002 | Q39: 2.878161739 | R39: 3.310297868 | S39: 5.34297949 | T39: 220282.243 | AK39: 34 | AL39: 0.6666666667 | AM39: -0.4307272993 | AN39: 1951.820575
J40: 35 | K40: 0.9040200366 | L40: 1.335176001 | M40: 4.267588001 | N40: 18517.7408 | O40: 0.2 | AK40: 35 | AL40: 0.6862745098 | AM40: -0.4853177303 | AN40: 1888.229586
J41: 36 | K41: 0.9852108153 | L41: 2.359623404 | M41: 4.779811702 | N41: 60229.83895 | O41: 0.2 | AK41: 36 | AL41: 0.7058823529 | AM41: -0.5413950851 | AN41: 1808.845301
J42: 37 | K42: 0.9898188191 | L42: 2.536900381 | M42: 4.86845019 | N42: 73866.95394 | O42: 0.2 | AK42: 37 | AL42: 0.7254901961 | AM42: -0.5992298681 | AN42: 1732.42502
J43: 38 | K43: 0.03230685447 | L43: -1.723513242 | M43: 2.738243379 | N43: 547.3225968 | O43: 0.2 | AK43: 38 | AL43: 0.7450980392 | AM43: -0.6591430371 | AN43: 1596.011547
J44: 39 | K44: 0.5565765291 | L44: 0.09272164256 | M44: 3.646360821 | N44: 4429.562372 | O44: 0.2 | AK44: 39 | AL44: 0.7647058824 | AM44: -0.721522284 | AN44: 1355.9452
J45: 40 | K45: 0.6845645455 | L45: 0.4398344591 | M45: 3.81991723 | N45: 6605.675411 | O45: 0.2 | AK45: 40 | AL45: 0.7843137255 | AM45: -0.7868450995 | AN45: 1321.817058
J46: 41 | K46: 0.7978263541 | L46: 0.8150073067 | M46: 4.007503653 | N46: 10174.27925 | O46: 0.2 | AK46: 41 | AL46: 0.8039215686 | AM46: -0.8557124306 | AN46: 1270.866192
J47: 42 | K47: 0.3482366094 | L47: -0.4304729026 | M47: 3.384763549 | N47: 2425.289289 | O47: 0.2 | AK47: 42 | AL47: 0.8235294118 | AM47: -0.9288994916 | AN47: 1138.186079
J48: 43 | K48: 0.05565573605 | L48: -1.511155721 | M48: 2.84442214 | N48: 698.9114244 | O48: 0.2 | AK48: 43 | AL48: 0.8431372549 | AM48: -1.007435601 | AN48: 1101.426309
J49: 44 | K49: 0.4634339822 | L49: -0.1407833397 | M49: 3.52960833 | N49: 3385.387062 | O49: 0.2 | AK49: 44 | AL49: 0.862745098 | AM49: -1.092735829 | AN49: 856.1690326
J50: 45 | K50: 0.06687166938 | L50: -1.432554783 | M50: 2.883722609 | N50: 765.1077634 | O50: 0.2 | AK50: 45 | AL50: 0.8823529412 | AM50: -1.186831433 | AN50: 806.5165686
J51: 46 | K51: 0.472928996 | L51: -0.1172153415 | M51: 3.541392329 | N51: 3478.502576 | O51: 0.2 | AK51: 46 | AL51: 0.9019607843 | AM51: -1.292805229 | AN51: 765.1077634
J52: 47 | K52: 0.3962397937 | L52: -0.3082163497 | M52: 3.445891825 | N52: 2791.848356 | O52: 0.2 | AK52: 47 | AL52: 0.9215686275 | AM52: -1.415702094 | AN52: 698.9114244
J53: 48 | K53: 0.4528808355 | L53: -0.1669724691 | M53: 3.516513765 | N53: 3284.836558 | O53: 0.2 | AK53: 48 | AL53: 0.9411764706 | AM53: -1.564726471 | AN53: 675.0418674
J54: 49 | K54: 0.695278078 | L54: 0.4715690097 | M54: 3.835784505 | N54: 6851.481743 | O54: 0.2 | AK54: 49 | AL54: 0.9607843137 | AM54: -1.759861028 | AN54: 547.3225968
J55: 50 | K55: 0.300288778 | L55: -0.5572782485 | M55: 3.321360876 | N55: 2095.853276 | O55: 0.2 | AK55: 50 | AL55: 0.9803921569 | AM55: -2.061916501 | AN55: 219.1458705

Sheet mean 10
A1: 1000 samples of size N=10 | M1: 1000 samples of size N=10 | X1: 1000 samples of size N=10 | AH1: N=10 | AL1: 1000 samples of size N=10
B2: random numbers | D2: U[0,1] | M2: flows | X2: log flows | AH2: ESTIMATE
B3: 1 | C3: 2 | D3: 3 | E3: 4 | F3: 5 | G3: 6 | H3: 7 | I3: 8 | J3: 9 | K3: 10 | M3: 1 | N3: 2 | O3: 3 | P3: 4 | Q3: 5 | R3: 6 | S3: 7 | T3: 8 | U3: 9 | V3: 10 | X3: 1 | Y3: 2 | Z3: 3 | AA3: 4 | AB3: 5 | AC3: 6 | AD3: 7 | AE3: 8 | AF3: 9 | AG3: 10 | AH3: OF MEAN | AL3: statistics of estimates of mean
A4: 1 | B4: 0.8756879411 | C4: 0.638799209 | D4: 0.01758074065 | E4: 0.8424361922 | F4: 0.3608573938 | G4: 0.8252810612 | H4: 0.257064961 | I4: 0.4972297219 | J4: 0.9664160327 | K4: 0.5890005607 | M4: =10^(mean+stdev*2/skew*(((NORMSINV(B4)-skew/6)*skew/6+1)^3-1)) -> 15235.71265 | N4: =10^(mean+stdev*2/skew*(((NORMSINV(C4)-skew/6)*skew/6+1)^3-1)) -> 5688.09434 | O4: =10^(mean+stdev*2/skew*(((NORMSINV(D4)-skew/6)*skew/6+1)^3-1)) -> 430.3641766 | P4: =10^(mean+stdev*2/skew*(((NORMSINV(E4)-skew/6)*skew/6+1)^3-1)) -> 12600.87063 | Q4: =10^(mean+stdev*2/skew*(((NORMSINV(F4)-skew/6)*skew/6+1)^3-1)) -> 2517.748887 | R4: =10^(mean+stdev*2/skew*(((NORMSINV(G4)-skew/6)*skew/6+1)^3-1)) -> 11554.21131 | S4: =10^(mean+stdev*2/skew*(((NORMSINV(H4)-skew/6)*skew/6+1)^3-1)) -> 1823.812527 | T4: =10^(mean+stdev*2/skew*(((NORMSINV(I4)-skew/6)*skew/6+1)^3-1)) -> 3729.142098 | U4: =10^(mean+stdev*2/skew*(((NORMSINV(J4)-skew/6)*skew/6+1)^3-1)) -> 37315.15503 | V4: =10^(mean+stdev*2/skew*(((NORMSINV(K4)-skew/6)*skew/6+1)^3-1)) -> 4878.14872 | X4: =mean+stdev*2/skew*(((NORMSINV(B4)-skew/6)*skew/6+1)^3-1) -> 4.182862773 | Y4: =mean+stdev*2/skew*(((NORMSINV(C4)-skew/6)*skew/6+1)^3-1) -> 3.754966791 | Z4: =mean+stdev*2/skew*(((NORMSINV(D4)-skew/6)*skew/6+1)^3-1) -> 2.633836114 | AA4: =mean+stdev*2/skew*(((NORMSINV(E4)-skew/6)*skew/6+1)^3-1) -> 4.100400553 | AB4: =mean+stdev*2/skew*(((NORMSINV(F4)-skew/6)*skew/6+1)^3-1) -> 3.401012413 | AC4: =mean+stdev*2/skew*(((NORMSINV(G4)-skew/6)*skew/6+1)^3-1) -> 4.062740306 | AD4: =mean+stdev*2/skew*(((NORMSINV(H4)-skew/6)*skew/6+1)^3-1) -> 3.260980194 | AE4: =mean+stdev*2/skew*(((NORMSINV(I4)-skew/6)*skew/6+1)^3-1) -> 3.571608932 | AF4: =mean+stdev*2/skew*(((NORMSINV(J4)-skew/6)*skew/6+1)^3-1) -> 4.57188525 | AG4: =mean+stdev*2/skew*(((NORMSINV(K4)-skew/6)*skew/6+1)^3-1) -> 3.688255037 | AH4: =AVERAGE(X4:AG4) -> 3.722854836 | AI4: min | AJ4: =MIN(AH4:AH1003) -> 3.09068018 | AL4: mean = | AM4: =AVERAGE(AH4:AH1003) -> 3.601185095 | AN4: pop. mean= | AO4: =mean -> 3.6 | AP4: diff = | AQ4: =(AO4-AM4)/AM4 -> -0.0003290846158
A5: 2 | B5: 0.2308840691 | C5: 0.2545865403 | D5: 0.3261712841 | E5: 0.9341504847 | F5: 0.8487453821 | G5: 0.6452304709 | H5: 0.861759413 | I5: 0.4888636134 | J5: 0.6720643459 | K5: 0.870115504 | M5: 1668.287754 | N5: 1808.817874 | O5: 2269.631743 | P5: 24160.76525 | Q5: 13031.35127 | R5: 5805.656538 | S5: 14013.44455 | T5: 3640.762765 | U5: 6335.034814 | V5: 14722.58008 | X5: 3.222270962 | Y5: 3.257394841 | Z5: 3.355955397 | AA5: 4.383110686 | AB5: 4.114989452 | AC5: 3.763851339 | AD5: 4.1465449 | AE5: 3.561192381 | AF5: 3.801749006 | AG5: 4.167983925 | AH5: =AVERAGE(X5:AG5) -> 3.777504289 | AI5: max | AJ5: =MAX(AH4:AH1003) -> 4.178892684 | AL5: st.dev. = | AM5: =STDEV(AH4:AH1003) -> 0.163125746 | AN5: s/sqrt(N)= | AO5: =stdev/SQRT(10) -> 0.158113883 | AP5: diff = | AQ5: =(AO5-AM5)/AM5 -> -0.0307239241
A6: 3 | B6: 0.4345704469 | C6: 0.8690378406 | D6: 0.6526360463 | E6: 0.7544205346 | F6: 0.7577455848 | G6: 0.3474894225 | H6: 0.6805220554 | I6: 0.6637354333 | J6: 0.3258554573 | K6: 0.2317258372 | M6: 3117.266235 | N6: 14627.23142 | O6: 5945.27601 | P6: 8502.228817 | Q6: 8613.522028 | R6: 2419.896316 | S6: 6516.323171 | T6: 6163.587333 | U6: 2267.456055 | V6: 1673.1944 | X6: 3.493773895 | Y6: 4.165162133 | Z6: 3.774172022 | AA6: 3.929532789 | AB6: 3.935180769 | AC6: 3.383796758 | AD6: 3.814002615 | AE6: 3.789833554 | AF6: 3.355538879 | AG6: 3.223546402 | AH6: 3.686453982 | AL6: CV = | AM6: =AM5/AM4 -> 0.04529779552
A7: 4 | B7: 0.755927898 | C7: 0.4278498987 | D7: 0.20797992 | E7: 0.403000927 | F7: 0.9596243042 | G7: 0.956893326 | H7: 0.08249869506 | I7: 0.9174153861 | J7: 0.5969084073 | K7: 0.5409992451 | M7: 8552.387201 | N7: 3057.829492 | O7: 1536.898591 | P7: 2846.950844 | Q7: 33277.04934 | R7: 31926.48883 | S7: 853.61008 | T7: 20639.2549 | U7: 4996.128863 | V7: 4232.002146 | X7: 3.932087355 | Y7: 3.485413265 | Z7: 3.186645212 | AA7: 3.454379969 | AB7: 4.522144811 | AC7: 4.504151159 | AD7: 2.931259535 | AE7: 4.314694015 | AF7: 3.698633631 | AG7: 3.626545879 | AH7: 3.765595483 | AL7: skew = | AM7: =SKEW(AH4:AH1003) -> 0.06603856535
A8: 5 | B8: 0.6919693049 | C8: 0.1966138342 | D8: 0.2169444164 | E8: 0.7786824731 | F8: 0.1127449837 | G8: 0.1717113863 | H8: 0.7130475142 | I8: 0.2795675685 | J8: 0.606665158 | K8: 0.6673942969 | M8: 6774.127457 | N8: 1473.070382 | O8: 1587.855667 | P8: 9373.651414 | Q8: 1018.48101 | R8: 1335.813772 | S8: 7290.75412 | T8: 1962.833062 | U8: 5146.836343 | V8: 6238.06761 | X8: 3.830853364 | Y8: 3.168223498 | Z8: 3.200811023 | AA8: 3.971908799 | AB8: 3.007952936 | AC8: 3.125745917 | AD8: 3.862772452 | AE8: 3.292883365 | AF8: 3.711540359 | AG8: 3.795050077 | AH8: 3.496774179
A9: 6 | B9: 0.223969444 | C9: 0.0411301201 | D9: 0.3045354702 | E9: 0.5880791394 | F9: 0.7376744899 | G9: 0.8423359326 | H9: 0.4702410306 | I9: 0.5116595479 | J9: 0.256434773 | K9: 0.04108473428 | M9: 1628.200362 | N9: 607.6564992 | O9: 2123.760254 | P9: 4864.634935 | Q9: 7975.734186 | R9: 12594.24542 | S9: 3451.880294 | T9: 3887.102009 | U9: 1819.994147 | V9: 607.3577472 | X9: 3.211707847 | Y9: 2.783658147 | Z9: 3.327105489 | AA9: 3.687050254 | AB9: 3.901770671 | AC9: 4.100172152 | AD9: 3.538055727 | AE9: 3.589625938 | AF9: 3.260069991 | AG9: 2.783444576 | AH9: 3.418266079 | AJ9: 2.975 | AK9: count | AL9: mid-bin
A10: 7 | B10: 0.5872165975 | C10: 0.8442105084 | D10: 0.2933753897 | E10: 0.760881211 | F10: 0.5775458136 | G10: 0.9659745537 | H10: 0.690054968 | I10: 0.7068459877 | J10: 0.3247437345 | K10: 0.8030694581 | M10: 4852.027905 | N10: 12719.20693 | O10: 2050.903097 | P10: 8720.692678 | Q10: 4713.47186 | R10: 37016.89574 | S10: 6729.969327 | T10: 7132.683424 | U10: 2259.808839 | V10: 10414.51785 | X10: 3.68592329 | Y10: 4.104460033 | Z10: 3.311945141 | AA10: 3.940550982 | AB10: 3.673340919 | AC10: 4.568399996 | AD10: 3.828013085 | AE10: 3.853252949 | AF10: 3.354071703 | AG10: 4.017639169 | AH10: 3.833759727 | AJ10: 3.025 | AK10: =FREQUENCY(AH4:AH1003,AJ10:AJ33) -> 0 | AL10: =AVERAGE(AJ9:AJ10) -> 3
A11: 8 | B11: 0.5817339199 | C11: 0.4237349669 | D11: 0.8515274147 | E11: 0.7245109768 | F11: 0.8639080177 | G11: 0.6203973521 | H11: 0.2040110692 | I11: 0.2842367027 | J11: 0.74048727 | K11: 0.0203661338 | M11: 4772.854659 | N11: 3021.959068 | O11: 13230.09359 | P11: 7597.601054 | Q11: 14189.37357 | R11: 5369.259896 | S11: 1514.51583 | T11: 1992.366708 | U11: 8060.426 | V11: 454.8785649 | X11: 3.67877821 | Y11: 3.480288578 | Z11: 4.121562916 | AA11: 3.880676485 | AB11: 4.151963223 | AC11: 3.729914426 | AD11: 3.180273817 | AE11: 3.299369276 | AF11: 3.906357995 | AG11: 2.657895472 | AH11: 3.60870804 | AJ11: 3.075 | AK11: 0 | AL11: =AVERAGE(AJ10:AJ11) -> 3.05
A12: 9 | B12: 0.7010110348 | C12: 0.1734934878 | D12: 0.4096014995 | E12: 0.4935460447 | F12: 0.2572257969 | G12: 0.8200525701 | H12: 0.4382365238 | I12: 0.232386053 | J12: 0.6299034763 | K12: 0.06890775595 | M12: 6988.697342 | N12: 1345.535328 | O12: 2901.656061 | P12: 3689.94746 | Q12: 1824.787674 | R12: 11266.3442 | S12: 3150.145797 | T12: 1677.046894 | U12: 5530.833593 | V12: 776.8468893 | X12: 3.844396233 | Y12: 3.128895105 | Z12: 3.462645933 | AA12: 3.567020182 | AB12: 3.261212339 | AC12: 4.051783015 | AD12: 3.498330655 | AE12: 3.224545207 | AF12: 3.742790592 | AG12: 2.890335431 | AH12: 3.467195469 | AJ12: 3.125 | AK12: 1 | AL12: 3.1
A13: 10 | B13: 0.8796564781 | C13: 0.5427533074 | D13: 0.9951953217 | E13: 0.9744392978 | F13: 0.5871413024 | G13: 0.6412811859 | H13: 0.4129659756 | I13: 0.6357350604 | J13: 0.4989012331 | K13: 0.8233239892 | M13: 15623.18656 | N13: 4253.717781 | O13: 109106.3788 | P13: 43992.96728 | Q13: 4850.929358 | R13: 5733.069184 | S13: 2929.896531 | T13: 5633.240018 | U13: 3747.075227 | V13: 11444.91221 | X13: 4.193769619 | Y13: 3.628768673 | Z13: 5.037850142 | AA13: 4.643383256 | AB13: 3.68582495 | AC13: 3.758387183 | AD13: 3.466852284 | AE13: 3.750758256 | AF13: 3.573692412 | AG13: 4.058612466 | AH13: 3.979789924 | AJ13: 3.175 | AK13: 1 | AL13: 3.15
A14: 11 | B14: 0.597219142 | C14: 0.5364076881 | D14: 0.1252274848 | E14: 0.4801439728 | F14: 0.1898941424 | G14: 0.8947924177 | H14: 0.2123628196 | I14: 0.8795731796 | J14: 0.660054837 | K14: 0.2875056519 | M14: 5000.839488 | N14: 4175.77074 | O14: 1085.45937 | P14: 3551.014332 | Q14: 1435.708814 | R14: 17301.44317 | S14: 1561.741176 | T14: 15614.85297 | U14: 6089.946318 | V14: 2013.192607 | X14: 3.699042915 | Y14: 3.620736647 | Z14: 3.035613572 | AA14: 3.550352425 | AB14: 3.157066367 | AC14: 4.238082331 | AD14: 3.193609061 | AE14: 4.193537899 | AF14: 3.784613464 | AG14: 3.303885327 | AH14: 3.577654001 | AJ14: 3.225 | AK14: 7 | AL14: 3.2
A15: 12 | B15: 0.5013314984 | C15: 0.1067430099 | D15: 0.9870201361 | E15: 0.1441803754 | F15: 0.3000024166 | G15: 0.450478073 | H15: 0.9473851005 | I15: 0.5424048383 | J15: 0.3245143215 | K15: 0.3788222344 | M15: 3773.316035 | N15: 986.1477872 | O15: 64739.24895 | P15: 1187.034948 | Q15: 2093.979647 | R15: 3262.359711 | S15: 28069.95161 | T15: 4249.393242 | U15: 2258.232957 | V15: 2654.039946 | X15: 3.576723181 | Y15: 2.993942005 | Z15: 4.811167657 | AA15: 3.074463505 | AB15: 3.320972456 | AC15: 3.513531845 | AD15: 4.448241664 | AE15: 3.628326923 | AF15: 3.353768741 | AG15: 3.423907455 | AH15: 3.614504543 | AJ15: 3.275 | AK15: 14 | AL15: 3.25
A16: 13 | B16: 0.5082491077 | C16: 0.461838913 | D16: 0.4013919815 | E16: 0.3201267921 | F16: 0.5436201223 | G16: 0.9996006158 | H16: 0.609731215 | I16: 0.7219760752 | J16: 0.4347364731 | K16: 0.02826445811 | M16: 3849.115497 | N16: 3369.994269 | O16: 2833.753591 | P16: 2228.236563 | Q16: 4264.497578 | R16: 346266.1177 | S16: 5195.42307 | T16: 7528.03489 | U16: 3118.748209 | V16: 517.7850106 | X16: 3.585360943 | Y16: 3.527629162 | Z16: 3.452362083 | AA16: 3.347961296 | AB16: 3.629867872 | AC16: 5.539409998 | AD16: 3.715620918 | AE16: 3.876681623 | AF16: 3.493980314 | AG16: 2.714149474 | AH16: 3.688302368 | AJ16: 3.325 | AK16: 26 | AL16: 3.3
A17: 14 | B17: 0.7286769375 | C17: 0.9179919729 | D17: 0.1184184026 | E17: 0.2906416034 | F17: 0.1153054177 | G17: 0.3939663701 | H17: 0.1558678958 | I17: 0.7727892296 | J17: 0.2228916695 | K17: 0.1063799201 | M17: 7714.145358 | N17: 20742.21297 | O17: 1048.955101 | P17: 2033.28873 | Q17: 1032.242778 | R17: 2773.52716 | S17: 1249.920521 | T17: 9148.630354 | U17: 1621.986186 | V17: 984.1878101 | X17: 3.887287818 | Y17: 4.316855089 | Z17: 3.020756899 | AA17: 3.308199053 | AB17: 3.013781853 | AC17: 3.443032423 | AD17: 3.096882398 | AE17: 3.96135608 | AF17: 3.210047151 | AG17: 2.993077982 | AH17: 3.425127675 | AJ17: 3.375 | AK17: 32 | AL17: 3.35
A18: 15 | B18: 0.9401770097 | C18: 0.3941870054 | D18: 0.4569100781 | E18: 0.09486635196 | F18: 0.07343096337 | G18: 0.589208741 | H18: 0.06631510437 | I18: 0.6172351268 | J18: 0.6431849787 | K18: 0.415611243 | M18: 25779.53831 | N18: 2775.300729 | O18: 3322.87155 | P18: 921.7153494 | Q18: 802.6791951 | R18: 4881.208575 | S18: 761.8858535 | T18: 5316.923391 | U18: 5767.901987 | V18: 2952.272365 | X18: 4.411275135 | Y18: 3.44331005 | Z18: 3.521513553 | AA18: 2.96459682 | AB18: 2.904542007 | AC18: 3.688527366 | AD18: 2.88188991 | AE18: 3.725660403 | AF18: 3.761017872 | AG18: 3.470156421 | AH18: 3.477248954 | AJ18: 3.425 | AK18: 56 | AL18: 3.4
A19: 16 | B19: 0.7921072333 | C19: 0.5881628616 | D19: 0.4955710719 | E19: 0.05182273126 | F19: 0.1208022065 | G19: 0.839020703 | H19: 0.4099645278 | I19: 0.946693058 | J19: 0.1577871425 | K19: 0.8817880878 | M19: 9923.068107 | N19: 4865.860851 | O19: 3711.438673 | P19: 675.5569751 | Q19: 1061.741371 | R19: 12378.77924 | S19: 2904.691523 | T19: 27830.10417 | U19: 1260.280265 | V19: 15839.49519 | X19: 3.996645972 | Y19: 3.687159685 | Z19: 3.569542289 | AA19: 2.829661982 | AB19: 3.02601874 | AC19: 4.092677818 | AD19: 3.463100017 | AE19: 4.444514832 | AF19: 3.100467136 | AG19: 4.199741336 | AH19: 3.640952981 | AJ19: 3.475 | AK19: 94 | AL19: 3.45
A20: 17 | B20: 0.951432076 | C20: 0.8663010703 | D20: 0.5213149241 | E20: 0.1107765953 | F20: 0.9671676198 | G20: 0.681203827 | H20: 0.532082931 | I20: 0.9400551664 | J20: 0.8058866752 | K20: 0.9513157027 | M20: 29573.28481 | N20: 14390.41822 | O20: 3996.937125 | P20: 1007.889641 | Q20: 37836.48839 | R20: 6531.267004 | S20: 4123.6017 | T20: 25744.40824 | U20: 10547.76159 | V20: 29527.4667 | X20: 4.470899566 | Y20: 4.158073416 | Z20: 3.601727317 | AA20: 3.003412982 | AB20: 4.577910823 | AC20: 3.814997438 | AD20: 3.61527671 | AE20: 4.410682914 | AF20: 4.023160305 | AG20: 4.470226188 | AH20: 4.014636766 | AJ20: 3.525 | AK20: 98 | AL20: 3.5
A21: 18 | B21: 0.5983932711 | C21: 0.9685018682 | D21: 0.3929512935 | E21: 0.02548252846 | F21: 0.6738677613 | G21: 0.7371339131 | H21: 0.4853130354 | I21: 0.285648059 | J21: 0.8978064876 | K21: 0.0109975777 | M21: 5018.690855 | N21: 38806.83182 | O21: 2765.379898 | P21: 496.5332281 | Q21: 6373.066625 | R21: 7959.621009 | S21: 3603.932458 | T21: 2001.343007 | U21: 17680.27647 | V21: 364.2296267 | X21: 3.700590445 | Y21: 4.588908189 | Z21: 3.441754802 | AA21: 2.695948317 | AB21: 3.804348459 | AC21: 3.90089239 | AD21: 3.556776643 | AE21: 3.301321528 | AF21: 4.247489052 | AG21: 2.561375269 | AH21: 3.579940509 | AJ21: 3.575 | AK21: 111 | AL21: 3.55
A22: 19 | B22: 0.5967855292 | C22: 0.2090721969 | D22: 0.7196838146 | E22: 0.9491985843 | F22: 0.7367004726 | G22: 0.8121541137 | H22: 0.4810215251 | I22: 0.6244806085 | J22: 0.7487767481 | K22: 0.9051844368 | M22: 4994.26766 | N22: 1543.077248 | O22: 7465.982163 | P22: 28721.47152 | Q22: 7946.738875 | R22: 10855.28134 | S22: 3559.940489 | T22: 5437.869192 | U22: 8318.639223 | V22: 18683.90794 | X22: 3.698471814 | Y22: 3.188387668 | Z22: 3.873086948 | AA22: 4.458206687 | AB22: 3.900188943 | AC22: 4.035641084 | AD22: 3.551442738 | AE22: 3.735428756 | AF22: 3.92005229 | AG22: 4.271467719 | AH22: 3.863237465 | AJ22: 3.625 | AK22: 116 | AL22: 3.6
A23: 20 | B23: 0.3888003691 | C23: 0.03854232605 | D23: 0.8357054809 | E23: 0.2542918055 | F23: 0.2515304368 | G23: 0.7122535249 | H23: 0.2741788143 | I23: 0.0260568277 | J23: 0.5674659295 | K23: 0.7892915747 | M23: 2732.27362 | N23: 590.4500498 | O23: 12170.07214 | P23: 1807.038679 | Q23: 1790.409988 | R23: 7270.216678 | S23: 1929.050979 | T23: 500.9906137 | U23: 4574.286884 | V23: 9803.3155 | X23: 3.436524189 | Y23: 2.771183164 | Z23: 4.085293153 | AA23: 3.256967449 | AB23: 3.252952492 | AC23: 3.861547355 | AD23: 3.285343705 | AE23: 2.699829589 | AF23: 3.660323399 | AG23: 3.99137298 | AH23: 3.430133747 | AJ23: 3.675 | AK23: 117 | AL23: 3.65
A24: 21 | B24: 0.2999508062 | C24: 0.6407025632 | D24: 0.4709467225 | E24: 0.793850397 | F24: 0.7795653096 | G24: 0.6956639195 | H24: 0.493701437 | I24: 0.8708385849 | J24: 0.2464158258 | K24: 0.6668734089 | M24: 2093.642075 | N24: 5722.540286 | O24: 3458.849354 | P24: 9998.483238 | Q24: 9408.169192 | R24: 6860.588498 | S24: 3691.591858 | T24: 14787.24035 | U24: 1759.800665 | V24: 6227.385443 | X24: 3.320902438 | Y24: 3.757588859 | Z24: 3.538931647 | AA24: 3.999934123 | AB24: 3.973505119 | AC24: 3.836361371 | AD24: 3.567213679 | AE24: 4.169887132 | AF24: 3.245463477 | AG24: 3.794305747 | AH24: 3.720409359 | AJ24: 3.725 | AK24: 111 | AL24: 3.7
A25: 22 | B25: 0.8980502126 | C25: 0.7716747197 | D25: 0.6857598254 | E25: 0.06831189678 | F25: 0.03993137705 | G25: 0.7207261299 | H25: 0.572568145 | I25: 0.8700641041 | J25: 0.2470544735 | K25: 0.192168511 | M25: 17711.65408 | N25: 9107.099875 | O25: 6632.442289 | P25: 773.4190033 | Q25: 599.7303548 | R25: 7494.09874 | S25: 4644.091695 | T25: 14718.00479 | U25: 1763.609468 | V25: 1448.325034 | X25: 4.248259122 | Y25: 3.959380099 | Z25: 3.82167348 | AA25: 2.888414839 | AB25: 2.777956031 | AC25: 3.874719411 | AD25: 3.666900786 | AE25: 4.16784894 | AF25: 3.246402422 | AG25: 3.160866037 | AH25: 3.581242117 | AJ25: 3.775 | AK25: 79 | AL25: 3.75
A26: 23 | B26: 0.4087310369 | C26: 0.4189489274 | D26: 0.02271871984 | E26: 0.9729315154 | F26: 0.5445099656 | G26: 0.002446847544 | H26: 0.8615835262 | I26: 0.2702235345 | J26: 0.5744714437 | K26: 0.2547416658 | M26: 2894.38913 | N26: 2980.72483 | O26: 474.5023993 | P26: 42518.62992 | Q26: 4275.597326 | R26: 230.8302435 | S26: 13999.22922 | T26: 1904.456873 | U26: 4670.469081 | V26: 1809.754642 | X26: 3.461556918 | Y26: 3.474321885 | Z26: 2.676238413 | AA26: 4.628579262 | AB26: 3.630996797 | AC26: 2.36329271 | AD26: 4.146104125 | AE26: 3.279771142 | AF26: 3.669360501 | AG26: 3.257619699 | AH26: 3.458784145 | AJ26: 3.825 | AK26: 50 | AL26: 3.8
A27: 24 | B27: 0.7987566049 | C27: 0.06191950016 | D27: 0.6150011521 | E27: 0.3889151845 | F27: 0.6727892946 | G27: 0.945335108 | H27: 0.1129594504 | I27: 0.811256024 | J27: 0.1936179846 | K27: 0.5780223309 | M27: 10216.19039 | N27: 736.2266638 | O27: 5280.360387 | P27: 2733.184843 | Q27: 6350.283268 | R27: 27372.7365 | S27: 1019.63435 | T27: 10810.24173 | U27: 1456.380907 | V27: 4720.181403 | X27: 4.009288978 | Y27: 2.867011542 | Z27: 3.722663564 | AA27: 3.436669004 | AB27: 3.802793098 | AC27: 4.437318217 | AD27: 3.008444458 | AE27: 4.033835405 | AF27: 3.163274977 | AG27: 3.673958689 | AH27: 3.615525793 | AJ27: 3.875 | AK27: 38 | AL27: 3.85
A28: 25 | B28: 0.8687421029 | C28: 0.6501143758 | D28: 0.04907630304 | E28: 0.3935909703 | F28: 0.1520077657 | G28: 0.2301227769 | H28: 0.02645960183 | I28: 0.4307393579 | J28: 0.5726020288 | K28: 0.6540905439 | M28: 14601.27591 | N28: 5897.209633 | O28: 658.5374905 | P28: 2770.511735 | Q28: 1229.115342 | R28: 1663.855233 | S28: 504.0940657 | T28: 3083.252833 | U28: 4644.559662 | V28: 5973.252407 | X28: 4.164390807 | Y28: 3.770646566 | Z28: 2.818580504 | AA28: 3.442559994 | AB28: 3.08959264 | AC28: 3.221115537 | AD28: 2.702511585 | AE28: 3.489009139 | AF28: 3.666944546 | AG28: 3.776210867 | AH28: 3.414156219 | AJ28: 3.925 | AK28: 23 | AL28: 3.9 | AO28: Actual Mean of LogFlow = 3.6
A29: 26 | B29: 0.09082700758 | C29: 0.03803706768 | D29: 0.08529343707 | E29: 0.2007650098 | F29: 0.3477906821 | G29: 0.6646048856 | H29: 0.6981832809 | I29: 0.8350088766 | J29: 0.7205974184 | K29: 0.6445344136 | M29: 899.610025 | N29: 587.0476066 | O29: 869.117831 | P29: 1496.286186 | Q29: 2422.069653 | R29: 6181.169609 | S29: 6920.502376 | T29: 12127.04518 | U29: 7490.617794 | V29: 5792.770531 | X29: 2.954054286 | Y29: 2.768673322 | Z29: 2.93907866 | AA29: 3.175014666 | AB29: 3.384186628 | AC29: 3.791070661 | AD29: 3.840137622 | AE29: 4.083754996 | AF29: 3.874517638 | AG29: 3.762886325 | AH29: 3.45733748 | AJ29: 3.975 | AK29: 13 | AL29: 3.95
A30: 27 | B30: 0.4388906851 | C30: 0.7053634181 | D30: 0.8642006438 | E30: 0.09443734228 | F30: 0.9326001179 | G30: 0.3771777649 | H30: 0.5577234868 | I30: 0.7884888822 | J30: 0.2098165567 | K30: 0.2911518995 | M30: 3156.047217 | N30: 7095.672917 | O30: 14213.66486 | P30: 919.3730243 | Q30: 23779.92482 | R30: 2641.324708 | S30: 4444.540796 | T30: 9769.632872 | U30: 1547.292547 | V30: 2036.569884 | X30: 3.499143492 | Y30: 3.850993588 | Z30: 4.152706071 | AA30: 2.963491757 | AB30: 4.376210477 | AC30: 3.421821794 | AD30: 3.647826897 | AE30: 3.989878244 | AF30: 3.189572434 | AG30: 3.308899317 | AH30: 3.640054407 | AJ30: 4.025 | AK30: 10 | AL30: 4
A31: 28 | B31: 0.09468858644 | C31: 0.1670208666 | D31: 0.6321122092 | E31: 0.5766485727 | F31: 0.5108518925 | G31: 0.7535483621 | H31: 0.02673048638 | I31: 0.9458510268 | J31: 0.3467004463 | K31: 0.8158245305 | M31: 920.7449263 | N31: 1310.289341 | O31: 5569.318159 | P31: 4700.870749 | Q31: 3878.068655 | R31: 8473.426845 | S31: 506.1710677 | T31: 27544.47939 | U31: 2414.211314 | V31: 11042.89337 | X31: 2.964139334 | Y31: 3.117367208 | Z31: 3.745802029 | AA31: 3.67217831 | AB31: 3.588615493 | AC31: 3.928059084 | AD31: 2.704297318 | AE31: 4.440034568 | AF31: 3.382775281 | AG31: 4.043082879 | AH31: 3.55863515 | AJ31: 4.075 | AK31: 0 | AL31: 4.05
A32: 29 | B32: 0.3467429522 | C32: 0.6621681938 | D32: 0.6930892858 | E32: 0.966969513 | F32: 0.7566548532 | G32: 0.8223052327 | H32: 0.08756039922 | I32: 0.3617564185 | J32: 0.7729304599 | K32: 0.9224789075 | M32: 2414.517342 | N32: 6132.075095 | O32: 6800.163558 | P32: 37697.37305 | Q32: 8576.751141 | R32: 11388.75713 | S32: 881.6418205 | T32: 2524.435849 | U32: 9153.915854 | V32: 21582.62968 | X32: 3.382830329 | Y32: 3.787607465 | Z32: 3.832519359 | AA32: 4.576311087 | AB32: 3.933322809 | AC32: 4.056476331 | AD32: 2.945292183 | AE32: 3.402164339 | AF32: 3.961606916 | AG32: 4.334104359 | AH32: 3.821223518 | AJ32: 4.125 | AK32: 2 | AL32: 4.1
A33: 30 | B33: 0.2856743796 | C33: 0.2999223214 | D33: 0.9108965336 | E33: 0.6206974656 | F33: 0.4796199605 | G33: 0.3889181037 | H33: 0.7211754711 | I33: 0.4024231866 | J33: 0.9976795752 | K33: 0.3145527468 | M33: 2001.510626 | N33: 2093.455777 | O33: 19546.33995 | P33: 5374.26277 | Q33: 3545.695414 | R33: 2733.208015 | S33: 7506.270816 | T33: 2842.205837 | U33: 155878.0378 | V33: 2190.512033 | X33: 3.3013579 | Y33: 3.320863791 | Z33: 4.291065448 | AA33: 3.730318897 | AB33: 3.549701426 | AC33: 3.436672686 | AD33: 3.875424229 | AE33: 3.453655527 | AF33: 5.19278493 | AG33: 3.340545643 | AH33: 3.749239048 | AJ33: 4.175 | AK33: 0 | AL33: 4.15
A34: 31 | B34: 0.4808109275 | C34: 0.1666778845 | D34: 0.09802523994 | E34: 0.3666551214 | F34: 0.4176454472 | G34: 0.8826344897 | H34: 0.7477695377 | I34: 0.3560095198 | J34: 0.08792480786 | K34: 0.04776957014 | M34: 3557.796226 | N34: 1308.426347 | O34: 938.9263392 | P34: 2561.11487 | Q34: 2969.583786 | R34: 15927.04996 | S34: 8286.554871 | T34: 2481.924064 | U34: 883.6507112 | V34: 650.3469159 | X34: 3.55118107 | Y34: 3.116749281 | Z34: 2.972631522 | AA34: 3.408429058 | AB34: 3.472695583 | AC34: 4.202135342 | AD34: 3.91837401 | AE34: 3.39478849 | AF34: 2.946280631 | AG34: 2.813145085 | AH34: 3.379641007
A35: 32 | B35: 0.3358448134 | C35: 0.2694456248 | D35: 0.9940329072 | E35: 0.2479340406 | F35: 0.9271444132 | G35: 0.8337754608 | H35: 0.305515902 | I35: 0.9924670967 | J35: 0.3124510256 | K35: 0.4508635086 | M35: 2336.971598 | N35: 1899.639491 | O35: 97739.21818 | P35: 1768.861246 | Q35: 22538.21706 | R35: 12051.5471 | S35: 2130.235742 | T35: 86641.0856 | U35: 2176.39709 | V35: 3265.955111 | X35: 3.368653434 | Y35: 3.278671189 | Z35: 4.990068861 | AA35: 3.247693767 | AB35: 4.352919557 | AC35: 4.081042802 | AD35: 3.328427667 | AE35: 4.937723885 | AF35: 3.337738137 | AG35: 3.514010211 | AH35: 3.843694951 | AK35: =SUM(AK10:AK33) -> 999
A36: 33 | B36: 0.9881851716 | C36: 0.229602515 | D36: 0.1406682336 | E36: 0.1608070377 | F36: 0.6320085699 | G36: 0.5148957233 | H36: 0.06150534182 | I36: 0.5827670055 | J36: 0.8053459745 | K36: 0.9773005681 | M36: 68156.98501 | N36: 1660.828812 | O36: 1168.189933 | P36: 1276.603936 | Q36: 5567.504197 | R36: 3923.533476 | S36: 733.7882115 | T36: 4787.647304 | U36: 10521.95572 | V36: 47175.67597 | X36: 4.833510371 | Y36: 3.22032487 | Z36: 3.067513459 | AA36: 3.106056179 | AB36: 3.745660553 | AC36: 3.593677362 | AD36: 2.86557073 | AE36: 3.680122149 | AF36: 4.02209647 | AG36: 4.673718132 | AH36: 3.680825028
A37: 34 | B37: 0.1206649056 | C37: 0.7838129326 | D37: 0.2171312594 | E37: 0.7462704997 | F37: 0.9303718199 | G37: 0.7603593249 | H37: 0.1783689592 | I37: 0.4446797582 | J37: 0.3131793687 | K37: 0.6832805242 | M37: 1061.005139 | N37: 9577.317474 | O37: 1588.923894 | P37: 8239.17433 | Q37: 23255.07509 | R37: 8702.703002 | S37: 1372.203653 | T37: 3208.735681 | U37: 2181.28187 | V37: 6577.09918 | X37: 3.025717488 | Y37: 3.981243884 | Z37: 3.201103096 | AA37: 3.915883692 | AB37: 4.366517746 | AC37: 3.939654163 | AD37: 3.137418571 | AE37: 3.506333944 | AF37: 3.33871179 | AG37: 3.818034391 | AH37: 3.623061876
A38: 35 | B38: 0.3915440291 | C38: 0.7914050329 | D38: 0.08159822314 | E38: 0.07739168362 | F38: 0.5266889241 | G38: 0.8417092223 | H38: 0.7516275423 | I38: 0.3679449925 | J38: 0.04694189145 | K38: 0.8413116173 | M38: 2754.118383 | N38: 9892.966784 | O38: 848.5962559 | P38: 825.0521955 | Q38: 4059.586313 | R38: 12552.97926 | S38: 8410.555648 | T38: 2570.841675 | U38: 645.1259789 | V38: 12526.92944 | X38: 3.439982604 | Y38: 3.995326551 | Z38: 2.928701111 | AA38: 2.916481424 | AB38: 3.60848178 | AC38: 4.098746811 | AD38: 3.924824689 | AE38: 3.410075332 | AF38: 2.809644531 | AG38: 4.097844631 | AH38: 3.523010946
A39: 36 | B39: 0.6673529687 | C39: 0.02105662841 | D39: 0.3033704993 | E39: 0.9327488634 | F39: 0.4522406922 | G39: 0.6371578529 | H39: 0.4489402847 | I39: 0.9540319248 | J39: 0.7419576924 | K39: 0.06201604622 | M39: 6237.219101 | N39: 460.7310859 | O39: 2116.081926 | P39: 23815.88955 | Q39: 3278.833462 | R39: 5658.619675 | S39: 3248.053498 | T39: 30641.5528 | U39: 8105.276587 | V39: 736.7945588 | X39: 3.794991 | Y39: 2.663447515 | Z39: 3.325532478 | AA39: 4.376866808 | AB39: 3.515719359 | AC39: 3.752710505 | AD39: 3.511623174 | AE39: 4.48631077 | AF39: 3.908767839 | AG39: 2.86734641 | AH39: 3.620331586
A40: 37 | B40: 0.02271085162 | C40: 0.7329792201 | D40: 0.9564788198 | E40: 0.3590165827 | F40: 0.004827912433 | G40: 0.308086439 | H40: 0.05892122133 | I40: 0.8466063461 | J40: 0.1143248643 | K40: 0.788059834 | M40: 474.4381961 | N40: 7837.496858 | O40: 31732.59372 | P40: 2504.09942 | Q40: 280.1291037 | R40: 2147.272322 | S40: 718.485145 | T40: 12882.34111 | U40: 1026.974393 | V40: 9751.710881 | X40: 2.676179646 | Y40: 3.89417738 | Z40: 4.501505571 | AA40: 3.398651568 | AB40: 2.447358232 | AC40: 3.331887126 | AD40: 2.856417793 | AE40: 4.109994795 | AF40: 3.011559615 | AG40: 3.989080817 | AH40: 3.421681254
A41: 38 | B41: 0.3079990983 | C41: 0.9309122127 | D41: 0.8116893528 | E41: 0.4130646401 | F41: 0.8064720231 | G41: 0.3953804937 | H41: 0.9902921338 | I41: 0.3255734572 | J41: 0.2814075995 | K41: 0.7456934098 | M41: 2146.692052 | N41: 23380.0133 | O41: 10831.93165 | P41: 2930.72838 | Q41: 10575.8248 | R41: 2784.911285 | S41: 75774.57681 | T41: 2265.514596 | U41: 1974.442272 | V41: 8221.051115 | X41: 3.331769748 | Y41: 4.368844754 | Z41: 4.034705911 | AA41: 3.46697557 | AB41: 4.024314248 | AC41: 3.444811365 | AD41: 4.87952352 | AE41: 3.355166864 | AF41: 3.295444441 | AG41: 3.914927348 | AH41: 3.811648377
A42: 39 | B42: 0.3548869859 | C42: 0.08983876216 | D42: 0.9494587847 | E42: 0.136323727 | F42: 0.9973335568 | G42: 0.1306029386 | H42: 0.02274797225 | I42: 0.2710658903 | J42: 0.2549422312 | K42: 0.3342925157 | M42: 2473.684377 | N42: 894.1833303 | O42: 28817.80643 | P42: 1144.900209 | Q42: 145817.4898 | R42: 1114.253588 | S42: 474.7410143 | T42: 1909.680608 | U42: 1810.966157 | V42: 2326.073047 | X42: 3.393344286 | Y42: 2.951426569 | Z42: 4.45966092 | AA42: 3.058767634 | AB42: 5.163809618 | AC42: 3.046984041 | AD42: 2.676456753 | AE42: 3.280960738 | AF42: 3.257910334 | AG42: 3.366623349 | AH42: 3.465594424
A43: 40 | B43: 0.8281782694 | C43: 0.01169395879 | D43: 0.2952665683 | E43: 0.5185243079 | F43: 0.3065889582 | G43: 0.373217346 | H43: 0.701682016 | I43: 0.8527871942 | J43: 0.3620477354 | K43: 0.1250599151 | M43: 11719.54988 | N43: 371.9757495 | O43: 2063.141106 | P43: 3964.837945 | Q43: 2137.337165 | R43: 2610.904179 | S43: 7005.028496 | T43: 13321.99092 | U43: 2526.605606 | V43: 1084.561569 | X43: 4.068910932 | Y43: 2.570514628 | Z43: 3.314528932 | AA43: 3.598225441 | AB43: 3.329873038 | AC43: 3.416790933 | AD43: 3.845409906 | AE43: 4.124569133 | AF43: 3.402537455 | AG43: 3.035254211 | AH43: 3.470661461
A44: 41 | B44: 0.6197019214 | C44: 0.2055648726 | D44: 0.3080124963 | E44: 0.1325787345 | F44: 0.0685638492 | G44: 0.7707538948 | H44: 0.7089698302 | I44: 0.7348411394 | J44: 0.0958402962 | K44: 0.97044185 | M44: 5357.691115 | N44: 1523.266159 | O44: 2146.781058 | P44: 1124.836574 | Q44: 774.869195 | R44: 9073.025473 | S44: 7186.21983 | T44: 7891.854413 | U44: 927.0284548 | V44: 40331.31163 | X44: 3.728977672 | Y44: 3.182775794 | Z44: 3.331787755 | AA44: 3.051089429 | AB44: 2.889228396 | AC44: 3.95775213 | AD44: 3.856500498 | AE44: 3.897179065 | AF44: 2.967093065 | AG44: 4.605642346 | AH44: 3.546802615
A45: 42 | B45: 0.9452028293 | C45: 0.7093170835 | D45: 0.1949765384 | E45: 0.8278664134 | F45: 0.4224578321 | G45: 0.4536964517 | H45: 0.7352620492 | I45: 0.3044334955 | J45: 0.1628408386 | K45: 0.6627875462 | M45: 27329.09277 | N45: 7195.031785 | O45: 1463.942614 | P45: 11701.5457 | Q45: 3010.905172 | R45: 3292.500873 | S45: 7904.225878 | T45: 2123.087446 | U45: 1287.614201 | V45: 6144.500643 | X45: 4.436625215 | Y45: 3.857032717 | Z45: 3.165524053 | AA45: 4.068243233 | AB45: 3.478697078 | AC45: 3.517525899 | AD45: 3.897859343 | AE45: 3.326967882 | AF45: 3.109785758 | AG45: 3.788486594 | AH45: 3.664674777
A46: 43 | B46: 0.07162132638 | C46: 0.3440720341 | D46: 0.1414720302 | E46: 0.3145175361 | F46: 0.6269783143 | G46: 0.8336800924 | H46: 0.5757221905 | I46: 0.35971586 | J46: 0.9800592069 | K46: 0.2509089679 | M46: 792.3828021 | N46: 2395.342813 | O46: 1172.501264 | P46: 2190.275074 | Q46: 5480.421816 | R46: 12045.74568 | S46: 4687.904541 | T46: 2509.277797 | U46: 50856.07567 | V46: 1786.677593 | X46: 2.898935041 | Y46: 3.379367677 | Z46: 3.06911332 | AA46: 3.340498661 | AB46: 3.738813986 | AC46: 4.08083369 | AD46: 3.67097876 | AE46: 3.399548744 | AF46: 4.706342845 | AG46: 3.252046191 | AH46: 3.553647891
A47: 44 | B47: 0.3628324198 | C47: 0.07109160652 | D47: 0.2176040532 | E47: 0.3821539259 | F47: 0.9603081256 | G47: 0.4617047911 | H47: 0.2065770123 | I47: 0.03923874861 | J47: 0.2704762286 | K47: 0.2608328048 | M47: 2532.457191 | N47: 789.3593458 | O47: 1591.628125 | P47: 2679.95396 | Q47: 33636.64635 | R47: 3368.703173 | S47: 1528.974699 | T47: 595.1161218 | U47: 1906.023121 | V47: 1846.724317 | X47: 3.403542113 | Y47: 2.897274755 | Z47: 3.201841605 | AA47: 3.428127333 | AB47: 4.526812689 | AC47: 3.527462746 | AD47: 3.184400299 | AE47: 2.774601716 | AF47: 3.280128164 | AG47: 3.266402068 | AH47: 3.349059349
A48: 45 | B48: 0.2144867188 | C48: 0.6635263818 | D48: 0.2386382762 | E48: 0.5152888374 | F48: 0.4750644992 | G48: 0.4788891896 | H48: 0.7161299597 | I48: 0.9183957256 | J48: 0.8502667207 | K48: 0.06384332969 | M48: 1573.828243 | N48: 6159.370558 | O48: 1713.712529 | P48: 3927.984915 | Q48: 3499.803585 | R48: 3538.291693 | S48: 7371.3416 | T48: 20814.96372 | U48: 13139.32624 | V48: 747.5052654 | X48: 3.196957335 | Y48: 3.789536333 | Z48: 3.233937972 | AA48: 3.594169811 | AB48: 3.544043672 | AC48: 3.548793633 | AD48: 3.867546538 | AE48: 4.318375658 | AF48: 4.118573096 | AG48: 2.873614256 | AH48: 3.60855483
A49: 46 | B49: 0.7178277343 | C49: 0.2292454644 | D49: 0.551837864 | E49: 0.5806948227 | F49: 0.588093918 | G49: 0.3454061657 | H49: 0.8280726258 | I49: 0.1663284047 | J49: 0.7356985679 | K49: 0.3805967449 | M49: 7416.319728 | N49: 1658.75309 | O49: 4368.320364 | P49: 4758.034039 | Q49: 4864.851304 | R49: 2404.90657 | S49: 11713.44516 | T49: 1306.52852 | U49: 7917.088848 | V49: 2667.816516 | X49: 3.870188445 | Y49: 3.219781745 | Z49: 3.640314481 | AA49: 3.677427545 | AB49: 3.68706957 | AC49: 3.381098209 | AD49: 4.068684649 | AE49: 3.116118894 | AF49: 3.898565519 | AG49: 3.426155957 | AH49: 3.598540501
A50: 47 | B50: 0.5643775049 | C50: 0.9220511743 | D50: 0.8066672457 | E50: 0.7870942983 | F50: 0.7329278352 | G50: 0.347791999 | H50: 0.5346812734 | I50: 0.8443038185 | J50: 0.7941181725 | K50: 0.59152075 | M50: 4532.661262 | N50: 21499.37078 | O50: 10585.21373 | P50: 9711.585473 | Q50: 7836.005166 | R50: 2422.079156 | S50: 4154.85383 | T50: 12725.4878 | U50: 10010.15632 | V50: 4915.356247 | X50: 3.656353264 | Y50: 4.33242575 | Z50: 4.024699631 | AA50: 3.987290137 | AB50: 3.894094714 | AC50: 3.384188332 | AD50: 3.61855575 | AE50: 4.104674439 | AF50: 4.00044086 | AG50: 3.691554999 | AH50: 3.869427788
A51: 48 | B51: 0.2468757208 | C51: 0.04699449992 | D51: 0.539459092 | E51: 0.1587679047 | F51: 0.6022256639 | G51: 0.1800076691 | H51: 0.991843949 | I51: 0.501793532 | J51: 0.9834639823 | K51: 0.6790813501 | M51: 1762.543034 | N51: 645.4586146 | O51: 4213.042108 | P51: 1265.578506 | Q51: 5077.537128 | R51: 1381.192086 | S51: 83105.41167 | T51: 3778.327448 | U51: 56577.73602 | V51: 6484.909286 | X51: 3.24613973 | Y51: 2.809868402 | Z51: 3.6245958 | AA51: 3.10228909 | AB51: 3.705653108 | AC51: 3.140254081 | AD51: 4.919629305 | AE51: 3.577299593 | AF51: 4.752645565 | AG51: 3.811903905 | AH51: 3.669027858
A52: 49 | B52: 0.2420521688 | C52: 0.7273760698 | D52: 0.8680513566 | E52: 0.55694231 | F52: 0.3444035611 | G52: 0.4509078442 | H52: 0.1424548371 | I52: 0.2964566262 | J52: 0.06966600502 | K52: 0.5056632162 | M52: 1733.875918 | N52: 7677.452202 | O52: 14541.00095 | P52: 4434.332562 | Q52: 2397.716778 | R52: 3266.368929 | S52: 1177.773974 | T52: 2070.864429 | U52: 781.2002268 | V52: 3820.586671 | X52: 3.239018015 | Y52: 3.885217121 | Z52: 4.162594303 | AA52: 3.646828261 | AB52: 3.379797882 | AC52: 3.514065236 | AD52: 3.071061953 | AE52: 3.316151668 | AF52: 2.892762361 | AG52: 3.582130056 | AH52: 3.468962686
A53: 50 | B53: 0.7968447218 | C53: 0.2418101379 | D53: 0.2263756068 | E53: 0.8355243261 | F53: 0.9168659218 | G53: 0.4544269304 | H53: 0.179178888 | I53: 0.4358411303 | J53: 0.78066505 | K53: 0.7702900321 | M53: 10130.37805 | N53: 1732.443019 | O53: 1642.106582 | P53: 12158.85566 | Q53: 20542.14778 | R53: 3299.380125 | S53: 1376.644554 | T53: 3128.625497 | U53: 9451.471236 | V53: 9055.941651 | X53: 4.005625653 | Y53: 3.238658959 | Z53: 3.215401342 | AA53: 4.084892703 | AB53: 4.312645849 | AC53: 3.518432354 | AD53: 3.138821821 | AE53: 3.49535358 | AF53: 3.975499417 | AG53: 3.956933616 | AH53: 3.694226529
A54: 51 | B54: 0.2966487355 | C54: 0.283277962 | D54: 0.5467291412 | E54: 0.7235916041 | F54: 0.895948436 | G54: 0.560389092 | H54: 0.8119023562 | I54: 0.309616203 | J54: 0.5065341555 | K54: 0.4834005268 | M54: 2072.112821 | N54: 1986.282145 | O54: 4303.428231 | P54: 7572.254314 | Q54: 17444.76166 | R54: 4479.589358 | S54: 10842.62184 | T54: 2157.451847 | U54: 3830.16919 | V54: 3584.257291 | X54: 3.316413398 | Y54: 3.298040939 | Z54: 3.633814565 | AA54: 3.879225191 | AB54: 4.24166504 | AC54: 3.651238204 | AD54: 4.035134311 | AE54: 3.333941111 | AF54: 3.583217958 | AG54: 3.554399177 | AH54: 3.65270899
A55: 52 | B55: 0.9265509396 | C55: 0.6287046732 | D55: 0.841221929 | E55: 0.4548885374 | F55: 0.2926477264 | G55: 0.7116790525 | H55: 0.7126230634 | I55: 0.5120715826 | J55: 0.6699265642 | K55: 0.5232289358 | M55: 22411.59406 | N55: 5510.097632 | O55: 12521.0673 | P55: 3303.734607 | Q55: 2046.205846 | R55: 7255.412903 | S55: 7279.764086 | T55: 3891.719492 | U55: 6290.377576 | V55: 4019.123294 | X55: 4.350472748 | Y55: 3.741159294 | Z55: 4.09764135 | AA55: 3.519005153 | AB55: 3.310949321 | AC55: 3.860662133 | AD55: 3.862117305 | AE55: 3.59014153 | AF55: 3.798676714 | AG55: 3.604131329 | AH55: 3.773495688
A56: 53 | B56: 0.5831192779 | C56: 0.2484133731 | D56: 0.3904338437 | E56: 0.440061914 | F56: 0.8944386701 | G56: 0.04311402719 | H56: 0.3087342933 | I56: 0.9845912098 | J56: 0.1898120345 | K56: 0.5642311468 | M56: 4792.704693 | N56: 1771.726295 | O56: 2745.261564 | P56: 3166.639634 | Q56: 17258.06609 | R56: 620.6172815 | S56: 2151.579608 | T56: 58865.70708 | U56: 1435.253896 | V56: 4530.700212 | X56: 3.68058067 | Y56: 3.248396631 | Z56: 3.43858373 | AA56: 3.500598643 | AB56: 4.236992128 | AC56: 2.792823865 | AD56: 3.33275742 | AE56: 4.769862365 | AF56: 3.156928735 | AG56: 3.656165327 | AH56: 3.581368951
A57: 54 | B57: 0.7494292669 | C57: 0.6223224171 | D57: 0.6086799523 | E57: 0.3516297157 | F57: 0.4337012207 | G57: 0.1466928055 | H57: 0.7989594804 | I57: 0.3855064663 | J57: 0.4624812729 | K57: 0.4825724798 | M57: 8339.533023 | N57: 5401.459766 | O57: 5178.696263 | P57: 2449.891826 | Q57: 3109.518229 | R57: 1200.528262 | S57: 10225.3708 | T57: 2706.23967 | U57: 3376.184708 | V57: 3575.773752 | X57: 3.921141733 | Y57: 3.732511146 | Z57: 3.71422044 | AA57: 3.389146909 | AB57: 3.492693107 | AC57: 3.079372388 | AD57: 4.009679066 | AE57: 3.432366256 | AF57: 3.528426198 | AG57: 3.553370032 | AH57: 3.585292727
A58: 55 | B58: 0.5671442224 | C58: 0.6920003703 | D58: 0.2789333066 | E58: 0.1353470353 | F58: 0.9959121695 | G58: 0.8378471911 | H58: 0.9596829504 | I58: 0.9542947973 | J58: 0.7700359309 | K58: 0.992784836 | M58: 4569.929079 | N58: 6774.847616 | O58: 1958.840163 | P58: 1139.666819 | Q58: 118292.7701 | R58: 12304.14693 | S58: 33307.53385 | T58: 30754.57914 | U58: 9046.606119 | V58: 88610.03785 | X58: 3.65990946 | Y58: 3.830899531 | Z58: 3.291999 | AA58: 3.056777904 | AB58: 5.072958202 | AC58: 4.090051509 | AD58: 4.522542478 | AE58: 4.487909788 | AF58: 3.956485682 | AG58: 4.947482922 | AH58: 4.091701648
A59: 56 | B59: 0.1946717098 | C59: 0.08989867993 | D59: 0.4871712972 | E59: 0.6144662051 | F59: 0.9162306056 | G59: 0.03123213972 | H59: 0.5541739984 | I59: 0.5741626311 | J59: 0.6876810304 | K59: 0.6242014566 | M59: 1462.244991 | N59: 894.5125742 | O59: 3623.158794 | P59: 5271.654785 | Q59: 20431.07272 | R59: 539.6076461 | S59: 4398.384127 | T59: 4666.17667 | U59: 6675.80402 | V59: 5433.141183 | X59: 3.165020142 | Y59: 2.95158645 | Z59: 3.559087368 | AA59: 3.721946963 | AB59: 4.31029117 | AC59: 2.732078095 | AD59: 3.643293155 | AE59: 3.668961178 | AF59: 3.824503579 | AG59: 3.735050991 | AH59: 3.531181909
A60: 57 | B60: 0.3380356885 | C60: 0.4801951306 | D60: 0.5735224195 | E60: 0.3610047276 | F60: 0.3138314168 | G60: 0.4900168581 | H60: 0.8974808299 | I60: 0.8004097957 | J60: 0.6972620163 | K60: 0.5723881506 | M60: 2352.414972 | N60: 3551.534049 | O60: 4657.29354 | P60: 2518.843822 | Q60: 2185.660981 | R60: 3652.811235 | S60: 17638.52826 | T60: 10291.42294 | U60: 6898.502194 | V60: 4641.606789 | X60: 3.371513935 | Y60: 3.550415983 | Z60: 3.668133611 | AA60: 3.40120124 | AB60: 3.339582799 | AC60: 3.56262723 | AD60: 4.246462345 | AE60: 4.012475426 | AF60: 3.838754807 | AG60: 3.666668347 | AH60: 3.665783572
A61: 58 | B61: 0.9329403625 | C61: 0.369891921 | D61: 0.9795251382 | E61: 0.1046182086 | F61: 0.8712654776 | G61: 0.8539798317 | H61: 0.1486158738 | I61: 0.7215973756 | J61: 0.02878693532 | K61: 0.6530760545 | M61: 23862.36825 | N61: 2585.578397 | O61: 50087.31221 | P61: 974.6705468 | Q61: 14825.67613 | R61: 13410.11532 | S61: 1210.864541 | T61: 7517.727822 | U61: 521.6861957 | V61: 5953.719733 | X61: 4.377713544 | Y61: 3.412557711 | Z61: 4.699727727 | AA61: 2.988857842 | AB61: 4.171014509 | AC61: 4.127432513 | AD61: 3.083095562 | AE61: 3.876086598 | AF61: 2.717409345 | AG61: 3.774788387 | AH61: 3.722868374
A62: 59 | B62: 0.1328461506 | C62: 0.8351592132 | D62: 0.1944263457 | E62: 0.5749421241 | F62: 0.4092197747 | G62: 0.442414109 | H62: 0.4300170761 | I62: 0.5660641528 | J62: 0.01438222708 | K62: 0.1595292746 | M62: 1126.269014 | N62: 12136.30715 | O62: 1460.878931 | P62: 4677.020878 | Q62: 2898.4673 | R62: 3188.015367 | S62: 3076.879324 | T62: 4555.335887 | U62: 399.9985047 | V62: 1269.693615 | X62: 3.051642136 | Y62: 4.084086559 | Z62: 3.164614226 | AA62: 3.669969309 | AB62: 3.462168405 | AC62: 3.503520406 | AD62: 3.488110463 | AE62: 3.658520405 | AF62: 2.602058368 | AG62: 3.103698936 | AH62: 3.378838921
A63: 60 | B63: 0.7143838649 | C63: 0.01655954863 | D63: 0.6955875228 | E63: 0.9501643675 | F63: 0.4034288688 | G63: 0.7033124342 | H63: 0.2787815571 | I63: 0.3944425068 | J63: 0.8169574584 | K63: 0.2960405422 | M63: 7325.523363 | N63: 420.9597562 | O63: 6858.783913 | P63: 29082.80627 | Q63: 2850.469995 | R63: 7044.954169 | S63: 1957.885513 | T63: 2777.355773 | U63: 11101.98105 | V63: 2068.162127 | X63: 3.864838658 | Y63: 2.624240579 | Z63: 3.836247121 | AA63: 4.46363631 | AB63: 3.454916474 | AC63: 3.847878172 | AD63: 3.291787293 | AE63: 3.443631515 | AF63: 4.045400482 | AG63: 3.315584581 | AH63: 3.618816118
A64: 61 | B64: 0.5123265924 | C64: 0.3767634119 | D64: 0.7374371486 | E64: 0.6440300807 | F64: 0.4402075614 | G64: 0.8716157929 | H64: 0.5526229489 | I64: 0.2469892471 | J64: 0.03393334395 | K64: 0.03439882598 | M64: 3894.580329 | N64: 2638.128683 | O64: 7968.653241 | P64: 5783.458801 | Q64: 3167.959218 | R64: 14857.36369 | S64: 4378.396041 | T64: 1763.220295 | U64: 558.8280439 | V64: 562.0851088 | X64: 3.590460666 | Y64: 3.421295976 | Z64: 3.901384929 | AA64: 3.762187646 | AB64: 3.500779582 | AC64: 4.171941754 | AD64: 3.641315042 | AE64: 3.246306576 | AF64: 2.747278192 | AG64: 2.74980208 | AH64: 3.473275244
A65: 62 | B65: 0.5145394721 | C65: 0.1394868119 | D65: 0.09772383268 | E65: 0.6147435655 | F65: 0.01312827757 | G65: 0.2023763029 | H65: 0.1375822008 | I65: 0.7398045914 | J65: 0.5052031551 | K65: 0.1453774829 | M65: 3919.504331 | N65: 1161.85463 | O65: 937.2867575 | P65: 5276.166095 | Q65: 387.2642025 | R65: 1505.326614 | S65: 1151.64459 | T65: 8039.738573 | U65: 3815.535491 | V65: 1193.462735 | X65: 3.593231149 | Y65: 3.065151793 | Z65: 2.971872481 | AA65: 3.722318459 | AB65: 2.588007354 | AC65: 3.17763074 | AD65: 3.061318472 | AE65: 3.905241927 | AF65: 3.581555498 | AG65: 3.076808863 | AH65: 3.274313674
A66: 63 | B66: 0.695615802 | C66: 0.65668938 | D66: 0.5432803744 | E66: 0.888223546 | F66: 0.5161903152 | G66: 0.7871468401 | H66: 0.7765919814 | I66: 0.03521637046 | J66: 0.03356524911 | K66: 0.9962229478 | M66: 6859.451819 | N66: 6023.705537 | O66: 4260.268603 | P66: 16530.46135 | Q66: 3938.214215 | R66: 9713.761674 | S66: 9292.768028 | T66: 567.7691551 | U66: 556.2414337 | V66: 123022.2212 | X66: 3.83628941 | Y66: 3.779863734 | Z66: 3.629436982 | AA66: 4.218284975 | AB66: 3.595299335 | AC66: 3.987387444 | AD66: 3.968145096 | AE66: 2.754171795 | AF66: 2.745263336 | AG66: 5.089983564 | AH66: 3.760412567
A67: 64 | B67: 0.08217669324 | C67: 0.6038639105 | D67: 0.07812820131 | E67: 0.6187502458 | F67: 0.1090577898 | G67: 0.7425267981 | H67: 0.5814448735 | I67: 0.2651336205 | J67: 0.2665648178 | K67: 0.09067674944 | M67: 851.818174 | N67: 5102.966666 | O67: 829.1897861 | P67: 5341.91372 | Q67: 998.6316738 | R67: 8122.743331 | S67: 4768.726162 | T67: 1873.051811 | U67: 1881.855006 | V67: 898.7854164 | X67: 2.930346902 | Y67: 3.707822731 | Z67: 2.918653944 | AA67: 3.727696869 | AB67: 2.999405337 | AC67: 3.90970273 | AD67: 3.678402384 | AE67: 3.272549791 | AF67: 3.274586159 | AG67: 2.953656017 | AH67: 3.337282286
A68: 65 | B68: 0.7129441393 | C68: 0.759057405 | D68: 0.1937464388 | E68: 0.7463765966 | F68: 0.6199048651 | G68: 0.01819981192 | H68: 0.2164674746 | I68: 0.981754884 | J68: 0.3722726004 | K68: 0.5698582891 | M68: =10^(mean+stdev*2/skew*(((NORMSINV(B68)-skew/6)*skew/6+1)^3-1)) -> 7288.07514 | N68: =10^(mean+stdev*2/skew*(((NORMSINV(C68)-skew/6)*skew/6+1)^3-1)) -> 8658.09176 | O68: =10^(mean+stdev*2/skew*(((NORMSINV(D68)-skew/6)*skew/6+1)^3-1)) -> 1457.095418 | P68: =10^(mean+stdev*2/skew*(((NORMSINV(E68)-skew/6)*skew/6+1)^3-1)) -> 8242.513296 | Q68: =10^(mean+stdev*2/skew*(((NORMSINV(F68)-skew/6)*skew/6+1)^3-1)) -> 5361.063708 | R68: =10^(mean+stdev*2/skew*(((NORMSINV(G68)-skew/6)*skew/6+1)^3-1)) -> 435.9490904 | S68: =10^(mean+stdev*2/skew*(((NORMSINV(H68)-skew/6)*skew/6+1)^3-1)) -> 1585.130042 | T68: =10^(mean+stdev*2/skew*(((NORMSINV(I68)-skew/6)*skew/6+1)^3-1)) -> 53510.74421 | U68: =10^(mean+stdev*2/skew*(((NORMSINV(J68)-skew/6)*skew/6+1)^3-1)) -> 2603.689171 | V68: =10^(mean+stdev*2/skew*(((NORMSINV(K68)-skew/6)*skew/6+1)^3-1)) -> 4606.85469 | X68: =mean+stdev*2/skew*(((NORMSINV(B68)-skew/6)*skew/6+1)^3-1) -> 3.862612842 | Y68: =mean+stdev*2/skew*(((NORMSINV(C68)-skew/6)*skew/6+1)^3-1) -> 3.937422184 | Z68: =mean+stdev*2/skew*(((NORMSINV(D68)-skew/6)*skew/6+1)^3-1) -> 3.163487992 | AA68: =mean+stdev*2/skew*(((NORMSINV(E68)-skew/6)*skew/6+1)^3-1) -> 3.916059656 | AB68: =mean+stdev*2/skew*(((NORMSINV(F68)-skew/6)*skew/6+1)^3-1) -> 3.729250968 | AC68: =mean+stdev*2/skew*(((NORMSINV(G68)-skew/6)*skew/6+1)^3-1) -> 2.639435776 | AD68: =mean+stdev*2/skew*(((NORMSINV(H68)-skew/6)*skew/6+1)^3-1) -> 3.200064897 | AE68: =mean+stdev*2/skew*(((NORMSINV(I68)-skew/6)*skew/6+1)^3-1) -> 4.728440991 | AF68: =mean+stdev*2/skew*(((NORMSINV(J68)-skew/6)*skew/6+1)^3-1) -> 3.415589137 | AG68: =mean+stdev*2/skew*(((NORMSINV(K68)-skew/6)*skew/6+1)^3-1) -> 3.663404514 | AH68: 3.625576896
A69: 66 | B69: 0.9849109277 | C69: 0.8009375831 | D69: 0.09938740824 | E69: 0.9272009855 | F69: 0.1061076054 | G69: 0.7209110038 | H69: 0.7603648403 | I69: 0.5638527282 | J69: 0.178348293 | K69: 0.2033768464 | M69: 59559.43727 | N69: 10315.64611 | O69: 946.329751 | P69: 22550.3685 | Q69: 982.717506 | R69: 7499.102999 | S69: 8702.8928 | T69: 4525.634598 | U69: 1372.090379 | V69: 1510.948726 | X69: 4.774950586 | Y69: 4.013496435 | Z69: 2.976042494 | AA69: 4.353153643 | AB69: 2.992428693 | AC69: 3.875009319 | AD69: 3.939663634 | AE69: 3.655679486 | AF69: 3.137382719 | AG69: 3.179249727 | AH69: =AVERAGE(X69:AG69) -> 3.689705673
A70: 67 | B70: 0.3253906871 | C70: 0.5533546641 | D70: 0.9882681019 | E70: 0.1556684423 | F70: 0.458942902 | G70: 0.186844498 | H70: 0.9186660897 | I70: 0.7433931608 | J70: 0.6444326799 | K70: 0.2200729228 | M70: 2264.2569 | N70: 4387.811891 | O70: 68418.8115 | P70: 1248.84452 | Q70: 3342.226352 | R70: 1418.837235 | S70: 20863.98496 | T70: 8149.450158 | U70: 5790.890493 | V70: 1605.776381 | X70: 3.3549257 | Y70: 3.642248001 | Z70: 4.835175526 | AA70: 3.096508373 | AB70: 3.524035859 | AC70: 3.151932577 | AD70: 4.319397261 | AE70: 3.911128308 | AF70: 3.762745352 | AG70: 3.205685066 | AH70: 3.680378202
A71: 68 | B71: 0.4136818784 | C71: 0.9031643494 | D71: 0.8044729627 | E71: 0.5821300009 | F71: 0.6521462133 | G71: 0.8080368832 | H71: 0.1348406888 | I71: 0.7143388077 | J71: 0.2016202308 | K71: 0.3254592278 | M71: 2935.937162 | N71: 18397.57106 | O71: 10480.52453 | P71: 4778.519273 | Q71: 5935.896028 | R71: 10651.50185 | S71: 1136.953931 | T71: 7324.346889 | U71: 1501.08248 | V71: 2264.728494 | X71: 3.467746756 | Y71: 4.264760489 | Z71: 4.020383019 | AA71: 3.679293342 | AB71: 3.773486285 | AC71: 4.027410847 | AD71: 3.055742867 | AE71: 3.864768905 | AF71: 3.176404556 | AG71: 3.355016144 | AH71: 3.668501321
A72: 69 | B72: 0.9000893658 | C72: 0.4883004439 | D72: 0.503957123 | E72: 0.5391338552 | F72: 0.7261977961 | G72: 0.7802982498 | H72: 0.2188632683 | I72: 0.7337624724 | J72: 0.7619926928 | K72: 0.7378708152 | M72: 17978.73334 | N72: 3634.894449 | O72: 3801.891638 | P72: 4209.051034 | Q72: 7644.454076 | R72: 9436.990891 | S72: 1598.838548 | T72: 7860.290542 | U72: 8759.211974 | V72: 7981.599059 | X72: 4.254759091 | Y72: 3.560491804 | Z72: 3.579999734 | AA72: 3.624184192 | AB72: 3.883346476 | AC72: 3.974833536 | AD72: 3.203804611 | AE72: 3.895438599 | AF72: 3.942465036 | AG72: 3.902089908 | AH72: 3.782141299
A73: 70 | B73: 0.5886465178 | C73: 0.9028149369 | D73: 0.1579396434 | E73: 0.9639241904 | F73: 0.4209704584 | G73: 0.04857200742 | H73: 0.3520044225 | I73: 0.1730144099 | J73: 0.7655349514 | K73: 0.7272182586 | M73: 4872.950584 | N73: 18348.96429 | O73: 1261.103907 | P73: 35703.25071 | Q73: 2998.078293 | R73: 655.3839817 | S73: 2452.620077 | T73: 1342.920563 | U73: 8883.876754 | V73: 7673.019613 | X73: 3.687792007 | Y73: 4.263611555 | Z73: 3.100750871 | AA73: 4.55270776 | AB73: 3.47684297 | AC73: 2.816495823 | AD73: 3.389630279 | AE73: 3.128050324 | AF73: 3.948602525 | AG73: 3.884966308 | AH73: 3.624945042
A74: 71 | B74: 0.7585997196 | C74: 0.1660646284 | D74: 0.213321592 | E74: 0.8944634514 | F74: 0.1566462995 | G74: 0.8433695907 | H74: 0.8502850988 | I74: 0.2290001043 | J74: 0.8833132333 | K74: 0.1927553453 | M74: 8642.498533 | N74: 1305.096406 | O74: 1567.193534 | P74: 17261.09759 | Q74: 1254.1209 | R74: 12662.86441 | S74: 13140.64095 | T74: 1657.327285 | U74: 15997.96306 | V74: 1451.58507 | X74: 3.936639314 | Y74: 3.115642594 | Z74: 3.195122631 | AA74: 4.237068408 | AB74: 3.098339405 | AC74: 4.102531957 | AD74: 4.118616549 | AE74: 3.21940828 | AF74: 4.20406469 | AG74: 3.161842493 | AH74: 3.638927632
A75: 72 | B75: 0.4355310685 | C75: 0.1612790079 | D75: 0.05695319838 | E75: 0.4311057827 | F75: 1.477000795e-05 | G75: 0.4054598778 | H75: 0.9347898123 | I75: 0.7877985838 | J75: 0.9982358951 | K75: 0.7734147716 | M75: 3125.850099 | N75: 1279.157769 | O75: 706.7218709 | P75: 3086.490929 | Q75: 79.74879 | R75: 2867.223714 | S75: 24321.766 | T75: 9740.825799 | U75: 177482.1639 | V75: 9172.080213 | X75: 3.494968148 | Y75: 3.106924113 | Z75: 2.849248532 | AA75: 3.489465005 | AB75: 1.901724102 | AC75: 3.45746158 | AD75: 4.385995106 | AE75: 3.988595777 | AF75: 5.249154715 | AG75: 3.962467844 | AH75: 3.588600492
A76: 73 | B76: 0.904425947 | C76: 0.4916309653 | D76: 0.3384876801 | E76: 0.2904868368 | F76: 0.4674206691 | G76: 0.9327864271 | H76: 0.1194331258 | I76: 0.1371363755 | J76: 0.3604238813 | K76: 0.1450183269 | M76: 18575.31703 | N76: 3669.74599 | O76: 2355.610047 | P76: 2032.294209 | Q76: 3424.170691 | R76: 23824.99091 | S76: 1054.398936 | T76: 1149.255177 | U76: 2514.529294 | V76: 1191.534008 | X76: 4.268936235 | Y76: 3.564636005 | Z76: 3.372103398 | AA76: 3.30798658 | AB76: 3.534555406 | AC76: 4.377032744 | AD76: 3.023004959 | AE76: 3.060416469 | AF76: 3.400456699 | AG76: 3.076106442 | AH76: 3.498523494
A77: 74 | B77: 0.017954846 | C77: 0.8692088033 | D77: 0.3769035241 | E77: 0.7283067362 | F77: 0.2851207625 | G77: 0.7803086146 | H77: 0.2709371188 | I77: 0.3178618909 | J77: 0.7920969148 | K77: 0.6208406478 | M77: 433.7491717 | N77: 14642.27713 | O77: 2639.209059 | P77: 7703.675064 | Q77: 1997.986683 | R77: 9437.399545 | S77: 1908.881562 | T77: 2212.85673 | U77: 9922.624634 | V77: 5376.651818 | X77: 2.637238658 | Y77: 4.165608622 | Z77: 3.421473793 | AA77: 3.886697956 | AB77: 3.300592589 | AC77: 3.974852342 | AD77: 3.280778983 | AE77: 3.344953297 | AF77: 3.996626563 | AG77: 3.730511913 | AH77: 3.573933472
A78: 75 | B78: 0.9791069404 | C78: 0.2095235889 | D78: 0.0146159701 | E78: 0.111861576 | F78: 0.4443364012 | G78: 0.06905856949 | H78: 0.05599071747 | I78: 0.379890989 | J78: 0.6718928962 | K78: 0.162862761 | M78: 49505.5171 | N78: 1545.633018 | O78: 402.3146976 | P78: 1013.72899 | Q78: 3205.58721 | R78: 777.7135296 | S78: 700.9323009 | T78: 2662.330345 | U78: 6331.436356 | V78: 1287.732958 | X78: 4.694653601 | Y78: 3.189106387 | Z78: 2.604565899 | AA78: 3.005921866 | AB78: 3.505907597 | AC78: 2.890819654 | AD78: 2.845676074 | AE78: 3.425261942 | AF78: 3.801502246 | AG78: 3.109825811 | AH78: 3.307324108
A79: 76 | B79: 0.9079537497 | C79: 0.4023070376 | D79: 0.9530578899 | E79: 0.9209929467 | F79: 0.5631351866 | G79: 0.6177556112 | H79: 0.4706503034 | I79: 0.05960848898 | J79: 0.6241237189 | K79: 0.6141290557 | M79: 19091.87161 | N79: 2841.252732 | O79: 30231.00476 | P79: 21296.32133 | Q79: 4516.048402 | R79: 5325.490574 | S79: 3455.920314 | T79: 722.5704261 | U79: 5431.825525 | V79: 5266.177902 | X79: 4.280848505 | Y79: 3.453509866 | Z79: 4.480452582 | AA79: 4.328304591 | AB79: 3.654758588 | AC79: 3.72635962 | AD79: 3.53856372 | AE79: 2.858880182 | AF79: 3.734945812 | AG79: 3.721495526 | AH79: 3.777811899
A80: 77 | B80: 0.9826574594 | C80: 0.2159604304 | D80: 0.8766248943 | E80: 0.7352028841 | F80: 0.1092690778 | G80: 0.08608958182 | H80: 0.7798720627 | I80: 0.2966908958 | J80: 0.7659787659 | K80: 0.03869392032 | M80: 55075.5506 | N80: 1582.234222 | O80: 15325.46782 | P80: 7902.485019 | Q80: 999.7702443 | R80: 873.5215717 | S80: 9420.213503 | T80: 2072.386854 | U80: 8899.704368 | V80: 591.4680531 | X80: 4.740958848 | Y80: 3.199270774 | Z80: 4.18541374 | AA80: 3.897763681 | AB80: 2.999900207 | AC80: 2.941273634 | AD80: 3.974060746 | AE80: 3.316470829 | AF80: 3.94937558 | AG80: 2.771931292 | AH80: 3.597641933
A81: 78 | B81: 0.2041746542 | C81: 0.1868349131 | D81: 0.5463401595 | E81: 0.4322934735 | F81: 0.06338636324 | G81: 0.7964419974 | H81: 0.4617251212 | I81: 0.4156673464 | J81: 0.03408048739 | K81: 0.3731065636 | M81: 1515.436319 | N81: 1418.784288 | O81: 4298.534487 | P81: 3097.008451 | Q81: 744.8333132 | R81: 10112.46272 | S81: 3368.898845 | T81: 2952.748592 | U81: 559.8592953 | V81: 2610.05731 | X81: 3.180537691 | Y81: 3.15191637 | Z81: 3.633320415 | AA81: 3.49094239 | AB81: 2.872059093 | AC81: 4.004856934 | AD81: 3.527487971 | AE81: 3.470226471 | AF81: 2.748078893 | AG81: 3.416650043 | AH81: 3.349607627
A82: 79 | B82: 0.9555021803 | C82: 0.8688171953 | D82: 0.9012423724 | E82: 0.1470013761 | F82: 0.05197454132 | G82: 0.5836109821 | H82: 0.9490119518 | I82: 0.9173065097 | J82: 0.6739252447 | K82: 0.678118466 | M82: 31286.42142 | N82: 14607.8579 | O82: 18133.45404 | P82: 1202.186291 | Q82: 676.4904475 | R82: 4799.775129 | S82: 28652.82661 | T82: 20619.93551 | U82: 6374.284345 | V82: 6464.038 | X82: 4.495355891 | Y82: 4.164586535 | Z82: 4.258480536 | AA82: 3.079971771 | AB82: 2.830261668 | AC82: 3.681220891 | AD82: 4.457167472 | AE82: 4.314287303 | AF82: 3.804431433 | AG82: 3.810503901 | AH82: 3.88962674
A83: 80 | B83: 0.1992650192 | C83: 0.3596790814 | D83: 0.1966827113 | E83: 0.01629342777 | F83: 0.03691941482 | G83: 0.3833390295 | H83: 0.6762739865 | I83: 0.503324987 | J83: 0.7696467769 | K83: 0.864032915 | M83: 1487.885021 | N83: 2509.005236 | O83: 1473.454718 | P83: 418.4672088 | Q83: 579.4679596 | R83: 2689.221616 | S83: 6424.331614 | T83: 3794.990311 | U83: 9032.340102 | V83: 14199.73162 | X83: 3.172569372 | Y83: 3.399501568 | Z83: 3.168336794 | AA83: 2.621661432 | AB83: 2.763029428 | AC83: 3.429626593 | AD83: 3.80782795 | AE83: 3.579210671 | AF83: 3.955800282 | AG83: 4.152280136 | AH83: 3.404984423
A84: 81 | B84: 0.9490670556 | C84: 0.1898586347 | D84: 0.714209306 | E84: 0.5686040534 | F84: 0.8116383327 | G84: 0.4542536764 | H84: 0.6776003283 | I84: 0.982131907 | J84: 0.04181800203 | K84: 0.093422366 | M84: 28673.0551 | N84: 1435.51208 | O84: 7320.967134 | P84: 4589.744914 | Q84: 10829.37385 | R84: 3297.74723 | S84: 6452.847726 | T84: 54150.36581 | U84: 612.1719252 | V84: 913.8264524 | X84: 4.457473969 | Y84: 3.157006851 | Z84: 3.864568457 | AA84: 3.661788549 | AB84: 4.034603346 | AC84: 3.518217364 | AD84: 3.809751417 | AE84: 4.733601395 | AF84: 2.786873409 | AG84: 2.960863725 | AH84: 3.698474848
A85: 82 | B85: 0.4907455064 | C85: 0.7816247075 | D85: 0.6622980485 | E85: 0.9593484266 | F85: 0.4348681327 | G85: 0.9981426493 | H85: 0.6093525676 | I85: 0.2446865933 | J85: 0.3558960473 | K85: 0.2546501441 | M85: 3660.445652 | N85: 9489.535863 | O85: 6134.677275 | P85: 33134.5246 | Q85: 3119.923894 | R85: 173235.8673 | S85: 5189.390148 | T85: 1749.506539 | U85: 2481.090203 | V85: 1809.201935 | X85: 3.563533963 | Y85: 3.977244971 | Z85: 3.787791721 | AA85: 4.520280744 | AB85: 3.494144 | AC85: 5.238637815 | AD85: 3.715116323 | AE85: 3.24291557 | AF85: 3.394642554 | AG85: 3.257487044 | AH85: 3.81917947
A86: 83 | B86: 0.553777229 | C86: 0.4043253659 | D86: 0.1197440131 | E86: 0.4411480493 | F86: 0.3059942363 | G86: 0.2417187129 | H86: 0.020344479 | I86: 0.1560440337 | J86: 0.2248129584 | K86: 0.2821243208 | M86: 4393.260614 | N86: 2857.854585 | O86: 1056.066474 | P86: 3176.492836 | Q86: 2133.399496 | R86: 1731.901891 | S86: 454.6936926 | T86: 1250.870834 | U86: 1633.070186 | V86: 1978.974598 | X86: 3.642786967 | Y86: 3.456040127 | Z86: 3.023691256 | AA86: 3.50194788 | AB86: 3.329072188 | AC86: 3.238523286 | AD86: 2.65771893 | AE86: 3.097212466 | AF86: 3.21300485 | AG86: 3.29644022 | AH86: 3.245643817
A87: 84 | B87: 0.6778335189 | C87: 0.04338923726 | D87: 0.7660667521 | E87: 0.1110252762 | F87: 0.4485102278 | G87: 0.1439468269 | H87: 0.9046619308 | I87: 0.1412342543 | J87: 0.7071457994 | K87: 0.9512700917 | M87: 6457.880449 | N87: 622.4005557 | O87: 8902.84778 | P87: 1009.228344 | Q87: 3244.063607 | R87: 1185.781211 | S87: 18608.96135 | T87: 1171.225813 | U87: 7140.203753 | V87: 29509.55345 | X87: 3.810090001 | Y87: 2.794069972 | Z87: 3.949528948 | AA87: 3.003989439 | AB87: 3.511089361 | AC87: 3.074004565 | AD87: 4.269722134 | AE87: 3.068640636 | AF87: 3.853710605 | AG87: 4.469962638 | AH87: 3.58048083
A88: 85 | B88: 0.1172710352 | C88: 0.6301764104 | D88: 0.8228248453 | E88: 0.1578728067 | F88: 0.9940485946 | G88: 0.4403699988 | H88: 0.8112832313 | I88: 0.7494105075 | J88: 0.370691863 | K88: 0.4440281935 | M88: 1042.797536 | N88: 5535.56945 | O88: 11417.33616 | P88: 1260.742921 | Q88: 97871.08538 | R88: 3169.431543 | S88: 10811.60128 | T88: 8338.93115 | U88: 2591.652668 | V88: 3202.763586 | X88: 3.018199996 | Y88: 3.743162304 | Z88: 4.057564788 | AA88: 3.100626538 | AB88: 4.990654405 | AC88: 3.500981376 | AD88: 4.033890021 | AE88: 3.921110388 | AF88: 3.413576797 | AG88: 3.505524882 | AH88: 3.72852915
A89: 86 | B89: 0.7704403713 | C89: 0.8803931129 | D89: 0.00588289085 | E89: 0.3216171087 | F89: 0.1373442984 | G89: 0.3815401974 | H89: 0.3951228854 | I89: 0.3074883982 | J89: 0.7207643597 | K89: 0.1887495997 | M89: 9061.472645 | N89: 15697.26973 | O89: 297.4366519 | P89: 2238.395276 | Q89: 1150.369522 | R89: 2675.16486 | S89: 2782.8345 | T89: 2143.301079 | U89: 7495.133134 | V89: 1429.370867 | X89: 3.957198784 | Y89: 4.195824121 | Z89: 2.473394484 | AA89: 3.349936781 | AB89: 3.060837367 | AC89: 3.427350551 | AD89: 3.444487379 | AE89: 3.331083183 | AF89: 3.874779352 | AG89: 3.155144926 | AH89: 3.427003693
A90: 87 | B90: 0.4625300896 | C90: 0.5269394284 | D90: 0.8358328697 | E90: 0.1401740365 | F90: 0.09489117078 | G90: 0.6321377066 | H90: 0.9867218099 | I90: 0.8374190717 | J90: 0.8259339517 | K90: 0.715167001 | M90: 3376.655622 | N90: 4062.53387 | O90: 12177.97109 | P90: 1165.539623 | Q90: 921.8508189 | R90: 5569.764555 | S90: 63934.83147 | T90: 12277.1274 | U90: 11591.09774 | V90: 7346.018428 | X90: 3.52848677 | Y90: 3.608796995 | Z90: 4.085574939 | AA90: 3.066527042 | AB90: 2.964660646 | AC90: 3.745836837 | AD90: 4.805737525 | AE90: 4.089096762 | AF90: 4.064124568 | AG90: 3.866052013 | AH90: 3.78248941
A91: 88 | B91: 0.187209125 | C91: 0.3993500031 | D91: 0.3072184012 | E91: 0.1762254729 | F91: 0.01329674872 | G91: 0.8696208822 | H91: 0.7617545903 | I91: 0.3047537991 | J91: 0.4076705905 | K91: 0.3125541388 | M91: 1420.851798 | N91: 2817.080814 | O91: 2141.509708 | P91: 1360.465651 | Q91: 389.0070124 | R91: 14678.66699 | S91: 8750.936631 | T91: 2125.20119 | U91: 2885.557894 | V91: 2177.088209 | X91: 3.152548781 | Y91: 3.449799306 | Z91: 3.330720048 | AA91: 3.133687581 | AB91: 2.58995743 | AC91: 4.166686618 | AD91: 3.942054539 | AE91: 3.32740005 | AF91: 3.460229792 | AG91: 3.337876026 | AH91: 3.389096017
A92: 89 | B92: 0.2127221337 | C92: 0.3664681882 | D92: 0.6805632844 | E92: 0.2578383993 | F92: 0.2555506335 | G92: 0.7175531572 | H92: 0.3315893788 | I92: 0.05678161018 | J92: 0.3613332672 | K92: 0.4746677758 | M92: 1563.783761 | N92: 2559.707625 | O92: 6517.225441 | P92: 1828.504216 | Q92: 1814.6436 | R92: 7409.016654 | S92: 2307.179809 | T92: 705.6915331 | U92: 2521.286738 | V92: 3495.836235 | X92: 3.194176699 | Y92: 3.408190362 | Z92: 3.814062744 | AA92: 3.262095966 | AB92: 3.258791341 | AC92: 3.869760571 | AD92: 3.363081442 | AE92: 2.848614907 | AF92: 3.401622239 | AG92: 3.54355108 | AH92: 3.396394735
A93: 90 | B93: 0.4187387569 | C93: 0.3036335138 | D93: 0.6533611285 | E93: 0.6207072305 | F93: 0.100326343 | G93: 0.5617093916 | H93: 0.6960351224 | I93: 0.5551185195 | J93: 0.9526618068 | K93: 0.944705271 | M93: 2978.925911 | N93: 2117.813943 | O93: 5959.199327 | P93: 5374.425656 | Q93: 951.4269598 | R93: 4497.073601 | S93: 6869.366965 | T93: 4410.609758 | U93: 30067.67119 | V93: 27166.33142 | X93: 3.474059702 | Y93: 3.325887803 | Z93: 3.775187912 | AA93: 3.73033206 | AB93: 2.978375454 | AC93: 3.652929995 | AD93: 3.836916717 | AE93: 3.644498634 | AF93: 4.478099792 | AG93: 4.434030995 | AH93: 3.733031906
A94: 91 | B94: 0.5423151026 | C94: 0.2280939206 | D94: 0.04221903747 | E94: 0.3861200708 | F94: 0.6711433314 | G94: 0.9270437887 | H94: 0.655193016 | I94: 0.2802348512 | J94: 0.2880601728 | K94: 0.7465020924 | M94: 4248.280451 | N94: 1652.065624 | O94: 614.7937365 | P94: 2711.073679 | Q94: 6315.739006 | R94: 22516.63852 | S94: 5994.582061 | T94: 1967.038708 | U94: 2016.737711 | V94: 8246.465599 | X94: 3.628213179 | Y94: 3.218027294 | Z94: 2.788729434 | AA94: 3.433141321 | AB94: 3.800424175 | AC94: 4.352503556 | AD94: 3.77775891 | AE94: 3.293812906 | AF94: 3.304649419 | AG94: 3.916267852 | AH94: 3.551352805
A95: 92 | B95: 0.3888557413 | C95: 0.1409416243 | D95: 0.1363268025 | E95: 0.07198931901 | F95: 0.5916878629 | G95: 0.759005846 | H95: 0.2254533231 | I95: 0.5673770242 | J95: 0.7968887194 | K95: 0.1672080002 | M95: 2732.713045 | N95: 1169.656225 | O95: 1144.916689 | P95: 794.4806061 | Q95: 4917.836291 | R95: 8656.332837 | S95: 1636.770913 | T95: 4573.082073 | U95: 10132.33865 | V95: 1311.305994 | X95: 3.43659403 | Y95: 3.068058236 | Z95: 3.058773886 | AA95: 2.9000833 | AB95: 3.691774067 | AC95: 3.937333947 | AD95: 3.213987899 | AE95: 3.660208996 | AF95: 4.005709697 | AG95: 3.117704046 | AH95: 3.40902281
A96: 93 | B96: 0.2108645422 | C96: 0.3432468315 | D96: 0.5839782354 | E96: 0.1276043843 | F96: 0.145150029 | G96: 0.05104033939 | H96: 0.3053549722 | I96: 0.02352260382 | J96: 0.06784679587 | K96: 0.5912098567 | M96: 1553.233785 | N96: 2389.441216 | O96: 4805.06464 | P96: 1098.192577 | Q96: 1192.241243 | R96: 670.7342954 | S96: 2129.171997 | T96: 481.0153932 | U96: 770.7390522 | V96: 4910.74669 | X96: 3.191236828 | Y96: 3.378296351 | Z96: 3.681699234 | AA96: 3.040678504 | AB96: 3.076364141 | AC96: 2.826550513 | AD96: 3.328210746 | AE96: 2.682158975 | AF96: 2.886907365 | AG96: 3.691147533 | AH96: 3.178325019
A97: 94 | B97: 0.8967191114 | C97: 0.412744845 | D97: 0.3904496276 | E97: 0.7386085589 | F97: 0.5748195969 | G97: 0.6893782725 | H97: 0.5796759724 | I97: 0.9408038386 | J97: 0.05603458036 | K97: 0.927454207 | M97: 17541.66332 | N97: 2928.032928 | O97: 2745.387316 | P97: 8003.699737 | Q97: 4675.314216 | R97: 6714.46281 | S97: 4743.558419 | T97: 25961.97782 | U97: 701.1966897 | V97: 22604.93433 | X97: 4.244070771 | Y97: 3.466575956 | Z97: 3.438603623 | AA97: 3.903290788 | AB97: 3.669810804 | AC97: 3.827011273 | AD97: 3.676104253 | AE97: 4.414337775 | AF97: 2.845839857 | AG97: 4.35420325 | AH97: 3.783984835
A98: 95 | B98: 0.5347249536 | C98: 0.8863681622 | D98: 0.01818532611 | E98: 0.1322741807 | F98: 0.8367686839 | G98: 0.3079747232 | H98: 0.495391009 | I98: 0.14363526 | J98: 0.3816593556 | K98: 0.4366129112 | M98: 4155.381547 | N98: 16325.12062 | O98: 435.8193588 | P98: 1123.205229 | Q98: 12236.2901 | R98: 2146.530128 | S98: 3709.522255 | T98: 1184.108797 | U98: 2676.094135 | V98: 3135.543927 | X98: 3.618610907 | Y98: 4.212856399 | Z98: 2.639306517 | AA98: 3.050459117 | AB98: 4.087649765 | AC98: 3.331736988 | AD98: 3.569317981 | AE98: 3.073391607 | AF98: 3.427501386 | AG98: 3.496312889 | AH98: 3.450714356
A99: 96 | B99: 0.6104581792 | C99: 0.9581283784 | D99: 0.4960080416 | E99: 0.4500753808 | F99: 0.2904233539 | G99: 0.5194925254 | H99: 0.8645544795 | I99: 0.7175696444 | J99: 0.9409052519 | K99: 0.8543898111 | M99: 5207.031649 | N99: 32521.03856 | O99: 3716.093803 | P99: 3258.607479 | Q99: 2031.886354 | R99: 3975.941793 | S99: 14243.14502 | T99: 7409.454858 | U99: 25991.76678 | V99: 13440.66569 | X99: 3.716590217 | Y99: 4.512164406 | Z99: 3.570086668 | AA99: 3.51303205 | AB99: 3.307899414 | AC99: 3.599440018 | AD99: 4.153605896 | AE99: 3.869786256 | AF99: 4.414835801 | AG99: 4.128420779 | AH99: 3.878586151
A100: 97 | B100: 0.3588893147 | C100: 0.9074954772 | D100: 0.01709960348 | E100: 0.3362683557 | F100: 0.4593993821 | G100: 0.228789021 | H100: 0.3853670817 | I100: 0.03941216168 | J100: 0.800317185 | K100: 0.1045566726 | M100: 2503.15784 | N100: 19023.08115 | O100: 425.9640924 | P100: 2339.951503 | Q100: 3346.587991 | R100: 1656.101058 | S100: 2705.142589 | T100: 596.2738235 | U100: 10287.1828 | V100: 974.3378798 | X100: 3.398488236 | Y100: 4.27928086 | Z100: 2.629372991 | AA100: 3.369206856 | AB100: 3.524602248 | AC100: 3.219086835 | AD100: 3.432190162 | AE100: 2.775445744 | AF100: 4.012296457 | AG100: 2.988709587 | AH100: 3.362867998
A101: 98 | B101: 0.9646528276 | C101: 0.9821909293 | D101: 0.2656906193 | E101: 0.1785278601 | F101: 0.9909709134 | G101: 0.2846648386 | H101: 0.8686865827 | I101: 0.2096537792 | J101: 0.1459209974 | K101: 0.05828929645 | M101: 36157.14389 | N101: 54252.28077 | O101: 1876.475349 | P101: 1373.074672 | Q101: 78757.33217 | R101: 1995.087246 | S101: 14596.41318 | T101: 1546.370413 | U101: 1196.381942 | V101: 714.7186549 | X101: 4.558194118 | Y101: 4.734418001 | Z101: 3.273342864 | AA101: 3.137694156 | AB101: 4.896290996 | AC101: 3.299961892 | AD101: 4.164246148 | AE101: 3.189313532 | AF101: 3.077869849 | AG101: 2.854135118 | AH101: 3.718546667
A102: 99 | B102: 0.6535776223 | C102: 0.7338760265 | D102: 0.4599242498 | E102: 0.4891997876 | F102: 0.3908687944 | G102: 0.08425193257 | H102: 0.1523697325 | I102: 0.4684315843 | J102: 0.4149111364 | K102: 0.3380374592 | M102: 5963.365461 | N102: 7863.603875 | O102: 3351.610097 | P102: 3644.270555 | Q102: 2748.728642 | R102: 863.3477597 | S102: 1231.0646 | T102: 3434.076605 | U102: 2946.335413 | V102: 2352.427482 | X102: 3.775491426 | Y102: 3.895621628 | Z102: 3.52525349 | AA102: 3.561610612 | AB102: 3.439131868 | AC102: 2.936185766 | AD102: 3.090280843 | AE102: 3.535809979 | AF102: 3.469282186 | AG102: 3.371516244 | AH102: 3.460018404
A103: 100 | B103: 0.1800631726 | C103: 0.6955809887 | D103: 0.07689560613 | E103: 0.9754489728 | F103: 0.1697114312 | G103: 0.9994567149 | H103: 0.4955682506 | I103: 0.4812832286 | J103: 0.1311883874 | K103: 0.6808949791 | M103: 1381.496754 | N103: 6858.629602 | O103: 822.2614785 | P103: 45053.70739 | Q103: 1324.919737 | R103: 302805.4251 | S103: 3711.408638 | T103: 3562.606987 | U103: 1117.389362 | V103: 6524.49108 | X103: 3.140349869 | Y103: 3.83623735 | Z103: 2.915009945 | AA103: 4.653730534 | AB103: 3.12218957 | AC103: 5.481163652 | AD103: 3.569538774 | AE103: 3.551767915 | AF103: 3.048204532 | AG103: 3.814546642 | AH103: 3.713273878
A104: 101 | B104: 0.2495108736 | C104: 0.7124979582 | D104: 0.1629516992 | E104: 0.01014985391 | F104: 0.2601436263 | G104: 0.7953196951 | H104: 0.6909382391 | I104: 0.4260814962 | J104: 0.1094088009 | K104: 0.2323743588 | M104: 1778.294305 | N104: 7276.529698 | O104: 1288.214768 | P104: 354.4703234 | Q104: 1842.52293 | R104: 10062.82713 | S104: 6750.290138 | T104: 3042.366161 | U104: 1000.52309 | V104: 1676.978624 | X104: 3.250003638 | Y104: 3.861924306 | Z104: 3.109988273 | AA104: 2.549579881 | AB104: 3.265412901 | AC104: 4.002720012 | AD104: 3.82932244 | AE104: 3.483211482 | AF104: 3.000227116 | AG104: 3.224527527 | AH104: 3.357691758
A105: 102 | B105: 0.6792866925 | C105: 0.6664886796 | D105: 0.006358308204 | E105: 0.006952537338 | F105: 0.6137889367 | G105: 0.07055131467 | H105: 0.4467055942 | I105: 0.6550666006 | J105: 0.2274337019 | K105: 0.5539479768 | M105: 6489.373051 | N105: 6219.512502 | O105: 304.6836975 | P105: 313.3472893 | Q105: 5260.660446 | R105: 786.2709749 | S105: 3227.372925 | T105: 5992.130817 | U105: 1648.23631 | V105: 4395.464613 | X105: 3.812202741 | Y105: 3.793756345 | Z105: 2.483849217 | AA105: 2.496025942 | AB105: 3.721040271 | AC105: 2.895572244 | AD105: 3.508849151 | AE105: 3.777581286 | AF105: 3.217019477 | AG105: 3.643004788 | AH105: 3.334890146
A106: 103 | B106: 0.873329968 | C106: 0.07783119117 | D106: 0.9133057825 | E106: 0.7619627317 | F106: 0.4316950341 | G106: 0.8696443344 | H106: 0.4198793221 | I106: 0.2523610064 | J106: 0.3539149337 | K106: 0.437844797 | M106: 15014.35397 | N106: 827.5220661 | O106: 19935.72109 | P106: 8758.169951 | Q106: 3091.704817 | R106: 14680.74332 | S106: 2988.700244 | T106: 1795.403922 | U106: 2466.565974 | V106: 3146.616921 | X106: 4.17650665 | Y106: 2.917779583 | Z106: 4.299631949 | AA106: 3.942413368 | AB106: 3.490198023 | AC106: 4.166748045 | AD106: 3.475482359 | AE106: 3.25416217 | AF106: 3.392092736 | AG106: 3.497843874 | AH106: 3.661285876
A107: 104 | B107: 0.0929628227 | C107: 0.6237974506 | D107: 0.3270687418 | E107: 0.9412986524 | F107: 0.2826216978 | G107: 0.519612371 | H107: 0.1958513478 | I107: 0.1152469178 | J107: 0.3826319065 | K107: 0.5300996156 | M107: 911.3128186 | N107: 5426.308347 | O107: 2275.821985 | P107: 26108.05306 | Q107: 1982.123288 | R107: 3977.318662 | S107: 1468.817593 | T107: 1031.928527 | U107: 2683.688658 | V107: 4099.929842 | X107: 2.959667479 | Y107: 3.734504469 | Z107: 3.357138288 | AA107: 4.416774487 | AB107: 3.297130664 | AC107: 3.599590388 | AD107: 3.166967866 | AE107: 3.013649618 | AF107: 3.428732131 | AG107: 3.612776425 | AH107: 3.458693181
A108: 105 | B108: 0.8620612512 | C108: 0.288289659 | D108: 0.6319117873 | E108: 0.1174811637 | F108: 0.1375494228 | G108: 0.209112183 | H108: 0.5525388053 | I108: 0.5126217978 | J108: 0.3800940163 | K108: 0.004688324076 | M108: 14037.90439 | N108: 2018.205893 | O108: 5565.810978 | P108: 1043.925409 | Q108: 1151.468909 | R108: 1543.303591 | S108: 4377.314821 | T108: 3897.895028 | U108: 2663.907626 | V108: 277.6887969 | X108: 4.14730228 | Y108: 3.30496547 | Z108: 3.745528453 | AA108: 3.018669468 | AB108: 3.061252216 | AC108: 3.188451367 | AD108: 3.641207783 | AE108: 3.590830139 | AF108: 3.425519161 | AG108: 2.443558359 | AH108: 3.35672847
A109: 106 | B109: 0.3917034976 | C109: 0.6467282345 | D109: 0.3112071978 | E109: 0.5227328126 | F109: 0.2449904755 | G109: 0.1595349641 | H109: 0.07756606328 | I109: 0.440664143 | J109: 0.7991508323 | K109: 0.9946574985 | M109: 2755.392565 | N109: 5833.520508 | O109: 2168.071439 | P109: 4013.35911 | Q109: 1751.313574 | R109: 1269.724374 | S109: 826.0324359 | T109: 3172.099316 | U109: 10234.043 | V109: 103408.1605 | X109: 3.440183482 | Y109: 3.765930729 | Z109: 3.336073588 | AA109: 3.603508022 | AB109: 3.243363914 | AC109: 3.103709456 | AD109: 2.916997101 | AE109: 3.501346776 | AF109: 4.010047237 | AG109: 5.014554813 | AH109: 3.593571512
A110: 107 | B110: 0.1551600873 | C110: 0.8321630552 | D110: 0.7644069257 | E110: 0.8197348491 | F110: 0.3517000978 | G110: 0.9531544433 | H110: 0.5659904791 | I110: 0.8573679762 | J110: 0.06172382188 | K110: 0.7054725011 | M110: 1246.102583 | N110: 11954.14959 | O110: 8843.858803 | P110: 11249.27019 | Q110: 2450.404107 | R110: 30271.13241 | S110: 4554.342545 | T110: 13666.63921 | U110: 735.0750348 | V110: 7098.38602 | X110: 3.095553796 | Y110: 4.077518686 | Z110: 3.9466418 | AA110: 4.051124348 | AB110: 3.389237712 | AC110: 4.481028668 | AD110: 3.658425692 | AE110: 4.13566173 | AF110: 2.866331673 | AG110: 3.851159613 | AH110: 3.755268372
A111: 108 | B111: 0.2750666547 | C111: 0.1371099032 | D111: 0.3614648544 | E111: 0.7031612713 | F111: 0.7783082532 | G111: 0.3589564286 | H111: 0.6384899816 | I111: 0.5107810567 | J111: 0.6297432442 | K111: 0.5325768659 | M111: 1934.594858 | N111: 1149.113303 | O111: 2522.265691 | P111: 7041.237947 | Q111: 9359.084806 | R111: 2503.654342 | S111: 5682.525205 | T111: 3877.277495 | U111: 5528.055874 | V111: 4129.521591 | X111: 3.286590029 | Y111: 3.060362852 | Z111: 3.401790832 | AA111: 3.847649021 | AB111: 3.971233383 | AC111: 3.398574369 | AD111: 3.754541371 | AE111: 3.588526884 | AF111: 3.742572424 | AG111: 3.615899741 | AH111: 3.566774091
A112: 109 | B112: 0.593409784 | C112: 0.0349619261 | D112: 0.4390555957 | E112: 0.1752417847 | F112: 0.01037379859 | G112: 0.4874472974 | H112: 0.0389758093 | I112: 0.3326977158 | J112: 0.8571818359 | K112: 0.7433475268 | M112: 4943.484285 | N112: 566.0050012 | O112: 3157.536596 | P112: 1355.085934 | Q112: 357.0861102 | R112: 3626.023654 | S112: 593.3575903 | T112: 2314.913359 | U112: 13652.30299 | V112: 8148.039893 | X112: 3.694033158 | Y112: 2.752820269 | Z112: 3.499348393 | AA112: 3.131966837 | AB112: 2.552772958 | AC112: 3.559430633 | AD112: 2.773316502 | AE112: 3.364534741 | AF112: 4.135205918 | AG112: 3.911053147 | AH112: 3.337448256
A113: 110 | B113: 0.8789673168 | C113: 0.2160507611 | D113: 0.4437286376 | E113: 0.3300110178 | F113: 0.8884639888 | G113: 0.06085464284 | H113: 0.03694054078 | I113: 0.5898993491 | J113: 0.4984627762 | K113: 0.7985426018 | M113: 15554.50418 | N113: 1582.749979 | O113: 3200.021525 | P113: 2296.197665 | Q113: 16557.45347 | R113: 729.949346 | S113: 579.6119294 | T113: 4891.376774 | U113: 3742.362133 | V113: 10206.52206 | X113: 4.191856172 | Y113: 3.199412316 | Z113: 3.5051529 | AA113: 3.361009271 | AB113: 4.218993543 | AC113: 2.863292724 | AD113: 2.763137315 | AE113: 3.689431117 | AF113: 3.57314581 | AG113: 4.008877779 | AH113: 3.537430895
A114: 111 | B114: 0.7346264378 | C114: 0.367854316 | D114: 0.2118619807 | E114: 0.1286869885 | F114: 0.4461165324 | G114: 0.9830168387 | H114: 0.9648503511 | I114: 0.9042344589 | J114: 0.6510248614 | K114: 0.2385800855 | M114: 7885.555748 | N114: 2570.156944 | O114: 1558.895595 | P114: 1103.991429 | Q114: 3221.9429 | R114: 55732.06868 | S114: 36282.58108 | T114: 18548.10921 | U114: 5914.501317 | V114: 1713.369726 | X114: 3.896832306 | Y114: 3.409959644 | Z114: 3.19281703 | AA114: 3.042965702 | AB114: 3.508117839 | AC114: 4.746105164 | AD114: 4.559698174 | AE114: 4.268299644 | AF114: 3.771918133 | AG114: 3.233851089 | AH114: 3.763056473
A115: 112 | B115: 0.5564541962 | C115: 0.9020492808 | D115: 0.516886299 | E115: 0.788299296 | F115: 0.3060001329 | G115: 0.4883468476 | H115: 0.354413463 | I115: 0.6325567681 | J115: 0.4028023688 | K115: 0.2353230189 | M115: 4427.968398 | N115: 18243.37797 | O115: 3946.132172 | P115: 9761.706579 | Q115: 2133.438515 | R115: 3635.377603 | S115: 2470.214805 | T115: 5577.108292 | U115: 2845.3193 | V115: 1694.228981 | X115: 3.646204513 | Y115: 4.261105256 | Z115: 3.596171627 | AA115: 3.989525749 | AB115: 3.329080131 | AC115: 3.560549527 | AD115: 3.39273472 | AE115: 3.746409077 | AF115: 3.45413101 | AG115: 3.228972106 | AH115: 3.620488372
A116: 113 | B116: 0.7060174092 | C116: 0.8235125145 | D116: 0.3689979892 | E116: 0.8128204859 | F116: 0.1092923145 | G116: 0.3314669995 | H116: 0.1992485088 | I116: 0.5665100591 | J116: 0.6959354157 | K116: 0.02776530031 | M116: 7111.962705 | N116: 11455.35909 | O116: 2578.803773 | P116: 10888.91727 | Q116: 999.895451 | R116: 2306.326999 | S116: 1487.792627 | T116: 4561.353728 | U116: 6867.007369 | V116: 514.0326095 | X116: 3.851989471 | Y116: 4.059008707 | Z116: 3.411418297 | AA116: 4.036984698 | AB116: 2.999954593 | AC116: 3.362920883 | AD116: 3.172542402 | AE116: 3.659093753 | AF116: 3.836767513 | AG116: 2.710990671 | AH116: 3.510167099
A117: 114 | B117: 0.1623305194 | C117: 0.898081677 | D117: 0.6264087238 | E117: 0.2981278291 | F117: 0.6242486219 | G117: 0.5278185653 | H117: 0.9438597026 | I117: 0.1470774653 | J117: 0.8875548667 | K117: 0.2109623468 | M117: 1284.850194 | N117: 17715.71321 | O117: 5470.678276 | P117: 2081.739696 | Q117: 5433.939634 | R117: 4072.897644 | S117: 26894.69887 | T117: 1202.595167 | U117: 16455.85979 | V117: 1553.788649 | X117: 3.108852494 | Y117: 4.248358641 | Z117: 3.738041175 | AA117: 3.318426424 | AB117: 3.735114809 | AC117: 3.609903496 | AD117: 4.429666686 | AE117: 3.080119454 | AF117: 4.216320578 | AG117: 3.191391945 | AH117: 3.66761957
A118: 115 | B118: 0.7541095852 | C118: 0.4394337783 | D118: 0.944935264 | E118: 0.3832784308 | F118: 0.7817940498 | G118: 0.3187720501 | H118: 0.6478648722 | I118: 0.3145054144 | J118: 0.458261514 | K118: 0.6237132153 | M118: 8491.941869 | N118: 3160.954658 | O118: 27241.29314 | P118: 2688.747087 | Q118: 9496.279948 | R118: 2219.028687 | S118: 5854.791219 | T118: 2190.193501 | U118: 3335.726284 | V118: 5424.88516 | X118: 3.929007013 | Y118: 3.499818266 | Z118: 4.43522772 | AA118: 3.429549953 | AB118: 3.977553509 | AC118: 3.346162917 | AD118: 3.767511413 | AE118: 3.340482486 | AF118: 3.523190407 | AG118: 3.734390549 | AH118: 3.698289423
A119: 116 | B119: 0.3844607474 | C119: 0.4862135194 | D119: 0.4506196688 | E119: 0.782603029 | F119: 0.5043595953 | G119: 0.3845049593 | H119: 0.3993507898 | I119: 0.02503877212 | J119: 0.5647060136 | K119: 0.2415417031 | M119: 2698.017915 | N119: 3613.235721 | O119: 3263.680087 | P119: 9528.610935 | Q119: 3806.292784 | R119: 2698.365103 | S119: 2817.087221 | T119: 493.0621887 | U119: 4537.066732 | V119: 1730.854412 | X119: 3.431044829 | Y119: 3.557896295 | Z119: 3.513707582 | AA119: 3.979029595 | AB119: 3.580502192 | AC119: 3.431100712 | AD119: 3.449800294 | AE119: 2.692901699 | AF119: 3.656775167 | AG119: 3.238260539 | AH119: 3.45310189
A120: 117 | B120: 0.8873762926 | C120: 0.3084396124 | D120: 0.918636637 | E120: 0.4261613616 | F120: 0.8368191137 | G120: 0.7776300983 | H120: 0.5315418685 | I120: 0.3637911036 | J120: 0.9813564173 | K120: 0.05661520331 | M120: 16436.05173 | N120: 2149.61973 | O120: 20858.63277 | P120: 3043.06296 | Q120: 12239.44753 | R120: 9332.785213 | S120: 4117.128236 | T120: 2539.620582 | U120: 52855.37091 | V120: 704.6915637 | X120: 4.215797499 | Y120: 3.33236164 | Z120: 4.319285838 | AA120: 3.483310938 | AB120: 4.087761815 | AC120: 3.970011271 | AD120: 3.614594394 | AE120: 3.404768838 | AF120: 4.723089125 | AG120: 2.847999072 | AH120: 3.799898043
A121: 118 | B121: 0.2173582334 | C121: 0.7179781746 | D121: 0.1397981012 | E121: 0.8550498121 | F121: 0.5045367041 | G121: 0.8513457869 | H121: 0.3830152105 | I121: 0.9491325648 | J121: 0.6117068316 | K121: 0.07242954985 | M121: 1590.221906 | N121: 7420.325819 | O121: 1163.523736 | P121: 13490.12653 | Q121: 3808.231289 | R121: 13216.94355 | S121: 2686.686695 | T121: 28697.146 | U121: 5227.05103 | V121: 796.9874913 | X121: 3.201457732 | Y121: 3.870422975 | Z121: 3.065775247 | AA121: 4.130016023 | AB121: 3.580723317 | AC121: 4.121131035 | AD121: 3.429217025 | AE121: 4.457838707 | AF121: 3.71825674 | AG121: 2.901451505 | AH121: 3.647629031
A122: 119 | B122: 0.1180715568 | C122: 0.8835073791 | D122: 0.9023149715 | E122: 0.7077224337 | F122: 0.4108500712 | G122: 0.6758771984 | H122: 0.6250547386 | I122: 0.7901459379 | J122: 0.2443888802 | K122: 0.5366454771 | M122: 1047.093933 | N122: 16018.36308 | O122: 18279.87479 | P122: 7154.701946 | Q122: 2912.107825 | R122: 6415.836589 | S122: 5447.610761 | T122: 9839.387163 | U122: 1747.737002 | V122: 4178.661342 | X122: 3.019985643 | Y122: 4.204618133 | Z122: 4.261973217 | AA122: 3.854591546 | AB122: 3.464207451 | AC122: 3.807253294 | AD122: 3.736206069 | AE122: 3.99296805 | AF122: 3.242476081 | AG122: 3.621037175 | AH122: 3.720531666
A123: 120 | B123: 0.3880267818 | C123: 0.4226451658 | D123: 0.986411859 | E123: 0.5074854932 | F123: 0.6510500989 | G123: 0.6169104331 | H123: 0.04581667971 | I123: 0.1109709427 | J123: 0.1486796076 | K123: 0.2841833106 | M123: 2726.140738 | N123: 3012.524264 | O123: 63126.36109 | P123: 3840.666557 | Q123: 5914.981637 | R123: 5311.588254 | S123: 637.9852006 | T123: 1008.93587 | U123: 1211.207235 | V123: 1992.027583 | X123: 3.435548273 | Y123: 3.478930554 | Z123: 4.800210755 | AA123: 3.584406604 | AB123: 3.771953401 | AC123: 3.725224402 | AD123: 2.804810604 | AE123: 3.003863563 | AF123: 3.083218456 | AG123: 3.299295348 | AH123: 3.498746196
A124: 121 | B124: 0.2121825187 | C124: 0.9493641943 | D124: 0.4087233224 | E124: 0.6103799589 | F124: 0.6307934054 | G124: 0.271841605 | H124: 0.2246605229 | I124: 0.2561992702 | J124: 0.6957489206 | K124: 0.2363930202 | M124: 1560.716569 | N124: 28782.70036 | O124: 2894.324799 | P124: 5205.780938 | Q124: 5546.295742 | R124: 1914.497785 | S124: 1632.189723 | T124: 1818.568208 | U124: 6862.597172 | V124: 1700.50697 | X124: 3.193324041 | Y124: 4.459131537 | Z124: 3.461547266 | AA124: 3.716485889 | AB124: 3.744003024 | AC124: 3.282054868 | AD124: 3.212770639 | AE124: 3.259729594 | AF124: 3.836488507 | AG124: 3.230578416 | AH124: 3.539611378
A125: 122 | B125: 0.4673708673 | C125: 0.1879226195 | D125: 0.1292992977 | E125: 0.08829731786 | F125: 0.9144487461 | G125: 0.4743657727 | H125: 0.2378285729 | I125: 0.1905231986 | J125: 0.5232877889 | K125: 0.570787177 | M125: 3423.683438 | N125: 1424.795928 | O125: 1107.27109 | P125: 885.7030744 | Q125: 20126.23731 | R125: 3492.819228 | S125: 1708.945197 | T125: 1439.195345 | U125: 4019.807701 | V125: 4619.577035 | X125: 3.534493602 | Y125: 3.153752665 | Z125: 3.044253961 | AA125: 2.947288152 | AB125: 4.303762589 | AC125: 3.543176109 | AD125: 3.232728136 | AE125: 3.158119746 | AF125: 3.604205278 | AG125: 3.664602214 | AH125: 3.418638245
... 156 more rows

Sheet mean 50
A1: 1000 samples of size N=50 | BA1: 1000 samples of size N=50 | CZ1: 1000 samples of size N=50 | EX1: N=50
B2: random numbers | D2: U[0,1] | BA2: flows | CZ2: log flows | EX2: ESTIMATE
B3: 1 | C3: 2 | D3: 3 | E3: 4 | F3: 5 | G3: 6 | H3: 7 | I3: 8 | J3: 9 | K3: 10 | L3: 11 | M3: 12 | N3: 13 | O3: 14 | P3: 15 | Q3: 16 | R3: 17 | S3: 18 | T3: 19 | U3: 20 | V3: 21 | W3: 22 | X3: 23 | Y3: 24 | Z3: 25 | AA3: 26 | AB3: 27 | AC3: 28 | AD3: 29 | AE3: 30 | AF3: 31 | AG3: 32 | AH3: 33 | AI3: 34 | AJ3: 35 | AK3: 36 | AL3: 37 | AM3: 38 | AN3: 39 | AO3: 40 | AP3: 41 | AQ3: 42 | AR3: 43 | AS3: 44 | AT3: 45 | AU3: 46 | AV3: 47 | AW3: 48 | AX3: 49 | AY3: 50 | BA3: 1 | BB3: 2 | BC3: 3 | BD3: 4 | BE3: 5 | BF3: 6 | BG3: 7 | BH3: 8 | BI3: 9 | BJ3: 10 | BK3: 11 | BL3: 12 | BM3: 13 | BN3: 14 | BO3: 15 | BP3: 16 | BQ3: 17 | BR3: 18 | BS3: 19 | BT3: 20 | BU3: 21 | BV3: 22 | BW3: 23 | BX3: 24 | BY3: 25 | BZ3: 26 | CA3: 27 | CB3: 28 | CC3: 29 | CD3: 30 | CE3: 31 | CF3: 32 | CG3: 33 | CH3: 34 | CI3: 35 | CJ3: 36 | CK3: 37 | CL3: 38 | CM3: 39 | CN3: 40 | CO3: 41 | CP3: 42 | CQ3: 43 | CR3: 44 | CS3: 45 | CT3: 46 | CU3: 47 | CV3: 48 | CW3: 49 | CX3: 50 | CZ3: 1 | DA3: 2 | DB3: 3 | DC3: 4 | DD3: 5 | DE3: 6 | DF3: 7 | DG3: 8 | DH3: 9 | DI3: 10 | DJ3: 11 | DK3: 12 | DL3: 13 | DM3: 14 | DN3: 15 | DO3: 16 | DP3: 17 | DQ3: 18 | DR3: 19 | DS3: 20 | DT3: 21 | DU3: 22 | DV3: 23 | DW3: 24 | DX3: 25 | DY3: 26 | DZ3: 27 | EA3: 28 | EB3: 29 | EC3: 30 | ED3: 31 | EE3: 32 | EF3: 33 | EG3: 34 | EH3: 35 | EI3: 36 | EJ3: 37 | EK3: 38 | EL3: 39 | EM3: 40 | EN3: 41 | EO3: 42 | EP3: 43 | EQ3: 44 | ER3: 45 | ES3: 46 | ET3: 47 | EU3: 48 | EV3: 49 | EW3: 50 | EX3: OF MEAN | FB3: statistics of estimates of mean
A4: 1 | B4: 0.8756879411 | C4: 0.638799209 | D4: 0.01758074065 | E4: 0.8424361922 | F4: 0.3608573938 | G4: 0.8252810612 | H4: 0.257064961 | I4: 0.4972297219 | J4: 0.9664160327 | K4: 0.5890005607 | L4: 0.9171088375 | M4: 0.9100928008 | N4: 0.7036043634 | O4: 0.6754792857 | P4: 0.2858589823 | Q4: 0.943239268 | R4: 0.3103160471 | S4: 0.1586121707 | T4: 0.7601316218 | U4: 0.9265603888 | V4: 0.901174151 | W4: 0.8666422296 | X4: 0.8244364408 | Y4: 0.4306410425 | Z4: 0.4539539918 | AA4: 0.8010377179 | AB4: 0.491744381 | AC4: 0.731652368 | AD4: 0.97637954 | AE4: 0.06443474135 | AF4: 0.353172138 | AG4: 0.6572629357 | AH4: 0.750211828 | AI4: 0.557088558 | AJ4: 0.4604120386 | AK4: 0.1176747731 | AL4: 0.7082309176 | AM4: 0.8932250412 | AN4: 0.8953789968 | AO4: 0.8001278967 | AP4: 0.9038981921 | AQ4: 0.04348189926 | AR4: 0.1255279159 | AS4: 0.4760704957 | AT4: 0.3364553878 | AU4: 0.8422286471 | AV4: 0.6363974498 | AW4: 0.9785471628 | AX4: 0.6479229796 | AY4: 0.9368957046 | BA4: =10^(mean+stdev*2/skew*(((NORMSINV(B4)-skew/6)*skew/6+1)^3-1)) -> 15235.71265 | BB4: =10^(mean+stdev*2/skew*(((NORMSINV(C4)-skew/6)*skew/6+1)^3-1)) -> 5688.09434 | BC4: =10^(mean+stdev*2/skew*(((NORMSINV(D4)-skew/6)*skew/6+1)^3-1)) -> 430.3641766 | BD4: =10^(mean+stdev*2/skew*(((NORMSINV(E4)-skew/6)*skew/6+1)^3-1)) -> 12600.87063 | BE4: =10^(mean+stdev*2/skew*(((NORMSINV(F4)-skew/6)*skew/6+1)^3-1)) -> 2517.748887 | BF4: =10^(mean+stdev*2/skew*(((NORMSINV(G4)-skew/6)*skew/6+1)^3-1)) -> 11554.21131 | BG4: =10^(mean+stdev*2/skew*(((NORMSINV(H4)-skew/6)*skew/6+1)^3-1)) -> 1823.812527 | BH4: =10^(mean+stdev*2/skew*(((NORMSINV(I4)-skew/6)*skew/6+1)^3-1)) -> 3729.142098 | BI4: =10^(mean+stdev*2/skew*(((NORMSINV(J4)-skew/6)*skew/6+1)^3-1)) -> 37315.15503 | BJ4: =10^(mean+stdev*2/skew*(((NORMSINV(K4)-skew/6)*skew/6+1)^3-1)) -> 4878.14872 | BK4: =10^(mean+stdev*2/skew*(((NORMSINV(L4)-skew/6)*skew/6+1)^3-1)) -> 20584.95818 | BL4: =10^(mean+stdev*2/skew*(((NORMSINV(M4)-skew/6)*skew/6+1)^3-1)) -> 19419.97619 | BM4: =10^(mean+stdev*2/skew*(((NORMSINV(N4)-skew/6)*skew/6+1)^3-1)) -> 7052.139479 | BN4: =10^(mean+stdev*2/skew*(((NORMSINV(O4)-skew/6)*skew/6+1)^3-1)) -> 6407.333973 | BO4: =10^(mean+stdev*2/skew*(((NORMSINV(P4)-skew/6)*skew/6+1)^3-1)) -> 2002.686468 | BP4: =10^(mean+stdev*2/skew*(((NORMSINV(Q4)-skew/6)*skew/6+1)^3-1)) -> 26699.25546 | BQ4: =10^(mean+stdev*2/skew*(((NORMSINV(R4)-skew/6)*skew/6+1)^3-1)) -> 2162.119063 | BR4: =10^(mean+stdev*2/skew*(((NORMSINV(S4)-skew/6)*skew/6+1)^3-1)) -> 1264.737007 | BS4: =10^(mean+stdev*2/skew*(((NORMSINV(T4)-skew/6)*skew/6+1)^3-1)) -> 8694.873197 | BT4: =10^(mean+stdev*2/skew*(((NORMSINV(U4)-skew/6)*skew/6+1)^3-1)) -> 22413.59804 | BU4: =10^(mean+stdev*2/skew*(((NORMSINV(V4)-skew/6)*skew/6+1)^3-1)) -> 18124.22304 | BV4: =10^(mean+stdev*2/skew*(((NORMSINV(W4)-skew/6)*skew/6+1)^3-1)) -> 14419.5307 | BW4: =10^(mean+stdev*2/skew*(((NORMSINV(X4)-skew/6)*skew/6+1)^3-1)) -> 11506.8088 | BX4: =10^(mean+stdev*2/skew*(((NORMSINV(Y4)-skew/6)*skew/6+1)^3-1)) -> 3082.384561 | BY4: =10^(mean+stdev*2/skew*(((NORMSINV(Z4)-skew/6)*skew/6+1)^3-1)) -> 3294.924629 | BZ4: =10^(mean+stdev*2/skew*(((NORMSINV(AA4)-skew/6)*skew/6+1)^3-1)) -> 10320.25317 | CA4: =10^(mean+stdev*2/skew*(((NORMSINV(AB4)-skew/6)*skew/6+1)^3-1)) -> 3670.939066 | CB4: =10^(mean+stdev*2/skew*(((NORMSINV(AC4)-skew/6)*skew/6+1)^3-1)) -> 7799.122743 | CC4: =10^(mean+stdev*2/skew*(((NORMSINV(AD4)-skew/6)*skew/6+1)^3-1)) -> 46089.65958 | CD4: =10^(mean+stdev*2/skew*(((NORMSINV(AE4)-skew/6)*skew/6+1)^3-1)) -> 750.9570123 | CE4: =10^(mean+stdev*2/skew*(((NORMSINV(AF4)-skew/6)*skew/6+1)^3-1)) -> 2461.136837 | CF4: =10^(mean+stdev*2/skew*(((NORMSINV(AG4)-skew/6)*skew/6+1)^3-1)) -> 6034.921833 | CG4: =10^(mean+stdev*2/skew*(((NORMSINV(AH4)-skew/6)*skew/6+1)^3-1)) -> 8364.703761 | CH4: =10^(mean+stdev*2/skew*(((NORMSINV(AI4)-skew/6)*skew/6+1)^3-1)) -> 4436.241538 | CI4: =10^(mean+stdev*2/skew*(((NORMSINV(AJ4)-skew/6)*skew/6+1)^3-1)) -> 3356.284176 | CJ4: =10^(mean+stdev*2/skew*(((NORMSINV(AK4)-skew/6)*skew/6+1)^3-1)) -> 1044.964542 | CK4: =10^(mean+stdev*2/skew*(((NORMSINV(AL4)-skew/6)*skew/6+1)^3-1)) -> 7167.524122 | CL4: =10^(mean+stdev*2/skew*(((NORMSINV(AM4)-skew/6)*skew/6+1)^3-1)) -> 17110.91919 | CM4: =10^(mean+stdev*2/skew*(((NORMSINV(AN4)-skew/6)*skew/6+1)^3-1)) -> 17373.863 | CN4: =10^(mean+stdev*2/skew*(((NORMSINV(AO4)-skew/6)*skew/6+1)^3-1)) -> 10278.52585 | CO4: =10^(mean+stdev*2/skew*(((NORMSINV(AP4)-skew/6)*skew/6+1)^3-1)) -> 18500.53003 | CP4: =10^(mean+stdev*2/skew*(((NORMSINV(AQ4)-skew/6)*skew/6+1)^3-1)) -> 623.0002001 | CQ4: =10^(mean+stdev*2/skew*(((NORMSINV(AR4)-skew/6)*skew/6+1)^3-1)) -> 1087.068967 | CR4: =10^(mean+stdev*2/skew*(((NORMSINV(AS4)-skew/6)*skew/6+1)^3-1)) -> 3509.884727 | CS4: =10^(mean+stdev*2/skew*(((NORMSINV(AT4)-skew/6)*skew/6+1)^3-1)) -> 2341.268256 | CT4: =10^(mean+stdev*2/skew*(((NORMSINV(AU4)-skew/6)*skew/6+1)^3-1)) -> 12587.16316 | CU4: =10^(mean+stdev*2/skew*(((NORMSINV(AV4)-skew/6)*skew/6+1)^3-1)) -> 5645.036119 | CV4: =10^(mean+stdev*2/skew*(((NORMSINV(AW4)-skew/6)*skew/6+1)^3-1)) -> 48752.89356 | CW4: =10^(mean+stdev*2/skew*(((NORMSINV(AX4)-skew/6)*skew/6+1)^3-1)) -> 5855.881543 | CX4: =10^(mean+stdev*2/skew*(((NORMSINV(AY4)-skew/6)*skew/6+1)^3-1)) -> 24869.32437 | CZ4: =mean+stdev*2/skew*(((NORMSINV(B4)-skew/6)*skew/6+1)^3-1) -> 4.182862773 | DA4: =mean+stdev*2/skew*(((NORMSINV(C4)-skew/6)*skew/6+1)^3-1) -> 3.754966791 | DB4: =mean+stdev*2/skew*(((NORMSINV(D4)-skew/6)*skew/6+1)^3-1) -> 2.633836114 | DC4: =mean+stdev*2/skew*(((NORMSINV(E4)-skew/6)*skew/6+1)^3-1) -> 4.100400553 | DD4: =mean+stdev*2/skew*(((NORMSINV(F4)-skew/6)*skew/6+1)^3-1) -> 3.401012413 | DE4: =mean+stdev*2/skew*(((NORMSINV(G4)-skew/6)*skew/6+1)^3-1) -> 4.062740306 | DF4: =mean+stdev*2/skew*(((NORMSINV(H4)-skew/6)*skew/6+1)^3-1) -> 3.260980194 | DG4: =mean+stdev*2/skew*(((NORMSINV(I4)-skew/6)*skew/6+1)^3-1) -> 3.571608932 | DH4: =mean+stdev*2/skew*(((NORMSINV(J4)-skew/6)*skew/6+1)^3-1) -> 4.57188525 | DI4: =mean+stdev*2/skew*(((NORMSINV(K4)-skew/6)*skew/6+1)^3-1) -> 3.688255037 | DJ4: =mean+stdev*2/skew*(((NORMSINV(L4)-skew/6)*skew/6+1)^3-1) -> 4.313549989 | DK4: =mean+stdev*2/skew*(((NORMSINV(M4)-skew/6)*skew/6+1)^3-1) -> 4.288248693 | DL4: =mean+stdev*2/skew*(((NORMSINV(N4)-skew/6)*skew/6+1)^3-1) -> 3.848320893 | DM4: =mean+stdev*2/skew*(((NORMSINV(O4)-skew/6)*skew/6+1)^3-1) -> 3.806677362 | DN4: =mean+stdev*2/skew*(((NORMSINV(P4)-skew/6)*skew/6+1)^3-1) -> 3.301612963 | DO4: =mean+stdev*2/skew*(((NORMSINV(Q4)-skew/6)*skew/6+1)^3-1) -> 4.426499151 | DP4: =mean+stdev*2/skew*(((NORMSINV(R4)-skew/6)*skew/6+1)^3-1) -> 3.334879606 | DQ4: =mean+stdev*2/skew*(((NORMSINV(S4)-skew/6)*skew/6+1)^3-1) -> 3.102000226 | DR4: =mean+stdev*2/skew*(((NORMSINV(T4)-skew/6)*skew/6+1)^3-1) -> 3.939263253 | DS4: =mean+stdev*2/skew*(((NORMSINV(U4)-skew/6)*skew/6+1)^3-1) -> 4.350511579 | DT4: =mean+stdev*2/skew*(((NORMSINV(V4)-skew/6)*skew/6+1)^3-1) -> 4.258259398 | DU4: =mean+stdev*2/skew*(((NORMSINV(W4)-skew/6)*skew/6+1)^3-1) -> 4.158951126 | DV4: =mean+stdev*2/skew*(((NORMSINV(X4)-skew/6)*skew/6+1)^3-1) -> 4.060954897 | DW4: =mean+stdev*2/skew*(((NORMSINV(Y4)-skew/6)*skew/6+1)^3-1) -> 3.488886821 | DX4: =mean+stdev*2/skew*(((NORMSINV(Z4)-skew/6)*skew/6+1)^3-1) -> 3.517845485 | DY4: =mean+stdev*2/skew*(((NORMSINV(AA4)-skew/6)*skew/6+1)^3-1) -> 4.013690351 | DZ4: =mean+stdev*2/skew*(((NORMSINV(AB4)-skew/6)*skew/6+1)^3-1) -> 3.564777176 | EA4: =mean+stdev*2/skew*(((NORMSINV(AC4)-skew/6)*skew/6+1)^3-1) -> 3.892045755 | EB4: =mean+stdev*2/skew*(((NORMSINV(AD4)-skew/6)*skew/6+1)^3-1) -> 4.6636035 | EC4: =mean+stdev*2/skew*(((NORMSINV(AE4)-skew/6)*skew/6+1)^3-1) -> 2.875615077 | ED4: =mean+stdev*2/skew*(((NORMSINV(AF4)-skew/6)*skew/6+1)^3-1) -> 3.391135761 | EE4: =mean+stdev*2/skew*(((NORMSINV(AG4)-skew/6)*skew/6+1)^3-1) -> 3.780671649 | EF4: =mean+stdev*2/skew*(((NORMSINV(AH4)-skew/6)*skew/6+1)^3-1) -> 3.922450565 | EG4: =mean+stdev*2/skew*(((NORMSINV(AI4)-skew/6)*skew/6+1)^3-1) -> 3.647015184 | EH4: =mean+stdev*2/skew*(((NORMSINV(AJ4)-skew/6)*skew/6+1)^3-1) -> 3.525858725 | EI4: =mean+stdev*2/skew*(((NORMSINV(AK4)-skew/6)*skew/6+1)^3-1) -> 3.019101554 | EJ4: =mean+stdev*2/skew*(((NORMSINV(AL4)-skew/6)*skew/6+1)^3-1) -> 3.855369163 | EK4: =mean+stdev*2/skew*(((NORMSINV(AM4)-skew/6)*skew/6+1)^3-1) -> 4.23327334 | EL4: =mean+stdev*2/skew*(((NORMSINV(AN4)-skew/6)*skew/6+1)^3-1) -> 4.239896393 | EM4: =mean+stdev*2/skew*(((NORMSINV(AO4)-skew/6)*skew/6+1)^3-1) -> 4.011930832 | EN4: =mean+stdev*2/skew*(((NORMSINV(AP4)-skew/6)*skew/6+1)^3-1) -> 4.267184171 | EO4: =mean+stdev*2/skew*(((NORMSINV(AQ4)-skew/6)*skew/6+1)^3-1) -> 2.794488186 | EP4: =mean+stdev*2/skew*(((NORMSINV(AR4)-skew/6)*skew/6+1)^3-1) -> 3.036257098 | EQ4: =mean+stdev*2/skew*(((NORMSINV(AS4)-skew/6)*skew/6+1)^3-1) -> 3.545292853 | ER4: =mean+stdev*2/skew*(((NORMSINV(AT4)-skew/6)*skew/6+1)^3-1) -> 3.369451177 | ES4: =mean+stdev*2/skew*(((NORMSINV(AU4)-skew/6)*skew/6+1)^3-1) -> 4.099927862 | ET4: =mean+stdev*2/skew*(((NORMSINV(AV4)-skew/6)*skew/6+1)^3-1) -> 3.751666725 | EU4: =mean+stdev*2/skew*(((NORMSINV(AW4)-skew/6)*skew/6+1)^3-1) -> 4.688000397 | EV4: =mean+stdev*2/skew*(((NORMSINV(AX4)-skew/6)*skew/6+1)^3-1) -> 3.767592283 | EW4: =mean+stdev*2/skew*(((NORMSINV(AY4)-skew/6)*skew/6+1)^3-1) -> 4.395663987 | EX4: =AVERAGE(CZ4:EW4) -> 3.795539391 | EY4: min | EZ4: =MIN(EX4:EX1003) -> 3.321353159 | FB4: mean = | FC4: =AVERAGE(EX4:EX1003) -> 3.603486331 | FD4: pop. mean= | FE4: =mean -> 3.6 | FF4: diff = | FG4: =(FE4-FC4)/FC4 -> -0.0009674882851
A5: 2 | B5: 0.2308840691 | C5: 0.2545865403 | D5: 0.3261712841 | E5: 0.9341504847 | F5: 0.8487453821 | G5: 0.6452304709 | H5: 0.861759413 | I5: 0.4888636134 | J5: 0.6720643459 | K5: 0.870115504 | L5: 0.6059520973 | M5: 0.5035205815 | N5: 0.5682214915 | O5: 0.7530847919 | P5: 0.1921720017 | Q5: 0.2118072594 | R5: 0.09494081842 | S5: 0.8480415894 | T5: 0.01072145373 | U5: 0.9349098431 | V5: 0.693584308 | W5: 0.6613558426 | X5: 0.644255059 | Y5: 0.7517189244 | Z5: 0.7844203051 | AA5: 0.9151564691 | AB5: 0.6625457626 | AC5: 0.5091869344 | AD5: 0.4185627479 | AE5: 0.5639595798 | AF5: 0.4215734201 | AG5: 0.6781532683 | AH5: 0.7722913459 | AI5: 0.2648458952 | AJ5: 0.6367866021 | AK5: 0.4957825191 | AL5: 0.09137593158 | AM5: 0.08792451304 | AN5: 0.6132494923 | AO5: 0.7569904208 | AP5: 0.8872966991 | AQ5: 0.3811180613 | AR5: 0.8887871049 | AS5: 0.3065752437 | AT5: 0.3550104161 | AU5: 0.2546363841 | AV5: 0.6757785328 | AW5: 0.7870226222 | AX5: 0.9681474454 | AY5: 0.3965710631 | BA5: =10^(mean+stdev*2/skew*(((NORMSINV(B5)-skew/6)*skew/6+1)^3-1)) -> 1668.287754 | BB5: 1808.817874 | BC5: 2269.631743 | BD5: 24160.76525 | BE5: 13031.35127 | BF5: 5805.656538 | BG5: 14013.44455 | BH5: 3640.762765 | BI5: 6335.034814 | BJ5: 14722.58008 | BK5: 5135.622485 | BL5: 3797.124242 | BM5: 4584.541774 | BN5: 8458.183265 | BO5: 1448.34442 | BP5: 1558.584797 | BQ5: 922.1218002 | BR5: 12981.96601 | BS5: 361.0925541 | BT5: 24352.25803 | BU5: 6811.719147 | BV5: 6115.832074 | BW5: 5787.610099 | BX5: 8413.529411 | BY5: 9601.929128 | BZ5: 20246.15066 | CA5: 6139.645651 | CB5: 3859.520114 | CC5: 2977.420151 | CD5: 4527.06424 | CE5: 3003.272107 | CF5: 6464.79065 | CG5: 9130.038169 | CH5: 1871.284591 | CI5: 5651.982169 | CJ5: 3713.690479 | CK5: 902.6210105 | CL5: 883.6490864 | CM5: 5251.92525 | CN5: 8588.036263 | CO5: 16427.23841 | CP5: 2671.874888 | CQ5: 16593.86688 | CR5: 2137.24631 | CS5: 2474.589372 | CT5: 1809.118844 | CU5: 6413.726761 | CV5: 9708.618118 | CW5: 38543.23025 | CX5: 2794.526613 | CZ5: 3.222270962 | DA5: 3.257394841 | DB5: 3.355955397 | DC5: 4.383110686 | DD5: 4.114989452 | DE5: 3.763851339 | DF5: 4.1465449 | DG5: 3.561192381 | DH5: 3.801749006 | DI5: 4.167983925 | DJ5: 3.710593092 | DK5: 3.579454807 | DL5: 3.661295934 | DM5: 3.927277091 | DN5: 3.16087185 | DO5: 3.192730436 | DP5: 2.964788289 | DQ5: 4.113340468 | DR5: 2.557618533 | DS5: 4.386539237 | DT5: 3.833256733 | DU5: 3.786455552 | DV5: 3.762499266 | DW5: 3.924978217 | DX5: 3.982358496 | DY5: 4.306342464 | DZ5: 3.788143307 | EA5: 3.586533309 | EB5: 3.473840123 | EC5: 3.655816657 | ED5: 3.477594683 | EE5: 3.810554466 | EF5: 3.960472593 | EG5: 3.272139841 | EH5: 3.752200783 | EI5: 3.569805704 | EJ5: 2.955505438 | EK5: 2.946279833 | EL5: 3.720318536 | EM5: 3.93389387 | EN5: 4.21556456 | EO5: 3.426816118 | EP5: 4.219947602 | EQ5: 3.329854576 | ER5: 3.393503143 | ES5: 3.257467097 | ET5: 3.807110454 | EU5: 3.987157419 | EV5: 4.585948109 | EW5: 3.44630825 | EX5: =AVERAGE(CZ5:EW5) -> 3.683964397 | EY5: max | EZ5: =MAX(EX4:EX1003) -> 3.854170958 | FB5: st.dev. = | FC5: =STDEV(EX4:EX1003) -> 0.07165605184 | FD5: s/sqrt(N)= | FE5: =stdev/SQRT(50) -> 0.07071067812 | FF5: diff = | FG5: =(FE5-FC5)/FC5 -> -0.01319321532
A6: 3 | B6: 0.4345704469 | C6: 0.8690378406 | D6: 0.6526360463 | E6: 0.7544205346 | F6: 0.7577455848 | G6: 0.3474894225 | H6: 0.6805220554 | I6: 0.6637354333 | J6: 0.3258554573 | K6: 0.2317258372 | L6: 0.5129917161 | M6: 0.2381868909 | N6: 0.9588871996 | O6: 0.2636683452 | P6: 0.5558265218 | Q6: 0.7022344297 | R6: 0.8062097627 | S6: 0.9742158464 | T6: 0.007952348903 | U6: 0.7295239751 | V6: 0.6767184074 | W6: 0.898604768 | X6: 0.250580359 | Y6: 0.8988707595 | Z6: 0.3894629053 | AA6: 0.4832519314 | AB6: 0.1361132162 | AC6: 0.1956675288 | AD6: 0.3628423676 | AE6: 0.4822792411 | AF6: 0.48978109 | AG6: 0.8466122446 | AH6: 0.02833812804 | AI6: 0.9213229128 | AJ6: 0.3093993917 | AK6: 0.9874396477 | AL6: 0.4356169361 | AM6: 0.9386418483 | AN6: 0.1174824024 | AO6: 0.997999357 | AP6: 0.9654898534 | AQ6: 0.9486348476 | AR6: 0.3627326505 | AS6: 0.6046767435 | AT6: 0.06305854318 | AU6: 0.7556228818 | AV6: 0.8498988021 | AW6: 0.2382015878 | AX6: 0.5263532541 | AY6: 0.9970377225 | BA6: 3117.266235 | BB6: 14627.23142 | BC6: 5945.27601 | BD6: 8502.228817 | BE6: 8613.522028 | BF6: 2419.896316 | BG6: 6516.323171 | BH6: 6163.587333 | BI6: 2267.456055 | BJ6: 1673.1944 | BK6: 3902.053077 | BL6: 1711.054181 | BM6: 32899.42447 | BN6: 1864.060909 | BO6: 4419.800808 | BP6: 7018.517367 | BQ6: 10563.23498 | BR6: 43766.50198 | BS6: 327.0890264 | BT6: 7738.186662 | BU6: 6433.865989 | BV6: 17783.47648 | BW6: 1784.705524 | BX6: 17818.13876 | BY6: 2737.53529 | BZ6: 3582.73334 | CA6: 1143.772173 | CB6: 1467.79286 | CC6: 2532.531442 | CD6: 3572.77451 | CE6: 3650.34461 | CF6: 12882.7476 | CG6: 518.3367056 | CH6: 21359.19098 | CI6: 2156.007253 | CJ6: 65916.89445 | CK6: 3126.618477 | CL6: 25344.59861 | CM6: 1043.932057 | CN6: 167264.0964 | CO6: 36695.95788 | CP6: 28515.26346 | CQ6: 2531.712606 | CR6: 5115.645614 | CS6: 742.9138309 | CT6: 8542.198443 | CU6: 13113.05889 | CV6: 1711.140708 | CW6: 4055.640492 | CX6: 138577.6481 | CZ6: 3.493773895 | DA6: 4.165162133 | DB6: 3.774172022 | DC6: 3.929532789 | DD6: 3.935180769 | DE6: 3.383796758 | DF6: 3.814002615 | DG6: 3.789833554 | DH6: 3.355538879 | DI6: 3.223546402 | DJ6: 3.591293172 | DK6: 3.233263762 | DL6: 4.517188301 | DM6: 3.270460099 | DN6: 3.645402697 | DO6: 3.846245379 | DP6: 4.023796941 | DQ6: 4.641141837 | DR6: 2.514665974 | DS6: 3.888639202 | DT6: 3.808472011 | DU6: 4.250016665 | DV6: 3.251566568 | DW6: 4.250862337 | DX6: 3.437359726 | DY6: 3.554214485 | DZ6: 3.058339526 | EA6: 3.166664771 | EB6: 3.403554846 | EC6: 3.553005607 | ED6: 3.562333866 | EE6: 4.110008498 | EF6: 2.714611964 | EG6: 4.329584799 | EH6: 3.333650218 | EI6: 4.818996738 | EJ6: 3.49507489 | EK6: 4.403885418 | EL6: 3.018672234 | EM6: 5.223402729 | EN6: 4.564618229 | EO6: 4.455077388 | EP6: 3.403414404 | EQ6: 3.708900451 | ER6: 2.870938444 | ES6: 3.931569656 | ET6: 4.117704012 | EU6: 3.233285723 | EV6: 3.60805945 | EW6: 5.141693186 | EX6: 3.75632352 | FB6: CV = | FC6: =FC5/FC4 -> 0.01988520151
A7: 4 | B7: 0.755927898 | C7: 0.4278498987 | D7: 0.20797992 | E7: 0.403000927 | F7: 0.9596243042 | G7: 0.956893326 | H7: 0.08249869506 | I7: 0.9174153861 | J7: 0.5969084073 | K7: 0.5409992451 | L7: 0.7234982024 | M7: 0.6644899059 | N7: 0.7606756108 | O7: 0.4434050048 | P7: 0.9174727238 | Q7: 0.8382646298 | R7: 0.8356077872 | S7: 0.6473357146 | T7: 0.8103135833 | U7: 0.6110557993 | V7: 0.3779650596 | W7: 0.0672508975 | X7: 0.5116258771 | Y7: 0.4965063348 | Z7: 0.7316212297 | AA7: 0.0008394407051 | AB7: 0.1008593387 | AC7: 0.8722506438 | AD7: 0.3601456868 | AE7: 0.6689214873 | AF7: 0.107183714 | AG7: 0.9318445665 | AH7: 0.2527987151 | AI7: 0.4767275321 | AJ7: 0.03167916358 | AK7: 0.8025458683 | AL7: 0.8431883641 | AM7: 0.9429277925 | AN7: 0.8989971533 | AO7: 0.7840664727 | AP7: 0.4698118661 | AQ7: 0.0180672861 | AR7: 0.8198413337 | AS7: 0.1555476158 | AT7: 0.4126824547 | AU7: 0.5202247616 | AV7: 0.7844769716 | AW7: 0.3004876269 | AX7: 0.05514277325 | AY7: 0.6360828105 | BA7: 8552.387201 | BB7: 3057.829492 | BC7: 1536.898591 | BD7: 2846.950844 | BE7: 33277.04934 | BF7: 31926.48883 | BG7: 853.61008 | BH7: 20639.2549 | BI7: 4996.128863 | BJ7: 4232.002146 | BK7: 7569.686694 | BL7: 6178.840329 | BM7: 8713.598194 | BN7: 3197.061613 | BO7: 20649.44461 | BP7: 12330.5989 | BQ7: 12164.0209 | BR7: 5844.875225 | BS7: 10763.33502 | BT7: 5216.600482 | BU7: 2647.405981 | BV7: 767.2998208 | BW7: 3886.724946 | BX7: 3721.409915 | BY7: 7798.225772 | BZ7: 175.8838322 | CA7: 954.3183801 | CB7: 14915.12841 | CC7: 2512.464879 | CD7: 6269.53965 | CE7: 988.5260551 | CF7: 23599.0704 | CG7: 1798.038365 | CH7: 3516.485148 | CI7: 542.8280012 | CJ7: 10390.08085 | CK7: 12650.78322 | CL7: 26602.33962 | CM7: 17834.65831 | CN7: 9587.578148 | CO7: 3447.649105 | CP7: 434.7605463 | CQ7: 11254.98735 | CR7: 1248.192747 | CS7: 2927.507319 | CT7: 3984.362648 | CU7: 9604.230868 | CV7: 2097.154926 | CW7: 695.8108044 | CX7: 5639.428659 | CZ7: 3.932087355 | DA7: 3.485413265 | DB7: 3.186645212 | DC7: 3.454379969 | DD7: 4.522144811 | DE7: 4.504151159 | DF7: 2.931259535 | DG7: 4.314694015 | DH7: 3.698633631 | DI7: 3.626545879 | DJ7: 3.879077905 | DK7: 3.790906973 | DL7: 3.94019753 | DM7: 3.504751006 | DN7: 4.314908375 | DO7: 4.090984171 | DP7: 4.085077158 | DQ7: 3.766775244 | DR7: 4.031946858 | DS7: 3.717387577 | DT7: 3.422820546 | DU7: 2.884965097 | DV7: 3.589583808 | DW7: 3.57070751 | DX7: 3.891995805 | DY7: 2.24522592 | DZ7: 2.979693288 | EA7: 4.173626997 | EB7: 3.4001 | EC7: 3.797235653 | ED7: 2.994988121 | EE7: 4.372894896 | EF7: 3.254798954 | EG7: 3.546108787 | EH7: 2.734662242 | EI7: 4.016618927 | EJ7: 4.102117414 | EK7: 4.424919834 | EL7: 4.251264793 | EM7: 3.981708917 | EN7: 3.537523058 | EO7: 2.638250126 | EP7: 4.051345011 | EQ7: 3.096281655 | ER7: 3.46649799 | ES7: 3.60035886 | ET7: 3.982462591 | EU7: 3.321630515 | EV7: 2.842491168 | EW7: 3.751235107 | EX7: 3.654041624 | FB7: skew = | FC7: =SKEW(EX4:EX1003) -> 0.08164428588
A8: 5 | B8: 0.6919693049 | C8: 0.1966138342 | D8: 0.2169444164 | E8: 0.7786824731 | F8: 0.1127449837 | G8: 0.1717113863 | H8: 0.7130475142 | I8: 0.2795675685 | J8: 0.606665158 | K8: 0.6673942969 | L8: 0.4131254974 | M8: 0.901187898 | N8: 0.02700738572 | O8: 0.2227382659 | P8: 0.5740554655 | Q8: 0.6251826832 | R8: 0.2237858013 | S8: 0.4184032872 | T8: 0.2242847839 | U8: 0.3681489542 | V8: 0.8005450838 | W8: 0.3865412009 | X8: 0.4982360719 | Y8: 0.2182616621 | Z8: 0.09983225738 | AA8: 0.1732354821 | AB8: 0.2427085429 | AC8: 0.09564982606 | AD8: 0.5360962946 | AE8: 0.9665861467 | AF8: 0.09053554682 | AG8: 0.9762348552 | AH8: 0.8561859779 | AI8: 0.6596177796 | AJ8: 0.8273590514 | AK8: 0.2961713125 | AL8: 0.7967205854 | AM8: 0.1169901198 | AN8: 0.8271381404 | AO8: 0.5851106791 | AP8: 0.5041872854 | AQ8: 0.196855308 | AR8: 0.6207676876 | AS8: 0.9957868181 | AT8: 0.117842945 | AU8: 0.6607773234 | AV8: 0.2825330004 | AW8: 0.9212359285 | AX8: 0.4589451965 | AY8: 0.6236268484 | BA8: 6774.127457 | BB8: 1473.070382 | BC8: 1587.855667 | BD8: 9373.651414 | BE8: 1018.48101 | BF8: 1335.813772 | BG8: 7290.75412 | BH8: 1962.833062 | BI8: 5146.836343 | BJ8: 6238.06761 | BK8: 2931.241577 | BL8: 18126.08235 | BM8: 508.2858728 | BN8: 1621.102433 | BO8: 4664.688245 | BP8: 5449.78488 | BQ8: 1627.140884 | BR8: 2976.056558 | BS8: 1630.020246 | BT8: 2572.38239 | BU8: 10297.62255 | BV8: 2714.395516 | BW8: 3739.927749 | BX8: 1595.392199 | BY8: 948.7452962 | BZ8: 1344.127032 | CA8: 1737.764493 | CB8: 925.9898741 | CC8: 4171.988913 | CD8: 37431.63431 | CE8: 898.0103436 | CF8: 45924.69148 | CG8: 13576.08994 | CH8: 6081.285426 | CI8: 11672.36235 | CJ8: 2069.0112 | CK8: 10124.8499 | CL8: 1041.289583 | CM8: 11659.69713 | CN8: 4821.421662 | CO8: 3804.407844 | CP8: 1474.417941 | CQ8: 5375.434273 | CR8: 116527.4246 | CS8: 1045.867093 | CT8: 6104.302053 | CU8: 1981.561575 | CV8: 21342.57889 | CW8: 3342.248262 | CX8: 5423.426484 | CZ8: 3.830853364 | DA8: 3.168223498 | DB8: 3.200811023 | DC8: 3.971908799 | DD8: 3.007952936 | DE8: 3.125745917 | DF8: 3.862772452 | DG8: 3.292883365 | DH8: 3.711540359 | DI8: 3.795050077 | DJ8: 3.467051612 | DK8: 4.258303949 | DL8: 2.706108039 | DM8: 3.209810458 | DN8: 3.668822624 | DO8: 3.73637936 | DP8: 3.211425157 | DQ8: 3.47364118 | DR8: 3.212192999 | DS8: 3.410335528 | DT8: 4.012736969 | DU8: 3.433673129 | DV8: 3.572863212 | DW8: 3.202867464 | DX8: 2.977149636 | DY8: 3.128440315 | DZ8: 3.239990919 | EA8: 2.966606238 | EB8: 3.620343146 | EC8: 4.573238789 | ED8: 2.953281339 | EE8: 4.662046247 | EF8: 4.132774707 | EG8: 3.783995388 | EH8: 4.067158761 | EI8: 3.315762842 | EJ8: 4.005388593 | EK8: 3.017571524 | EL8: 4.06668727 | EM8: 3.683175115 | EN8: 3.580287068 | EO8: 3.168620607 | EP8: 3.730413556 | EQ8: 5.066428148 | ER8: 3.019476499 | ES8: 3.785636015 | ET8: 3.297007572 | EU8: 4.329246895 | EV8: 3.524038706 | EW8: 3.734273758 | EX8: 3.579459862
A9: 6 | B9: 0.223969444 | C9: 0.0411301201 | D9: 0.3045354702 | E9: 0.5880791394 | F9: 0.7376744899 | G9: 0.8423359326 | H9: 0.4702410306 | I9: 0.5116595479 | J9: 0.256434773 | K9: 0.04108473428 | L9: 0.02431794691 | M9: 0.3528529546 | N9: 0.5102850048 | O9: 0.005964613372 | P9: 0.1663292754 | Q9: 0.1932710983 | R9: 0.3001926903 | S9: 0.1892486082 | T9: 0.2541551079 | U9: 0.8425387761 | V9: 0.9448589119 | W9: 0.2624603467 | X9: 0.2900146575 | Y9: 0.9937400494 | Z9: 0.511208551 | AA9: 0.22683433 | AB9: 0.05525275182 | AC9: 0.265834942 | AD9: 0.2862411836 | AE9: 0.8598334429 | AF9: 0.4679622936 | AG9: 0.7190506735 | AH9: 0.3699478702 | AI9: 0.9078002091 | AJ9: 0.9186866985 | AK9: 0.4801459546 | AL9: 0.5073724267 | AM9: 0.5050370369 | AN9: 0.2205883504 | AO9: 0.7881780219 | AP9: 0.2180402028 | AQ9: 0.1522701525 | AR9: 0.5667953086 | AS9: 0.0118275926 | AT9: 0.1955928364 | AU9: 0.9187566297 | AV9: 0.2881476808 | AW9: 0.2646973475 | AX9: 0.5818284931 | AY9: 0.3843178424 | BA9: 1628.200362 | BB9: 607.6564992 | BC9: 2123.760254 | BD9: 4864.634935 | BE9: 7975.734186 | BF9: 12594.24542 | BG9: 3451.880294 | BH9: 3887.102009 | BI9: 1819.994147 | BJ9: 607.3577472 | BK9: 487.3719893 | BL9: 2458.806666 | BM9: 3871.742138 | BN9: 298.7041728 | BO9: 1306.533248 | BP9: 1454.451875 | BQ9: 2095.224471 | BR9: 1432.133252 | BS9: 1806.213776 | BT9: 12607.65618 | BU9: 27216.35578 | BV9: 1856.665185 | BW9: 2029.261772 | BX9: 95365.07876 | BY9: 3882.05488 | BZ9: 1644.762945 | CA9: 696.4761922 | CB9: 1877.362937 | CC9: 2005.122189 | CD9: 13859.28506 | CE9: 3429.474424 | CF9: 7448.983374 | CG9: 2586.002873 | CH9: 19068.76604 | CI9: 20867.73177 | CJ9: 3551.034464 | CK9: 3839.417285 | CL9: 3813.713422 | CM9: 1608.735918 | CN9: 9756.642112 | CO9: 1594.124233 | CP9: 1230.528311 | CQ9: 4565.208508 | CR9: 373.4365498 | CS9: 1467.376531 | CT9: 20880.45645 | CU9: 2017.297487 | CV9: 1870.372539 | CW9: 4774.206442 | CX9: 2696.895961 | CZ9: 3.211707847 | DA9: 2.783658147 | DB9: 3.327105489 | DC9: 3.687050254 | DD9: 3.901770671 | DE9: 4.100172152 | DF9: 3.538055727 | DG9: 3.589625938 | DH9: 3.260069991 | DI9: 2.783444576 | DJ9: 2.687860565 | DK9: 3.390724382 | DL9: 3.587906425 | DM9: 2.47524129 | DN9: 3.116120466 | DO9: 3.162699356 | DP9: 3.321230558 | DQ9: 3.155983429 | DR9: 3.25676915 | DS9: 4.100634357 | DT9: 4.434829974 | DU9: 3.268733594 | DV9: 3.307338074 | DW9: 4.979389372 | DX9: 3.589061671 | DY9: 3.216103313 | DZ9: 2.842906275 | EA9: 3.27354824 | EB9: 3.302140843 | EC9: 4.141740828 | ED9: 3.535227568 | EE9: 3.872097005 | EF9: 3.412629003 | EG9: 4.28032259 | EH9: 4.319475246 | EI9: 3.550354887 | EJ9: 3.584265316 | EK9: 3.581348055 | EL9: 3.206484758 | EM9: 3.989300375 | EN9: 3.202522164 | EO9: 3.09009161 | EP9: 3.659460618 | EQ9: 2.572216822 | ER9: 3.166541569 | ES9: 4.319739988 | ET9: 3.304769948 | EU9: 3.271928118 | EV9: 3.678901194 | EW9: 3.430864193 | EX9: 3.47644328 | EZ9: 2.975 | FA9: count | FB9: mid-bin
A10: 7 | B10: 0.5872165975 | C10: 0.8442105084 | D10: 0.2933753897 | E10: 0.760881211 | F10: 0.5775458136 | G10: 0.9659745537 | H10: 0.690054968 | I10: 0.7068459877 | J10: 0.3247437345 | K10: 0.8030694581 | L10: 0.4343349218 | M10: 0.1395876772 | N10: 0.4611169907 | O10: 0.8827689608 | P10: 0.5809045231 | Q10: 0.4987953721 | R10: 0.5887077812 | S10: 0.9093668146 | T10: 0.5815885608 | U10: 0.1168593146 | V10: 0.6718645434 | W10: 0.5002700114 | X10: 0.7029423734 | Y10: 0.4634416244 | Z10: 0.1295153435 | AA10: 0.9348296552 | AB10: 0.9063878299 | AC10: 0.5003664235 | AD10: 0.9969843153 | AE10: 0.3345280612 | AF10: 0.2277597124 | AG10: 0.8549481626 | AH10: 0.9369634306 | AI10: 0.2315637203 | AJ10: 0.1427557507 | AK10: 0.01638479139 | AL10: 0.005382259987 | AM10: 0.6846478825 | AN10: 0.4429196689 | AO10: 0.5414595791 | AP10: 0.3126432689 | AQ10: 0.7656967745 | AR10: 0.2986524503 | AS10: 0.5136255227 | AT10: 0.7745562974 | AU10: 0.7736288724 | AV10: 0.02432892202 | AW10: 0.8380188023 | AX10: 0.1167674618 | AY10: 0.5096549801 | BA10: 4852.027905 | BB10: 12719.20693 | BC10: 2050.903097 | BD10: 8720.692678 | BE10: 4713.47186 | BF10: 37016.89574 | BG10: 6729.969327 | BH10: 7132.683424 | BI10: 2259.808839 | BJ10: 10414.51785 | BK10: 3115.165043 | BL10: 1162.395449 | BM10: 3363.050689 | BN10: 15941.04914 | BO10: 4761.020316 | BP10: 3745.936708 | BQ10: 4873.849561 | BR10: 19307.30114 | BS10: 4770.777908 | BT10: 1040.587369 | BU10: 6330.841561 | BV10: 3761.830112 | BW10: 7035.861802 | BX10: 3385.460981 | BY10: 1108.428268 | BZ10: 24331.87815 | CA10: 18858.9323 | CB10: 3762.871775 | CC10: 137379.2134 | CD10: 2327.724482 | CE10: 1650.126754 | CF10: 13482.48626 | CG10: 24887.38895 | CH10: 1672.248968 | CI10: 1179.388643 | CJ10: 419.3249675 | CK10: 289.4552601 | CL10: 6607.536447 | CM10: 3192.627724 | CN10: 4237.68852 | CO10: 2177.68572 | CP10: 8889.642358 | CQ10: 2085.16076 | CR10: 3909.188856 | CS10: 9215.13515 | CT10: 9180.129557 | CU10: 487.4591221 | CV10: 12315.0087 | CW10: 1040.094247 | CX10: 3864.724439 | CZ10: 3.68592329 | DA10: 4.104460033 | DB10: 3.311945141 | DC10: 3.940550982 | DD10: 3.673340919 | DE10: 4.568399996 | DF10: 3.828013085 | DG10: 3.853252949 | DH10: 3.354071703 | DI10: 4.017639169 | DJ10: 3.493481061 | DK10: 3.065353901 | DL10: 3.526733413 | DM10: 4.202516901 | DN10: 3.677700035 | DO10: 3.573560435 | DP10: 3.68787212 | DQ10: 4.28572157 | DR10: 3.678589199 | DS10: 3.01727855 | DT10: 3.801461445 | DU10: 3.575399178 | DV10: 3.847317301 | DW10: 3.529617813 | DX10: 3.044707593 | DY10: 4.386175633 | DZ10: 4.275517102 | EA10: 3.575519419 | EB10: 5.137921025 | EC10: 3.366931574 | ED10: 3.217517306 | EE10: 4.129769986 | EF10: 4.395979335 | EG10: 3.223300937 | EH10: 3.071656942 | EI10: 2.622550722 | EJ10: 2.461581446 | EK10: 3.820039567 | EL10: 3.504148281 | EM10: 3.627129032 | EN10: 3.337995203 | EO10: 3.948884289 | EP10: 3.319139543 | EQ10: 3.592086652 | ER10: 3.964501709 | ES10: 3.96284881 | ET10: 2.687938202 | EU10: 4.090434723 | EV10: 3.017072694 | EW10: 3.587118533 | EX10: 3.653373329 | EZ10: 3.025 | FA10: =FREQUENCY(EX4:EX1003,EZ10:EZ33) -> 0 | FB10: =AVERAGE(EZ9:EZ10) -> 3
A11: 8 | B11: 0.5817339199 | C11: 0.4237349669 | D11: 0.8515274147 | E11: 0.7245109768 | F11: 0.8639080177 | G11: 0.6203973521 | H11: 0.2040110692 | I11: 0.2842367027 | J11: 0.74048727 | K11: 0.0203661338 | L11: 0.2241167823 | M11: 0.1360159661 | N11: 0.3681930668 | O11: 0.3411311362 | P11: 0.8997099391 | Q11: 0.3093635863 | R11: 0.2415652869 | S11: 0.8455231125 | T11: 0.8524293591 | U11: 0.02707124834 | V11: 0.6500972399 | W11: 0.1966487906 | X11: 0.5034699651 | Y11: 0.4548977136 | Z11: 0.3184639791 | AA11: 0.3871615535 | AB11: 0.6090294253 | AC11: 0.5884483779 | AD11: 0.2686550716 | AE11: 0.6342116452 | AF11: 0.9474433086 | AG11: 0.09983062999 | AH11: 0.9701330425 | AI11: 0.9573675198 | AJ11: 0.9849988813 | AK11: 0.9182942751 | AL11: 0.05544114354 | AM11: 0.8892071635 | AN11: 0.02432493195 | AO11: 0.2492886069 | AP11: 0.2457099117 | AQ11: 0.2106092778 | AR11: 0.02146326323 | AS11: 0.1783023875 | AT11: 0.1309286519 | AU11: 0.4040739454 | AV11: 0.5348842366 | AW11: 0.472929649 | AX11: 0.1049478808 | AY11: 0.9176560016 | BA11: 4772.854659 | BB11: 3021.959068 | BC11: 13230.09359 | BD11: 7597.601054 | BE11: 14189.37357 | BF11: 5369.259896 | BG11: 1514.51583 | BH11: 1992.366708 | BI11: 8060.426 | BJ11: 454.8785649 | BK11: 1629.050581 | BL11: 1143.251063 | BM11: 2572.715709 | BN11: 2374.358566 | BO11: 17928.41185 | BP11: 2155.768744 | BQ11: 1730.993956 | BR11: 12808.09886 | BS11: 13295.76483 | BT11: 508.7724432 | BU11: 5896.884874 | BV11: 1473.265436 | BW11: 3796.571892 | BX11: 3303.821227 | BY11: 2216.938328 | BZ11: 2719.294973 | CA11: 5184.248888 | CB11: 4870.044533 | CC11: 1894.750375 | CD11: 5606.238744 | CE11: 28090.34034 | CF11: 948.7364614 | CG11: 40078.90775 | CH11: 32151.73351 | CI11: 59754.03859 | CJ11: 20796.63254 | CK11: 697.615205 | CL11: 16641.44764 | CM11: 487.4274463 | CN11: 1776.963237 | CO11: 1755.595055 | CP11: 1551.785936 | CQ11: 464.1403556 | CR11: 1371.838774 | CS11: 1115.998165 | CT11: 2855.781911 | CU11: 4157.306563 | CV11: 3478.509068 | CW11: 976.4524992 | CX11: 20682.08762 | CZ11: 3.67877821 | DA11: 3.480288578 | DB11: 4.121562916 | DC11: 3.880676485 | DD11: 4.151963223 | DE11: 3.729914426 | DF11: 3.180273817 | DG11: 3.299369276 | DH11: 3.906357995 | DI11: 2.657895472 | DJ11: 3.211934569 | DK11: 3.058141614 | DL11: 3.410391798 | DM11: 3.375546305 | DN11: 4.25354182 | DO11: 3.333602171 | DP11: 3.238295551 | DQ11: 4.107484671 | DR11: 4.123713325 | DS11: 2.70652358 | DT11: 3.770622649 | DU11: 3.168281 | DV11: 3.579391628 | DW11: 3.519016539 | DX11: 3.345753612 | DY11: 3.43445632 | DZ11: 3.714685843 | EA11: 3.687532933 | EB11: 3.277552002 | EC11: 3.748671588 | ED11: 4.448557001 | EE11: 2.977145591 | EF11: 4.602915877 | EG11: 4.507204394 | EH11: 4.776367263 | EI11: 4.317993018 | EJ11: 2.843615938 | EK11: 4.221191103 | EL11: 2.68790998 | EM11: 3.249678443 | EN11: 3.244424349 | EO11: 3.190831811 | EP11: 2.666649331 | EQ11: 3.137303074 | ER11: 3.04766348 | ES11: 3.455725038 | ET11: 3.618812051 | EU11: 3.54139314 | EV11: 2.989651121 | EW11: 4.315594374 | EX11: 3.559856926 | EZ11: 3.075 | FA11: 0 | FB11: =AVERAGE(EZ10:EZ11) -> 3.05
A12: 9 | B12: 0.7010110348 | C12: 0.1734934878 | D12: 0.4096014995 | E12: 0.4935460447 | F12: 0.2572257969 | G12: 0.8200525701 | H12: 0.4382365238 | I12: 0.232386053 | J12: 0.6299034763 | K12: 0.06890775595 | L12: 0.7647517658 | M12: 0.5276428945 | N12: 0.8319754697 | O12: 0.823964842 | P12: 0.4873110799 | Q12: 0.585918065 | R12: 0.9035334414 | S12: 0.8833570478 | T12: 0.7024990933 | U12: 0.6295265614 | V12: 0.3992748871 | W12: 0.2906666248 | X12: 0.5581465357 | Y12: 0.8830980299 | Z12: 0.0926504923 | AA12: 0.5943009353 | AB12: 0.1115617098 | AC12: 0.1747980245 | AD12: 0.09072020366 | AE12: 0.0006251339386 | AF12: 0.5216071121 | AG12: 0.5529570022 | AH12: 0.2249806437 | AI12: 0.6448246781 | AJ12: 0.7553183917 | AK12: 0.9422262133 | AL12: 0.1862116652 | AM12: 0.4069456377 | AN12: 0.004870403795 | AO12: 0.8013006298 | AP12: 0.9749419611 | AQ12: 0.6898944498 | AR12: 0.2407723088 | AS12: 0.7674508577 | AT12: 0.7932866669 | AU12: 0.3658515785 | AV12: 0.5703881276 | AW12: 0.1676207796 | AX12: 0.3928307485 | AY12: 0.7061667494 | BA12: 6988.697342 | BB12: 1345.535328 | BC12: 2901.656061 | BD12: 3689.94746 | BE12: 1824.787674 | BF12: 11266.3442 | BG12: 3150.145797 | BH12: 1677.046894 | BI12: 5530.833593 | BJ12: 776.8468893 | BK12: 8856.060469 | BL12: 4070.824314 | BM12: 11942.9126 | BN12: 11480.49501 | BO12: 3624.609427 | BP12: 4833.126685 | BQ12: 18449.20613 | BR12: 16002.56235 | BS12: 7024.993934 | BT12: 5524.302573 | BU12: 2816.469111 | BV12: 2033.449543 | BW12: 4450.08097 | BX12: 15975.41101 | BY12: 909.6035601 | BZ12: 4956.825501 | CA12: 1012.115457 | CB12: 1352.660473 | CC12: 899.0239089 | CD12: 164.1536192 | CE12: 4000.315001 | CF12: 4382.69169 | CG12: 1634.038943 | CH12: 5798.139299 | CI12: 8532.047144 | CJ12: 26386.91772 | CK12: 1415.34253 | CL12: 2879.534288 | CM12: 280.8641737 | CN12: 10332.36658 | CO12: 44513.20711 | CP12: 6726.286208 | CQ12: 1726.304653 | CR12: 8952.541593 | CS12: 9973.985817 | CT12: 2555.070038 | CU12: 4614.106208 | CV12: 1313.549006 | CW12: 2764.413723 | CX12: 7115.690529 | CZ12: 3.844396233 | DA12: 3.128895105 | DB12: 3.462645933 | DC12: 3.567020182 | DD12: 3.261212339 | DE12: 4.051783015 | DF12: 3.498330655 | DG12: 3.224545207 | DH12: 3.742790592 | DI12: 2.890335431 | DJ12: 3.947240573 | DK12: 3.60968236 | DL12: 4.077110254 | DM12: 4.059960614 | DN12: 3.559261216 | DO12: 3.684228179 | DP12: 4.265977683 | DQ12: 4.204189528 | DR12: 3.846645954 | DS12: 3.742277457 | DT12: 3.449704993 | DU12: 3.308233401 | DV12: 3.648367913 | DW12: 4.20345204 | DX12: 2.958852151 | DY12: 3.69520363 | DZ12: 3.005230057 | EA12: 3.131188799 | EB12: 2.953771242 | EC12: 2.215250462 | ED12: 3.602094191 | EE12: 3.64174092 | EF12: 3.213262402 | EG12: 3.763288645 | EH12: 3.931053246 | EI12: 4.421388663 | EJ12: 3.150861557 | EK12: 3.459322254 | EL12: 2.448496345 | EM12: 4.014199806 | EN12: 4.648488886 | EO12: 3.827775343 | EP12: 3.237117441 | EQ12: 3.951946347 | ER12: 3.998868746 | ES12: 3.407402809 | ET12: 3.664087587 | EU12: 3.11844628 | EV12: 3.44160304 | EW12: 3.852217052 | EX12: 3.580628895 | EZ12: 3.125 | FA12: 0 | FB12: 3.1
A13: 10 | B13: 0.8796564781 | C13: 0.5427533074 | D13: 0.9951953217 | E13: 0.9744392978 | F13: 0.5871413024 | G13: 0.6412811859 | H13: 0.4129659756 | I13: 0.6357350604 | J13: 0.4989012331 | K13: 0.8233239892 | L13: 0.7999557943 | M13: 0.1162055232 | N13: 0.2005980868 | O13: 0.09516696086 | P13: 0.08140335672 | Q13: 0.6454643796 | R13: 0.6141185909 | S13: 0.5472223347 | T13: 0.1901632616 | U13: 0.7653521277 | V13: 0.7660676604 | W13: 0.4308309297 | X13: 0.7216636426 | Y13: 0.7299335817 | Z13: 0.2235710339 | AA13: 0.3637887011 | AB13: 0.03902482717 | AC13: 0.05560243725 | AD13: 0.06195821395 | AE13: 0.4310327154 | AF13: 0.6268893408 | AG13: 0.06017924958 | AH13: 0.4763588041 | AI13: 0.3716332459 | AJ13: 0.04200879773 | AK13: 0.9617155928 | AL13: 0.3958389531 | AM13: 0.2286884927 | AN13: 0.1186287103 | AO13: 0.9999593566 | AP13: 0.4423585204 | AQ13: 0.5490643065 | AR13: 0.4407290303 | AS13: 0.8695256525 | AT13: 0.7816546902 | AU13: 0.3646778912 | AV13: 0.3000934418 | AW13: 0.3845692991 | AX13: 0.09831017989 | AY13: 0.2812055366 | BA13: 15623.18656 | BB13: 4253.717781 | BC13: 109106.3788 | BD13: 43992.96728 | BE13: 4850.929358 | BF13: 5733.069184 | BG13: 2929.896531 | BH13: 5633.240018 | BI13: 3747.075227 | BJ13: 11444.91221 | BK13: 10270.66597 | BL13: 1037.07705 | BM13: 1495.350581 | BN13: 923.3559014 | BO13: 847.5100851 | BP13: 5809.995837 | BQ13: 5266.008027 | BR13: 4309.642571 | BS13: 1437.200131 | BT13: 8877.370418 | BU13: 8902.880238 | BV13: 3084.061755 | BW13: 7519.529816 | BX13: 7749.854996 | BY13: 1625.902175 | BZ13: 2539.60261 | CA13: 593.6857106 | CB13: 698.5895987 | CC13: 736.4544072 | CD13: 3085.84498 | CE13: 5478.898265 | CF13: 725.9545946 | CG13: 3512.779418 | CH13: 2598.815466 | CI13: 613.4202405 | CJ13: 34406.55114 | CK13: 2788.610562 | CL13: 1655.517194 | CM13: 1050.083507 | CN13: 887643.9743 | CO13: 3187.508609 | CP13: 4332.946353 | CQ13: 3172.688108 | CR13: 14670.24176 | CS13: 9490.729332 | CT13: 2546.260768 | CU13: 2094.575103 | CV13: 2698.870418 | CW13: 940.4758597 | CX13: 1973.165541 | CZ13: 4.193769619 | DA13: 3.628768673 | DB13: 5.037850142 | DC13: 4.643383256 | DD13: 3.68582495 | DE13: 3.758387183 | DF13: 3.466852284 | DG13: 3.750758256 | DH13: 3.573692412 | DI13: 4.058612466 | DJ13: 4.011598605 | DK13: 3.015811024 | DL13: 3.174743024 | DM13: 2.965369129 | DN13: 2.928144875 | DO13: 3.764175821 | DP13: 3.721481517 | DQ13: 3.634441253 | DR13: 3.157517248 | DS13: 3.948284342 | DT13: 3.949530531 | DU13: 3.489123066 | DV13: 3.876190686 | DW13: 3.889293577 | DX13: 3.211094412 | DY13: 3.404765765 | DZ13: 2.773556596 | EA13: 2.844222115 | EB13: 2.867145865 | EC13: 3.489374105 | ED13: 3.738693236 | EE13: 2.860909458 | EF13: 3.545650879 | EG13: 3.414775443 | EH13: 2.787758102 | EI13: 4.536641142 | EJ13: 3.445387868 | EK13: 3.218933696 | EL13: 3.021223837 | EM13: 5.948238809 | EN13: 3.503451366 | EO13: 3.636783312 | EP13: 3.501427381 | EQ13: 4.166437271 | ER13: 3.977299588 | ES13: 3.405902879 | ET13: 3.321095937 | EU13: 3.431182033 | EV13: 2.973347652 | EW13: 3.295163522 | EX13: 3.592881324 | EZ13: 3.175 | FA13: 0 | FB13: 3.15
A14: 11 | B14: 0.597219142 | C14: 0.5364076881 | D14: 0.1252274848 | E14: 0.4801439728 | F14: 0.1898941424 | G14: 0.8947924177 | H14: 0.2123628196 | I14: 0.8795731796 | J14: 0.660054837 | K14: 0.2875056519 | L14: 0.9647168467 | M14: 0.05041082586 | N14: 0.9249438222 | O14: 0.9042441691 | P14: 0.2963589915 | Q14: 0.9450085813 | R14: 0.247714589 | S14: 0.7586285746 | T14: 0.4276606245 | U14: 0.9049403357 | V14: 0.616249335 | W14: 0.3339117554 | X14: 0.7142868124 | Y14: 0.110037318 | Z14: 0.4108436356 | AA14: 0.7841977791 | AB14: 0.850186074 | AC14: 0.394654587 | AD14: 0.4266922956 | AE14: 0.3812724844 | AF14: 0.7831908622 | AG14: 0.09351362648 | AH14: 0.738885407 | AI14: 0.807953433 | AJ14: 0.73632657 | AK14: 0.9022636485 | AL14: 0.9298287258 | AM14: 0.08926360242 | AN14: 0.4847718572 | AO14: 0.6353153947 | AP14: 0.5946449466 | AQ14: 0.8787051389 | AR14: 0.2981025945 | AS14: 0.9981990872 | AT14: 0.326554086 | AU14: 0.389156676 | AV14: 0.9666511507 | AW14: 0.7396806069 | AX14: 0.8169648288 | AY14: 0.9861930248 | BA14: 5000.839488 | BB14: 4175.77074 | BC14: 1085.45937 | BD14: 3551.014332 | BE14: 1435.708814 | BF14: 17301.44317 | BG14: 1561.741176 | BH14: 15614.85297 | BI14: 6089.946318 | BJ14: 2013.192607 | BK14: 36197.68532 | BL14: 666.8393229 | BM14: 22076.31912 | BN14: 18549.4869 | BO14: 2070.23014 | BP14: 27265.28807 | BQ14: 1767.550258 | BR14: 8643.480247 | BS14: 3056.170959 | BT14: 18648.8169 | BU14: 5300.747634 | BV14: 2323.405237 | BW14: 7322.989617 | BX14: 1003.908838 | BY14: 2912.053867 | BZ14: 9592.899476 | CA14: 13133.55999 | CB14: 2779.062555 | CC14: 3047.698931 | CD14: 2673.078019 | CE14: 9552.222008 | CF14: 914.325457 | CG14: 8012.018635 | CH14: 10647.44196 | CI14: 7935.653008 | CJ14: 18272.813 | CK14: 23130.97569 | CL14: 891.0213877 | CM14: 3598.353499 | CN14: 5625.783986 | CO14: 4961.988013 | CP14: 15528.53247 | CQ14: 2081.575227 | CR14: 175769.0596 | CS14: 2272.270722 | CT14: 2735.102251 | CU14: 37476.37522 | CV14: 8035.990582 | CW14: 11102.36731 | CX14: 62571.49075 | CZ14: 3.699042915 | DA14: 3.620736647 | DB14: 3.035613572 | DC14: 3.550352425 | DD14: 3.157066367 | DE14: 4.238082331 | DF14: 3.193609061 | DG14: 4.193537899 | DH14: 3.784613464 | DI14: 3.303885327 | DJ14: 4.5586808 | DK14: 2.824021202 | DL14: 4.343926663 | DM14: 4.268331901 | DN14: 3.316018627 | DO14: 4.43561009 | DP14: 3.247371771 | DQ14: 3.936688644 | DR14: 3.485177645 | DS14: 4.270651285 | DT14: 3.724337128 | DU14: 3.366124964 | DV14: 3.864688418 | DW14: 3.001694277 | DX14: 3.464199404 | DY14: 3.981949894 | DZ14: 4.118382462 | EA14: 3.443898323 | EB14: 3.483972063 | EC14: 3.427011635 | ED14: 3.980104408 | EE14: 2.961100812 | EF14: 3.903741951 | EG14: 4.027245281 | EH14: 3.89958267 | EI14: 4.26180541 | EJ14: 4.364193952 | EK14: 2.949888129 | EL14: 3.556103826 | EM14: 3.750183052 | EN14: 3.695655711 | EO14: 4.191130415 | EP14: 3.318392111 | EQ14: 5.244942429 | ER14: 3.356460073 | ES14: 3.436973567 | ET14: 4.573757579 | EU14: 3.905039419 | EV14: 4.045415591 | EW14: 4.796376502 | EX14: 3.771147402 | EZ14: 3.225 | FA14: 0 | FB14: 3.2
A15: 12 | B15: 0.5013314984 | C15: 0.1067430099 | D15: 0.9870201361 | E15: 0.1441803754 | F15: 0.3000024166 | G15: 0.450478073 | H15: 0.9473851005 | I15: 0.5424048383 | J15: 0.3245143215 | K15: 0.3788222344 | L15: 0.8014433809 | M15: 0.9084236193 | N15: 0.889020687 | O15: 0.8488440916 | P15: 0.918466658 | Q15: 0.7390086865 | R15: 0.5189944673 | S15: 0.6476227179 | T15: 0.1985172042 | U15: 0.06542225552 | V15: 0.2230391402 | W15: 0.3890673848 | X15: 0.2495334602 | Y15: 0.3796475913 | Z15: 0.9342465441 | AA15: 0.8161808104 | AB15: 0.4300363337 | AC15: 0.05831010656 | AD15: 0.4277691837 | AE15: 0.1735980448 | AF15: 0.5601451875 | AG15: 0.2593166152 | AH15: 0.1848801538 | AI15: 0.749009801 | AJ15: 0.6576276301 | AK15: 0.07442636808 | AL15: 0.6906791225 | AM15: 0.8968774065 | AN15: 0.1914462083 | AO15: 0.07101118647 | AP15: 0.6948711332 | AQ15: 0.6494584825 | AR15: 0.4660848089 | AS15: 0.6772979433 | AT15: 0.5309742593 | AU15: 0.3033536293 | AV15: 0.6981392328 | AW15: 0.1782295255 | AX15: 0.869806608 | AY15: 0.3105928444 | BA15: 3773.316035 | BB15: 986.1477872 | BC15: 64739.24895 | BD15: 1187.034948 | BE15: 2093.979647 | BF15: 3262.359711 | BG15: 28069.95161 | BH15: 4249.393242 | BI15: 2258.232957 | BJ15: 2654.039946 | BK15: 10338.95417 | BL15: 19162.94524 | BM15: 16620.29116 | BN15: 13038.30612 | BO15: 20827.80107 | BP15: 8015.727473 | BQ15: 3970.225518 | BR15: 5850.250518 | BS15: 1483.701901 | BT15: 756.7050629 | BU15: 1622.835931 | BV15: 2734.393161 | BW15: 1778.429594 | BX15: 2660.440439 | BY15: 24184.80532 | BZ15: 11061.41407 | CA15: 3077.049096 | CB15: 714.8428482 | CC15: 3057.122117 | CD15: 1346.106124 | CE15: 4476.368479 | CF15: 1837.487564 | CG15: 1407.996438 | CH15: 8326.091838 | CI15: 6042.069146 | CJ15: 808.3222616 | CK15: 6744.319324 | CL15: 17561.70329 | CM15: 1444.315145 | CN15: 788.8999501 | CO15: 6841.896599 | CP15: 5884.797131 | CQ15: 3411.125188 | CR15: 6446.330208 | CS15: 4110.349769 | CT15: 2115.970863 | CU15: 6919.448078 | CV15: 1371.439442 | CW15: 14695.12589 | CX15: 2163.966787 | CZ15: 3.576723181 | DA15: 2.993942005 | DB15: 4.811167657 | DC15: 3.074463505 | DD15: 3.320972456 | DE15: 3.513531845 | DF15: 4.448241664 | DG15: 3.628326923 | DH15: 3.353768741 | DI15: 3.423907455 | DJ15: 4.01447661 | DK15: 4.282462259 | DL15: 4.220638628 | DM15: 4.115221173 | DN15: 4.318643421 | DO15: 3.903942943 | DP15: 3.598815176 | DQ15: 3.767174464 | DR15: 3.171346653 | DS15: 2.87892664 | DT15: 3.210274615 | DU15: 3.436860959 | DV15: 3.250036677 | DW15: 3.424953541 | DX15: 4.383542596 | DY15: 4.04381065 | DZ15: 3.488134426 | EA15: 2.854210577 | EB15: 3.485312787 | EC15: 3.1290793 | ED15: 3.650925829 | EE15: 3.264224408 | EF15: 3.148601556 | EG15: 3.920441197 | EH15: 3.781185691 | EI15: 2.90758454 | EJ15: 3.828938125 | EK15: 4.244566635 | EL15: 3.159661965 | EM15: 2.897021929 | EN15: 3.835176506 | EO15: 3.769731496 | EP15: 3.532897658 | EQ15: 3.809312548 | ER15: 3.61387878 | ES15: 3.325509683 | ET15: 3.840071455 | EU15: 3.137176636 | EV15: 4.167173311 | EW15: 3.335250591 | EX15: 3.605844801 | EZ15: 3.275 | FA15: 0 | FB15: 3.25
A16: 13 | B16: 0.5082491077 | C16: 0.461838913 | D16: 0.4013919815 | E16: 0.3201267921 | F16: 0.5436201223 | G16: 0.9996006158 | H16: 0.609731215 | I16: 0.7219760752 | J16: 0.4347364731 | K16: 0.02826445811 | L16: 0.2565675829 | M16: 0.9423450959 | N16: 0.6500398488 | O16: 0.9241793909 | P16: 0.1884915654 | Q16: 0.8393545488 | R16: 0.6734364198 | S16: 0.554259055 | T16: 0.3482864012 | U16: 0.1541956167 | V16: 0.3830695887 | W16: 0.3775240573 | X16: 0.6663210199 | Y16: 0.09023235578 | Z16: 0.6305784826 | AA16: 0.0878514652 | AB16: 0.2874180452 | AC16: 0.8286987154 | AD16: 0.7036784635 | AE16: 0.6693508791 | AF16: 0.3190462223 | AG16: 0.8327843809 | AH16: 0.1816336537 | AI16: 0.1206571093 | AJ16: 0.8309132322 | AK16: 0.3282698695 | AL16: 0.3079754533 | AM16: 0.6531986212 | AN16: 0.8762335915 | AO16: 0.153126566 | AP16: 0.6384019166 | AQ16: 0.8851453503 | AR16: 0.5314414252 | AS16: 0.9299581403 | AT16: 0.8287161653 | AU16: 0.8562457963 | AV16: 0.1553176176 | AW16: 0.04265290765 | AX16: 0.2967087221 | AY16: 0.9404967777 | BA16: 3849.115497 | BB16: 3369.994269 | BC16: 2833.753591 | BD16: 2228.236563 | BE16: 4264.497578 | BF16: 346266.1177 | BG16: 5195.42307 | BH16: 7528.03489 | BI16: 3118.748209 | BJ16: 517.7850106 | BK16: 1820.798532 | BL16: 26423.14434 | BM16: 5895.797389 | BN16: 21920.62274 | BO16: 1427.942993 | BP16: 12400.16498 | BQ16: 6363.939968 | BR16: 4399.483404 | BS16: 2425.648986 | BT16: 1240.902442 | BU16: 2687.112241 | BV16: 2643.998165 | BW16: 6216.086074 | BX16: 896.3455739 | BY16: 5542.556151 | BZ16: 883.246485 | CA16: 2012.632859 | CB16: 11749.70958 | CC16: 7053.965096 | CD16: 6278.429838 | CE16: 2220.89013 | CF16: 11991.50848 | CG16: 1390.123632 | CH16: 1060.963334 | CI16: 11879.64584 | CJ16: 2284.124874 | CK16: 2146.534978 | CL16: 5956.074794 | CM16: 15287.85636 | CN16: 1235.141358 | CO16: 5680.940546 | CP16: 16192.57016 | CQ16: 4115.927789 | CR16: 23160.41585 | CS16: 11750.72326 | CT16: 13580.64486 | CU16: 1246.952184 | CV16: 617.6215473 | CW16: 2072.502727 | CX16: 25872.24706 | CZ16: 3.585360943 | DA16: 3.527629162 | DB16: 3.452362083 | DC16: 3.347961296 | DD16: 3.629867872 | DE16: 5.539409998 | DF16: 3.715620918 | DG16: 3.876681623 | DH16: 3.493980314 | DI16: 2.714149474 | DJ16: 3.260261895 | DK16: 4.421984497 | DL16: 3.77054255 | DM16: 4.340852888 | DN16: 3.15471087 | DO16: 4.093427463 | DP16: 3.803726074 | DQ16: 3.643401684 | DR16: 3.384827955 | DS16: 3.093737639 | DT16: 3.429285807 | DU16: 3.422261149 | DV16: 3.79351702 | DW16: 2.952475478 | DX16: 3.743710102 | DY16: 2.946081918 | DZ16: 3.303764559 | EA16: 4.070027132 | EB16: 3.848433306 | EC16: 3.797851045 | ED16: 3.346527074 | EE16: 4.078873819 | EF16: 3.143053426 | EG16: 3.025700375 | EH16: 4.074803494 | EI16: 3.358719843 | EJ16: 3.33173797 | EK16: 3.774960143 | EL16: 4.184346594 | EM16: 3.091716664 | EN16: 3.754420244 | EO16: 4.209315788 | EP16: 3.614467747 | EQ16: 4.364746353 | ER16: 4.070064598 | ES16: 4.132920392 | ET16: 3.0958498 | EU16: 2.790722439 | EV16: 3.316495111 | EW16: 4.41283415 | EX16: 3.646603615 | EZ16: 3.325 | FA16: 1 | FB16: 3.3
A17: 14 | B17: 0.7286769375 | C17: 0.9179919729 | D17: 0.1184184026 | E17: 0.2906416034 | F17: 0.1153054177 | G17: 0.3939663701 | H17: 0.1558678958 | I17: 0.7727892296 | J17: 0.2228916695 | K17: 0.1063799201 | L17: 0.8714030572 | M17: 0.9309308066 | N17: 0.3585181296 | O17: 0.8370748241 | P17: 0.2182415007 | Q17: 0.3614955405 | R17: 0.4401760659 | S17: 0.2692588222 | T17: 0.02760029559 | U17: 0.2282183274 | V17: 0.1007860504 | W17: 0.4368288917 | X17: 0.7074024295 | Y17: 0.9959685952 | Z17: 0.9636077643 | AA17: 0.4226629285 | AB17: 0.08877411072 | AC17: 0.3967497918 | AD17: 0.005620838444 | AE17: 0.8022760385 | AF17: 0.8428567103 | AG17: 0.7173961817 | AH17: 0.3573483581 | AI17: 0.2610935793 | AJ17: 0.5549756902 | AK17: 0.1688977978 | AL17: 0.8056560031 | AM17: 0.702015066 | AN17: 0.2939335635 | AO17: 0.6231407265 | AP17: 0.1188686131 | AQ17: 0.2151721184 | AR17: 0.8714381912 | AS17: 0.1422492845 | AT17: 0.7585245221 | AU17: 0.8339130853 | AV17: 0.107196169 | AW17: 0.2811803503 | AX17: 0.6344240988 | AY17: 0.611952973 | BA17: 7714.145358 | BB17: 20742.21297 | BC17: 1048.955101 | BD17: 2033.28873 | BE17: 1032.242778 | BF17: 2773.52716 | BG17: 1249.920521 | BH17: 9148.630354 | BI17: 1621.986186 | BJ17: 984.1878101 | BK17: 14838.105 | BL17: 23384.33838 | BM17: 2500.41321 | BN17: 12255.48095 | BO17: 1595.27675 | BP17: 2522.494025 | BQ17: 3167.673821 | BR17: 1898.483629 | BS17: 512.7866112 | BT17: 1652.787585 | BU17: 953.920889 | BV17: 3137.482623 | BW17: 7146.650584 | BX17: 119112.762 | BY17: 35510.34239 | BZ17: 3012.677825 | CA17: 888.328263 | CB17: 2795.972518 | CC17: 293.3068591 | CD17: 10377.52673 | CE17: 12628.72983 | CF17: 7404.846516 | CG17: 2491.778672 | CH17: 1848.315303 | CI17: 4408.75839 | CJ17: 1320.492444 | CK17: 10536.73869 | CL17: 7013.156207 | CM17: 2054.510584 | CN17: 5415.226097 | CO17: 1051.370616 | CP17: 1577.735765 | CQ17: 14841.28226 | CR17: 1176.671079 | CS17: 8639.941006 | CT17: 12059.92811 | CU17: 988.5932586 | CV17: 1973.006434 | CW17: 5609.993626 | CX17: 5231.009382 | CZ17: 3.887287818 | DA17: 4.316855089 | DB17: 3.020756899 | DC17: 3.308199053 | DD17: 3.013781853 | DE17: 3.443032423 | DF17: 3.096882398 | DG17: 3.96135608 | DH17: 3.210047151 | DI17: 2.993077982 | DJ17: 4.17137844 | DK17: 4.368925087 | DL17: 3.398011785 | DM17: 4.088330359 | DN17: 3.202836036 | DO17: 3.401830146 | DP17: 3.500740455 | DQ17: 3.278406856 | DR17: 2.709936677 | DS17: 3.218217042 | DT17: 2.979512359 | DU17: 3.496581329 | DV17: 3.854102549 | DW17: 5.075958295 | DX17: 4.55035486 | DY17: 3.478952691 | DZ17: 2.94857348 | EA17: 3.446532898 | EB17: 2.467322219 | EC17: 4.016093861 | ED17: 4.101359672 | EE17: 3.869516061 | EF17: 3.396509464 | EG17: 3.266776059 | EH17: 3.644316299 | EI17: 3.12073592 | EJ17: 4.02270621 | EK17: 3.845913512 | EL17: 3.312708383 | EM17: 3.733616594 | EN17: 3.021755835 | EO17: 3.19803427 | EP17: 4.171471425 | EQ17: 3.070655079 | ER17: 3.936510777 | ES17: 4.081344719 | ET17: 2.995017645 | EU17: 3.295128501 | EV17: 3.748962368 | EW17: 3.718585499 | EX17: 3.549109969 | EZ17: 3.375 | FA17: 0 | FB17: 3.35
A18: 15 | B18: 0.9401770097 | C18: 0.3941870054 | D18: 0.4569100781 | E18: 0.09486635196 | F18: 0.07343096337 | G18: 0.589208741 | H18: 0.06631510437 | I18: 0.6172351268 | J18: 0.6431849787 | K18: 0.415611243 | L18: 0.1183798509 | M18: 0.9874339277 | N18: 0.5904260206 | O18: 0.6928425001 | P18: 0.5401633775 | Q18: 0.3209740497 | R18: 0.7358893801 | S18: 0.453806275 | T18: 0.1461360806 | U18: 0.07609074795 | V18: 0.1905859834 | W18: 0.04849981576 | X18: 0.2272418357 | Y18: 0.2619719092 | Z18: 0.8598258689 | AA18: 0.7655198714 | AB18: 0.4085055932 | AC18: 0.0299860592 | AD18: 0.8350405119 | AE18: 0.5464852386 | AF18: 0.8706808863 | AG18: 0.1686032691 | AH18: 0.8254717502 | AI18: 0.259862362 | AJ18: 0.05079216834 | AK18: 0.9648377498 | AL18: 0.6050194536 | AM18: 0.9000940469 | AN18: 0.7334850263 | AO18: 0.2410327505 | AP18: 0.5403319912 | AQ18: 0.2928347894 | AR18: 0.4359113401 | AS18: 0.9005108055 | AT18: 0.8596897454 | AU18: 0.401794969 | AV18: 0.4930300304 | AW18: 0.5523484791 | AX18: 0.9405911105 | AY18: 0.753244775 | BA18: 25779.53831 | BB18: 2775.300729 | BC18: 3322.87155 | BD18: 921.7153494 | BE18: 802.6791951 | BF18: 4881.208575 | BG18: 761.8858535 | BH18: 5316.923391 | BI18: 5767.901987 | BJ18: 2952.272365 | BK18: 1048.748243 | BL18: 65900.4555 | BM18: 4899.149452 | BN18: 6794.41368 | BO18: 4221.699812 | BP18: 2234.008089 | BQ18: 7922.722041 | BR18: 3293.534225 | BS18: 1197.537302 | BT18: 817.7269157 | BU18: 1439.54345 | BV18: 654.931792 | BW18: 1647.12413 | BX18: 1853.679041 | BY18: 13858.68527 | BZ18: 8883.339785 | CA18: 2892.509673 | CB18: 530.5417001 | CC18: 12128.99309 | CD18: 4300.358941 | CE18: 14773.09109 | CF18: 1318.890453 | CG18: 11564.96255 | CH18: 1840.809648 | CI18: 669.2003732 | CJ18: 36274.54754 | CK18: 5121.003728 | CL18: 17979.356 | CM18: 7852.20444 | CN18: 1727.844169 | CO18: 4223.775657 | CP18: 2047.412776 | CQ18: 3129.254276 | CR18: 18034.96915 | CS18: 13847.91394 | CT18: 2837.054066 | CU18: 3684.49251 | CV18: 4374.870367 | CW18: 25899.7394 | CX18: 8463.43891 | CZ18: 4.411275135 | DA18: 3.44331005 | DB18: 3.521513553 | DC18: 2.96459682 | DD18: 2.904542007 | DE18: 3.688527366 | DF18: 2.88188991 | DG18: 3.725660403 | DH18: 3.761017872 | DI18: 3.470156421 | DJ18: 3.020671246 | DK18: 4.818888416 | DL18: 3.690120688 | DM18: 3.832151985 | DN18: 3.625487349 | DO18: 3.349084741 | DP18: 3.89887442 | DQ18: 3.517662181 | DR18: 3.07828905 | DS18: 2.912608293 | DT18: 3.158224778 | DU18: 2.816196073 | DV18: 3.21672633 | DW18: 3.26803454 | DX18: 4.141722032 | DY18: 3.948576274 | DZ18: 3.46127482 | EA18: 2.724719525 | EB18: 4.083824749 | EC18: 3.633504707 | ED18: 4.169471376 | EE18: 3.120208725 | EF18: 4.063144231 | EG18: 3.265008882 | EH18: 2.825556174 | EI18: 4.559602004 | EJ18: 3.709355092 | EK18: 4.254774132 | EL18: 3.894991598 | EM18: 3.237504572 | EN18: 3.625700843 | EO18: 3.311205409 | EP18: 3.495440854 | EQ18: 4.256115404 | ER18: 4.141384356 | ES18: 3.452867612 | ET18: 3.566377678 | EU18: 3.640965189 | EV18: 4.413295394 | EW18: 3.927546864 | EX18: 3.597992962 | EZ18: 3.425 | FA18: 2 | FB18: 3.4
A19: 16 | B19: 0.7921072333 | C19: 0.5881628616 | D19: 0.4955710719 | E19: 0.05182273126 | F19: 0.1208022065 | G19: 0.839020703 | H19: 0.4099645278 | I19: 0.946693058 | J19: 0.1577871425 | K19: 0.8817880878 | L19: 0.1349453495 | M19: 0.5671668864 | N19: 0.6827358566 | O19: 0.921771824 | P19: 0.7881230285 | Q19: 0.01665453064 | R19: 0.9079703151 | S19: 0.9173989992 | T19: 0.3421213475 | U19: 0.1468139549 | V19: 0.6452886187 | W19: 0.0718227507 | X19: 0.5307950819 | Y19: 0.3124290392 | Z19: 0.07167735219 | AA19: 0.05907925506 | AB19: 0.4210327278 | AC19: 0.9404627198 | AD19: 0.03114651307 | AE19: 0.8900703813 | AF19: 0.2558572974 | AG19: 0.7548820026 | AH19: 0.6427032323 | AI19: 0.9283291925 | AJ19: 0.8825471303 | AK19: 0.02606545967 | AL19: 0.912654152 | AM19: 0.3296457717 | AN19: 0.8917954659 | AO19: 0.6474607588 | AP19: 0.6934695756 | AQ19: 0.9848349355 | AR19: 0.02933924866 | AS19: 0.993104585 | AT19: 0.7553502262 | AU19: 0.1011822924 | AV19: 0.8160861374 | AW19: 0.7534616318 | AX19: 0.283561568 | AY19: 0.3196294527 | BA19: 9923.068107 | BB19: 4865.860851 | BC19: 3711.438673 | BD19: 675.5569751 | BE19: 1061.741371 | BF19: 12378.77924 | BG19: 2904.691523 | BH19: 27830.10417 | BI19: 1260.280265 | BJ19: 15839.49519 | BK19: 1137.514665 | BL19: 4570.235915 | BM19: 6565.032669 | BN19: 21445.36666 | BO19: 9754.34705 | BP19: 421.8450655 | BQ19: 19094.36795 | BR19: 20636.34469 | BS19: 2381.409117 | BT19: 1201.179207 | BU19: 5806.73483 | BV19: 793.5313141 | BW19: 4108.212683 | BX19: 2176.249743 | BY19: 792.7023217 | BZ19: 719.4255462 | CA19: 2998.61429 | CB19: 25862.3373 | CC19: 538.9889073 | CD19: 16740.09658 | CE19: 1816.498572 | CF19: 8517.533015 | CG19: 5759.059957 | CH19: 22795.71527 | CI19: 15917.96851 | CJ19: 501.0573179 | CK19: 19828.79916 | CL19: 2293.661476 | CM19: 16940.83091 | CN19: 5847.21633 | CO19: 6809.038259 | CP19: 59392.62371 | CQ19: 525.7816093 | CR19: 90721.16853 | CS19: 8533.107538 | CT19: 956.0696483 | CU19: 11056.48719 | CV19: 8470.571472 | CW19: 1988.080928 | CX19: 2224.853315 | CZ19: 3.996645972 | DA19: 3.687159685 | DB19: 3.569542289 | DC19: 2.829661982 | DD19: 3.02601874 | DE19: 4.092677818 | DF19: 3.463100017 | DG19: 4.444514832 | DH19: 3.100467136 | DI19: 4.199741336 | DJ19: 3.055957004 | DK19: 3.659938619 | DL19: 3.817236892 | DM19: 4.331333476 | DN19: 3.989198203 | DO19: 2.625152973 | DP19: 4.280905287 | DQ19: 4.314632773 | DR19: 3.376834012 | DS19: 3.079607806 | DT19: 3.763931994 | DU19: 2.899564069 | DV19: 3.613652919 | DW19: 3.337708733 | DX19: 2.89911013 | DY19: 2.856985855 | DZ19: 3.476920606 | EA19: 4.412667772 | EB19: 2.731579827 | EC19: 4.223757959 | ED19: 3.259235061 | EE19: 3.930313826 | EF19: 3.7603516 | EG19: 4.357853224 | EH19: 4.201887641 | EI19: 2.699887409 | EJ19: 4.297296414 | EK19: 3.36052932 | EL19: 4.228934708 | EM19: 3.766949162 | EN19: 3.833085774 | EO19: 4.773732511 | EP19: 2.720805391 | EQ19: 4.957708636 | ER19: 3.931107219 | ES19: 2.980489531 | ET19: 4.043617167 | EU19: 3.927912711 | EV19: 3.298434059 | EW19: 3.347301383 | EX19: 3.656672789 | EZ19: 3.475 | FA19: 29 | FB19: 3.45
A20: 17 | B20: 0.951432076 | C20: 0.8663010703 | D20: 0.5213149241 | E20: 0.1107765953 | F20: 0.9671676198 | G20: 0.681203827 | H20: 0.532082931 | I20: 0.9400551664 | J20: 0.8058866752 | K20: 0.9513157027 | L20: 0.5602401408 | M20: 0.8944844965 | N20: 0.003929159078 | O20: 0.06052688395 | P20: 0.4634312344 | Q20: 0.0839507178 | R20: 0.4738744785 | S20: 0.8309612919 | T20: 0.8624380586 | U20: 0.127885857 | V20: 0.118734329 | W20: 0.7198074143 | X20: 0.4675182506 | Y20: 0.2841576759 | Z20: 0.2354515035 | AA20: 0.5982077432 | AB20: 0.3121635327 | AC20: 0.9266825497 | AD20: 0.5630431318 | AE20: 0.7710728416 | AF20: 0.4545164329 | AG20: 0.4878969733 | AH20: 0.4718678827 | AI20: 0.2661592709 | AJ20: 0.5507085539 | AK20: 0.503914332 | AL20: 0.02473260636 | AM20: 0.06482629595 | AN20: 0.9802946222 | AO20: 0.5039266372 | AP20: 0.6592662309 | AQ20: 0.2911205584 | AR20: 0.5140817932 | AS20: 0.09561811381 | AT20: 0.2455566871 | AU20: 0.2163926726 | AV20: 0.05724410585 | AW20: 0.5624557282 | AX20: 0.8253433678 | AY20: 0.8820128053 | BA20: 29573.28481 | BB20: 14390.41822 | BC20: 3996.937125 | BD20: 1007.889641 | BE20: 37836.48839 | BF20: 6531.267004 | BG20: 4123.6017 | BH20: 25744.40824 | BI20: 10547.76159 | BJ20: 29527.4667 | BK20: 4477.622049 | BL20: 17263.67288 | BM20: 263.645786 | BN20: 728.0120621 | BO20: 3385.360484 | BP20: 861.6770026 | BQ20: 3487.916945 | BR20: 11882.49496 | BS20: 14068.55533 | BT20: 1099.700285 | BU20: 1050.650177 | BV20: 7469.307667 | BW20: 3425.125619 | BX20: 1991.864773 | BY20: 1694.982318 | BZ20: 5015.864617 | CA20: 2174.470908 | CB20: 22439.54077 | CC20: 4514.820368 | CD20: 9084.803551 | CE20: 3300.223986 | CF20: 3630.696399 | CG20: 3467.967967 | CH20: 1879.358358 | CI20: 4353.875611 | CJ20: 3801.424036 | CK20: 490.6533072 | CL20: 753.238442 | CM20: 51204.56993 | CN20: 3801.558496 | CO20: 6074.331759 | CP20: 2036.368274 | CQ20: 3914.334847 | CR20: 925.8169336 | CS20: 1754.682794 | CT20: 1584.702716 | CU20: 708.4669206 | CV20: 4506.993854 | CW20: 11557.72222 | CX20: 15862.64695 | CZ20: 4.470899566 | DA20: 4.158073416 | DB20: 3.601727317 | DC20: 3.003412982 | DD20: 4.577910823 | DE20: 3.814997438 | DF20: 3.61527671 | DG20: 4.410682914 | DH20: 4.023160305 | DI20: 4.470226188 | DJ20: 3.651047433 | DK20: 4.237133198 | DL20: 2.421020834 | DM20: 2.862138575 | DN20: 3.529604921 | DO20: 2.935344502 | DP20: 3.542566135 | DQ20: 4.074907639 | DR20: 4.148249503 | DS20: 3.041274338 | DT20: 3.021458138 | DU20: 3.873280349 | DV20: 3.534676504 | DW20: 3.299259851 | DX20: 3.229165172 | DY20: 3.700345806 | DZ20: 3.337353602 | EA20: 4.351013965 | EB20: 3.654640476 | EC20: 3.958315541 | ED20: 3.518543416 | EE20: 3.559989935 | EF20: 3.540075077 | EG20: 3.2740096 | EH20: 3.638876017 | EI20: 3.579946316 | EJ20: 2.690774731 | EK20: 2.876932476 | EL20: 4.709308723 | EM20: 3.579961677 | EN20: 3.783498508 | EO20: 3.308856322 | EP20: 3.592657974 | EQ20: 2.96652512 | ER20: 3.244198618 | ES20: 3.199947802 | ET20: 2.850319577 | EU20: 3.653886966 | EV20: 4.062872252 | EW20: 4.200375658 | EX20: 3.607614418 | EZ20: 3.525 | FA20: 104 | FB20: 3.5
A21: 18 | B21: 0.5983932711 | C21: 0.9685018682 | D21: 0.3929512935 | E21: 0.02548252846 | F21: 0.6738677613 | G21: 0.7371339131 | H21: 0.4853130354 | I21: 0.285648059 | J21: 0.8978064876 | K21: 0.0109975777 | L21: 0.2725269375 | M21: 0.01194109925 | N21: 0.3320518122 | O21: 0.5799046793 | P21: 0.7503859848 | Q21: 0.5704855743 | R21: 0.4544985096 | S21: 0.6680323937 | T21: 0.6352406638 | U21: 0.8218469695 | V21: 0.2363880158 | W21: 0.3320582396 | X21: 0.1449337201 | Y21: 0.9191947889 | Z21: 0.6108148084 | AA21: 0.7463578067 | AB21: 0.468130106 | AC21: 0.273380896 | AD21: 0.9234708116 | AE21: 0.2713986112 | AF21: 0.5457417394 | AG21: 0.6329686349 | AH21: 0.3079902283 | AI21: 0.2450747873 | AJ21: 0.1309812556 | AK21: 0.9948030376 | AL21: 0.365099892 | AM21: 0.6200231041 | AN21: 0.8079004889 | AO21: 0.09513647527 | AP21: 0.06196827148 | AQ21: 0.4555178815 | AR21: 0.4881964174 | AS21: 0.00346565539 | AT21: 0.1472618064 | AU21: 0.6675633233 | AV21: 0.4507296838 | AW21: 0.6471726647 | AX21: 0.6090111902 | AY21: 0.5615531128 | BA21: 5018.690855 | BB21: 38806.83182 | BC21: 2765.379898 | BD21: 496.5332281 | BE21: 6373.066625 | BF21: 7959.621009 | BG21: 3603.932458 | BH21: 2001.343007 | BI21: 17680.27647 | BJ21: 364.2296267 | BK21: 1918.759061 | BL21: 374.6711337 | BM21: 2310.404297 | BN21: 4746.803014 | BO21: 8370.322289 | BP21: 4615.441427 | BQ21: 3300.054982 | BR21: 6251.189545 | BS21: 5624.457695 | BT21: 11363.65981 | BU21: 1700.477585 | BV21: 2310.449137 | BW21: 1191.079689 | BX21: 20960.56282 | BY21: 5212.739044 | BZ21: 8241.921801 | CA21: 3431.119383 | CB21: 1924.075909 | CC21: 21778.40484 | CD21: 1911.746011 | CE21: 4291.018698 | CF21: 5584.338871 | CG21: 2146.633128 | CH21: 1751.815083 | CI21: 1116.27992 | CJ21: 104866.6961 | CK21: 2549.425417 | CL21: 5363.029962 | CM21: 10644.86763 | CN21: 923.1895554 | CO21: 736.5135678 | CP21: 3309.680565 | CQ21: 3633.811577 | CR21: 254.3021721 | CS21: 1203.585796 | CT21: 6241.539622 | CU21: 3264.706334 | CV21: 5841.824542 | CW21: 5183.958965 | CX21: 4494.999726 | CZ21: 3.700590445 | DA21: 4.588908189 | DB21: 3.441754802 | DC21: 2.695948317 | DD21: 3.804348459 | DE21: 3.90089239 | DF21: 3.556776643 | DG21: 3.301321528 | DH21: 4.247489052 | DI21: 2.561375269 | DJ21: 3.283020444 | DK21: 2.573650234 | DL21: 3.363687984 | DM21: 3.676401209 | DN21: 3.92274218 | DO21: 3.664213244 | DP21: 3.518521176 | DQ21: 3.795962668 | DR21: 3.750080655 | DS21: 4.055518224 | DT21: 3.230570912 | DU21: 3.363696412 | DV21: 3.075940819 | DW21: 4.32140294 | DX21: 3.717065984 | DY21: 3.91602849 | DZ21: 3.535435829 | EA21: 3.284222202 | EB21: 4.338026067 | EC21: 3.281430193 | ED21: 3.632560407 | EE21: 3.746971764 | EF21: 3.331757827 | EG21: 3.243488261 | EH21: 3.047773113 | EI21: 5.020637585 | EJ21: 3.406442311 | EK21: 3.729410223 | EL21: 4.027140265 | EM21: 2.965290882 | EN21: 2.867180752 | EO21: 3.51978608 | EP21: 3.560362404 | EQ21: 2.40535007 | ER21: 3.080477054 | ES21: 3.795291732 | ET21: 3.513844122 | EU21: 3.766548509 | EV21: 3.714661555 | EW21: 3.65272967 | EX21: 3.549894551 | EZ21: 3.575 | FA21: 218 | FB21: 3.55
A22: 19 | B22: 0.5967855292 | C22: 0.2090721969 | D22: 0.7196838146 | E22: 0.9491985843 | F22: 0.7367004726 | G22: 0.8121541137 | H22: 0.4810215251 | I22: 0.6244806085 | J22: 0.7487767481 | K22: 0.9051844368 | L22: 0.8927464547 | M22: 0.2543108337 | N22: 0.1656531274 | O22: 0.5328114686 | P22: 0.2346425359 | Q22: 0.9488181327 | R22: 0.5443577074 | S22: 0.8994090455 | T22: 0.9178913414 | U22: 0.4857008302 | V22: 0.3707390314 | W22: 0.3369160194 | X22: 0.6777309728 | Y22: 0.5929361613 | Z22: 0.9775367608 | AA22: 0.5532574643 | AB22: 0.9433185591 | AC22: 0.6223751104 | AD22: 0.8706403913 | AE22: 0.3043383555 | AF22: 0.6740850781 | AG22: 0.6753847266 | AH22: 0.1181386206 | AI22: 0.4922688004 | AJ22: 0.8978201802 | AK22: 0.6710957621 | AL22: 0.1308851189 | AM22: 0.04892809124 | AN22: 0.8424569063 | AO22: 0.8704666519 | AP22: 0.5516980737 | AQ22: 0.2033930775 | AR22: 0.6125560885 | AS22: 0.8672707523 | AT22: 0.7351928308 | AU22: 0.07211126904 | AV22: 0.462449237 | AW22: 0.04583772805 | AX22: 0.3102121301 | AY22: 0.5302428563 | BA22: 4994.26766 | BB22: 1543.077248 | BC22: 7465.982163 | BD22: 28721.47152 | BE22: 7946.738875 | BF22: 10855.28134 | BG22: 3559.940489 | BH22: 5437.869192 | BI22: 8318.639223 | BJ22: 18683.90794 | BK22: 17053.59257 | BL22: 1807.153519 | BM22: 1302.862774 | BN22: 4132.336787 | BO22: 1690.241479 | BP22: 28581.93454 | BQ22: 4273.695664 | BR22: 17888.71153 | BS22: 20724.16492 | BT22: 3607.935815 | BU22: 2592.01119 | BV22: 2344.513456 | BW22: 6455.66659 | BX22: 4936.412586 | BY22: 47464.63654 | BZ22: 4386.559706 | CA22: 26724.05426 | CB22: 5402.344797 | CC22: 14769.462 | CD22: 2122.459852 | CE22: 6377.672011 | CF22: 6405.315854 | CG22: 1047.453813 | CH22: 3676.461088 | CI22: 17682.03625 | CJ22: 6314.744721 | CK22: 1115.764994 | CL22: 657.6116292 | CM22: 12602.24024 | CN22: 14753.91163 | CO22: 4366.529229 | CP22: 1511.039983 | CQ22: 5240.725264 | CR22: 14473.46598 | CS22: 7902.189273 | CT22: 795.1753435 | CU22: 3375.875706 | CV22: 638.1192443 | CW22: 2161.425639 | CX22: 4101.63423 | CZ22: 3.698471814 | DA22: 3.188387668 | DB22: 3.873086948 | DC22: 4.458206687 | DD22: 3.900188943 | DE22: 4.035641084 | DF22: 3.551442738 | DG22: 3.735428756 | DH22: 3.92005229 | DI22: 4.271467719 | DJ22: 4.231815883 | DK22: 3.256995048 | DL22: 3.114898676 | DM22: 3.616195709 | DN22: 3.227948755 | DO22: 4.45609162 | DP22: 3.630803592 | DQ22: 4.252579061 | DR22: 4.31647704 | DS22: 3.557258803 | DT22: 3.413636872 | DU22: 3.37005273 | DV22: 3.809941093 | DW22: 3.693411451 | DX22: 4.67637016 | DY22: 3.642124045 | DZ22: 4.426902345 | EA22: 3.732582299 | EB22: 4.169364676 | EC22: 3.326839484 | ED22: 3.804662181 | EE22: 3.80654055 | EF22: 3.020134882 | EG22: 3.565429974 | EH22: 4.247532277 | EI22: 3.800355798 | EJ22: 3.047572732 | EK22: 2.817969485 | EL22: 4.100447755 | EM22: 4.168907178 | EN22: 3.640136372 | EO22: 3.179275956 | EP22: 3.719391393 | EQ22: 4.160572545 | ER22: 3.897747428 | ES22: 2.900462905 | ET22: 3.528386448 | EU22: 2.804901842 | EV22: 3.334740299 | EW22: 3.612956929 | EX22: 3.714255778 | EZ22: 3.625 | FA22: 259 | FB22: 3.6
A23: 20 | B23: 0.3888003691 | C23: 0.03854232605 | D23: 0.8357054809 | E23: 0.2542918055 | F23: 0.2515304368 | G23: 0.7122535249 | H23: 0.2741788143 | I23: 0.0260568277 | J23: 0.5674659295 | K23: 0.7892915747 | L23: 0.9905865962 | M23: 0.497346467 | N23: 0.6026916104 | O23: 0.01069385159 | P23: 0.7592765089 | Q23: 0.05771929211 | R23: 0.115669866 | S23: 0.5198559942 | T23: 0.566229737 | U23: 0.6238158951 | V23: 0.6995676703 | W23: 0.2815437601 | X23: 0.6944130994 | Y23: 0.2543247265 | Z23: 0.6170324873 | AA23: 0.03191127185 | AB23: 0.4463611908 | AC23: 0.8969727696 | AD23: 0.7909371943 | AE23: 0.7381139087 | AF23: 0.1031411963 | AG23: 0.7467841993 | AH23: 0.3920347428 | AI23: 0.6837304207 | AJ23: 0.8114906966 | AK23: 0.5283458034 | AL23: 0.5455279871 | AM23: 0.2122721048 | AN23: 0.6833013244 | AO23: 0.3630573419 | AP23: 0.8393181112 | AQ23: 0.03410276297 | AR23: 0.7809312835 | AS23: 0.8864577401 | AT23: 0.8718716639 | AU23: 0.5662936045 | AV23: 0.7107731166 | AW23: 0.9651262551 | AX23: 0.2451839725 | AY23: 0.332239926 | BA23: 2732.27362 | BB23: 590.4500498 | BC23: 12170.07214 | BD23: 1807.038679 | BE23: 1790.409988 | BF23: 7270.216678 | BG23: 1929.050979 | BH23: 500.9906137 | BI23: 4574.286884 | BJ23: 9803.3155 | BK23: 77030.43241 | BL23: 3730.391596 | BM23: 5084.752866 | BN23: 360.7768082 | BO23: 8665.573029 | BP23: 711.31267 | BQ23: 1034.20036 | BR23: 3980.119236 | BS23: 4557.569431 | BT23: 5426.62004 | BU23: 6953.762184 | BV23: 1975.302862 | BW23: 6831.132219 | BX23: 1807.237369 | BY23: 5313.592922 | BZ23: 544.4936841 | CA23: 3224.197107 | CB23: 17573.79882 | CC23: 9872.999539 | CD23: 7988.870628 | CE23: 966.6811733 | CF23: 8255.361361 | CG23: 2758.040866 | CH23: 6587.090888 | CI23: 10821.97845 | CJ23: 4079.127576 | CK23: 4288.337878 | CL23: 1561.225637 | CM23: 6577.560636 | CN23: 2534.136424 | CO23: 12397.82749 | CP23: 560.0152786 | CQ23: 9462.005201 | CR23: 16334.91645 | CS23: 14880.59238 | CT23: 4558.431291 | CU23: 7232.161767 | CV23: 36459.55058 | CW23: 1752.464642 | CX23: 2311.716889 | CZ23: 3.436524189 | DA23: 2.771183164 | DB23: 4.085293153 | DC23: 3.256967449 | DD23: 3.252952492 | DE23: 3.861547355 | DF23: 3.285343705 | DG23: 2.699829589 | DH23: 3.660323399 | DI23: 3.99137298 | DJ23: 4.886662336 | DK23: 3.571754424 | DL23: 3.70626985 | DM23: 2.557238612 | DN23: 3.937797287 | DO23: 2.852060545 | DP23: 3.014604685 | DQ23: 3.599896083 | DR23: 3.658733294 | DS23: 3.734529414 | DT23: 3.842219834 | DU23: 3.295633693 | DV23: 3.834492691 | DW23: 3.257015198 | DX23: 3.72538828 | DY23: 2.735992846 | DZ23: 3.508421584 | EA23: 4.24486565 | EB23: 3.994449117 | EC23: 3.902485388 | ED23: 2.985283261 | EE23: 3.916736088 | EF23: 3.440600697 | EG23: 3.818693656 | EH23: 4.034306665 | EI23: 3.610567288 | EJ23: 3.632288996 | EK23: 3.193465674 | EL23: 3.81806486 | EM23: 3.403829991 | EN23: 4.093345589 | EO23: 2.748199876 | EP23: 3.975983182 | EQ23: 4.213116918 | ER23: 4.17262022 | ES23: 3.658815413 | ET23: 3.859268132 | EU23: 4.561811311 | EV23: 3.243649264 | EW23: 3.363934646 | EX23: 3.5981286 | EZ23: 3.675 | FA23: 233 | FB23: 3.65
A24: 21 | B24: 0.2999508062 | C24: 0.6407025632 | D24: 0.4709467225 | E24: 0.793850397 | F24: 0.7795653096 | G24: 0.6956639195 | H24: 0.493701437 | I24: 0.8708385849 | J24: 0.2464158258 | K24: 0.6668734089 | L24: 0.6668128217 | M24: 0.4099029314 | N24: 0.006575994711 | O24: 0.4685749772 | P24: 0.05690425449 | Q24: 0.4193799255 | R24: 0.3505253558 | S24: 0.3131994725 | T24: 0.3428235532 | U24: 0.5258725573 | V24: 0.4931768836 | W24: 0.1115149087 | X24: 0.3041236796 | Y24: 0.8831279827 | Z24: 0.9663828896 | AA24: 0.6958669707 | AB24: 0.7682046292 | AC24: 0.9600490164 | AD24: 0.3322310151 | AE24: 0.6515765989 | AF24: 0.114030358 | AG24: 0.9759090173 | AH24: 0.4373812626 | AI24: 0.4182839533 | AJ24: 0.08541010843 | AK24: 0.4885452204 | AL24: 0.4238522649 | AM24: 0.09434907067 | AN24: 0.8266523263 | AO24: 0.4262191564 | AP24: 0.6663279194 | AQ24: 0.4053823024 | AR24: 0.8171293806 | AS24: 0.7053537098 | AT24: 0.9903881835 | AU24: 0.555416503 | AV24: 0.3071583893 | AW24: 0.1977960894 | AX24: 0.7089337092 | AY24: 0.9730093537 | BA24: 2093.642075 | BB24: 5722.540286 | BC24: 3458.849354 | BD24: 9998.483238 | BE24: 9408.169192 | BF24: 6860.588498 | BG24: 3691.591858 | BH24: 14787.24035 | BI24: 1759.800665 | BJ24: 6227.385443 | BK24: 6226.144658 | BL24: 2904.176286 | BM24: 307.9053237 | BN24: 3435.484066 | BO24: 706.428056 | BP24: 2984.41697 | BQ24: 2441.86413 | BR24: 2181.4168 | BS24: 2386.418159 | BT24: 4049.99751 | BU24: 3686.04406 | BV24: 1011.863605 | BW24: 2121.044161 | BX24: 15978.54609 | BY24: 37292.56294 | BZ24: 6865.388301 | CA24: 8979.799737 | CB24: 33499.31535 | CC24: 2311.6547 | CD24: 5925.014523 | CE24: 1025.391609 | CF24: 45558.51222 | CG24: 3142.44602 | CH24: 2975.03647 | CI24: 869.7635532 | CJ24: 3637.443824 | CK24: 3022.976175 | CL24: 918.8909227 | CM24: 11631.93266 | CN24: 3043.567291 | CO24: 6216.227026 | CP24: 2866.582218 | CQ24: 11110.99732 | CR24: 7095.431527 | CS24: 76178.11969 | CT24: 4414.475269 | CU24: 2141.111672 | CV24: 1479.671412 | CW24: 7185.30417 | CX24: 42591.76365 | CZ24: 3.320902438 | DA24: 3.757588859 | DB24: 3.538931647 | DC24: 3.999934123 | DD24: 3.973505119 | DE24: 3.836361371 | DF24: 3.567213679 | DG24: 4.169887132 | DH24: 3.245463477 | DI24: 3.794305747 | DJ24: 3.794219207 | DK24: 3.463022975 | DL24: 2.488417198 | DM24: 3.535987939 | DN24: 2.849067939 | DO24: 3.474859501 | DP24: 3.387721495 | DQ24: 3.338738654 | DR24: 3.377746545 | DS24: 3.607454756 | DT24: 3.566560522 | DU24: 3.005121975 | DV24: 3.326549711 | DW24: 4.20353726 | DX24: 4.571622231 | DY24: 3.836665106 | DZ24: 3.953266651 | EA24: 4.525035931 | EB24: 3.363922962 | EC24: 3.772689419 | ED24: 3.010889759 | EE24: 4.658569533 | EF24: 3.497267826 | EG24: 3.473492294 | EH24: 2.939401205 | EI24: 3.560796295 | EJ24: 3.480434724 | EK24: 2.963263961 | EL24: 4.065651879 | EM24: 3.483382908 | EN24: 3.793526867 | EO24: 3.457364403 | EP24: 4.045753043 | EQ24: 3.850978813 | ER24: 4.881830249 | ES24: 3.644879088 | ET24: 3.330639319 | EU24: 3.170165283 | EV24: 3.856445158 | EW24: 4.629325624 | EX24: 3.648807196 | EZ24: 3.725 | FA24: 106 | FB24: 3.7
A25: 22 | B25: 0.8980502126 | C25: 0.7716747197 | D25: 0.6857598254 | E25: 0.06831189678 | F25: 0.03993137705 | G25: 0.7207261299 | H25: 0.572568145 | I25: 0.8700641041 | J25: 0.2470544735 | K25: 0.192168511 | L25: 0.8954334101 | M25: 0.03615629814 | N25: 0.4126621941 | O25: 0.3223046694 | P25: 0.7634484519 | Q25: 0.4746222756 | R25: 0.4915745372 | S25: 0.2446875062 | T25: 0.9043890765 | U25: 0.1873394008 | V25: 0.1105620442 | W25: 0.01175147912 | X25: 0.9272584244 | Y25: 0.09850792598 | Z25: 0.7461419936 | AA25: 0.3519839752 | AB25: 0.7725416031 | AC25: 0.3584613512 | AD25: 0.9557830841 | AE25: 0.1639236264 | AF25: 0.3730063186 | AG25: 0.608455434 | AH25: 0.8438789518 | AI25: 0.555436057 | AJ25: 0.8128657989 | AK25: 0.8612012244 | AL25: 0.01147238234 | AM25: 0.7572644869 | AN25: 0.9221074078 | AO25: 0.06292035068 | AP25: 0.7015159538 | AQ25: 0.5151187007 | AR25: 0.5071235377 | AS25: 0.7124071892 | AT25: 0.7003194989 | AU25: 0.419782312 | AV25: 0.6507244537 | AW25: 0.4994327419 | AX25: 0.3137761016 | AY25: 0.0968536 | BA25: 17711.65408 | BB25: 9107.099875 | BC25: 6632.442289 | BD25: 773.4190033 | BE25: 599.7303548 | BF25: 7494.09874 | BG25: 4644.091695 | BH25: 14718.00479 | BI25: 1763.609468 | BJ25: 1448.325034 | BK25: 17380.61233 | BL25: 574.2488261 | BM25: 2927.336651 | BN25: 2243.092453 | BO25: 8810.091135 | BP25: 3495.381516 | BQ25: 3669.15255 | BR25: 1749.511967 | BS25: 18570.0718 | BT25: 1421.571744 | BU25: 1006.734516 | BV25: 372.6055015 | BW25: 22562.72069 | BX25: 941.550942 | BY25: 8235.133061 | BZ25: 2452.471141 | CA25: 9139.375417 | CB25: 2499.99358 | CC25: 31413.24706 | CD25: 1293.481847 | CE25: 2609.291181 | CF25: 5175.133123 | CG25: 12696.93622 | CH25: 4414.72907 | CI25: 10891.21126 | CJ25: 13968.42694 | CK25: 369.5358291 | CL25: 8597.271245 | CM25: 21510.27723 | CN25: 742.1039979 | CO25: 7000.981278 | CP25: 3926.057673 | CQ25: 3836.668889 | CR25: 7274.184406 | CS25: 6971.926299 | CT25: 2987.867761 | CU25: 5908.788178 | CV25: 3752.797199 | CW25: 2185.289267 | CX25: 932.5498952 | CZ25: 4.248259122 | DA25: 3.959380099 | DB25: 3.82167348 | DC25: 2.888414839 | DD25: 2.777956031 | DE25: 3.874719411 | DF25: 3.666900786 | DG25: 4.16784894 | DH25: 3.246402422 | DI25: 3.160866037 | DJ25: 4.240065073 | DK25: 2.759100116 | DL25: 3.46647267 | DM25: 3.350847174 | DN25: 3.944980401 | DO25: 3.543494585 | DP25: 3.564565769 | DQ25: 3.242916917 | DR25: 4.268813583 | DS25: 3.152768783 | DT25: 3.002914959 | DU25: 2.571249263 | DV25: 4.353391467 | DW25: 2.973843822 | DX25: 3.915670621 | DY25: 3.389603906 | DZ25: 3.960916517 | EA25: 3.397938893 | EB25: 4.49711283 | EC25: 3.111760338 | ED25: 3.416522546 | EE25: 3.713921526 | EF25: 4.103698938 | EG25: 3.644904056 | EH25: 4.037076182 | EI25: 4.145147501 | EJ25: 2.567656553 | EK25: 3.934360629 | EL25: 4.332646008 | EM25: 2.870464771 | EN25: 3.845158916 | EO25: 3.593956675 | EP25: 3.58395432 | EQ25: 3.861784307 | ER25: 3.843352787 | ES25: 3.475361372 | ET25: 3.771498421 | EU25: 3.574355096 | EV25: 3.339508933 | EW25: 2.969672078 | EX25: 3.582917009 | EZ25: 3.775 | FA25: 40 | FB25: 3.75
A26: 23 | B26: 0.4087310369 | C26: 0.4189489274 | D26: 0.02271871984 | E26: 0.9729315154 | F26: 0.5445099656 | G26: 0.002446847544 | H26: 0.8615835262 | I26: 0.2702235345 | J26: 0.5744714437 | K26: 0.2547416658 | L26: 0.01215441496 | M26: 0.7674681977 | N26: 0.200142832 | O26: 0.8219834316 | P26: 0.1213933015 | Q26: 0.08025995808 | R26: 0.4612893967 | S26: 0.9286662122 | T26: 0.7222378641 | U26: 0.3843503745 | V26: 0.5218148959 | W26: 0.2002315984 | X26: 0.6350054704 | Y26: 0.7282516997 | Z26: 0.210562775 | AA26: 0.730160186 | AB26: 0.1315453813 | AC26: 0.1711876815 | AD26: 0.4875416519 | AE26: 0.4692314665 | AF26: 0.6573617998 | AG26: 0.8442532026 | AH26: 0.9986187995 | AI26: 0.6326966954 | AJ26: 0.9882046553 | AK26: 0.4258684223 | AL26: 0.225948367 | AM26: 0.9169139026 | AN26: 0.4718336843 | AO26: 0.288560545 | AP26: 0.8745316935 | AQ26: 0.6687571615 | AR26: 0.209281842 | AS26: 0.9106007571 | AT26: 0.2400325058 | AU26: 0.2434822974 | AV26: 0.1975987615 | AW26: 0.6209837007 | AX26: 0.2182151414 | AY26: 0.9344107607 | BA26: 2894.38913 | BB26: 2980.72483 | BC26: 474.5023993 | BD26: 42518.62992 | BE26: 4275.597326 | BF26: 230.8302435 | BG26: 13999.22922 | BH26: 1904.456873 | BI26: 4670.469081 | BJ26: 1809.754642 | BK26: 376.9762411 | BL26: 8953.16709 | BM26: 1492.799769 | BN26: 11371.12282 | BO26: 1064.91065 | BP26: 841.1283599 | BQ26: 3364.707615 | BR26: 22870.13845 | BS26: 7535.172937 | BT26: 2697.151339 | BU26: 4002.719081 | BV26: 1493.297028 | BW26: 5620.286393 | BX26: 7702.120401 | BY26: 1551.522223 | BZ26: 7756.322171 | CA26: 1119.301511 | CB26: 1332.959473 | CC26: 3627.003596 | CD26: 3441.935299 | CE26: 6036.858193 | CF26: 12722.08003 | CG26: 198911.135 | CH26: 5579.563366 | CI26: 68218.2595 | CJ26: 3040.507885 | CK26: 1639.634041 | CL26: 20550.58869 | CM26: 3467.628996 | CN26: 2019.939735 | CO26: 15126.37037 | CP26: 6266.142247 | CQ26: 1544.264079 | CR26: 19499.63715 | CS26: 1721.93482 | CT26: 1742.35343 | CU26: 1478.569054 | CV26: 5379.040132 | CW26: 1595.125814 | CX26: 24226.02519 | CZ26: 3.461556918 | DA26: 3.474321885 | DB26: 2.676238413 | DC26: 4.628579262 | DD26: 3.630996797 | DE26: 2.36329271 | DF26: 4.146104125 | DG26: 3.279771142 | DH26: 3.669360501 | DI26: 3.257619699 | DJ26: 2.57631398 | DK26: 3.95197669 | DL26: 3.174001559 | DM26: 4.055803351 | DN26: 3.02731317 | DO26: 2.924862276 | DP26: 3.526947331 | DQ26: 4.359268794 | DR26: 3.877093224 | DS26: 3.430905316 | DT26: 3.602355112 | DU26: 3.174146201 | DV26: 3.749758446 | DW26: 3.886610303 | DX26: 3.190758 | DY26: 3.88965584 | DZ26: 3.04894709 | EA26: 3.124816946 | EB26: 3.559547986 | EC26: 3.536802702 | ED26: 3.780810974 | EE26: 4.104558123 | EF26: 5.298659096 | EG26: 3.746600214 | EH26: 4.833900635 | EI26: 3.482946134 | EJ26: 3.214746926 | EK26: 4.312824267 | EL26: 3.540032626 | EM26: 3.305338412 | EN26: 4.17973473 | EO26: 3.79700025 | EP26: 3.188721569 | EQ26: 4.29002653 | ER26: 3.236016708 | ES26: 3.241136255 | ET26: 3.169841612 | EU26: 3.730704785 | EV26: 3.202794943 | EW26: 4.384282164 | EX26: 3.605928054 | EZ26: 3.825 | FA26: 6 | FB26: 3.8
A27: 24 | B27: 0.7987566049 | C27: 0.06191950016 | D27: 0.6150011521 | E27: 0.3889151845 | F27: 0.6727892946 | G27: 0.945335108 | H27: 0.1129594504 | I27: 0.811256024 | J27: 0.1936179846 | K27: 0.5780223309 | L27: 0.3133012413 | M27: 0.1867693727 | N27: 0.6694814084 | O27: 0.991117436 | P27: 0.6259252149 | Q27: 0.0170595491 | R27: 0.2289029816 | S27: 0.9809410445 | T27: 0.04244372036 | U27: 0.4075775086 | V27: 0.1733216371 | W27: 0.7175763471 | X27: 0.7789330077 | Y27: 0.9699000043 | Z27: 0.08146640813 | AA27: 0.5263274786 | AB27: 0.2523260033 | AC27: 0.7112148633 | AD27: 0.4624525311 | AE27: 0.7056284912 | AF27: 0.4081890325 | AG27: 0.8225732069 | AH27: 0.3952865781 | AI27: 0.09190087995 | AJ27: 0.2192393615 | AK27: 0.5094960505 | AL27: 0.4544651958 | AM27: 0.6672315111 | AN27: 0.7433564624 | AO27: 0.005021632795 | AP27: 0.7452727403 | AQ27: 0.004397031879 | AR27: 0.3650056651 | AS27: 0.8467175228 | AT27: 0.01099892672 | AU27: 0.894809851 | AV27: 0.04027972635 | AW27: 0.2194174154 | AX27: 0.08263807396 | AY27: 0.6979134597 | BA27: 10216.19039 | BB27: 736.2266638 | BC27: 5280.360387 | BD27: 2733.184843 | BE27: 6350.283268 | BF27: 27372.7365 | BG27: 1019.63435 | BH27: 10810.24173 | BI27: 1456.380907 | BJ27: 4720.181403 | BK27: 2182.099926 | BL27: 1418.422257 | BM27: 6281.135951 | BN27: 79443.85504 | BO27: 5462.425692 | BP27: 425.5953521 | BQ27: 1656.763034 | BR27: 52193.60449 | BS27: 616.2592526 | BT27: 2884.78386 | BU27: 1344.597267 | BV27: 7409.633016 | BW27: 9383.425082 | BX27: 39890.96721 | BY27: 847.8615745 | BZ27: 4055.337681 | CA27: 1795.193328 | CB27: 7243.484975 | CC27: 3375.907478 | CD27: 7102.26855 | CE27: 2889.872423 | CF27: 11403.47966 | CG27: 2784.154003 | CH27: 905.4983443 | CI27: 1600.994406 | CJ27: 3862.956388 | CK27: 3299.740879 | CL27: 6234.726423 | CM27: 8148.316008 | CN27: 283.4520107 | CO27: 8207.880866 | CP27: 272.4629316 | CQ27: 2548.718529 | CR27: 12890.00674 | CS27: 364.2448583 | CT27: 17303.58663 | CU27: 602.041341 | CV27: 1602.015425 | CW27: 854.3853682 | CX27: 6914.047972 | CZ27: 4.009288978 | DA27: 2.867011542 | DB27: 3.722663564 | DC27: 3.436669004 | DD27: 3.802793098 | DE27: 4.437318217 | DF27: 3.008444458 | DG27: 4.033835405 | DH27: 3.163274977 | DI27: 3.673958689 | DJ27: 3.338874634 | DK27: 3.151805537 | DL27: 3.798038193 | DM27: 4.90006031 | DN27: 3.737385542 | DO27: 2.628996876 | DP27: 3.219260396 | DQ27: 4.71761729 | DR27: 2.789763453 | DS27: 3.460113279 | DT27: 3.128592224 | DU27: 3.869796699 | DV27: 3.972361391 | DW27: 4.600874566 | DX27: 2.928324953 | DY27: 3.608027023 | DZ27: 3.254111225 | EA27: 3.859947564 | EB27: 3.528390536 | EC27: 3.85139709 | ED27: 3.460878671 | EE27: 4.057037392 | EF27: 3.444693254 | EG27: 2.956887661 | EH27: 3.204389814 | EI27: 3.586919805 | EJ27: 3.518479837 | EK27: 3.794817402 | EL27: 3.911067863 | EM27: 2.452479542 | EN27: 3.914231044 | EO27: 2.435307425 | EP27: 3.406321876 | EQ27: 4.110253144 | ER27: 2.56139343 | ES27: 4.238136132 | ET27: 2.779626314 | EU27: 3.204666693 | EV27: 2.931653802 | EW27: 3.839732388 | EX27: 3.526159404 | EZ27: 3.875 | FA27: 2 | FB27: 3.85
A28: 25 | B28: 0.8687421029 | C28: 0.6501143758 | D28: 0.04907630304 | E28: 0.3935909703 | F28: 0.1520077657 | G28: 0.2301227769 | H28: 0.02645960183 | I28: 0.4307393579 | J28: 0.5726020288 | K28: 0.6540905439 | L28: 0.2202587848 | M28: 0.1251612665 | N28: 0.3683474023 | O28: 0.9583220315 | P28: 0.6456141193 | Q28: 0.1822120292 | R28: 0.3665886797 | S28: 0.4496544271 | T28: 0.1458638613 | U28: 0.2724235837 | V28: 0.8642883892 | W28: 0.7141349989 | X28: 0.9156459583 | Y28: 0.08060811328 | Z28: 0.3210344373 | AA28: 0.6182841801 | AB28: 0.6225479523 | AC28: 0.211943575 | AD28: 0.08390206209 | AE28: 0.6589701729 | AF28: 0.2565095739 | AG28: 0.9261430303 | AH28: 0.0001054127964 | AI28: 0.6304987876 | AJ28: 0.8388703025 | AK28: 0.6428246417 | AL28: 0.4272519754 | AM28: 0.4270598504 | AN28: 0.2153743177 | AO28: 0.9464069162 | AP28: 0.4768696403 | AQ28: 0.4644773751 | AR28: 0.08441956843 | AS28: 0.7818542309 | AT28: 0.0393781999 | AU28: 0.6068526142 | AV28: 0.9219051472 | AW28: 0.8975350943 | AX28: 0.3939357205 | AY28: 0.9196208619 | BA28: 14601.27591 | BB28: 5897.209633 | BC28: 658.5374905 | BD28: 2770.511735 | BE28: 1229.115342 | BF28: 1663.855233 | BG28: 504.0940657 | BH28: 3083.252833 | BI28: 4644.559662 | BJ28: 5973.252407 | BK28: 1606.84335 | BL28: 1085.104589 | BM28: 2573.882152 | BN28: 32616.62997 | BO28: 5812.776075 | BP28: 1393.303814 | BQ28: 2560.614623 | BR28: 3254.689601 | BS28: 1196.07504 | BT28: 1918.116102 | BU28: 14220.96443 | BV28: 7319.028948 | BW28: 20329.97801 | BX28: 843.0730987 | BY28: 2234.419831 | BZ28: 5334.209737 | CA28: 5405.249207 | CB28: 1559.359063 | CC28: 861.4070374 | CD28: 6068.484495 | CE28: 1820.447169 | CF28: 22325.45462 | CG28: 112.9057737 | CH28: 5541.170356 | CI28: 12369.16719 | CJ28: 5761.28654 | CK28: 3052.592979 | CL28: 3050.912147 | CM28: 1578.889172 | CN28: 27732.28956 | CO28: 3517.914423 | CP28: 3395.494351 | CQ28: 864.2772001 | CR28: 9498.67864 | CS28: 596.0472248 | CT28: 5149.789687 | CU28: 21471.10434 | CV28: 17645.47073 | CW28: 2773.28086 | CX28: 21039.09243 | CZ28: 4.164390807 | DA28: 3.770646566 | DB28: 2.818580504 | DC28: 3.442559994 | DD28: 3.08959264 | DE28: 3.221115537 | DF28: 2.702511585 | DG28: 3.489009139 | DH28: 3.666944546 | DI28: 3.776210867 | DJ28: 3.20597354 | DK28: 3.0354716 | DL28: 3.410588658 | DM28: 4.513439087 | DN28: 3.764383593 | DO28: 3.144045826 | DP28: 3.408344221 | DQ28: 3.512509576 | DR28: 3.077758427 | DS28: 3.282874891 | DT28: 4.15292905 | DU28: 3.864453465 | DV28: 4.308136909 | DW28: 2.925865232 | DX28: 3.349164777 | DY28: 3.727070088 | DZ28: 3.732815722 | EA28: 3.192946129 | EB28: 2.935208415 | EC28: 3.783080247 | ED28: 3.26017808 | EE28: 4.348800311 | EF28: 2.052716151 | EG28: 3.743601502 | EH28: 4.09234046 | EI28: 3.760519476 | EJ28: 3.484668901 | EK28: 3.484429702 | EL28: 3.198351646 | EM28: 4.442985726 | EN28: 3.546285271 | EO28: 3.530903012 | EP28: 2.936653056 | EQ28: 3.977663195 | ER28: 2.77528067 | ES28: 3.711789493 | ET28: 4.331854382 | EU28: 4.246633249 | EV28: 3.442993854 | EW28: 4.323027002 | EX28: 3.543205936 | EZ28: 3.925 | FA28: 0 | FB28: 3.9 | FE28: Actual Mean of LogFlow = 3.6
A29: 26 | B29: 0.09082700758 | C29: 0.03803706768 | D29: 0.08529343707 | E29: 0.2007650098 | F29: 0.3477906821 | G29: 0.6646048856 | H29: 0.6981832809 | I29: 0.8350088766 | J29: 0.7205974184 | K29: 0.6445344136 | L29: 0.9979079791 | M29: 0.6737065322 | N29: 0.450307023 | O29: 0.4031532638 | P29: 0.6974585808 | Q29: 0.1943724848 | R29: 0.1661522135 | S29: 0.3660455893 | T29: 0.1793418739 | U29: 0.3390435711 | V29: 0.9305380972 | W29: 0.9343446323 | X29: 0.6658499582 | Y29: 0.7145357168 | Z29: 0.4084452439 | AA29: 0.7537390949 | AB29: 0.7051336004 | AC29: 0.05959497186 | AD29: 0.2272148429 | AE29: 0.674164233 | AF29: 0.5075346543 | AG29: 0.05999044287 | AH29: 0.710902116 | AI29: 0.462000021 | AJ29: 0.06184942549 | AK29: 0.2689516758 | AL29: 0.4082985807 | AM29: 0.6017034276 | AN29: 0.2333312711 | AO29: 0.5558300276 | AP29: 0.779534179 | AQ29: 0.08855522334 | AR29: 0.7322653682 | AS29: 0.5568095387 | AT29: 0.02607708413 | AU29: 0.3784743703 | AV29: 0.9613616002 | AW29: 0.5780480158 | AX29: 0.9505730996 | AY29: 0.4087148528 | BA29: 899.610025 | BB29: 587.0476066 | BC29: 869.117831 | BD29: 1496.286186 | BE29: 2422.069653 | BF29: 6181.169609 | BG29: 6920.502376 | BH29: 12127.04518 | BI29: 7490.617794 | BJ29: 5792.770531 | BK29: 163761.546 | BL29: 6369.652983 | BM29: 3260.765374 | BN29: 2848.203142 | BO29: 6903.187363 | BP29: 1460.579109 | BQ29: 1305.5719 | BR29: 2556.528504 | BS29: 1377.538598 | BT29: 2359.543822 | BU29: 23293.36222 | BV29: 24209.4077 | BW29: 6206.47363 | BX29: 7329.490477 | BY29: 2892.006742 | BZ29: 8479.711783 | CA29: 7089.962086 | CB29: 722.4901866 | CC29: 1646.967686 | CD29: 6379.350671 | CE29: 3841.209879 | CF29: 724.8359663 | CG29: 7235.465565 | CH29: 3371.545799 | CI29: 735.8143487 | CJ29: 1896.583927 | CK29: 2890.784822 | CL29: 5069.465542 | CM29: 1682.568766 | CN29: 4419.846377 | CO29: 9406.948352 | CP29: 887.123323 | CQ29: 7816.814243 | CR29: 4432.600359 | CS29: 501.1471334 | CT29: 2651.346081 | CU29: 34209.00189 | CV29: 4720.543397 | CW29: 29238.89295 | CX29: 2894.254172 | CZ29: 2.954054286 | DA29: 2.768673322 | DB29: 2.93907866 | DC29: 3.175014666 | DD29: 3.384186628 | DE29: 3.791070661 | DF29: 3.840137622 | DG29: 4.083754996 | DH29: 3.874517638 | DI29: 3.762886325 | DJ29: 5.21421193 | DK29: 3.804115773 | DL29: 3.513319551 | DM29: 3.454570961 | DN29: 3.839049661 | DO29: 3.164525085 | DP29: 3.115800794 | DQ29: 3.407650639 | DR29: 3.139103776 | DS29: 3.372828048 | DT29: 4.36723218 | DU29: 4.383984164 | DV29: 3.792844914 | DW29: 3.865073785 | DX29: 3.461199301 | DY29: 3.928381091 | DZ29: 3.850643913 | EA29: 2.858831953 | EB29: 3.216685078 | EC29: 3.804776476 | ED29: 3.584468037 | EE29: 2.860239735 | EF29: 3.859466481 | EG29: 3.527829063 | EH29: 2.866768253 | EI29: 3.277972066 | EJ29: 3.461015766 | EK29: 3.704962175 | EL29: 3.225972823 | EM29: 3.645407175 | EN29: 3.97344876 | EO29: 2.947983997 | EP29: 3.893029792 | EQ29: 3.646658577 | ER29: 2.699965251 | ES29: 3.42346642 | ET29: 4.534140403 | EU29: 3.673991995 | EV29: 4.465960925 | EW29: 3.461536668 | EX29: 3.577249765 | EZ29: 3.975 | FA29: 0 | FB29: 3.95
A30: 27 | B30: 0.4388906851 | C30: 0.7053634181 | D30: 0.8642006438 | E30: 0.09443734228 | F30: 0.9326001179 | G30: 0.3771777649 | H30: 0.5577234868 | I30: 0.7884888822 | J30: 0.2098165567 | K30: 0.2911518995 | L30: 0.5477112189 | M30: 0.908431565 | N30: 0.7070351629 | O30: 0.410535064 | P30: 0.7418494264 | Q30: 0.5582386827 | R30: 0.1812600228 | S30: 0.06414384141 | T30: 0.148052162 | U30: 0.3483539496 | V30: 0.6154368638 | W30: 0.1259119391 | X30: 0.1311973243 | Y30: 0.007769633283 | Z30: 0.2866048848 | AA30: 0.01092136663 | AB30: 0.7796575612 | AC30: 0.4415149065 | AD30: 0.2301015582 | AE30: 0.1215508249 | AF30: 0.9130986034 | AG30: 0.463446584 | AH30: 0.03226903912 | AI30: 0.2140650134 | AJ30: 0.216413561 | AK30: 0.5143844959 | AL30: 0.6298477 | AM30: 0.4980843055 | AN30: 0.4116872868 | AO30: 0.685407666 | AP30: 0.4264067902 | AQ30: 0.2907369007 | AR30: 0.8589458981 | AS30: 0.05439430271 | AT30: 0.5005987285 | AU30: 0.6976908226 | AV30: 0.1857355038 | AW30: 0.1136804294 | AX30: 0.8405621489 | AY30: 0.2253688401 | BA30: 3156.047217 | BB30: 7095.672917 | BC30: 14213.66486 | BD30: 919.3730243 | BE30: 23779.92482 | BF30: 2641.324708 | BG30: 4444.540796 | BH30: 9769.632872 | BI30: 1547.292547 | BJ30: 2036.569884 | BK30: 4315.81314 | BL30: 19164.15189 | BM30: 7137.427188 | BN30: 2909.467759 | BO30: 8101.960585 | BP30: 4451.28882 | BQ30: 1388.070119 | BR30: 749.2600723 | BS30: 1207.833864 | BT30: 2426.137021 | BU30: 5287.46521 | BV30: 1089.126337 | BW30: 1117.43723 | BX30: 324.6477549 | BY30: 2007.441587 | BZ30: 363.3676557 | CA30: 9411.78859 | CB30: 3179.82752 | CC30: 1663.731757 | CD30: 1065.755171 | CE30: 19901.59456 | CF30: 3385.508954 | CG30: 547.0527038 | CH30: 1571.425752 | CI30: 1584.822042 | CJ30: 3917.753021 | CK30: 5529.866461 | CL30: 3738.299017 | CM30: 2919.134868 | CN30: 6624.539408 | CO30: 3045.205163 | CP30: 2033.901246 | CQ30: 13789.33703 | CR30: 691.2733227 | CS30: 3765.382952 | CT30: 6908.729104 | CU30: 1412.714421 | CV30: 1023.510691 | CW30: 12478.10009 | CX30: 1636.282493 | CZ30: 3.499143492 | DA30: 3.850993588 | DB30: 4.152706071 | DC30: 2.963491757 | DD30: 4.376210477 | DE30: 3.421821794 | DF30: 3.647826897 | DG30: 3.989878244 | DH30: 3.189572434 | DI30: 3.308899317 | DJ30: 3.635062633 | DK30: 4.282489604 | DL30: 3.853541691 | DM30: 3.463813549 | DN30: 3.908590126 | DO30: 3.648485774 | DP30: 3.142411405 | DQ30: 2.87463259 | DR30: 3.082007202 | DS30: 3.384915325 | DT30: 3.723247523 | DU30: 3.03707826 | DV30: 3.048223137 | DW30: 2.511412404 | DX30: 3.302642917 | DY30: 2.560346267 | DZ30: 3.973672163 | EA30: 3.502403564 | EB30: 3.221083307 | EC30: 3.027657448 | ED30: 4.298887875 | EE30: 3.529623967 | EF30: 2.738029169 | EG30: 3.196293866 | EH30: 3.199980503 | EI30: 3.593037054 | EJ30: 3.742714644 | EK30: 3.572674037 | EL30: 3.465254161 | EM30: 3.821155688 | EN30: 3.483616557 | EO30: 3.308329862 | EP30: 4.139543387 | EQ30: 2.839649797 | ER30: 3.575809152 | ES30: 3.839398164 | ET30: 3.150054379 | EU30: 3.010092383 | EV30: 4.096148465 | EW30: 3.213858284 | EX30: 3.467968247 | EZ30: 4.025 | FA30: 0 | FB30: 4
A31: 28 | B31: 0.09468858644 | C31: 0.1670208666 | D31: 0.6321122092 | E31: 0.5766485727 | F31: 0.5108518925 | G31: 0.7535483621 | H31: 0.02673048638 | I31: 0.9458510268 | J31: 0.3467004463 | K31: 0.8158245305 | L31: 0.01730805057 | M31: 0.2293625688 | N31: 0.3181867236 | O31: 0.6324440509 | P31: 0.3758091704 | Q31: 0.0164826888 | R31: 0.1366325107 | S31: 0.1815226836 | T31: 0.9661323974 | U31: 0.3696734454 | V31: 0.1079781394 | W31: 0.1444506723 | X31: 0.3255040862 | Y31: 0.3243161158 | Z31: 0.2285423438 | AA31: 0.01679584443 | AB31: 0.5812064306 | AC31: 0.1896299061 | AD31: 0.3525237569 | AE31: 0.7408493143 | AF31: 0.4198743775 | AG31: 0.4579821254 | AH31: 0.3059077619 | AI31: 0.1499624498 | AJ31: 0.0598757594 | AK31: 0.8902330625 | AL31: 0.2399608453 | AM31: 0.9846562817 | AN31: 0.01280800629 | AO31: 0.3261333497 | AP31: 0.5919469087 | AQ31: 0.1705536841 | AR31: 0.7675209297 | AS31: 0.6757482333 | AT31: 0.3538482598 | AU31: 0.2160890221 | AV31: 0.6269865318 | AW31: 0.7403150544 | AX31: 0.8381649495 | AY31: 0.9433163789 | BA31: 920.7449263 | BB31: 1310.289341 | BC31: 5569.318159 | BD31: 4700.870749 | BE31: 3878.068655 | BF31: 8473.426845 | BG31: 506.1710677 | BH31: 27544.47939 | BI31: 2414.211314 | BJ31: 11042.89337 | BK31: 427.8769564 | BL31: 1659.433765 | BM31: 2215.058176 | BN31: 5575.131706 | BO31: 2630.780232 | BP31: 420.2417101 | BQ31: 1146.55491 | BR31: 1389.513656 | BS31: 37122.87311 | BT31: 2583.92139 | BU31: 992.8113727 | BV31: 1188.486072 | BW31: 2265.037177 | BX31: 2256.872045 | BY31: 1654.668515 | BZ31: 423.1580966 | CA31: 4765.323833 | CB31: 1434.24495 | CC31: 2456.405121 | CD31: 8071.43189 | CE31: 2988.657808 | CF31: 3333.064713 | CG31: 2132.827326 | CH31: 1218.106913 | CI31: 724.1560894 | CJ31: 16758.82049 | CK31: 1721.511796 | CL31: 59005.19623 | CM31: 383.9218632 | CN31: 2269.370343 | CO31: 4921.683841 | CP31: 1329.50559 | CQ31: 8955.069721 | CR31: 6413.079053 | CS31: 2466.078282 | CT31: 1582.968454 | CU31: 5480.56256 | CV31: 8055.199235 | CW31: 12324.27283 | CX31: 26723.37169 | CZ31: 2.964139334 | DA31: 3.117367208 | DB31: 3.745802029 | DC31: 3.67217831 | DD31: 3.588615493 | DE31: 3.928059084 | DF31: 2.704297318 | DG31: 4.440034568 | DH31: 3.382775281 | DI31: 4.043082879 | DJ31: 2.631318898 | DK31: 3.219959923 | DL31: 3.345385137 | DM31: 3.746255132 | DN31: 3.42008457 | DO31: 2.623499155 | DP31: 3.059394858 | DQ31: 3.142862819 | DR31: 4.569641581 | DS31: 3.412279297 | DT31: 2.996866743 | DU31: 3.074994097 | DV31: 3.355075335 | DW31: 3.353506937 | DX31: 3.218711003 | DY31: 2.626502655 | DZ31: 3.678092419 | EA31: 3.156623329 | EB31: 3.390299994 | EC31: 3.906950586 | ED31: 3.475476192 | EE31: 3.522843746 | EF31: 3.328955696 | EG31: 3.085685408 | EH31: 2.859832187 | EI31: 4.224243449 | EJ31: 3.235910003 | EK31: 4.770890259 | EL31: 2.584242845 | EM31: 3.355905375 | EN31: 3.692113712 | EO31: 3.123690168 | EP31: 3.952068971 | EQ31: 3.807066593 | ER31: 3.392006858 | ES31: 3.19947226 | ET31: 3.73882514 | EU31: 3.906076287 | EV31: 4.090761304 | EW31: 4.426891252 | EX31: 3.465752274 | EZ31: 4.075 | FA31: 0 | FB31: 4.05
A32: 29 | B32: 0.3467429522 | C32: 0.6621681938 | D32: 0.6930892858 | E32: 0.966969513 | F32: 0.7566548532 | G32: 0.8223052327 | H32: 0.08756039922 | I32: 0.3617564185 | J32: 0.7729304599 | K32: 0.9224789075 | L32: 0.5841943086 | M32: 0.3560898387 | N32: 0.3384359579 | O32: 0.9764109683 | P32: 0.2193053193 | Q32: 0.9059113746 | R32: 0.9835375981 | S32: 0.2817929288 | T32: 0.9880384694 | U32: 0.1436961774 | V32: 0.4639019335 | W32: 0.9246033379 | X32: 0.1402253797 | Y32: 0.863594069 | Z32: 0.8907704901 | AA32: 0.2046010708 | AB32: 0.210742237 | AC32: 0.02594281533 | AD32: 0.8644390125 | AE32: 0.3326828424 | AF32: 0.5835178241 | AG32: 0.7587548894 | AH32: 0.09610166487 | AI32: 0.6731278598 | AJ32: 0.7932960989 | AK32: 0.4929102124 | AL32: 0.3710023448 | AM32: 0.7257657648 | AN32: 0.9483652523 | AO32: 0.9832227978 | AP32: 0.04224283334 | AQ32: 0.9743020968 | AR32: 0.3037768488 | AS32: 0.8821636315 | AT32: 0.7167151504 | AU32: 0.09789355117 | AV32: 0.4093445667 | AW32: 0.7617010597 | AX32: 0.2676300355 | AY32: 0.2733740927 | BA32: 2414.517342 | BB32: 6132.075095 | BC32: 6800.163558 | BD32: 37697.37305 | BE32: 8576.751141 | BF32: 11388.75713 | BG32: 881.6418205 | BH32: 2524.435849 | BI32: 9153.915854 | BJ32: 21582.62968 | BK32: 4808.180168 | BL32: 2482.51442 | BM32: 2355.244272 | BN32: 46125.68986 | BO32: 1601.372602 | BP32: 18789.2286 | BQ32: 56720.15932 | BR32: 1976.878252 | BS32: 67700.26983 | BT32: 1184.435774 | BU32: 3389.916321 | BV32: 22006.67618 | BW32: 1165.814955 | BX32: 14163.40146 | BY32: 16820.97868 | BZ32: 1517.836581 | CA32: 1552.540018 | CB32: 500.10877 | CC32: 14233.51177 | CD32: 2314.809458 | CE32: 4798.434556 | CF32: 8647.779929 | CG32: 928.4532515 | CH32: 6357.422898 | CI32: 9974.394836 | CJ32: 3683.227113 | CK32: 2594.013326 | CL32: 7632.410781 | CM32: 28417.83979 | CN32: 56117.51371 | CO32: 614.9490613 | CP32: 43853.57273 | CQ32: 2118.758211 | CR32: 15878.22389 | CS32: 7386.796734 | CT32: 938.2100495 | CU32: 2899.509416 | CV32: 8749.07794 | CW32: 1888.420918 | CX32: 1924.03352 | CZ32: 3.382830329 | DA32: 3.787607465 | DB32: 3.832519359 | DC32: 4.576311087 | DD32: 3.933322809 | DE32: 4.056476331 | DF32: 2.945292183 | DG32: 3.402164339 | DH32: 3.961606916 | DI32: 4.334104359 | DJ32: 3.681980733 | DK32: 3.39489178 | DL32: 3.372035956 | DM32: 4.663942875 | DN32: 3.204492394 | DO32: 4.27390895 | DP32: 4.753737442 | DQ32: 3.295979924 | DR32: 4.8305904 | DS32: 3.073511516 | DT32: 3.530188978 | DU32: 4.342554453 | DV32: 3.066629622 | DW32: 4.151167565 | DX32: 4.22585126 | DY32: 3.181225015 | DZ32: 3.191042803 | EA32: 2.69906447 | EB32: 4.153312065 | EC32: 3.364515248 | ED32: 3.681099576 | EE32: 3.936904629 | EF32: 2.967760041 | EG32: 3.803281102 | EH32: 3.998886556 | EI32: 3.566228499 | EJ32: 3.413972203 | EK32: 3.882661736 | EL32: 4.453591062 | EM32: 4.749098421 | EN32: 2.788839143 | EO32: 4.642004981 | EP32: 3.326081399 | EQ32: 4.200801921 | ER32: 3.868456148 | ES32: 2.972300081 | ET32: 3.462324523 | EU32: 3.941962285 | EV32: 3.276098802 | EW32: 3.284212634 | EX32: 3.737588487 | EZ32: 4.125 | FA32: 0 | FB32: 4.1
A33: 30 | B33: 0.2856743796 | C33: 0.2999223214 | D33: 0.9108965336 | E33: 0.6206974656 | F33: 0.4796199605 | G33: 0.3889181037 | H33: 0.7211754711 | I33: 0.4024231866 | J33: 0.9976795752 | K33: 0.3145527468 | L33: 0.6878548568 | M33: 0.3434155756 | N33: 0.2775806466 | O33: 0.7622637652 | P33: 0.01554833298 | Q33: 0.6293868257 | R33: 0.5407868394 | S33: 0.75121548 | T33: 0.2851874314 | U33: 0.5434789307 | V33: 0.714308588 | W33: 0.4081288253 | X33: 0.0815337308 | Y33: 0.4928922882 | Z33: 0.1190757368 | AA33: 0.4213375989 | AB33: 0.1176104704 | AC33: 0.5847580626 | AD33: 0.1105527102 | AE33: 0.4499820575 | AF33: 0.7744472967 | AG33: 0.8651289849 | AH33: 0.86871007 | AI33: 0.6970224879 | AJ33: 0.5028991573 | AK33: 0.2240403959 | AL33: 0.2621472608 | AM33: 0.1268045971 | AN33: 0.6173905294 | AO33: 0.08925084842 | AP33: 0.7160600944 | AQ33: 0.1535219417 | AR33: 0.566176832 | AS33: 0.6199655804 | AT33: 0.5483757468 | AU33: 0.7608448816 | AV33: 0.4676507046 | AW33: 0.9716555867 | AX33: 0.7448632032 | AY33: 0.3017850355 | BA33: 2001.510626 | BB33: 2093.455777 | BC33: 19546.33995 | BD33: 5374.26277 | BE33: 3545.695414 | BF33: 2733.208015 | BG33: 7506.270816 | BH33: 2842.205837 | BI33: 155878.0378 | BJ33: 2190.512033 | BK33: 6679.748075 | BL33: 2390.647161 | BM33: 1950.339687 | BN33: 8768.64901 | BO33: 411.3899891 | BP33: 5521.883962 | BQ33: 4229.381382 | BR33: 8397.167598 | BS33: 1998.410863 | BT33: 4262.739509 | BU33: 7323.557995 | BV33: 2889.37108 | BW33: 848.2368265 | BX33: 3683.037857 | BY33: 1052.481787 | BZ33: 3001.239804 | CA33: 1044.619427 | CB33: 4816.320912 | CC33: 1006.68426 | CD33: 3257.738508 | CE33: 9211.009248 | CF33: 14291.26368 | CG33: 14598.46993 | CH33: 6892.799453 | CI33: 3790.349059 | CJ33: 1628.60977 | CK33: 1854.750804 | CL33: 1093.908365 | CM33: 5319.479389 | CN33: 890.9512419 | CO33: 7369.499782 | CP33: 1237.271675 | CQ33: 4556.855656 | CR33: 5362.073252 | CS33: 4324.217497 | CT33: 8719.438393 | CU33: 3426.42224 | CV33: 41362.29601 | CW33: 8195.091929 | CX33: 2105.659851 | CZ33: 3.3013579 | DA33: 3.320863791 | DB33: 4.291065448 | DC33: 3.730318897 | DD33: 3.549701426 | DE33: 3.436672686 | DF33: 3.875424229 | DG33: 3.453655527 | DH33: 5.19278493 | DI33: 3.340545643 | DJ33: 3.824760083 | DK33: 3.378515483 | DL33: 3.290110258 | DM33: 3.942932687 | DN33: 2.614253719 | DO33: 3.742087276 | DP33: 3.626276849 | DQ33: 3.924132821 | DR33: 3.300684782 | DS33: 3.629688794 | DT33: 3.864722125 | DU33: 3.460803322 | DV33: 2.928517124 | DW33: 3.566206183 | DX33: 3.022214589 | DY33: 3.477300698 | DZ33: 3.018958098 | EA33: 3.682715416 | EB33: 3.002893278 | EC33: 3.512916221 | ED33: 3.964307218 | EE33: 4.155070632 | EF33: 4.16430734 | EG33: 3.838395643 | EH33: 3.578679207 | EI33: 3.211817036 | EJ33: 3.268285568 | EK33: 3.038980944 | EL33: 3.725869131 | EM33: 2.949853938 | EN33: 3.86743801 | EO33: 3.092465071 | EP33: 3.658665272 | EQ33: 3.729332743 | ER33: 3.63590753 | ES33: 3.940488514 | ET33: 3.53484088 | EU33: 4.616604638 | EV33: 3.91355383 | EW33: 3.323388216 | EX33: 3.590226633 | EZ33: 4.175 | FA33: 0 | FB33: 4.15
A34: 31 | B34: 0.4808109275 | C34: 0.1666778845 | D34: 0.09802523994 | E34: 0.3666551214 | F34: 0.4176454472 | G34: 0.8826344897 | H34: 0.7477695377 | I34: 0.3560095198 | J34: 0.08792480786 | K34: 0.04776957014 | L34: 0.519364337 | M34: 0.5847554568 | N34: 0.7657628205 | O34: 0.8149555946 | P34: 0.5759489554 | Q34: 0.1613241729 | R34: 0.4660814576 | S34: 0.06290372878 | T34: 0.1642584065 | U34: 0.6099439242 | V34: 0.7042830613 | W34: 0.6118362211 | X34: 0.801087988 | Y34: 0.7975650319 | Z34: 0.7588899505 | AA34: 0.450440058 | AB34: 0.6630510759 | AC34: 0.3186615635 | AD34: 0.9556481535 | AE34: 0.07833479035 | AF34: 0.4935351294 | AG34: 0.4054619867 | AH34: 0.02311601642 | AI34: 0.7011517877 | AJ34: 0.2833380883 | AK34: 0.6795180778 | AL34: 0.1911459835 | AM34: 0.5905689804 | AN34: 0.9269398892 | AO34: 0.5518960344 | AP34: 0.7964087087 | AQ34: 0.799111245 | AR34: 0.7476595129 | AS34: 0.02814050665 | AT34: 0.641065884 | AU34: 0.5112744386 | AV34: 0.1728166182 | AW34: 0.4267795421 | AX34: 0.2756721612 | AY34: 0.5499820852 | BA34: 3557.796226 | BB34: 1308.426347 | BC34: 938.9263392 | BD34: 2561.11487 | BE34: 2969.583786 | BF34: 15927.04996 | BG34: 8286.554871 | BH34: 2481.924064 | BI34: 883.6507112 | BJ34: 650.3469159 | BK34: 3974.469671 | BL34: 4816.283243 | BM34: 8891.997307 | BN34: 10997.95565 | BO34: 4691.074346 | BP34: 1279.402196 | BQ34: 3411.092523 | BR34: 742.0065634 | BS34: 1295.296868 | BT34: 5198.81619 | BU34: 7068.887631 | BV34: 5229.131328 | BW34: 10322.56738 | BX34: 10162.55981 | BY34: 8652.381242 | BZ34: 3262.005312 | CA34: 6149.798565 | CB34: 2218.278851 | CC34: 31352.17782 | CD34: 830.3491458 | CE34: 3689.831981 | CF34: 2867.241155 | CG34: 477.7326648 | CH34: 6992.118362 | CI34: 1986.663422 | CJ34: 6494.408355 | CK34: 1442.649312 | CL34: 4901.261996 | CM34: 22494.40477 | CN34: 4369.065961 | CO34: 10110.98433 | CP34: 10232.24782 | CQ34: 8283.062257 | CR34: 516.8555515 | CS34: 5729.148309 | CT34: 3882.791776 | CU34: 1341.841324 | CV34: 3048.461368 | CW34: 1938.38072 | CX34: 4344.613702 | CZ34: 3.55118107 | DA34: 3.116749281 | DB34: 2.972631522 | DC34: 3.408429058 | DD34: 3.472695583 | DE34: 4.202135342 | DF34: 3.91837401 | DG34: 3.39478849 | DH34: 2.946280631 | DI34: 2.813145085 | DJ34: 3.599279187 | DK34: 3.68271202 | DL34: 3.948999323 | DM34: 4.041311964 | DN34: 3.671272316 | DO34: 3.107007092 | DP34: 3.532893499 | DQ34: 2.870407747 | DR34: 3.112369316 | DS34: 3.715904463 | DT34: 3.849351078 | DU34: 3.718429549 | DV34: 4.013787726 | DW34: 4.007003114 | DX34: 3.937135647 | DY34: 3.513484664 | DZ34: 3.788860891 | EA34: 3.346016139 | EB34: 4.496267714 | EC34: 2.919260743 | ED34: 3.567006591 | EE34: 3.457464222 | EF34: 2.679184937 | EG34: 3.844608771 | EH34: 3.298124296 | EI34: 3.812539593 | EJ34: 3.159160773 | EK34: 3.690307918 | EL34: 4.352074506 | EM34: 3.640388601 | EN34: 4.004793438 | EO34: 4.00997105 | EP34: 3.918190926 | EQ34: 2.713369185 | ER34: 3.758090065 | ES34: 3.589144101 | ET34: 3.127701162 | EU34: 3.484080696 | EV34: 3.287439081 | EW34: 3.637951168 | EX34: 3.553995107
A35: 32 | B35: 0.3358448134 | C35: 0.2694456248 | D35: 0.9940329072 | E35: 0.2479340406 | F35: 0.9271444132 | G35: 0.8337754608 | H35: 0.305515902 | I35: 0.9924670967 | J35: 0.3124510256 | K35: 0.4508635086 | L35: 0.4310685804 | M35: 0.9186259558 | N35: 0.2099844745 | O35: 0.4318985192 | P35: 0.2137731558 | Q35: 0.01254073799 | R35: 0.2436301553 | S35: 0.7398331446 | T35: 0.03485229234 | U35: 0.4975549008 | V35: 0.7307934858 | W35: 0.7615317584 | X35: 0.8562974246 | Y35: 0.4137872349 | Z35: 0.8155225774 | AA35: 0.7851200398 | AB35: 0.3783770777 | AC35: 0.5673885948 | AD35: 0.8295571145 | AE35: 0.268570287 | AF35: 0.8621409755 | AG35: 0.3004140109 | AH35: 0.6391067588 | AI35: 0.6201480052 | AJ35: 0.4984237254 | AK35: 0.5089008271 | AL35: 0.7502651542 | AM35: 0.4060610664 | AN35: 0.4635175741 | AO35: 0.6221535334 | AP35: 0.5183777413 | AQ35: 0.4264862215 | AR35: 0.1968931368 | AS35: 0.9963504759 | AT35: 0.4651331363 | AU35: 0.4463729528 | AV35: 0.8362589995 | AW35: 0.8723341249 | AX35: 0.3996532205 | AY35: 0.5646600001 | BA35: 2336.971598 | BB35: 1899.639491 | BC35: 97739.21818 | BD35: 1768.861246 | BE35: 22538.21706 | BF35: 12051.5471 | BG35: 2130.235742 | BH35: 86641.0856 | BI35: 2176.39709 | BJ35: 3265.955111 | BK35: 3086.162027 | BL35: 20856.69247 | BM35: 1548.243993 | BN35: 3093.507236 | BO35: 1569.763766 | BP35: 381.1024107 | BQ35: 1743.230949 | BR35: 8040.602119 | BS35: 565.243519 | BT35: 3732.623546 | BU35: 7774.441646 | BV35: 8743.203762 | BW35: 13584.57849 | BX35: 2936.827078 | BY35: 11027.24032 | BZ35: 9630.41812 | CA35: 2650.593043 | CB35: 4573.238851 | CC35: 11799.76525 | CD35: 1894.226423 | CE35: 14044.37871 | CF35: 2096.672983 | CG35: 5693.64075 | CH35: 5365.108052 | CI35: 3741.942677 | CJ35: 3856.342633 | CK35: 8366.42348 | CL35: 2872.199407 | CM35: 3386.195693 | CN35: 5398.624527 | CO35: 3963.160119 | CP35: 3045.898773 | CQ35: 1474.629079 | CR35: 125126.1733 | CS35: 3401.862263 | CT35: 3224.305516 | CU35: 12204.46308 | CV35: 14922.75711 | CW35: 2819.551215 | CX35: 4536.449351 | CZ35: 3.368653434 | DA35: 3.278671189 | DB35: 4.990068861 | DC35: 3.247693767 | DD35: 4.352919557 | DE35: 4.081042802 | DF35: 3.328427667 | DG35: 4.937723885 | DH35: 3.337738137 | DI35: 3.514010211 | DJ35: 3.489418723 | DK35: 4.319245438 | DL35: 3.189839404 | DM35: 3.490451136 | DN35: 3.1958343 | DO35: 2.581041696 | DP35: 3.241354928 | DQ35: 3.905288572 | DR35: 2.752235592 | DS35: 3.572014191 | DT35: 3.890669208 | DU35: 3.9416706 | DV35: 4.133046168 | DW35: 3.467878376 | DX35: 4.042466839 | DY35: 3.983645143 | DZ35: 3.423343054 | EA35: 3.660223884 | EB35: 4.071873367 | EC35: 3.27743189 | ED35: 4.147502532 | EE35: 3.321530699 | EF35: 3.755390061 | EG35: 3.729578473 | EH35: 3.57309713 | EI35: 3.586175614 | EJ35: 3.922539843 | EK35: 3.458214588 | EL35: 3.529712053 | EM35: 3.732283123 | EN35: 3.598041619 | EO35: 3.483715466 | EP35: 3.168682794 | EQ35: 5.097348163 | ER35: 3.531716726 | ES35: 3.508436186 | ET35: 4.086518678 | EU35: 4.17384907 | EV35: 3.450179988 | EW35: 3.656716066 | EX35: 3.691543018 | FA35: =SUM(FA10:FA33) -> 1000
A36: 33 | B36: 0.9881851716 | C36: 0.229602515 | D36: 0.1406682336 | E36: 0.1608070377 | F36: 0.6320085699 | G36: 0.5148957233 | H36: 0.06150534182 | I36: 0.5827670055 | J36: 0.8053459745 | K36: 0.9773005681 | L36: 0.3102692534 | M36: 0.9764276857 | N36: 0.03175457944 | O36: 0.05474700534 | P36: 0.5915649246 | Q36: 0.6059944233 | R36: 0.1131161584 | S36: 0.08987975909 | T36: 0.9547610965 | U36: 0.03327626591 | V36: 0.7019037815 | W36: 0.2741333089 | X36: 0.07890022009 | Y36: 0.2914094555 | Z36: 0.7262640979 | AA36: 0.5363049707 | AB36: 0.5944968121 | AC36: 0.5394742155 | AD36: 0.8676630484 | AE36: 0.4406585073 | AF36: 0.3856822158 | AG36: 0.7569601013 | AH36: 0.4633700413 | AI36: 0.1333819738 | AJ36: 0.3060438661 | AK36: 0.702920089 | AL36: 0.7706246245 | AM36: 0.5453856925 | AN36: 0.2052867789 | AO36: 0.7971006253 | AP36: 0.4105711413 | AQ36: 0.6773584627 | AR36: 0.1864992814 | AS36: 0.9009390029 | AT36: 0.3190246672 | AU36: 0.2214000142 | AV36: 0.08766976645 | AW36: 0.4079776342 | AX36: 0.08224995764 | AY36: 0.7468349637 | BA36: 68156.98501 | BB36: 1660.828812 | BC36: 1168.189933 | BD36: 1276.603936 | BE36: 5567.504197 | BF36: 3923.533476 | BG36: 733.7882115 | BH36: 4787.647304 | BI36: 10521.95572 | BJ36: 47175.67597 | BK36: 2161.806798 | BL36: 46144.88383 | BM36: 543.3696861 | BN36: 693.4135186 | BO36: 4916.011666 | BP36: 5136.287223 | BQ36: 1020.477004 | BR36: 894.4086087 | BS36: 30957.47353 | BT36: 554.203809 | BU36: 7010.438842 | BV36: 1928.767064 | BW36: 833.5196234 | BX36: 2038.227124 | BY36: 7646.304953 | BZ36: 4174.522812 | CA36: 4959.764138 | CB36: 4213.227801 | CC36: 14507.32943 | CD36: 3172.048182 | CE36: 2707.623502 | CF36: 8587.015614 | CG36: 3384.768657 | CH36: 1129.139284 | CI36: 2133.727921 | CJ36: 7035.314845 | CK36: 9068.259078 | CL36: 4286.554359 | CM36: 1521.698886 | CN36: 10141.79081 | CO36: 2909.770014 | CP36: 6447.633852 | CQ36: 1416.930574 | CR36: 18092.47948 | CS36: 2220.743748 | CT36: 1613.400518 | CU36: 882.2448554 | CV36: 2888.112457 | CW36: 852.2259796 | CX36: 8256.963782 | CZ36: 4.833510371 | DA36: 3.22032487 | DB36: 3.067513459 | DC36: 3.106056179 | DD36: 3.745660553 | DE36: 3.593677362 | DF36: 2.86557073 | DG36: 3.680122149 | DH36: 4.02209647 | DI36: 4.673718132 | DJ36: 3.334816878 | DK36: 4.664123557 | DL36: 2.735095406 | DM36: 2.840992304 | DN36: 3.691612905 | DO36: 3.710649302 | DP36: 3.008803222 | DQ36: 2.951535971 | DR36: 4.49076551 | DS36: 2.743669506 | DT36: 3.845745205 | DU36: 3.285279781 | DV36: 2.920915829 | DW36: 3.309252577 | DX36: 3.883451615 | DY36: 3.620606839 | DZ36: 3.695461024 | EA36: 3.624614941 | EB36: 4.161587473 | EC36: 3.501339775 | ED36: 3.432588275 | EE36: 3.933842253 | EF36: 3.529528991 | EG36: 3.052747517 | EH36: 3.32913904 | EI36: 3.847283538 | EJ36: 3.957523919 | EK36: 3.632108336 | EL36: 3.182328723 | EM36: 4.006114648 | EN36: 3.463858664 | EO36: 3.809400367 | EP36: 3.151348571 | EQ36: 4.257498089 | ER36: 3.346498448 | ES36: 3.207742192 | ET36: 2.945589135 | EU36: 3.4606141 | EV36: 2.930554769 | EW36: 3.91682038 | EX36: 3.544433997
A37: 34 | B37: 0.1206649056 | C37: 0.7838129326 | D37: 0.2171312594 | E37: 0.7462704997 | F37: 0.9303718199 | G37: 0.7603593249 | H37: 0.1783689592 | I37: 0.4446797582 | J37: 0.3131793687 | K37: 0.6832805242 | L37: 0.8341481532 | M37: 0.7336113026 | N37: 0.5583962942 | O37: 0.7048288941 | P37: 0.7697552274 | Q37: 0.9782646402 | R37: 0.9619145187 | S37: 0.9174231201 | T37: 0.4201080328 | U37: 0.616886108 | V37: 0.8312370764 | W37: 0.4118383847 | X37: 0.1430197824 | Y37: 0.1523243744 | Z37: 0.4973913302 | AA37: 0.6193641347 | AB37: 0.1452631075 | AC37: 0.009761505523 | AD37: 0.7637899672 | AE37: 0.3623568913 | AF37: 0.7164528377 | AG37: 0.8072151473 | AH37: 0.1418325142 | AI37: 0.9455165881 | AJ37: 0.9249865034 | AK37: 0.2573715309 | AL37: 0.1632783955 | AM37: 0.2702693563 | AN37: 0.6451650038 | AO37: 0.4900573665 | AP37: 0.05209694724 | AQ37: 0.07230635474 | AR37: 0.8631359093 | AS37: 0.604970711 | AT37: 0.01588991537 | AU37: 0.4147437566 | AV37: 0.735897351 | AW37: 0.2150746416 | AX37: 0.7851745757 | AY37: 0.6749599997 | BA37: 1061.005139 | BB37: 9577.317474 | BC37: 1588.923894 | BD37: 8239.17433 | BE37: 23255.07509 | BF37: 8702.703002 | BG37: 1372.203653 | BH37: 3208.735681 | BI37: 2181.28187 | BJ37: 6577.09918 | BK37: 12074.2681 | BL37: 7855.883092 | BM37: 4453.355692 | BN37: 7082.401138 | BO37: 9036.311999 | BP37: 48383.86275 | BQ37: 34518.75684 | BR37: 20640.6287 | BS37: 2990.66374 | BT37: 5311.188848 | BU37: 11898.86857 | BV37: 2920.404694 | BW37: 1180.805522 | BX37: 1230.82032 | BY37: 3730.871878 | BZ37: 5352.08396 | CA37: 1192.848495 | CB37: 349.8656881 | CC37: 8822.098317 | CD37: 2528.909808 | CE37: 7379.862729 | CF37: 10611.64324 | CG37: 1174.435082 | CH37: 27432.87142 | CI37: 22085.0828 | CJ37: 1825.671479 | CK37: 1289.984832 | CL37: 1904.740835 | CM37: 5804.442852 | CN37: 3653.235216 | CO37: 677.2425813 | CP37: 796.2862561 | CQ37: 14125.66379 | CR37: 5120.241212 | CS37: 414.652926 | CT37: 2944.917612 | CU37: 7922.957498 | CV37: 1577.179833 | CW37: 9632.644581 | CX37: 6396.262595 | CZ37: 3.025717488 | DA37: 3.981243884 | DB37: 3.201103096 | DC37: 3.915883692 | DD37: 4.366517746 | DE37: 3.939654163 | DF37: 3.137418571 | DG37: 3.506333944 | DH37: 3.33871179 | DI37: 3.818034391 | DJ37: 4.081860815 | DK37: 3.895195012 | DL37: 3.648687384 | DM37: 3.850180521 | DN37: 3.955991217 | DO37: 4.684700538 | DP37: 4.538055147 | DQ37: 4.314722922 | DR37: 3.475767585 | DS37: 3.725191744 | DT37: 4.075505667 | DU37: 3.465443038 | DV37: 3.072178376 | DW37: 3.090194658 | DX37: 3.571810335 | DY37: 3.728522918 | DZ37: 3.076585287 | EA37: 2.543901353 | EB37: 3.945571893 | EC37: 3.402933341 | ED37: 3.868048284 | EE37: 4.025782641 | EF37: 3.069829016 | EG37: 4.438271268 | EH37: 4.344099032 | EI37: 3.261422631 | EJ37: 3.110584604 | EK37: 3.279835892 | EL37: 3.76376054 | EM37: 3.562677635 | EN37: 2.830744256 | EO37: 2.90106922 | EP37: 4.150008865 | EQ37: 3.709290421 | ER37: 2.617684734 | ES37: 3.469073149 | ET37: 3.898887326 | EU37: 3.197881215 | EV37: 3.983745536 | EW37: 3.805926285 | EX37: 3.633244821
A38: 35 | B38: 0.3915440291 | C38: 0.7914050329 | D38: 0.08159822314 | E38: 0.07739168362 | F38: 0.5266889241 | G38: 0.8417092223 | H38: 0.7516275423 | I38: 0.3679449925 | J38: 0.04694189145 | K38: 0.8413116173 | L38: 0.657351767 | M38: 0.3484377183 | N38: 0.2335435173 | O38: 0.5648887842 | P38: 0.6506581523 | Q38: 0.1970192112 | R38: 0.1276226449 | S38: 0.4078873997 | T38: 0.3517105479 | U38: 0.2427970159 | V38: 0.3493170424 | W38: 0.9130114298 | X38: 0.231108411 | Y38: 0.4962708678 | Z38: 0.3995280544 | AA38: 0.763826372 | AB38: 0.7711049696 | AC38: 0.2317476184 | AD38: 0.7216517164 | AE38: 0.2406476248 | AF38: 0.896289304 | AG38: 0.2005792877 | AH38: 0.5664266182 | AI38: 0.9477569287 | AJ38: 0.5165779974 | AK38: 0.006002681452 | AL38: 0.07153052438 | AM38: 0.3308994247 | AN38: 0.4948400273 | AO38: 0.6319896029 | AP38: 0.1169391814 | AQ38: 0.2947195108 | AR38: 0.245861745 | AS38: 0.1601664028 | AT38: 0.02429411468 | AU38: 0.3057126457 | AV38: 0.9478238604 | AW38: 0.7030503049 | AX38: 0.2902280269 | AY38: 0.2396828004 | BA38: 2754.118383 | BB38: 9892.966784 | BC38: 848.5962559 | BD38: 825.0521955 | BE38: 4059.586313 | BF38: 12552.97926 | BG38: 8410.555648 | BH38: 2570.841675 | BI38: 645.1259789 | BJ38: 12526.92944 | BK38: 6036.661649 | BL38: 2426.742347 | BM38: 1683.809717 | BN38: 4539.520052 | BO38: 5907.528309 | BP38: 1475.332814 | BQ38: 1098.290391 | BR38: 2887.361511 | BS38: 2450.480175 | BT38: 1738.288931 | BU38: 2433.103232 | BV38: 19887.27219 | BW38: 1669.594865 | BX38: 3718.89678 | BY38: 2818.531223 | BZ38: 8823.379861 | CA38: 9085.991402 | CB38: 1673.32144 | CC38: 7519.205458 | CD38: 1725.567837 | CE38: 17487.4856 | CF38: 1495.245223 | CG38: 4560.226887 | CH38: 28200.7768 | CI38: 3942.622532 | CJ38: 299.291422 | CK38: 791.8648476 | CL38: 2302.374674 | CM38: 3703.664747 | CN38: 5567.172313 | CO38: 1041.016129 | CP38: 2059.596576 | CQ38: 1756.499244 | CR38: 1273.138631 | CS38: 487.1827285 | CT38: 2131.536669 | CU38: 28224.47412 | CV38: 7038.511823 | CW38: 2030.631748 | CX38: 1719.870876 | CZ38: 3.439982604 | DA38: 3.995326551 | DB38: 2.928701111 | DC38: 2.916481424 | DD38: 3.60848178 | DE38: 4.098746811 | DF38: 3.924824689 | DG38: 3.410075332 | DH38: 2.809644531 | DI38: 4.097844631 | DJ38: 3.780796835 | DK38: 3.385023669 | DL38: 3.226293011 | DM38: 3.657009939 | DN38: 3.771405811 | DO38: 3.168890002 | DP38: 3.040717184 | DQ38: 3.460501163 | DR38: 3.389251193 | DS38: 3.240121965 | DT38: 3.386160536 | DU38: 4.298575218 | DV38: 3.2226111 | DW38: 3.570414124 | DX38: 3.45002285 | DY38: 3.945634977 | DZ38: 3.958372322 | EA38: 3.223579376 | EB38: 3.876171952 | EC38: 3.236932037 | ED38: 4.24272737 | EE38: 3.174712424 | EF38: 3.658986451 | EG38: 4.450261071 | EH38: 3.5957852 | EI38: 2.47609427 | EJ38: 2.898651064 | EK38: 3.362175999 | EL38: 3.568631668 | EM38: 3.745634664 | EN38: 3.017457458 | EO38: 3.313782161 | EP38: 3.244647967 | EQ38: 3.104875696 | ER38: 2.687691883 | ES38: 3.328692808 | ET38: 4.450625859 | EU38: 3.847480844 | EV38: 3.307631172 | EW38: 3.235495842 | EX38: 3.484612732
A39: 36 | B39: 0.6673529687 | C39: 0.02105662841 | D39: 0.3033704993 | E39: 0.9327488634 | F39: 0.4522406922 | G39: 0.6371578529 | H39: 0.4489402847 | I39: 0.9540319248 | J39: 0.7419576924 | K39: 0.06201604622 | L39: 0.9629563996 | M39: 0.2000964647 | N39: 0.8483405115 | O39: 0.1347793107 | P39: 0.7414000436 | Q39: 0.6403076469 | R39: 0.2498075115 | S39: 0.8340584271 | T39: 0.2435290792 | U39: 0.06710505067 | V39: 0.06138420491 | W39: 0.8072096945 | X39: 0.5843009648 | Y39: 0.8626624691 | Z39: 0.6618521164 | AA39: 0.2880929641 | AB39: 0.2730718579 | AC39: 0.06824487575 | AD39: 0.2363137496 | AE39: 0.2379975846 | AF39: 0.1818911007 | AG39: 0.3588584234 | AH39: 0.6769453068 | AI39: 0.6076200939 | AJ39: 0.06011415969 | AK39: 0.703109403 | AL39: 0.846896301 | AM39: 0.5942278208 | AN39: 0.09051227715 | AO39: 0.1083510285 | AP39: 0.9642929108 | AQ39: 0.5390769858 | AR39: 0.322885501 | AS39: 0.811941206 | AT39: 0.0266050541 | AU39: 0.9083301448 | AV39: 0.1101283846 | AW39: 0.3879544823 | AX39: 0.381692834 | AY39: 0.6464627815 | BA39: 6237.219101 | BB39: 460.7310859 | BC39: 2116.081926 | BD39: 23815.88955 | BE39: 3278.833462 | BF39: 5658.619675 | BG39: 3248.053498 | BH39: 30641.5528 | BI39: 8105.276587 | BJ39: 736.7945588 | BK39: 35120.95267 | BL39: 1492.540044 | BM39: 13002.89819 | BN39: 1136.625091 | BO39: 8088.220097 | BP39: 5715.369586 | BQ39: 1780.071476 | BR39: 12068.79077 | BS39: 1742.631053 | BT39: 766.4570905 | BU39: 733.0742718 | BV39: 10611.37964 | BW39: 4809.718971 | BX39: 14086.87119 | BY39: 6125.747772 | BZ39: 2016.947461 | CA39: 1922.150891 | CB39: 773.0330566 | CC39: 1700.041531 | CD39: 1709.939826 | CE39: 1391.538991 | CF39: 2502.929334 | CG39: 6438.741762 | CH39: 5161.904478 | CI39: 725.569049 | CJ39: 7039.963492 | CK39: 12902.3515 | CL39: 4955.729177 | CM39: 897.8825995 | CN39: 994.8220425 | CO39: 35931.22559 | CP39: 4208.353628 | CQ39: 2247.065649 | CR39: 10844.57367 | CS39: 505.2103271 | CT39: 19148.76198 | CU39: 1004.399298 | CV39: 2725.568147 | CW39: 2676.35527 | CX39: 5828.568484 | CZ39: 3.794991 | DA39: 2.663447515 | DB39: 3.325532478 | DC39: 4.376866808 | DD39: 3.515719359 | DE39: 3.752710505 | DF39: 3.511623174 | DG39: 4.48631077 | DH39: 3.908767839 | DI39: 2.86734641 | DJ39: 4.545566288 | DK39: 3.173925992 | DL39: 4.114040162 | DM39: 3.055617239 | DN39: 3.907852961 | DO39: 3.757044319 | DP39: 3.250437441 | DQ39: 4.081663758 | DR39: 3.241205449 | DS39: 2.884487846 | DT39: 2.865147978 | DU39: 4.025771852 | DV39: 3.682119702 | DW39: 4.148814544 | DX39: 3.787159111 | DY39: 3.304694586 | DZ39: 3.283787477 | EA39: 2.888198066 | EB39: 3.230459531 | EC39: 3.232980827 | ED39: 3.14349538 | EE39: 3.398448588 | EF39: 3.808801007 | EG39: 3.712809964 | EH39: 2.860678749 | EI39: 3.847570407 | EJ39: 4.110668869 | EK39: 3.695107565 | EL39: 2.953219555 | EM39: 2.997745399 | EN39: 4.555472031 | EO39: 3.624112226 | EP39: 3.351615761 | EQ39: 4.035212483 | ER39: 2.70347222 | ES39: 4.282140701 | ET39: 3.0019064 | EU39: 3.435457045 | EV39: 3.427543763 | EW39: 3.765561904 | EX39: 3.54750662
A40: 37 | B40: 0.02271085162 | C40: 0.7329792201 | D40: 0.9564788198 | E40: 0.3590165827 | F40: 0.004827912433 | G40: 0.308086439 | H40: 0.05892122133 | I40: 0.8466063461 | J40: 0.1143248643 | K40: 0.788059834 | L40: 0.4525520314 | M40: 0.9303652724 | N40: 0.1686735052 | O40: 0.3451151126 | P40: 0.04073321112 | Q40: 0.1613758118 | R40: 0.9207994237 | S40: 0.2527119554 | T40: 0.2316440139 | U40: 0.1969682412 | V40: 0.8570632487 | W40: 0.815034023 | X40: 0.6941477252 | Y40: 0.1881133736 | Z40: 0.8103788665 | AA40: 0.9042504715 | AB40: 0.3517725013 | AC40: 0.9397084339 | AD40: 0.8936984677 | AE40: 0.537045294 | AF40: 0.9460191119 | AG40: 0.9831201083 | AH40: 0.8061320874 | AI40: 0.7612617651 | AJ40: 0.3311749815 | AK40: 0.9795604482 | AL40: 0.460811956 | AM40: 0.3154861029 | AN40: 0.7232988961 | AO40: 0.8357818824 | AP40: 0.5228868011 | AQ40: 0.2213974172 | AR40: 0.9512008279 | AS40: 0.6454603658 | AT40: 0.1467884252 | AU40: 0.5774819099 | AV40: 0.859499405 | AW40: 0.9052499286 | AX40: 0.7852642923 | AY40: 0.002888750877 | BA40: 474.4381961 | BB40: 7837.496858 | BC40: 31732.59372 | BD40: 2504.09942 | BE40: 280.1291037 | BF40: 2147.272322 | BG40: 718.485145 | BH40: 12882.34111 | BI40: 1026.974393 | BJ40: 9751.710881 | BK40: 3281.75177 | BL40: 23253.57028 | BM40: 1319.272447 | BN40: 2402.817775 | BO40: 605.0403169 | BP40: 1279.681667 | BQ40: 21259.63309 | BR40: 1797.516038 | BS40: 1672.717196 | BT40: 1475.048293 | BU40: 13643.18461 | BV40: 11001.99816 | BW40: 6824.907227 | BX40: 1425.850867 | BY40: 10766.57256 | BZ40: 18550.3812 | CA40: 2450.931184 | CB40: 25645.02128 | CC40: 17168.01491 | CD40: 4183.526843 | CE40: 27600.96257 | CF40: 55924.47781 | CG40: 10559.51127 | CH40: 8733.849429 | CI40: 2304.292934 | CJ40: 50137.23058 | CK40: 3360.121124 | CL40: 2196.799396 | CM40: 7564.212312 | CN40: 12174.8084 | CO40: 4015.147212 | CP40: 1613.385585 | CQ40: 29482.39856 | CR40: 5809.921339 | CS40: 1201.042031 | CT40: 4712.57298 | CU40: 13832.87944 | CV40: 18693.34619 | CW40: 9636.309239 | CX40: 241.6030844 | CZ40: 2.676179646 | DA40: 3.89417738 | DB40: 4.501505571 | DC40: 3.398651568 | DD40: 2.447358232 | DE40: 3.331887126 | DF40: 2.856417793 | DG40: 4.109994795 | DH40: 3.011559615 | DI40: 3.989080817 | DJ40: 3.516105728 | DK40: 4.366489643 | DL40: 3.120334492 | DM40: 3.380720836 | DN40: 2.781784315 | DO40: 3.107101948 | DP40: 4.327555765 | DQ40: 3.254672774 | DR40: 3.223422522 | DS40: 3.168806239 | DT40: 4.134915756 | DU40: 4.041471568 | DV40: 3.834096752 | DW40: 3.154074104 | DX40: 4.032077472 | DY40: 4.268352839 | DZ40: 3.389331118 | EA40: 4.409003064 | EB40: 4.234720082 | EC40: 3.62154256 | ED40: 4.440924228 | EE40: 4.747601938 | EF40: 4.023643818 | EG40: 3.9412057 | EH40: 3.362537688 | EI40: 4.700160341 | EJ40: 3.526354933 | EK40: 3.341790401 | EL40: 3.87876371 | EM40: 4.085462135 | EN40: 3.603701473 | EO40: 3.207738172 | EP40: 4.469562813 | EQ40: 3.764170252 | ER40: 3.079558206 | ES40: 3.673258089 | ET40: 4.140912592 | EU40: 4.271687049 | EV40: 3.983910729 | EW40: 2.383102474 | EX40: 3.684188777
A41: 38 | B41: 0.3079990983 | C41: 0.9309122127 | D41: 0.8116893528 | E41: 0.4130646401 | F41: 0.8064720231 | G41: 0.3953804937 | H41: 0.9902921338 | I41: 0.3255734572 | J41: 0.2814075995 | K41: 0.7456934098 | L41: 0.5726159215 | M41: 0.04933112014 | N41: 0.5945424837 | O41: 0.5530171297 | P41: 0.3067883928 | Q41: 0.2007382714 | R41: 0.07906956567 | S41: 0.8422504195 | T41: 0.3460301819 | U41: 0.8915522859 | V41: 0.9942875256 | W41: 0.4927333187 | X41: 0.3537419396 | Y41: 0.2090133625 | Z41: 0.1662263922 | AA41: 0.002368141237 | AB41: 0.9121606688 | AC41: 0.4022125193 | AD41: 0.2315190943 | AE41: 0.4529914794 | AF41: 0.116426881 | AG41: 0.5448632274 | AH41: 0.5033128062 | AI41: 0.7948390911 | AJ41: 0.1096325155 | AK41: 0.5694314952 | AL41: 0.4269504966 | AM41: 0.4660533871 | AN41: 0.8905791806 | AO41: 0.4480823876 | AP41: 0.5139544257 | AQ41: 0.02001510375 | AR41: 0.8136282282 | AS41: 0.6499311378 | AT41: 0.0311426369 | AU41: 0.2421931675 | AV41: 0.6580474795 | AW41: 0.1143063269 | AX41: 0.8308735772 | AY41: 0.2880889872 | BA41: 2146.692052 | BB41: 23380.0133 | BC41: 10831.93165 | BD41: 2930.72838 | BE41: 10575.8248 | BF41: 2784.911285 | BG41: 75774.57681 | BH41: 2265.514596 | BI41: 1974.442272 | BJ41: 8221.051115 | BK41: 4644.751549 | BL41: 660.1274714 | BM41: 4960.449648 | BN41: 4383.465417 | BO41: 2138.658651 | BP41: 1496.136305 | BQ41: 834.4684266 | BR41: 12588.59983 | BS41: 2409.389411 | BT41: 16912.23897 | BU41: 99943.00372 | BV41: 3681.359793 | BW41: 2465.300745 | BX41: 1542.744232 | BY41: 1305.974635 | BZ41: 228.7932309 | CA41: 19748.6284 | CB41: 2840.477331 | CC41: 1671.988757 | CD41: 3285.875244 | CE41: 1038.265655 | CF41: 4280.01332 | CG41: 3794.857462 | CH41: 10041.70128 | CI41: 1001.728361 | CJ41: 4601.023712 | CK41: 3049.955833 | CL41: 3410.818942 | CM41: 16798.79861 | CN41: 3240.099021 | CO41: 3912.897587 | CP41: 451.8714744 | CQ41: 10929.93958 | CR41: 5893.738228 | CS41: 538.9608835 | CT41: 1734.710916 | CU41: 6050.312313 | CV41: 1026.874772 | CW41: 11877.29593 | CX41: 2016.922022 | CZ41: 3.331769748 | DA41: 4.368844754 | DB41: 4.034705911 | DC41: 3.46697557 | DD41: 4.024314248 | DE41: 3.444811365 | DF41: 4.87952352 | DG41: 3.355166864 | DH41: 3.295444441 | DI41: 3.914927348 | DJ41: 3.666962488 | DK41: 2.819627806 | DL41: 3.695521046 | DM41: 3.641817585 | DN41: 3.330141473 | DO41: 3.174971162 | DP41: 2.921409909 | DQ41: 4.099977428 | DR41: 3.381906997 | DS41: 4.228201107 | DT41: 4.999752398 | DU41: 3.566008265 | DV41: 3.391869907 | DW41: 3.188293931 | DX41: 3.115934742 | DY41: 2.359443171 | DZ41: 4.295536938 | EA41: 3.453391328 | EB41: 3.223233353 | EC41: 3.51665107 | ED41: 3.016308488 | EE41: 3.631445121 | EF41: 3.579195468 | EG41: 4.001807298 | EH41: 3.00074997 | EI41: 3.662854471 | EJ41: 3.48429355 | EK41: 3.532858666 | EL41: 4.225278224 | EM41: 3.510558283 | EN41: 3.592498481 | EO41: 2.655014926 | EP41: 4.038617761 | EQ41: 3.770390843 | ER41: 2.731557246 | ES41: 3.239227111 | ET41: 3.781777793 | EU41: 3.011517484 | EV41: 4.074717577 | EW41: 3.304689108 | EX41: 3.560649875
A42: 39 | B42: 0.3548869859 | C42: 0.08983876216 | D42: 0.9494587847 | E42: 0.136323727 | F42: 0.9973335568 | G42: 0.1306029386 | H42: 0.02274797225 | I42: 0.2710658903 | J42: 0.2549422312 | K42: 0.3342925157 | L42: 0.1979435884 | M42: 0.1347193637 | N42: 0.3196096896 | O42: 0.344319456 | P42: 0.8642641024 | Q42: 0.09684066365 | R42: 0.5161840079 | S42: 0.1400038039 | T42: 0.07308899173 | U42: 0.3497450273 | V42: 0.4546461194 | W42: 0.298500639 | X42: 0.5580659592 | Y42: 0.8418989342 | Z42: 0.2622164619 | AA42: 0.1476379039 | AB42: 0.3430522766 | AC42: 0.6347174512 | AD42: 0.8585408895 | AE42: 0.6473560676 | AF42: 0.8659836115 | AG42: 0.8390447134 | AH42: 0.02967325998 | AI42: 0.8220544602 | AJ42: 0.7421870484 | AK42: 0.6346087342 | AL42: 0.1378215984 | AM42: 0.3115700784 | AN42: 0.5113510027 | AO42: 0.1237369104 | AP42: 0.4647338457 | AQ42: 0.4281221277 | AR42: 0.186068822 | AS42: 0.466121633 | AT42: 0.7730465708 | AU42: 0.01480759011 | AV42: 0.06689924946 | AW42: 0.4709682333 | AX42: 0.5783323981 | AY42: 0.2366602775 | BA42: 2473.684377 | BB42: 894.1833303 | BC42: 28817.80643 | BD42: 1144.900209 | BE42: 145817.4898 | BF42: 1114.253588 | BG42: 474.7410143 | BH42: 1909.680608 | BI42: 1810.966157 | BJ42: 2326.073047 | BK42: 1480.49556 | BL42: 1136.303922 | BM42: 2224.718944 | BN42: 2397.114365 | BO42: 14218.94327 | BP42: 932.4794456 | BQ42: 3938.142542 | BR42: 1164.626759 | BS42: 800.7372104 | BT42: 2436.20367 | BU42: 3301.447095 | BV42: 2084.170445 | BW42: 4449.02511 | BX42: 12565.44427 | BY42: 1855.173852 | BZ42: 1205.607117 | CA42: 2388.051359 | CB42: 5615.18398 | CC42: 13757.64285 | CD42: 5845.256191 | CE42: 14363.4306 | CF42: 12380.31503 | CG42: 528.2444744 | CH42: 11375.01084 | CI42: 8112.308592 | CJ42: 5613.259655 | CK42: 1152.927724 | CL42: 2170.498283 | CM42: 3883.648276 | CN42: 1077.472473 | CO42: 3397.983429 | CP42: 3060.216389 | CQ42: 1414.554 | CR42: 3411.48412 | CS42: 9158.265121 | CT42: 404.2008752 | CU42: 765.2672735 | CV42: 3459.06201 | CW42: 4724.553696 | CX42: 1702.076572 | CZ42: 3.393344286 | DA42: 2.951426569 | DB42: 4.45966092 | DC42: 3.058767634 | DD42: 5.163809618 | DE42: 3.046984041 | DF42: 2.676456753 | DG42: 3.280960738 | DH42: 3.257910334 | DI42: 3.366623349 | DJ42: 3.170407109 | DK42: 3.055494506 | DL42: 3.347275153 | DM42: 3.379688754 | DN42: 4.152867322 | DO42: 2.969639268 | DP42: 3.595291431 | DQ42: 3.066186765 | DR42: 2.903490011 | DS42: 3.386713593 | DT42: 3.518704342 | DU42: 3.318933233 | DV42: 3.648264857 | DW42: 4.099177848 | DX42: 3.268384615 | DY42: 3.081205803 | DZ42: 3.378043663 | EA42: 3.74936399 | EB42: 4.138544031 | EC42: 3.766803551 | ED42: 4.15725818 | EE42: 4.092731696 | EF42: 2.722834963 | EG42: 4.055951819 | EH42: 3.909144463 | EI42: 3.749215132 | EJ42: 3.061802083 | EK42: 3.336559447 | EL42: 3.589239891 | EM42: 3.032406184 | EN42: 3.531221257 | EO42: 3.485752137 | EP42: 3.150619531 | EQ42: 3.532943354 | ER42: 3.961813212 | ES42: 2.60659725 | ET42: 2.883813141 | EU42: 3.538958348 | EV42: 3.674360789 | EW42: 3.230979094 | EX42: 3.459092521
A43: 40 | B43: 0.8281782694 | C43: 0.01169395879 | D43: 0.2952665683 | E43: 0.5185243079 | F43: 0.3065889582 | G43: 0.373217346 | H43: 0.701682016 | I43: 0.8527871942 | J43: 0.3620477354 | K43: 0.1250599151 | L43: 0.4420749588 | M43: 0.0924130278 | N43: 0.1530685664 | O43: 0.06424411681 | P43: 0.7141965675 | Q43: 0.3331420232 | R43: 0.1281877121 | S43: 0.899805263 | T43: 0.2993052408 | U43: 0.8369981828 | V43: 0.2996953395 | W43: 0.2841596585 | X43: 0.7101476532 | Y43: 0.3752139479 | Z43: 0.2815867825 | AA43: 0.6592748359 | AB43: 0.3148388791 | AC43: 0.7030708059 | AD43: 0.5640931719 | AE43: 0.2924895346 | AF43: 0.4384722523 | AG43: 0.3234538461 | AH43: 0.4873458835 | AI43: 0.2965508273 | AJ43: 0.7857142355 | AK43: 0.7023555984 | AL43: 0.7137540292 | AM43: 0.0338935157 | AN43: 0.8498481792 | AO43: 0.9311238732 | AP43: 0.9364772382 | AQ43: 0.09353520197 | AR43: 0.9832151177 | AS43: 0.6418843677 | AT43: 0.2102546253 | AU43: 0.2938593514 | AV43: 0.4632354034 | AW43: 0.9045252267 | AX43: 0.2098980772 | AY43: 0.03254323197 | BA43: 11719.54988 | BB43: 371.9757495 | BC43: 2063.141106 | BD43: 3964.837945 | BE43: 2137.337165 | BF43: 2610.904179 | BG43: 7005.028496 | BH43: 13321.99092 | BI43: 2526.605606 | BJ43: 1084.561569 | BK43: 3184.9248 | BL43: 908.3035418 | BM43: 1234.828886 | BN43: 749.8452127 | BO43: 7320.634814 | BP43: 2318.018642 | BQ43: 1101.317146 | BR43: 17941.02688 | BS43: 2089.422391 | BT43: 12250.67134 | BU43: 2091.971617 | BV43: 1991.877364 | BW43: 7216.175936 | BX43: 2626.204896 | BY43: 1975.574825 | BZ43: 6074.501831 | CA43: 2192.438255 | CB43: 7039.015354 | CC43: 4528.852439 | CD43: 2045.185522 | CE43: 3152.271175 | CF43: 2250.958017 | CG43: 3624.970707 | CH43: 2071.476524 | CI43: 9654.724248 | CJ43: 7021.481351 | CK43: 7309.104391 | CL43: 558.5486421 | CM43: 13109.45247 | CN43: 23429.35097 | CO43: 24758.34924 | CP43: 914.4434214 | CQ43: 56103.01711 | CR43: 5744.073611 | CS43: 1549.775115 | CT43: 2054.030733 | CU43: 3383.46688 | CV43: 18589.45597 | CW43: 1547.754429 | CX43: 549.0071236 | CZ43: 4.068910932 | DA43: 2.570514628 | DB43: 3.314528932 | DC43: 3.598225441 | DD43: 3.329873038 | DE43: 3.416790933 | DF43: 3.845409906 | DG43: 4.124569133 | DH43: 3.402537455 | DI43: 3.035254211 | DJ43: 3.503099183 | DK43: 2.958231008 | DL43: 3.09160678 | DM43: 2.874971623 | DN43: 3.864548743 | DO43: 3.365116924 | DP43: 3.041912401 | DQ43: 4.253847297 | DR43: 3.320026244 | DS43: 4.088159889 | DT43: 3.320555788 | DU43: 3.299262596 | DV43: 3.858307113 | DW43: 3.419328607 | DX43: 3.295693483 | DY43: 3.783510667 | DZ43: 3.340927371 | EA43: 3.847511913 | EB43: 3.655988171 | EC43: 3.31073271 | ED43: 3.498623571 | EE43: 3.352367395 | EF43: 3.559304501 | EG43: 3.316280016 | EH43: 3.984739874 | EI43: 3.846428747 | EJ43: 3.863864165 | EK43: 2.747061 | EL43: 4.117584553 | EM43: 4.369760258 | EN43: 4.393721685 | EO43: 2.96115684 | EP43: 4.748986217 | EQ43: 3.759219997 | ER43: 3.190268683 | ES43: 3.312606937 | ET43: 3.52936193 | EU43: 4.26926668 | EV43: 3.189702055 | EW43: 2.73957798 | EX43: 3.538996724
A44: 41 | B44: 0.6197019214 | C44: 0.2055648726 | D44: 0.3080124963 | E44: 0.1325787345 | F44: 0.0685638492 | G44: 0.7707538948 | H44: 0.7089698302 | I44: 0.7348411394 | J44: 0.0958402962 | K44: 0.97044185 | L44: 0.993159719 | M44: 0.1380977098 | N44: 0.818869686 | O44: 0.2893376983 | P44: 0.8103171506 | Q44: 0.2818335502 | R44: 0.1993857833 | S44: 0.8453836998 | T44: 0.7851913455 | U44: 0.9126049781 | V44: 0.519669109 | W44: 0.4553370144 | X44: 0.2161549332 | Y44: 0.8770731163 | Z44: 0.1244477754 | AA44: 0.5715528024 | AB44: 0.3704323344 | AC44: 0.141275543 | AD44: 0.653487811 | AE44: 0.5135843715 | AF44: 0.7601854179 | AG44: 0.9298913783 | AH44: 0.9969765609 | AI44: 0.5884780323 | AJ44: 0.01959123407 | AK44: 0.1546083652 | AL44: 0.4092987144 | AM44: 0.3418601994 | AN44: 0.7873383888 | AO44: 0.8688225401 | AP44: 0.7885591712 | AQ44: 0.5673903255 | AR44: 0.5440739983 | AS44: 0.6575058471 | AT44: 0.9740884631 | AU44: 0.5458697292 | AV44: 0.7652346038 | AW44: 0.4184108244 | AX44: 0.9434005137 | AY44: 0.8620729553 | BA44: 5357.691115 | BB44: 1523.266159 | BC44: 2146.781058 | BD44: 1124.836574 | BE44: 774.869195 | BF44: 9073.025473 | BG44: 7186.21983 | BH44: 7891.854413 | BI44: 927.0284548 | BJ44: 40331.31163 | BK44: 91099.40816 | BL44: 1154.407707 | BM44: 11203.01318 | BN44: 2024.918807 | BO44: 10763.51188 | BP44: 1977.135151 | BQ44: 1488.560876 | BR44: 12798.60226 | BS44: 9633.329396 | BT44: 19820.77963 | BU44: 3977.970696 | BV44: 3307.970673 | BW44: 1583.344839 | BX44: 15368.7757 | BY44: 1081.281692 | BZ44: 4630.096001 | CA44: 2589.680727 | CB44: 1171.447284 | CC44: 5961.636662 | CD44: 3908.725108 | CE44: 8696.72198 | CF44: 23145.21811 | CG44: 137207.7047 | CH44: 4870.479324 | CI44: 448.2106168 | CJ44: 1243.127549 | CK44: 2899.126473 | CL44: 2379.548211 | CM44: 9721.702425 | CN44: 14608.3266 | CO44: 9772.574365 | CP44: 4573.262301 | CQ44: 4270.154887 | CR44: 6039.681093 | CS44: 43638.68683 | CT44: 4292.62486 | CU44: 8873.192162 | CV44: 2976.120998 | CW44: 26749.74078 | CX44: 14038.85451 | CZ44: 3.728977672 | DA44: 3.182775794 | DB44: 3.331787755 | DC44: 3.051089429 | DD44: 2.889228396 | DE44: 3.95775213 | DF44: 3.856500498 | DG44: 3.897179065 | DH44: 2.967093065 | DI44: 4.605642346 | DJ44: 4.959515556 | DK44: 3.062359218 | DL44: 4.049334847 | DM44: 3.306407614 | DN44: 4.031953995 | DO44: 3.296036357 | DP44: 3.1727666 | DQ44: 4.107162543 | DR44: 3.983776411 | DS44: 4.297120733 | DT44: 3.59966158 | DU44: 3.519561651 | DV44: 3.199575511 | DW44: 4.186639272 | DX44: 3.03393885 | DY44: 3.665589996 | DZ44: 3.413246225 | EA44: 3.06872275 | EB44: 3.775365504 | EC44: 3.592035129 | ED44: 3.939355587 | EE44: 4.364461278 | EF44: 5.137378499 | EG44: 3.687571704 | EH44: 2.651482139 | EI44: 3.094515691 | EJ44: 3.462267162 | EK44: 3.376494508 | EL44: 3.987742323 | EM44: 4.16460047 | EN44: 3.990008984 | EO44: 3.660226111 | EP44: 3.630443628 | EQ44: 3.781014008 | ER44: 4.639871673 | ES44: 3.632722936 | ET44: 3.948079887 | EU44: 3.473650584 | EV44: 4.427319578 | EW44: 4.147331673 | EX44: 3.719706698
A45: 42 | B45: 0.9452028293 | C45: 0.7093170835 | D45: 0.1949765384 | E45: 0.8278664134 | F45: 0.4224578321 | G45: 0.4536964517 | H45: 0.7352620492 | I45: 0.3044334955 | J45: 0.1628408386 | K45: 0.6627875462 | L45: 0.05518172462 | M45: 0.4644004667 | N45: 0.2069023374 | O45: 0.2661408175 | P45: 0.4423232342 | Q45: 0.185777821 | R45: 0.5518391688 | S45: 0.319441621 | T45: 0.3118266748 | U45: 0.2456863056 | V45: 0.1696262156 | W45: 0.8475429253 | X45: 0.8343792498 | Y45: 0.8990356021 | Z45: 0.354626077 | AA45: 0.1036121229 | AB45: 0.2393886349 | AC45: 0.3025416099 | AD45: 0.3969954243 | AE45: 0.517233249 | AF45: 0.2540394811 | AG45: 0.7043880089 | AH45: 0.1657434691 | AI45: 0.3722326481 | AJ45: 0.6040254661 | AK45: 0.1775921667 | AL45: 0.8800767578 | AM45: 0.04915470592 | AN45: 0.3046480428 | AO45: 0.2887704493 | AP45: 0.8409285692 | AQ45: 0.4457228849 | AR45: 0.273397724 | AS45: 0.9445035138 | AT45: 0.9798498513 | AU45: 0.6725199447 | AV45: 0.2426753736 | AW45: 0.03397560062 | AX45: 0.4668631953 | AY45: 0.04231364422 | BA45: 27329.09277 | BB45: 7195.031785 | BC45: 1463.942614 | BD45: 11701.5457 | BE45: 3010.905172 | BF45: 3292.500873 | BG45: 7904.225878 | BH45: 2123.087446 | BI45: 1287.614201 | BJ45: 6144.500643 | BK45: 696.0465052 | BL45: 3394.748306 | BM45: 1530.811014 | BN45: 1879.244795 | BO45: 3187.186972 | BP45: 1412.947937 | BQ45: 4368.337087 | BR45: 2223.576443 | BS45: 2172.215383 | BT45: 1755.454496 | BU45: 1324.455921 | BV45: 12947.18794 | BW45: 12088.39655 | BX45: 17839.68978 | BY45: 2471.772204 | BZ45: 969.2295345 | CA45: 1718.135557 | CB45: 2110.629233 | CC45: 2797.960715 | CD45: 3950.085976 | CE45: 1805.516166 | CF45: 7071.482826 | CG45: 1303.353096 | CH45: 2603.384407 | CI45: 5105.483408 | CJ45: 1367.947362 | CK45: 15665.36857 | CL45: 659.0269464 | CM45: 2124.503139 | CN45: 2021.28385 | CO45: 12501.92864 | CP45: 3218.319161 | CQ45: 1924.180761 | CR45: 27100.95589 | CS45: 50551.17167 | CT45: 6344.611576 | CU45: 1737.567895 | CV45: 559.1243571 | CW45: 3418.720467 | CX45: 615.4111112 | CZ45: 4.436625215 | DA45: 3.857032717 | DB45: 3.165524053 | DC45: 4.068243233 | DD45: 3.478697078 | DE45: 3.517525899 | DF45: 3.897859343 | DG45: 3.326967882 | DH45: 3.109785758 | DI45: 3.788486594 | DJ45: 2.842638257 | DK45: 3.53080758 | DL45: 3.184921578 | DM45: 3.273983356 | DN45: 3.503407542 | DO45: 3.15012616 | DP45: 3.640316144 | DQ45: 3.347052064 | DR45: 3.336902885 | DS45: 3.244389576 | DT45: 3.122037509 | DU45: 4.112175452 | DV45: 4.082368698 | DW45: 4.251387298 | DX45: 3.393008444 | DY45: 2.98642664 | DZ45: 3.235057426 | EA45: 3.324411949 | EB45: 3.446841613 | EC45: 3.596606548 | ED45: 3.256601381 | EE45: 3.849510491 | EF45: 3.115062088 | EG45: 3.415538299 | EH45: 3.708036869 | EI45: 3.136069386 | EJ45: 4.194940617 | EK45: 2.818903172 | EL45: 3.327257377 | EM45: 3.305627306 | EN45: 4.096977016 | EO45: 3.507629111 | EP45: 3.284245868 | EQ45: 4.432984609 | ER45: 4.703731226 | ES45: 3.802405039 | ET45: 3.239941783 | EU45: 2.747508412 | EV45: 3.533863592 | EW45: 2.789165333 | EX45: 3.510352269
A46: 43 | B46: 0.07162132638 | C46: 0.3440720341 | D46: 0.1414720302 | E46: 0.3145175361 | F46: 0.6269783143 | G46: 0.8336800924 | H46: 0.5757221905 | I46: 0.35971586 | J46: 0.9800592069 | K46: 0.2509089679 | L46: 0.6436760132 | M46: 0.6570085089 | N46: 0.9876915445 | O46: 0.2297257365 | P46: 0.9326697862 | Q46: 0.622950013 | R46: 0.4310863484 | S46: 0.9256128807 | T46: 0.7943899855 | U46: 0.1205899986 | V46: 0.9756313979 | W46: 0.8384360081 | X46: 0.534064831 | Y46: 0.100751462 | Z46: 0.07946445304 | AA46: 0.7456255086 | AB46: 0.3377414818 | AC46: 0.3345908399 | AD46: 0.9723610665 | AE46: 0.8332553485 | AF46: 0.6055342801 | AG46: 0.6785843172 | AH46: 0.4665292859 | AI46: 0.260617252 | AJ46: 0.6009403316 | AK46: 0.7607804538 | AL46: 0.1295949655 | AM46: 0.5936160997 | AN46: 0.8543071863 | AO46: 0.9663489259 | AP46: 0.6987888917 | AQ46: 0.2864647119 | AR46: 0.6054990473 | AS46: 0.1858761159 | AT46: 0.6045432316 | AU46: 0.505374095 | AV46: 0.5458671687 | AW46: 0.1048166234 | AX46: 0.04437554444 | AY46: 0.4699508904 | BA46: 792.3828021 | BB46: 2395.342813 | BC46: 1172.501264 | BD46: 2190.275074 | BE46: 5480.421816 | BF46: 12045.74568 | BG46: 4687.904541 | BH46: 2509.277797 | BI46: 50856.07567 | BJ46: 1786.677593 | BK46: 5776.933948 | BL46: 6029.942673 | BM46: 66651.76081 | BN46: 1661.545405 | BO46: 23796.75481 | BP46: 5412.01352 | BQ46: 3086.319108 | BR46: 22214.56842 | BS46: 10022.02967 | BT46: 1060.603464 | BU46: 45252.20764 | BV46: 12341.4893 | BW46: 4147.41466 | BX46: 953.7332833 | BY46: 836.6795595 | BZ46: 8218.922961 | CA46: 2350.33692 | CB46: 2328.16477 | CC46: 41991.94316 | CD46: 12019.97028 | CE46: 5129.066635 | CF46: 6474.123365 | CG46: 3415.460172 | CH46: 1845.409746 | CI46: 5057.701321 | CJ46: 8717.214736 | CK46: 1108.854736 | CL46: 4946.568875 | CM46: 13434.49809 | CN46: 37269.44567 | CO46: 6935.022431 | CP46: 2006.547493 | CQ46: 5128.51431 | CR46: 1413.490386 | CS46: 5113.560204 | CT46: 3817.411446 | CU46: 4292.592722 | CV46: 975.7430784 | CW46: 628.7635538 | CX46: 3449.019183 | CZ46: 2.898935041 | DA46: 3.379367677 | DB46: 3.06911332 | DC46: 3.340498661 | DD46: 3.738813986 | DE46: 4.08083369 | DF46: 3.67097876 | DG46: 3.399548744 | DH46: 4.706342845 | DI46: 3.252046191 | DJ46: 3.761697402 | DK46: 3.780313183 | DL46: 4.823811627 | DM46: 3.220512214 | DN46: 4.376517736 | DO46: 3.733358873 | DP46: 3.489440828 | DQ46: 4.34663788 | DR46: 4.000955684 | DS46: 3.025553041 | DT46: 4.655639771 | DU46: 4.091367571 | DV46: 3.617777458 | DW46: 2.979426939 | DX46: 2.922559159 | DY46: 3.91481491 | DZ46: 3.371130123 | EA46: 3.367013713 | EB46: 4.623165972 | EC46: 4.079903394 | ED46: 3.710038341 | EE46: 3.811180971 | EF46: 3.533449225 | EG46: 3.26609281 | EH46: 3.703953179 | EI46: 3.940377744 | EJ46: 3.044874656 | EK46: 3.69430406 | EL46: 4.128221446 | EM46: 4.571352933 | EN46: 3.84104787 | EO46: 3.302449444 | EP46: 3.709991572 | EQ46: 3.150292859 | ER46: 3.708723373 | ES46: 3.581768971 | ET46: 3.632719685 | EU46: 2.989335479 | EV46: 2.79848736 | EW46: 3.53769561 | EX46: 3.66748868
A47: 44 | B47: 0.3628324198 | C47: 0.07109160652 | D47: 0.2176040532 | E47: 0.3821539259 | F47: 0.9603081256 | G47: 0.4617047911 | H47: 0.2065770123 | I47: 0.03923874861 | J47: 0.2704762286 | K47: 0.2608328048 | L47: 0.8466259286 | M47: 0.4667538283 | N47: 0.8687956261 | O47: 0.01858678363 | P47: 0.8925746736 | Q47: 0.6544307145 | R47: 0.511192372 | S47: 0.7353537447 | T47: 0.2271211518 | U47: 0.638491636 | V47: 0.5894006049 | W47: 0.7197752192 | X47: 0.9319055569 | Y47: 0.6668495734 | Z47: 0.2567698419 | AA47: 0.4197788576 | AB47: 0.4781420261 | AC47: 0.8776535911 | AD47: 0.03231589563 | AE47: 0.04407063502 | AF47: 0.9210618826 | AG47: 0.4337438646 | AH47: 0.3523627944 | AI47: 0.04446844462 | AJ47: 0.1132875775 | AK47: 0.5468289759 | AL47: 0.6953711077 | AM47: 0.01811725669 | AN47: 0.3599353372 | AO47: 0.2231652283 | AP47: 0.3359416974 | AQ47: 0.8905903008 | AR47: 0.324198728 | AS47: 0.2552045499 | AT47: 0.3405543788 | AU47: 0.7205796161 | AV47: 0.7925763013 | AW47: 0.3389220137 | AX47: 0.7663781771 | AY47: 0.5707495238 | BA47: 2532.457191 | BB47: 789.3593458 | BC47: 1591.628125 | BD47: 2679.95396 | BE47: 33636.64635 | BF47: 3368.703173 | BG47: 1528.974699 | BH47: 595.1161218 | BI47: 1906.023121 | BJ47: 1846.724317 | BK47: 12883.6907 | BL47: 3417.652258 | BM47: 14605.96673 | BN47: 439.3983717 | BO47: 17033.11122 | BP47: 5979.822246 | BQ47: 3881.873956 | BR47: 7906.925116 | BS47: 1646.42472 | BT47: 5682.554979 | BU47: 4884.03078 | BV47: 7468.441221 | BW47: 23613.55732 | BX47: 6226.897265 | BY47: 1822.023882 | BZ47: 2987.838121 | CA47: 3530.738541 | CB47: 15425.22322 | CC47: 547.3871081 | CD47: 626.8010848 | CE47: 21309.42308 | CF47: 3109.89792 | CG47: 2455.231518 | CH47: 629.3606751 | CI47: 1021.398689 | CJ47: 4304.685309 | CK47: 6853.675795 | CL47: 435.2091446 | CM47: 2510.90479 | CN47: 1623.562601 | CO47: 2337.653005 | CP47: 16800.08625 | CQ47: 2256.066302 | CR47: 1812.551281 | CS47: 2370.258853 | CT47: 7490.136537 | CU47: 9943.264272 | CV47: 2358.683218 | CW47: 8913.988706 | CX47: 4619.06048 | CZ47: 3.403542113 | DA47: 2.897274755 | DB47: 3.201841605 | DC47: 3.428127333 | DD47: 4.526812689 | DE47: 3.527462746 | DF47: 3.184400299 | DG47: 2.774601716 | DH47: 3.280128164 | DI47: 3.266402068 | DJ47: 4.11004029 | DK47: 3.533727872 | DL47: 4.164530307 | DM47: 2.642858443 | DN47: 4.231293982 | DO47: 3.776688275 | DP47: 3.58904143 | DQ47: 3.898007626 | DR47: 3.216541878 | DS47: 3.754543646 | DT47: 3.688778392 | DU47: 3.873229967 | DV47: 4.373161417 | DW47: 3.794271701 | DX47: 3.260554065 | DY47: 3.475357064 | DZ47: 3.547865558 | EA47: 4.188231458 | EB47: 2.738294565 | EC47: 2.797129739 | ED47: 4.328571692 | EE47: 3.492746134 | EF47: 3.39009245 | EG47: 2.798899603 | EH47: 3.009195296 | EI47: 3.633941408 | EJ47: 3.835923557 | EK47: 2.638698012 | EL47: 3.399830245 | EM47: 3.210469039 | EN47: 3.368780046 | EO47: 4.225311511 | EP47: 3.353351859 | EQ47: 3.258290303 | ER47: 3.374795777 | ES47: 3.874489734 | ET47: 3.997528982 | EU47: 3.372669617 | EV47: 3.95007208 | EW47: 3.664553649 | EX47: 3.526459043
A48: 45 | B48: 0.2144867188 | C48: 0.6635263818 | D48: 0.2386382762 | E48: 0.5152888374 | F48: 0.4750644992 | G48: 0.4788891896 | H48: 0.7161299597 | I48: 0.9183957256 | J48: 0.8502667207 | K48: 0.06384332969 | L48: 0.3265615237 | M48: 0.4358457851 | N48: 0.6523944592 | O48: 0.5646992241 | P48: 0.1595576251 | Q48: 0.9494488441 | R48: 0.9987750026 | S48: 0.6936853029 | T48: 0.4409916482 | U48: 0.09122070431 | V48: 0.9985753432 | W48: 0.6226390407 | X48: 0.1485074753 | Y48: 0.01192774181 | Z48: 0.9193252212 | AA48: 0.5050584366 | AB48: 0.7073545203 | AC48: 0.2571196596 | AD48: 0.6420115469 | AE48: 0.3092977013 | AF48: 0.889512148 | AG48: 0.2400198776 | AH48: 0.6796650881 | AI48: 0.3507231541 | AJ48: 0.5490771508 | AK48: 0.1654012486 | AL48: 0.05415838754 | AM48: 0.994394763 | AN48: 0.3416849182 | AO48: 0.8097328739 | AP48: 0.3840446205 | AQ48: 0.8006452761 | AR48: 0.3684363973 | AS48: 0.775957471 | AT48: 0.4163307152 | AU48: 0.2585843505 | AV48: 0.1579339425 | AW48: 0.7564376185 | AX48: 0.673938588 | AY48: 0.7310427393 | BA48: 1573.828243 | BB48: 6159.370558 | BC48: 1713.712529 | BD48: 3927.984915 | BE48: 3499.803585 | BF48: 3538.291693 | BG48: 7371.3416 | BH48: 20814.96372 | BI48: 13139.32624 | BJ48: 747.5052654 | BK48: 2272.322017 | BL48: 3128.66718 | BM48: 5940.647162 | BN48: 4536.975628 | BO48: 1269.846882 | BP48: 28814.1125 | BQ48: 210219.7051 | BR48: 6814.080347 | BS48: 3175.07219 | BT48: 901.7697841 | BU48: 196079.6888 | BV48: 5406.780689 | BW48: 1210.281707 | BX48: 374.5261405 | BY48: 20984.53618 | BZ48: 3813.948092 | CA48: 7145.446375 | CB48: 1824.144136 | CC48: 5746.397607 | CD48: 2155.329912 | CE48: 16676.16684 | CF48: 1721.86027 | CG48: 6497.610512 | CH48: 2443.3005 | CI48: 4333.10938 | CJ48: 1301.495885 | CK48: 689.8397839 | CL48: 100913.6636 | CM48: 2378.299772 | CN48: 10734.61238 | CO48: 2694.751958 | CP48: 10302.21812 | CQ48: 2574.554952 | CR48: 9268.451958 | CS48: 2958.384758 | CT48: 1833.034766 | CU48: 1261.073116 | CV48: 8569.458556 | CW48: 6374.567053 | CX48: 7781.591494 | CZ48: 3.196957335 | DA48: 3.789536333 | DB48: 3.233937972 | DC48: 3.594169811 | DD48: 3.544043672 | DE48: 3.548793633 | DF48: 3.867546538 | DG48: 4.318375658 | DH48: 4.118573096 | DI48: 2.873614256 | DJ48: 3.356469876 | DK48: 3.495359366 | DL48: 3.773833759 | DM48: 3.656766446 | DN48: 3.103751357 | DO48: 4.459605247 | DP48: 5.322673423 | DQ48: 3.83340725 | DR48: 3.501753604 | DS48: 2.955095679 | DT48: 5.292432609 | DU48: 3.732938754 | DV48: 3.082886469 | DW48: 2.573482135 | DX48: 4.321899374 | DY48: 3.581374778 | DZ48: 3.854029364 | EA48: 3.261059151 | EB48: 3.759395673 | EC48: 3.333513756 | ED48: 4.222096232 | EE48: 3.235997905 | EF48: 3.812753675 | EG48: 3.387976884 | EH48: 3.636799652 | EI48: 3.114442799 | EJ48: 2.838748237 | EK48: 5.003949973 | EL48: 3.376266594 | EM48: 4.030786367 | EN48: 3.430518796 | EO48: 4.012930741 | EP48: 3.410702166 | EQ48: 3.967007203 | ER48: 3.471054656 | ES48: 3.263170702 | ET48: 3.100740267 | EU48: 3.932953383 | EV48: 3.804450694 | EW48: 3.891068428 | EX48: 3.665633835
A49: 46 | B49: 0.7178277343 | C49: 0.2292454644 | D49: 0.551837864 | E49: 0.5806948227 | F49: 0.588093918 | G49: 0.3454061657 | H49: 0.8280726258 | I49: 0.1663284047 | J49: 0.7356985679 | K49: 0.3805967449 | L49: 0.2993079921 | M49: 0.9198179207 | N49: 0.9457448499 | O49: 0.8132404422 | P49: 0.2438531162 | Q49: 0.5839267901 | R49: 0.2854983507 | S49: 0.6528497377 | T49: 0.3305883448 | U49: 0.8911769532 | V49: 0.4170776406 | W49: 0.3561389514 | X49: 0.3449105741 | Y49: 0.6011243995 | Z49: 0.5414068553 | AA49: 0.1778258976 | AB49: 0.2898397279 | AC49: 0.2659858901 | AD49: 0.6707304246 | AE49: 0.4660970838 | AF49: 0.8095768511 | AG49: 0.1448200409 | AH49: 0.7155174298 | AI49: 0.5805889798 | AJ49: 0.1814179553 | AK49: 0.8184090633 | AL49: 0.07477809459 | AM49: 0.08468081282 | AN49: 0.6870911615 | AO49: 0.4142248837 | AP49: 0.1116692843 | AQ49: 0.4909579652 | AR49: 0.0372860244 | AS49: 0.812596984 | AT49: 0.009184026027 | AU49: 0.6884192232 | AV49: 0.7917693621 | AW49: 0.205602305 | AX49: 0.1532269819 | AY49: 0.4278843826 | BA49: 7416.319728 | BB49: 1658.75309 | BC49: 4368.320364 | BD49: 4758.034039 | BE49: 4864.851304 | BF49: 2404.90657 | BG49: 11713.44516 | BH49: 1306.52852 | BI49: 7917.088848 | BJ49: 2667.816516 | BK49: 2089.440363 | BL49: 21075.62576 | BM49: 27508.93484 | BN49: 10910.21089 | BO49: 1744.55457 | BP49: 4804.323234 | BQ49: 2000.389764 | BR49: 5949.374616 | BS49: 2300.210456 | BT49: 16868.30081 | BU49: 2964.742458 | BV49: 2482.875459 | BW49: 2401.350661 | BX49: 5060.535734 | BY49: 4237.036783 | BZ49: 1369.227749 | CA49: 2028.139008 | CB49: 1878.291504 | CC49: 6307.116068 | CD49: 3411.24483 | CE49: 10726.91853 | CF49: 1190.469277 | CG49: 7355.21811 | CH49: 4756.527659 | CI49: 1388.938047 | CJ49: 11178.5252 | CK49: 810.3128813 | CL49: 865.7250923 | CM49: 6662.445918 | CN49: 2940.526359 | CO49: 1012.694328 | CP49: 3662.674896 | CQ49: 581.9624736 | CR49: 10877.61501 | CS49: 342.8464949 | CT49: 6692.577281 | CU49: 9908.564758 | CV49: 1523.477159 | CW49: 1235.682369 | CX49: 3058.13175 | CZ49: 3.870188445 | DA49: 3.219781745 | DB49: 3.640314481 | DC49: 3.677427545 | DD49: 3.68706957 | DE49: 3.381098209 | DF49: 4.068684649 | DG49: 3.116118894 | DH49: 3.898565519 | DI49: 3.426155957 | DJ49: 3.32002998 | DK49: 4.323780478 | DL49: 4.439473775 | DM49: 4.037833146 | DN49: 3.241684559 | DO49: 3.681632219 | DP49: 3.301114623 | DQ49: 3.774471316 | DR49: 3.361767573 | DS49: 4.227071337 | DT49: 3.471986973 | DU49: 3.394954936 | DV49: 3.380455583 | DW49: 3.704196496 | DX49: 3.627062234 | DY49: 3.136475692 | DZ49: 3.307097718 | EA49: 3.273762994 | EB49: 3.799830823 | EC49: 3.53291289 | ED49: 4.030474982 | EE49: 3.075718192 | EF49: 3.866595556 | EG49: 3.677290027 | EH49: 3.142682875 | EI49: 4.04838451 | EJ49: 2.908652743 | EK49: 2.937380005 | EL49: 3.823633697 | EM49: 3.468425077 | EN49: 3.005478378 | EO49: 3.563798372 | EP49: 2.764894981 | EQ49: 4.036533684 | ER49: 2.535099714 | ES49: 3.825593395 | ET49: 3.996010752 | EU49: 3.182835947 | EV49: 3.09190685 | EW49: 3.485456192 | EX49: 3.535796926
A50: 47 | B50: 0.5643775049 | C50: 0.9220511743 | D50: 0.8066672457 | E50: 0.7870942983 | F50: 0.7329278352 | G50: 0.347791999 | H50: 0.5346812734 | I50: 0.8443038185 | J50: 0.7941181725 | K50: 0.59152075 | L50: 0.4673160811 | M50: 0.1749080564 | N50: 0.6928567665 | O50: 0.01233406933 | P50: 0.9391370955 | Q50: 0.5606090482 | R50: 0.9921537701 | S50: 0.5003525783 | T50: 0.3392326267 | U50: 0.008923978596 | V50: 0.6476410738 | W50: 0.9929904673 | X50: 0.9067979986 | Y50: 0.3684674034 | Z50: 0.4042520634 | AA50: 0.3402578031 | AB50: 0.2216249544 | AC50: 0.4552573104 | AD50: 0.3186434222 | AE50: 0.9086798079 | AF50: 0.1701859545 | AG50: 0.7629231118 | AH50: 0.8025598993 | AI50: 0.3743575834 | AJ50: 0.4803220086 | AK50: 0.897927837 | AL50: 0.04191315394 | AM50: 0.309860507 | AN50: 0.7032169469 | AO50: 0.6391390175 | AP50: 0.3391437691 | AQ50: 0.2633161853 | AR50: 0.9862649821 | AS50: 0.5707984554 | AT50: 0.8658428241 | AU50: 0.3409404135 | AV50: 0.9754769316 | AW50: 0.6334184065 | AX50: 0.8740820582 | AY50: 0.8058370618 | BA50: 4532.661262 | BB50: 21499.37078 | BC50: 10585.21373 | BD50: 9711.585473 | BE50: 7836.005166 | BF50: 2422.079156 | BG50: 4154.85383 | BH50: 12725.4878 | BI50: 10010.15632 | BJ50: 4915.356247 | BK50: 3423.147499 | BL50: 1353.261792 | BM50: 6794.745875 | BN50: 378.9026904 | BO50: 25483.1109 | BP50: 4482.496405 | BQ50: 84812.87191 | BR50: 3762.722169 | BS50: 2360.882749 | BT50: 339.6134486 | BU50: 5850.594541 | BV50: 89951.88139 | BW50: 18919.37189 | BX50: 2574.78939 | BY50: 2857.250153 | BZ50: 2368.152714 | CA50: 1614.694132 | CB50: 3307.21744 | CC50: 2218.155748 | CD50: 19201.93077 | CE50: 1327.503039 | CF50: 8791.67389 | CG50: 10390.73439 | CH50: 2619.633459 | CI50: 3552.823357 | CJ50: 17695.88495 | CK50: 612.7946944 | CL50: 2159.080363 | CM50: 7042.606339 | CN50: 5694.222942 | CO50: 2360.253375 | CP50: 1861.903344 | CQ50: 62752.52792 | CR50: 4619.731774 | CS50: 14351.49353 | CT50: 2373.002304 | CU50: 45083.98924 | CV50: 5592.24957 | CW50: 15084.26648 | CX50: 10545.38904 | CZ50: 3.656353264 | DA50: 4.33242575 | DB50: 4.024699631 | DC50: 3.987290137 | DD50: 3.894094714 | DE50: 3.384188332 | DF50: 3.61855575 | DG50: 4.104674439 | DH50: 4.00044086 | DI50: 3.691554999 | DJ50: 3.534425613 | DK50: 3.13138182 | DL50: 3.832173219 | DM50: 2.578527689 | DN50: 4.406252444 | DO50: 3.65151995 | DP50: 4.928461769 | DQ50: 3.575502152 | DR50: 3.373074419 | DS50: 2.53098488 | DT50: 3.767200002 | DU50: 4.954010251 | DV50: 4.276906714 | DW50: 3.410741711 | DX50: 3.455948265 | DY50: 3.374409705 | DZ50: 3.208090267 | EA50: 3.51946275 | EB50: 3.345992037 | EC50: 4.283344899 | ED50: 3.123035524 | EE50: 3.94407157 | EF50: 4.016646243 | EG50: 3.418240529 | EH50: 3.550573615 | EI50: 4.247872286 | EJ50: 2.787314997 | EK50: 3.334268808 | EL50: 3.847733413 | EM50: 3.755434467 | EN50: 3.372958627 | EO50: 3.269957132 | EP50: 4.797631226 | EQ50: 3.664616761 | ER50: 4.156897099 | ES50: 3.37529816 | ET50: 4.654022337 | EU50: 3.747586545 | EV50: 4.178524196 | EW50: 4.023062606 | EX50: 3.741968691
A51: 48 | B51: 0.2468757208 | C51: 0.04699449992 | D51: 0.539459092 | E51: 0.1587679047 | F51: 0.6022256639 | G51: 0.1800076691 | H51: 0.991843949 | I51: 0.501793532 | J51: 0.9834639823 | K51: 0.6790813501 | L51: 0.7838035917 | M51: 0.741856391 | N51: 0.3206202188 | O51: 0.6455397259 | P51: 0.201717357 | Q51: 0.0625031445 | R51: 0.05169335775 | S51: 0.5590175993 | T51: 0.5436256156 | U51: 0.1184103987 | V51: 0.6035540213 | W51: 0.8316274053 | X51: 0.6027526809 | Y51: 0.4758715597 | Z51: 0.6788314615 | AA51: 0.6898778374 | AB51: 0.9669442669 | AC51: 0.3285486683 | AD51: 0.3709764577 | AE51: 0.07355543793 | AF51: 0.1786846398 | AG51: 0.3930523829 | AH51: 0.8092179903 | AI51: 0.9889170833 | AJ51: 0.1097264951 | AK51: 0.4898720165 | AL51: 0.7156725484 | AM51: 0.852608622 | AN51: 0.6136491417 | AO51: 0.1329556101 | AP51: 0.1007400604 | AQ51: 0.7453166144 | AR51: 0.8481962766 | AS51: 0.7640518288 | AT51: 0.6193044531 | AU51: 0.1406417967 | AV51: 0.1943719168 | AW51: 0.4668023641 | AX51: 0.3748552894 | AY51: 0.5390890678 | BA51: 1762.543034 | BB51: 645.4586146 | BC51: 4213.042108 | BD51: 1265.578506 | BE51: 5077.537128 | BF51: 1381.192086 | BG51: 83105.41167 | BH51: 3778.327448 | BI51: 56577.73602 | BJ51: 6484.909286 | BK51: 9576.939809 | BL51: 8102.173834 | BM51: 2231.596578 | BN51: 5811.39457 | BO51: 1501.627483 | BP51: 739.6566382 | BQ51: 674.7608821 | BR51: 4461.514645 | BS51: 4264.565996 | BT51: 1048.912154 | BU51: 5098.143697 | BV51: 11922.1138 | BW51: 5085.699607 | BX51: 3507.888798 | BY51: 6479.483252 | BZ51: 6725.905206 | CA51: 37679.7332 | CB51: 2286.055063 | CC51: 2593.816436 | CD51: 803.3856357 | CE51: 1373.934182 | CF51: 2766.190356 | CG51: 10709.25944 | CH51: 70564.50567 | CI51: 1002.234631 | CJ51: 3651.29568 | CK51: 7359.296087 | CL51: 13308.8909 | CM51: 5258.394901 | CN51: 1126.855352 | CO51: 953.6714404 | CP51: 8209.252872 | CQ51: 12992.79011 | CR51: 8831.323434 | CS51: 5351.094083 | CT51: 1168.048148 | CU51: 1460.575948 | CV51: 3418.126274 | CW51: 2623.451067 | CX51: 4208.501782 | CZ51: 3.24613973 | DA51: 2.809868402 | DB51: 3.6245958 | DC51: 3.10228909 | DD51: 3.705653108 | DE51: 3.140254081 | DF51: 4.919629305 | DG51: 3.577299593 | DH51: 4.752645565 | DI51: 3.811903905 | DJ51: 3.981226758 | DK51: 3.908601557 | DL51: 3.348615687 | DM51: 3.764280363 | DN51: 3.176562208 | DO51: 2.869030159 | DP51: 2.829149897 | DQ51: 3.649482323 | DR51: 3.62987484 | DS51: 3.020739118 | DT51: 3.707412072 | DU51: 4.076353263 | DV51: 3.706350704 | DW51: 3.545045818 | DX51: 3.811540372 | DY51: 3.827750742 | DZ51: 4.576107819 | EA51: 3.359086687 | EB51: 3.413939238 | EC51: 2.904924062 | ED51: 3.137965928 | EE51: 3.441882063 | EF51: 4.02975944 | EG51: 4.848586303 | EH51: 3.000969405 | EI51: 3.562447003 | EJ51: 3.866836276 | EK51: 4.124141865 | EL51: 3.720853198 | EM51: 3.051868172 | EN51: 2.979398777 | EO51: 3.914303634 | EP51: 4.113702423 | EQ51: 3.94602579 | ER51: 3.728442587 | ES51: 3.067460745 | ET51: 3.164524145 | EU51: 3.533788103 | EV51: 3.418872968 | EW51: 3.624127515 | EX51: 3.601446172
A52: 49 | B52: 0.2420521688 | C52: 0.7273760698 | D52: 0.8680513566 | E52: 0.55694231 | F52: 0.3444035611 | G52: 0.4509078442 | H52: 0.1424548371 | I52: 0.2964566262 | J52: 0.06966600502 | K52: 0.5056632162 | L52: 0.6522032491 | M52: 0.2320968886 | N52: 0.3519392866 | O52: 0.06143488771 | P52: 0.6377852495 | Q52: 0.8963083499 | R52: 0.3639175409 | S52: 0.8359613035 | T52: 0.7836282584 | U52: 0.4808767001 | V52: 0.1575473929 | W52: 0.1623285909 | X52: 0.6359267257 | Y52: 0.2796711259 | Z52: 0.2759367695 | AA52: 0.5743101111 | AB52: 0.8183746284 | AC52: 0.170989387 | AD52: 0.7572098058 | AE52: 0.6199015132 | AF52: 0.9670925628 | AG52: 0.4789675838 | AH52: 0.7847148048 | AI52: 0.3039828463 | AJ52: 0.7815496678 | AK52: 0.6863072658 | AL52: 0.8043112401 | AM52: 0.03978742567 | AN52: 0.9138028981 | AO52: 0.8509431012 | AP52: 0.828604547 | AQ52: 0.03701499518 | AR52: 0.2033777167 | AS52: 0.4061807196 | AT52: 0.5424107965 | AU52: 0.9102824564 | AV52: 0.9589854201 | AW52: 0.4393670387 | AX52: 0.9354801653 | AY52: 0.4299766627 | BA52: 1733.875918 | BB52: 7677.452202 | BC52: 14541.00095 | BD52: 4434.332562 | BE52: 2397.716778 | BF52: 3266.368929 | BG52: 1177.773974 | BH52: 2070.864429 | BI52: 781.2002268 | BJ52: 3820.586671 | BK52: 5936.987152 | BL52: 1675.359114 | BM52: 2452.145657 | BN52: 733.3730188 | BO52: 5669.861205 | BP52: 17489.8791 | BQ52: 2540.566509 | BR52: 12185.94445 | BS52: 9569.855609 | BT52: 3558.465765 | BU52: 1258.985545 | BV52: 1284.83975 | BW52: 5636.649781 | BX52: 1963.48542 | BY52: 1940.036415 | BZ52: 4668.225989 | CA52: 11176.69843 | CB52: 1331.879028 | CC52: 8595.427395 | CD52: 5361.007982 | CE52: 37783.636 | CF52: 3539.085162 | CG52: 9613.901753 | CH52: 2120.115748 | CI52: 9486.550006 | CJ52: 6644.755322 | CK52: 10472.88115 | CL52: 598.7734891 | CM52: 20018.11264 | CN52: 13187.87693 | CO52: 11744.24203 | CP52: 580.1191052 | CQ52: 1510.953619 | CR52: 2873.190613 | CS52: 4249.46714 | CT52: 19449.6391 | CU52: 32949.16088 | CV52: 3160.351201 | CW52: 24498.30355 | CX52: 3076.523074 | CZ52: 3.239018015 | DA52: 3.885217121 | DB52: 4.162594303 | DC52: 3.646828261 | DD52: 3.379797882 | DE52: 3.514065236 | DF52: 3.071061953 | DG52: 3.316151668 | DH52: 2.892762361 | DI52: 3.582130056 | DJ52: 3.773566109 | DK52: 3.224107913 | DL52: 3.389546264 | DM52: 2.865324928 | DN52: 3.753572428 | DO52: 4.242786807 | DP52: 3.404930569 | DQ52: 4.085859194 | DR52: 3.980905385 | DS52: 3.551262792 | DT52: 3.100020744 | DU52: 3.108848964 | DV52: 3.751021052 | DW52: 3.293027681 | DX52: 3.287809882 | DY52: 3.669151872 | DZ52: 4.048313533 | EA52: 3.12446478 | EB52: 3.934267476 | EC52: 3.729246454 | ED52: 4.577303749 | EE52: 3.548891013 | EF52: 3.98289968 | EG52: 3.326359572 | EH52: 3.9771083 | EI52: 3.822478994 | EJ52: 4.020066175 | EK52: 2.777262564 | EL52: 4.301423129 | EM52: 4.120174886 | EN52: 4.069824993 | EO52: 2.763517168 | EP52: 3.179251133 | EQ52: 3.458364439 | ER52: 3.628334475 | ES52: 4.288911547 | ET52: 4.517844359 | EU52: 3.499735347 | EV52: 4.389136012 | EW52: 3.488060177 | EX52: 3.634892188
A53: 50 | B53: 0.7968447218 | C53: 0.2418101379 | D53: 0.2263756068 | E53: 0.8355243261 | F53: 0.9168659218 | G53: 0.4544269304 | H53: 0.179178888 | I53: 0.4358411303 | J53: 0.78066505 | K53: 0.7702900321 | L53: 0.2320351886 | M53: 0.5589617642 | N53: 0.7092144311 | O53: 0.7398868966 | P53: 0.3149568314 | Q53: 0.5135249205 | R53: 0.1935649969 | S53: 0.2125539537 | T53: 0.5521581591 | U53: 0.8587983143 | V53: 0.8127492266 | W53: 0.5526261775 | X53: 0.3844778969 | Y53: 0.638694881 | Z53: 0.155170076 | AA53: 0.7440480277 | AB53: 0.1980230022 | AC53: 0.3170866214 | AD53: 0.7018526909 | AE53: 0.236137246 | AF53: 0.4208073534 | AG53: 0.4139199339 | AH53: 0.07095623489 | AI53: 0.5874225548 | AJ53: 0.4079442524 | AK53: 0.7578901991 | AL53: 0.8673711793 | AM53: 0.2453876229 | AN53: 0.8634673298 | AO53: 0.6680060844 | AP53: 0.6737316326 | AQ53: 0.0712271501 | AR53: 0.2252473034 | AS53: 0.3285984859 | AT53: 0.2852057382 | AU53: 0.1732863118 | AV53: 0.8628201876 | AW53: 0.6290072727 | AX53: 0.4924895966 | AY53: 0.2315425292 | BA53: 10130.37805 | BB53: 1732.443019 | BC53: 1642.106582 | BD53: 12158.85566 | BE53: 20542.14778 | BF53: 3299.380125 | BG53: 1376.644554 | BH53: 3128.625497 | BI53: 9451.471236 | BJ53: 9055.941651 | BK53: 1674.999078 | BL53: 4460.780679 | BM53: 7192.425134 | BN53: 8042.228167 | BO53: 2193.232623 | BP53: 3908.055244 | BQ53: 1456.086197 | BR53: 1562.827598 | BS53: 4372.427629 | BT53: 13777.77156 | BU53: 10885.31148 | BV53: 4378.437534 | BW53: 2698.152583 | BX53: 5686.214566 | BY53: 1246.156453 | BZ53: 8169.731546 | CA53: 1480.939339 | CB53: 2207.608434 | CC53: 7009.191837 | CD53: 1699.005382 | CE53: 2996.674742 | CF53: 2937.948292 | CG53: 788.5859829 | CH53: 4855.03442 | CI53: 2887.834629 | CJ53: 8618.416789 | CK53: 14482.12029 | CL53: 1753.676479 | CM53: 14152.94272 | CN53: 6250.647729 | CO53: 6370.184248 | CP53: 790.1334006 | CQ53: 1635.579953 | CR53: 2286.40008 | CS53: 1998.527349 | CT53: 1344.404457 | CU53: 14099.77139 | CV53: 5515.32176 | CW53: 3678.788684 | CX53: 1672.125402 | CZ53: 4.005625653 | DA53: 3.238658959 | DB53: 3.215401342 | DC53: 4.084892703 | DD53: 4.312645849 | DE53: 3.518432354 | DF53: 3.138821821 | DG53: 3.49535358 | DH53: 3.975499417 | DI53: 3.956933616 | DJ53: 3.224014572 | DK53: 3.649410871 | DL53: 3.85687535 | DM53: 3.90537639 | DN53: 3.341084697 | DO53: 3.591960694 | DP53: 3.163187085 | DQ53: 3.193911072 | DR53: 3.64072263 | DS53: 4.13917898 | DT53: 4.036840861 | DU53: 3.641319158 | DV53: 3.431066506 | DW53: 3.754823243 | DX53: 3.095572571 | DY53: 3.912207786 | DZ53: 3.17053727 | EA53: 3.343922045 | EB53: 3.845667946 | EC53: 3.230194755 | ED53: 3.476639607 | EE53: 3.468044148 | EF53: 2.896849053 | EG53: 3.686192313 | EH53: 3.46057232 | EI53: 3.935427493 | EJ53: 4.16083215 | EK53: 3.243949477 | EL53: 4.150846749 | EM53: 3.795925024 | EN53: 3.804151994 | EO53: 2.897700421 | EP53: 3.213671779 | EQ53: 3.359152227 | ER53: 3.300710096 | ES53: 3.128529944 | ET53: 4.149212071 | EU53: 3.741570854 | EV53: 3.565704842 | EW53: 3.223268845 | EX53: 3.575381824
A54: 51 | B54: 0.2966487355 | C54: 0.283277962 | D54: 0.5467291412 | E54: 0.7235916041 | F54: 0.895948436 | G54: 0.560389092 | H54: 0.8119023562 | I54: 0.309616203 | J54: 0.5065341555 | K54: 0.4834005268 | L54: 0.02378020267 | M54: 0.9197142598 | N54: 0.1080382058 | O54: 0.4175272596 | P54: 0.1215307179 | Q54: 0.9766766409 | R54: 0.9479782111 | S54: 0.1261143015 | T54: 0.5251604179 | U54: 0.1370762582 | V54: 0.703387519 | W54: 0.9979340912 | X54: 0.3697617123 | Y54: 0.6777947195 | Z54: 0.3955029935 | AA54: 0.7742793399 | AB54: 0.5491729239 | AC54: 0.08588347536 | AD54: 0.3879878612 | AE54: 0.4777434705 | AF54: 0.6252147504 | AG54: 0.9504115098 | AH54: 0.7258047647 | AI54: 0.3414660141 | AJ54: 0.178213237 | AK54: 0.5007359732 | AL54: 0.7965842921 | AM54: 0.2778272279 | AN54: 0.2590324622 | AO54: 0.5946701433 | AP54: 0.42905531 | AQ54: 0.5554972164 | AR54: 0.794381616 | AS54: 0.6516780632 | AT54: 0.09574637442 | AU54: 0.9131725751 | AV54: 0.4145703322 | AW54: 0.2722065184 | AX54: 0.8562457586 | AY54: 0.9112808179 | BA54: 2072.112821 | BB54: 1986.282145 | BC54: 4303.428231 | BD54: 7572.254314 | BE54: 17444.76166 | BF54: 4479.589358 | BG54: 10842.62184 | BH54: 2157.451847 | BI54: 3830.16919 | BJ54: 3584.257291 | BK54: 483.0834435 | BL54: 21056.39085 | BM54: 993.1352923 | BN54: 2968.575486 | BO54: 1065.647374 | BP54: 46433.10303 | BQ54: 28279.29604 | BR54: 1090.210442 | BS54: 4041.654068 | BT54: 1148.93299 | BU54: 7046.80118 | BV54: 164740.1118 | BW54: 2584.590741 | BX54: 6457.042682 | BY54: 2785.899317 | BZ54: 9204.657836 | CA54: 4334.325211 | CB54: 872.3820993 | CC54: 2725.832486 | CD54: 3526.716364 | CE54: 5450.329972 | CF54: 29176.95551 | CG54: 7633.496715 | CH54: 2376.741292 | CI54: 1371.350174 | CJ54: 3766.8674 | CK54: 10118.78643 | CL54: 1951.887753 | CM54: 1835.759037 | CN54: 4962.366408 | CO54: 3068.411655 | CP54: 4415.523005 | CQ54: 10021.66371 | CR54: 5926.950764 | CS54: 926.5163544 | CT54: 19913.765 | CU54: 2943.449256 | CV54: 1916.766123 | CW54: 13580.64199 | CX54: 19607.37068 | CZ54: 3.316413398 | DA54: 3.298040939 | DB54: 3.633814565 | DC54: 3.879225191 | DD54: 4.24166504 | DE54: 3.651238204 | DF54: 4.035134311 | DG54: 3.333941111 | DH54: 3.583217958 | DI54: 3.554399177 | DJ54: 2.684022153 | DK54: 4.323383933 | DL54: 2.997008415 | DM54: 3.472548097 | DN54: 3.027613519 | DO54: 4.666827708 | DP54: 4.451468594 | DQ54: 3.037510337 | DR54: 3.606559139 | DS54: 3.0602947 | DT54: 3.847992018 | DU54: 5.216799356 | DV54: 3.412391784 | DW54: 3.810033657 | DX54: 3.444965417 | DY54: 3.964007649 | DZ54: 3.636921494 | EA54: 2.940706746 | EB54: 3.435499163 | EC54: 3.547370533 | ED54: 3.736422796 | EE54: 4.465039973 | EF54: 3.882723523 | EG54: 3.375981911 | EH54: 3.137148366 | EI54: 3.575980333 | EJ54: 4.00512843 | EK54: 3.290454839 | EL54: 3.263815675 | EM54: 3.695688828 | EN54: 3.486913624 | EO54: 3.644982152 | EP54: 4.000939825 | EQ54: 3.772831319 | ER54: 2.96685309 | ES54: 4.299153378 | ET54: 3.468856553 | EU54: 3.282569125 | EV54: 4.132920301 | EW54: 4.292419359 | EX54: 3.657756754
A55: 52 | B55: 0.9265509396 | C55: 0.6287046732 | D55: 0.841221929 | E55: 0.4548885374 | F55: 0.2926477264 | G55: 0.7116790525 | H55: 0.7126230634 | I55: 0.5120715826 | J55: 0.6699265642 | K55: 0.5232289358 | L55: 0.4433058355 | M55: 0.9493201182 | N55: 0.4714851186 | O55: 0.7260599628 | P55: 0.9936210347 | Q55: 0.2756617893 | R55: 0.8620768743 | S55: 0.9701373204 | T55: 0.0477250196 | U55: 0.4593994863 | V55: 0.2778168393 | W55: 0.6716312351 | X55: 0.4429649619 | Y55: 0.7678905459 | Z55: 0.1625724855 | AA55: 0.4689320573 | AB55: 0.07472516098 | AC55: 0.2946172301 | AD55: 0.9000550083 | AE55: 0.7239621039 | AF55: 0.0339789354 | AG55: 0.2860416088 | AH55: 0.5925017946 | AI55: 0.4644532113 | AJ55: 0.001038435963 | AK55: 0.1499515588 | AL55: 0.703117076 | AM55: 0.927583161 | AN55: 0.4224434142 | AO55: 0.9052431975 | AP55: 0.7987779737 | AQ55: 0.1176413706 | AR55: 0.5541203824 | AS55: 0.9047653499 | AT55: 0.7110873807 | AU55: 0.2807832197 | AV55: 0.2140258545 | AW55: 0.7828518329 | AX55: 0.34930308 | AY55: 0.9614033721 | BA55: 22411.59406 | BB55: 5510.097632 | BC55: 12521.0673 | BD55: 3303.734607 | BE55: 2046.205846 | BF55: 7255.412903 | BG55: 7279.764086 | BH55: 3891.719492 | BI55: 6290.377576 | BJ55: 4019.123294 | BK55: 3196.155149 | BL55: 28766.37549 | BM55: 3464.175976 | BN55: 7640.608589 | BO55: 94445.18745 | BP55: 1938.315837 | BQ55: 14039.17268 | BR55: 40082.37799 | BS55: 650.0665595 | BT55: 3346.588987 | BU55: 1951.822519 | BV55: 6325.950227 | BW55: 3193.041257 | BX55: 8968.424898 | BY55: 1286.160626 | BZ55: 3438.991513 | CA55: 810.0134104 | CB55: 2058.934276 | CC55: 17974.1647 | CD55: 7582.452855 | CE55: 559.1477359 | CF55: 2003.850112 | CG55: 4929.938445 | CH55: 3395.259934 | CI55: 185.1384545 | CJ55: 1218.04832 | CK55: 7040.152004 | CL55: 22632.83274 | CM55: 3010.780594 | CN55: 18692.37569 | CO55: 10217.15668 | CP55: 1044.78527 | CQ55: 4397.691359 | CR55: 18623.7458 | CS55: 7240.214438 | CT55: 1970.498628 | CU55: 1571.202726 | CV55: 9538.592267 | CW55: 2433.002134 | CX55: 34232.17319 | CZ55: 4.350472748 | DA55: 3.741159294 | DB55: 4.09764135 | DC55: 3.519005153 | DD55: 3.310949321 | DE55: 3.860662133 | DF55: 3.862117305 | DG55: 3.59014153 | DH55: 3.798676714 | DI55: 3.604131329 | DJ55: 3.504627853 | DK55: 4.458885145 | DL55: 3.539599946 | DM55: 3.883127952 | DN55: 4.975179833 | DO55: 3.287424544 | DP55: 4.147341516 | DQ55: 4.602953479 | DR55: 2.812957826 | DS55: 3.524602378 | DT55: 3.290440324 | DU55: 3.801125771 | DV55: 3.50420453 | DW55: 3.952716176 | DX55: 3.10929521 | DY55: 3.536431104 | DZ55: 2.908492209 | EA55: 3.313642484 | EB55: 4.254648717 | EC55: 3.879809719 | ED55: 2.747526571 | EE55: 3.301865233 | EF55: 3.692841497 | EG55: 3.530873029 | EH55: 2.267496634 | EI55: 3.085664517 | EJ55: 3.847582036 | EK55: 4.354738914 | EL55: 3.478679108 | EM55: 4.271664501 | EN55: 4.009330053 | EO55: 3.019027041 | EP55: 3.643224746 | EQ55: 4.270067035 | ER55: 3.859751429 | ES55: 3.294576137 | ET55: 3.196232224 | EU55: 3.979484285 | EV55: 3.38614249 | EW55: 4.534434471 | EX55: 3.675873311
A56: 53 | B56: 0.5831192779 | C56: 0.2484133731 | D56: 0.3904338437 | E56: 0.440061914 | F56: 0.8944386701 | G56: 0.04311402719 | H56: 0.3087342933 | I56: 0.9845912098 | J56: 0.1898120345 | K56: 0.5642311468 | L56: 0.7366527208 | M56: 0.8511790421 | N56: 0.3250523041 | O56: 0.2567677233 | P56: 0.2988747806 | Q56: 0.5219520393 | R56: 0.5245268993 | S56: 0.8123939051 | T56: 0.05911092438 | U56: 0.3011504708 | V56: 0.01942348133 | W56: 0.9872913223 | X56: 0.5973639527 | Y56: 0.2872890821 | Z56: 0.8631941046 | AA56: 0.1331744087 | AB56: 0.109531651 | AC56: 0.3396450173 | AD56: 0.3339758953 | AE56: 0.1974246915 | AF56: 0.3722240988 | AG56: 0.9177325942 | AH56: 0.7778839793 | AI56: 0.4135390623 | AJ56: 0.3774682474 | AK56: 0.9166416955 | AL56: 0.3659387019 | AM56: 0.7367357076 | AN56: 0.8244421331 | AO56: 0.4844682553 | AP56: 0.9805561355 | AQ56: 0.8286964058 | AR56: 0.833733537 | AS56: 0.4910113032 | AT56: 0.4135770431 | AU56: 0.9831123726 | AV56: 0.1273015786 | AW56: 0.3564701916 | AX56: 0.5418140133 | AY56: 0.8891694662 | BA56: 4792.704693 | BB56: 1771.726295 | BC56: 2745.261564 | BD56: 3166.639634 | BE56: 17258.06609 | BF56: 620.6172815 | BG56: 2151.579608 | BH56: 58865.70708 | BI56: 1435.253896 | BJ56: 4530.700212 | BK56: 7945.3217 | BL56: 13204.89288 | BM56: 2261.929639 | BN56: 1822.011044 | BO56: 2086.61161 | BP56: 4004.306742 | BQ56: 4034.248236 | BR56: 10867.36369 | BS56: 719.6139257 | BT56: 2101.497433 | BU56: 446.7525298 | BV56: 65494.08752 | BW56: 5003.036729 | BX56: 2011.809035 | BY56: 14130.44644 | BZ56: 1128.027397 | CA56: 1001.18497 | CB56: 2363.80526 | CC56: 2323.854485 | CD56: 1477.596822 | CE56: 2603.319195 | CF56: 20695.7619 | CG56: 9342.616287 | CH56: 2934.731222 | CI56: 2643.567151 | CJ56: 20502.79894 | CK56: 2555.724903 | CL56: 7947.784836 | CM56: 11507.12709 | CN56: 3595.227682 | CO56: 51598.90074 | CP56: 11749.57543 | CQ56: 12048.99617 | CR56: 3663.234777 | CS56: 2935.051888 | CT56: 55910.00538 | CU56: 1096.57057 | CV56: 2485.311522 | CW56: 4242.072869 | CX56: 16637.16635 | CZ56: 3.68058067 | DA56: 3.248396631 | DB56: 3.43858373 | DC56: 3.500598643 | DD56: 4.236992128 | DE56: 2.792823865 | DF56: 3.33275742 | DG56: 4.769862365 | DH56: 3.156928735 | DI56: 3.656165327 | DJ56: 3.900111486 | DK56: 4.120734882 | DL56: 3.354479091 | DM56: 3.260551005 | DN56: 3.31944162 | DO56: 3.602527338 | DP56: 3.605762618 | DQ56: 4.036124202 | DR56: 2.857099559 | DS56: 3.322528864 | DT56: 2.65006702 | DU56: 4.816202096 | DV56: 3.699233691 | DW56: 3.303586754 | DX56: 4.150155883 | DY56: 3.052319648 | DZ56: 3.000514321 | EA56: 3.373611695 | EB56: 3.36620893 | EC56: 3.169555948 | ED56: 3.415527421 | EE56: 4.315881419 | EF56: 3.970468512 | EG56: 3.467568332 | EH56: 3.422190347 | EI56: 4.311813153 | EJ56: 3.407514105 | EK56: 3.900246101 | EL56: 4.06096691 | EM56: 3.555726399 | EN56: 4.71264045 | EO56: 4.070022174 | EP56: 4.080950866 | EQ56: 3.563864754 | ER56: 3.467615783 | ES56: 4.747489534 | ET56: 3.040036586 | EU56: 3.395380833 | EV56: 3.627578124 | EW56: 4.221079359 | EX56: 3.650581347
A57: 54 | B57: 0.7494292669 | C57: 0.6223224171 | D57: 0.6086799523 | E57: 0.3516297157 | F57: 0.4337012207 | G57: 0.1466928055 | H57: 0.7989594804 | I57: 0.3855064663 | J57: 0.4624812729 | K57: 0.4825724798 | L57: 0.5408552937 | M57: 0.7833796055 | N57: 0.4995812967 | O57: 0.1179480715 | P57: 0.08610236567 | Q57: 0.7314238762 | R57: 0.313074492 | S57: 0.1914480483 | T57: 0.5592386102 | U57: 0.9960136719 | V57: 0.07292306976 | W57: 0.3200961447 | X57: 0.9072162236 | Y57: 0.01844376262 | Z57: 0.2430216572 | AA57: 0.52778462 | AB57: 0.375602915 | AC57: 0.3308575854 | AD57: 0.8068716222 | AE57: 0.7890633127 | AF57: 0.4273439403 | AG57: 0.267825981 | AH57: 0.05958810372 | AI57: 0.5553807357 | AJ57: 0.2994639303 | AK57: 0.6972354807 | AL57: 0.8394274033 | AM57: 0.9163183255 | AN57: 0.8100532311 | AO57: 0.853006125 | AP57: 0.639378018 | AQ57: 0.005578056735 | AR57: 0.3914147501 | AS57: 0.6395642031 | AT57: 0.4553781305 | AU57: 0.9872009836 | AV57: 0.6415863999 | AW57: 0.2515961354 | AX57: 0.9753029604 | AY57: 0.677270719 | BA57: 8339.533023 | BB57: 5401.459766 | BC57: 5178.696263 | BD57: 2449.891826 | BE57: 3109.518229 | BF57: 1200.528262 | BG57: 10225.3708 | BH57: 2706.23967 | BI57: 3376.184708 | BJ57: 3575.773752 | BK57: 4230.225796 | BL57: 9559.824357 | BM57: 3754.398166 | BN57: 1046.431264 | BO57: 873.592235 | BP57: 7792.54461 | BQ57: 2180.578056 | BR57: 1444.325356 | BS57: 4464.421322 | BT57: 119779.6435 | BU57: 799.7943545 | BV57: 2228.027979 | BW57: 18981.41627 | BX57: 438.1271931 | BY57: 1739.620844 | BZ57: 4072.496915 | CA57: 2629.194068 | CB57: 2302.083511 | CC57: 10595.05873 | CD57: 9793.716793 | CE57: 3053.397852 | CF57: 1889.630002 | CG57: 722.4494147 | CH57: 4414.011072 | CI57: 2090.45917 | CJ57: 6897.870078 | CK57: 12404.84109 | CL57: 20446.33312 | CM57: 10750.44076 | CN57: 13338.08511 | CO57: 5698.538896 | CP57: 292.6228234 | CQ57: 2753.085784 | CR57: 5701.90423 | CS57: 3308.359302 | CT57: 65240.06018 | CU57: 5738.633836 | CV57: 1790.804772 | CW57: 44896.38185 | CX57: 6445.743896 | CZ57: 3.921141733 | DA57: 3.732511146 | DB57: 3.71422044 | DC57: 3.389146909 | DD57: 3.492693107 | DE57: 3.079372388 | DF57: 4.009679066 | DG57: 3.432366256 | DH57: 3.528426198 | DI57: 3.553370032 | DJ57: 3.626363549 | DK57: 3.980449913 | DL57: 3.574540329 | DM57: 3.019710706 | DN57: 2.941308765 | DO57: 3.891679297 | DP57: 3.338571637 | DQ57: 3.159665036 | DR57: 3.649765174 | DS57: 5.078383016 | DT57: 2.902978334 | DU57: 3.34792064 | DV57: 4.278328614 | DW57: 2.641600209 | DX57: 3.240454603 | DY57: 3.609860764 | DZ57: 3.419822644 | EA57: 3.362121074 | EB57: 4.025103368 | EC57: 3.990947541 | ED57: 3.484783396 | EE57: 3.276376776 | EF57: 2.858807444 | EG57: 3.644833418 | EH57: 3.320241689 | EI57: 3.83871501 | EJ57: 4.093591205 | EK57: 4.310615432 | EL57: 4.03142627 | EM57: 4.125093484 | EN57: 3.755763517 | EO57: 2.466308196 | EP57: 3.439819744 | EQ57: 3.756019919 | ER57: 3.51961267 | ES57: 4.814514353 | ET57: 3.758808515 | EU57: 3.253048243 | EV57: 4.652211343 | EW57: 3.809273046 | EX57: 3.622847323
